Workbook

Sheet Instructions - Read first
C3: Update Timeseries from Logical Invest Server
C7: 1) | D7: You may need to load the Solver add-in for the portfolio calculations to work (see instructions below).
C8: 2) | D8: You need to allow editing and allow macros to run in order for the sheet to download data from our site.
C9: 3) | D9: Yellow cells are input cells.
C10: 4) | D10: Refresh quotes (above) to download the latest return data for our strategies.
C11: 5) | D11: To manually input weights, go to the 'Input' tab, select 'Use Manual Input' from the dropdown menu then type desired weights under column D.
C12: 6) | D12: To find weights using the Solver, go to the "Solver " tab.
D13: Follow the three steps:
D14: a. Pick which strategies to include in the optimization.
D15: b. Pick from the dropdown menu what type of portfolio optimization you wish to perform (ie, minimum vloatility, max sharpe with constraints, etc).
D16: c. Run the optimization.
D17: Then go back to the "Input" tab and on the top dropdown meny choose "Custom Solver Solution (Get weights from the Solver)" to automatically populate the weights from the optimazation run.the silver
C20: *Note: This is an Excel template to help you analyse our strategies. It will download the latest data from our strategies and can do some basic
D21: calculations and visualizations. You can save it locally and even unprotect and modify it to suit your needs.
D26: How to load the Solver Add-in
D28: Which version do I have?
D30: The Solver add-in is a Microsoft Excel add-in program that is available when you install Microsoft Office or Excel. To use it in Excel, however, you need to load it first.
D32: 1. Click the File tab, and then click Options.
D34: 2. Click Add-Ins, and then in the Manage box, select Excel Add-ins.
D36: 3. Click Go.
D38: 4. In the Add-Ins available box, select the Solver Add-in check box, and then click OK.
D39: a. Tip If Solver Add-in is not listed in the Add-Ins available box, click Browse to locate the add-in.
D41: b. If you get prompted that the Solver add-in is not currently installed on your computer, click Yes to install it.
D43: 5. After you load the Solver add-in, the Solver command is available in the Analysis group on the Data tab.
D45: For more information about using the Solver add-in, see Define and solve a problem by using Solver.
D47: You may need to quit Excel and reopen it to see if the Sover has loaded.

Sheet Input
B2: Select manual Input or input from the Solver | AB2: =+Portfolios -> Use Manual Input (Column D)
B3: Max CAGR, Vol <15% | F3: <- Select here from Preconfigured Portfolio | AB3: Use Solver Solution
AB4: Maximum Sharpe
AB5: Minimum Volatility
C6: HideGraph | D6: Manual Input | E6: Weights | F6: Total Return | G6: CAGR | H6: Volatility | I6: Sharpe Ratio | J6: Sortino Ratio | K6: MaxDrawDown | L6: Avg Duration | M6: Max Duration | AB6: Max CAGR, Vol <25%
B7: =TRANSPOSE(StratNames) -> BRS | C7: FALSE | D7: 0 | E7: =+TRANSPOSE(OFFSET([0]!Portfolios,MATCH(B3,Portfolios,0)-1,2,1,22)) -> 0 | F7: =+TRANSPOSE(TotalReturn) -> 1.633184537 | G7: =+TRANSPOSE(CAGR) -> 0.1448058669 | H7: =+TRANSPOSE(Volatility) -> 0.073892811 | I7: =+(G7)/H7 -> 1.959674627 | J7: =+TRANSPOSE(CAGR)/TRANSPOSE(DownsideRisk) -> 2.078375385 | K7: =+TRANSPOSE(MaxDD) -> -0.09665124899 | L7: =+TRANSPOSE(AvgDuration) -> 46.21294719 | M7: =+TRANSPOSE(MaxDuration) -> 289 | AB7: Max CAGR, Vol <20%
B8: BUGST | C8: FALSE | D8: 0 | E8: 0 | F8: 0.8539401011 | G8: 0.09005141163 | H8: 0.06719093043 | I8: =+(G8)/H8 -> 1.340231651 | J8: 1.383327748 | K8: -0.09839919723 | L8: 77.84686147 | M8: 361 | AB8: Max CAGR, Vol <15%
B9: BUGLEV | C9: FALSE | D9: 0 | E9: 0 | F9: 1.464253562 | G9: 0.1342523869 | H9: 0.08057695394 | I9: 1.66613877 | J9: 1.775771212 | K9: -0.1014838667 | L9: 55.93791209 | M9: 297 | AB9: Max CAGR, Vol <10%
B10: WTOP4 | C10: FALSE | D10: 0 | E10: 0 | F10: 2.020847147 | G10: 0.1669795987 | H10: 0.1212389686 | I10: 1.377276635 | J10: 1.277665359 | K10: -0.1653289316 | L10: 69.5727214 | M10: 311 | AB10: Max CAGR, Vol <7%
B11: GSRlv | C11: FALSE | D11: 0 | E11: 0 | F11: 4.262753397 | G11: 0.2610646507 | H11: 0.1487279168 | I11: 1.755317068 | J11: 1.86293507 | K11: -0.1671661455 | L11: 50.48270089 | M11: 319 | AB11: Max CAGR, Sharpe >1.5
B12: GMRS | C12: FALSE | D12: 0 | E12: 0 | F12: 8.993742926 | G12: 0.3792395395 | H12: 0.2406883181 | I12: 1.575645808 | J12: 1.661641763 | K12: -0.3114771067 | L12: 72.94983819 | M12: 413 | AB12: Min DrawDown
B13: GMRSE | C13: FALSE | D13: 0 | E13: 0 | F13: 9.860644106 | G13: 0.3953587851 | H13: 0.2690950501 | I13: 1.469216119 | J13: 1.472219109 | K13: -0.311477137 | L13: 87.96491228 | M13: 506 | AB13: Max CAGR, MaxDD <15%
B14: MYRS | C14: FALSE | D14: 0 | E14: 0.1499946738 | F14: 6.128113431 | G14: 0.3156534302 | H14: 0.1963239181 | I14: 1.607819532 | J14: 1.339536389 | K14: -0.2062408801 | L14: 26.43327703 | M14: 156 | AB14: Max CAGR, MaxDD <10%
B15: UIS | C15: FALSE | D15: 0 | E15: 0 | F15: 2.487284779 | G15: 0.190620556 | H15: 0.108286735 | I15: 1.760331549 | J15: 1.807321536 | K15: -0.173974618 | L15: 40.49088838 | M15: 254 | AB15: Max CAGR, MaxDD <7%
B16: UIS-SPXL-TMF | C16: FALSE | D16: 0 | E16: 0.3023468881 | F16: 22.93803272 | G16: 0.5582167126 | H16: 0.3296811527 | I16: 1.693201774 | J16: 1.743124406 | K16: -0.4654238491 | L16: 53.4089404 | M16: 320 | AB16: Lev 2: Maximum Sharpe
B17: SPY | C17: FALSE | D17: 0 | E17: 0 | F17: 0.9578722106 | G17: 0.09838794087 | H17: 0.2178167212 | I17: 0.4517005873 | J17: 0.441402701 | K17: -0.514814597 | L17: 170.4675462 | M17: 739 | AB17: Lev 2: Minimum Volatility
B18: TLT | C18: FALSE | D18: 0 | E18: 0 | F18: 0.9565863929 | G18: 0.0982871548 | H18: 0.1580347029 | I18: 0.6219339992 | J18: 0.6371322659 | K18: -0.2658538604 | L18: 231.0761671 | M18: 663 | AB18: Lev 2: Max CAGR, Vol <15%
B19: AGG | C19: FALSE | D19: 0 | E19: 0 | F19: 0.4329201766 | G19: 0.05152771588 | H19: 0.05445307724 | I19: 0.9462773915 | J19: 0.8781015449 | K19: -0.1283531984 | L19: 58.06489362 | M19: 259 | AB19: Lev 2: Max CAGR, MaxDD <15%
B20: SHY | C20: FALSE | D20: 0 | E20: 0 | F20: 0.1105932084 | G20: 0.01475924807 | H20: 0.01349871633 | I20: 1.093381601 | J20: 1.050496895 | K20: -0.02231461182 | L20: 30.5923913 | M20: 129 | AB20: Lev 2: Minimum DrawDown
B21: GLD | C21: FALSE | D21: 0 | E21: 0 | F21: 0.3062819316 | G21: 0.03802488756 | H21: 0.2022360753 | I21: 0.1880222779 | J21: 0.1885399845 | K21: -0.4555501263 | L21: 357.6516576 | M21: 934 | AB21: 0
B22: NASDAQ100 | C22: FALSE | D22: 0 | E22: 0.2767671354 | F22: 9.8908806 | G22: 0.3959007476 | H22: 0.2241850442 | I22: =+(G22-3%)/H22 -> 1.632137188 | J22: 1.861587542 | K22: -0.1943151563 | L22: 36.23661599 | M22: 184 | AB22: 0
B23: GLD-USD | C23: FALSE | D23: 0 | E23: 0.2708913027 | F23: 2.023654057 | G23: 0.1671309955 | H23: 0.1170182371 | I23: 1.171877127 | J23: 1.437230613 | K23: -0.1374708465 | L23: 54.95465394 | M23: 261 | AB23: 0
B24: empty | C24: FALSE | E24: 0 | F24: 0 | G24: 0 | H24: 0 | K24: 0 | M24: 0 | AB24: 0
B25: empty | C25: FALSE | E25: 0 | F25: 0 | G25: 0 | H25: 0 | K25: 0 | M25: 0 | AB25: 0
B26: empty | C26: FALSE | E26: 0 | F26: 0 | G26: 0 | H26: 0 | K26: 0 | M26: 0 | AB26: 0
B27: empty | C27: FALSE | E27: 0 | F27: 0 | G27: 0 | H27: 0 | K27: 0 | M27: 0 | AB27: 0
B28: empty | C28: FALSE | E28: 0 | F28: 0 | G28: 0 | H28: 0 | K28: 0 | M28: 0 | AB28: 0
B29: Custom Portfolio | C29: FALSE | D29: =SUM(D7:D28) -> 0 | E29: =SUM(StratWeights) -> 1 | F29: 9.494997813 | G29: 0.3886999919 | H29: 0.154757557 | I29: =+(G29)/H29 -> 2.511670508 | J29: 2.559960335 | K29: -0.1687242319 | L29: 24.56444968 | M29: 140 | AB29: 0
B30: Portfolio | AB30: 0
AB31: 0
AB32: 0
AB33: 0
AB34: 0
AB35: 0
AB36: 0
AB37: 0
AB38: 0
AB39: 0
AB40: 0
B72: Correlation Matrix
E73: =+StratNames -> BRS | F73: BUGST | G73: BUGLEV | H73: WTOP4 | I73: GSRlv | J73: GMRS | K73: GMRSE | L73: MYRS | M73: UIS | N73: UIS-SPXL-TMF | O73: SPY | P73: TLT | Q73: AGG | R73: SHY | S73: GLD | T73: NASDAQ100 | U73: GLD-USD | V73: empty | W73: empty | X73: empty | Y73: empty | Z73: empty
E74: 1 | F74: 2 | G74: 3 | H74: 4 | I74: 5 | J74: 6 | K74: 7 | L74: 8 | M74: 9 | N74: 10 | O74: 11 | P74: 12 | Q74: 13 | R74: 14 | S74: 15 | T74: 16 | U74: 17 | V74: 18 | W74: 19 | X74: 20 | Y74: 21 | Z74: 22
B75: =+TRANSPOSE(StratNames) -> BRS | C75: 1 | E75: =+CORREL(OFFSET(ReturnData!$B$1:$B$2106,0,Input!E$74-1),OFFSET(ReturnData!$B$1:$B$2106,0,Input!$C75-1)) -> 1 | F75: =+CORREL(OFFSET(ReturnData!$B$1:$B$2106,0,Input!F$74-1),OFFSET(ReturnData!$B$1:$B$2106,0,Input!$C75-1)) -> 0.5238273196 | G75: =+CORREL(OFFSET(ReturnData!$B$1:$B$2106,0,Input!G$74-1),OFFSET(ReturnData!$B$1:$B$2106,0,Input!$C75-1)) -> 0.5420338227 | H75: =+CORREL(OFFSET(ReturnData!$B$1:$B$2106,0,Input!H$74-1),OFFSET(ReturnData!$B$1:$B$2106,0,Input!$C75-1)) -> 0.4480237112 | I75: =+CORREL(OFFSET(ReturnData!$B$1:$B$2106,0,Input!I$74-1),OFFSET(ReturnData!$B$1:$B$2106,0,Input!$C75-1)) -> 0.5881646045 | J75: =+CORREL(OFFSET(ReturnData!$B$1:$B$2106,0,Input!J$74-1),OFFSET(ReturnData!$B$1:$B$2106,0,Input!$C75-1)) -> 0.5888540669 | K75: =+CORREL(OFFSET(ReturnData!$B$1:$B$2106,0,Input!K$74-1),OFFSET(ReturnData!$B$1:$B$2106,0,Input!$C75-1)) -> 0.5830677077 | L75: =+CORREL(OFFSET(ReturnData!$B$1:$B$2106,0,Input!L$74-1),OFFSET(ReturnData!$B$1:$B$2106,0,Input!$C75-1)) -> 0.3825414902 | M75: =+CORREL(OFFSET(ReturnData!$B$1:$B$2106,0,Input!M$74-1),OFFSET(ReturnData!$B$1:$B$2106,0,Input!$C75-1)) -> 0.601363468 | N75: =+CORREL(OFFSET(ReturnData!$B$1:$B$2106,0,Input!N$74-1),OFFSET(ReturnData!$B$1:$B$2106,0,Input!$C75-1)) -> 0.4494929864 | O75: =+CORREL(OFFSET(ReturnData!$B$1:$B$2106,0,Input!O$74-1),OFFSET(ReturnData!$B$1:$B$2106,0,Input!$C75-1)) -> 0.07405379518 | P75: =+CORREL(OFFSET(ReturnData!$B$1:$B$2106,0,Input!P$74-1),OFFSET(ReturnData!$B$1:$B$2106,0,Input!$C75-1)) -> 0.2769685109 | Q75: =+CORREL(OFFSET(ReturnData!$B$1:$B$2106,0,Input!Q$74-1),OFFSET(ReturnData!$B$1:$B$2106,0,Input!$C75-1)) -> 0.2333518353 | R75: =+CORREL(OFFSET(ReturnData!$B$1:$B$2106,0,Input!R$74-1),OFFSET(ReturnData!$B$1:$B$2106,0,Input!$C75-1)) -> 0.1982732379 | S75: =+CORREL(OFFSET(ReturnData!$B$1:$B$2106,0,Input!S$74-1),OFFSET(ReturnData!$B$1:$B$2106,0,Input!$C75-1)) -> 0.1263959063 | T75: =+CORREL(OFFSET(ReturnData!$B$1:$B$2106,0,Input!T$74-1),OFFSET(ReturnData!$B$1:$B$2106,0,Input!$C75-1)) -> 0.38961322 | U75: =+CORREL(OFFSET(ReturnData!$B$1:$B$2106,0,Input!U$74-1),OFFSET(ReturnData!$B$1:$B$2106,0,Input!$C75-1)) -> 0.07714628698 | V75: =+CORREL(OFFSET(ReturnData!$B$1:$B$2106,0,Input!V$74-1),OFFSET(ReturnData!$B$1:$B$2106,0,Input!$C75-1)) ->  | W75: =+CORREL(OFFSET(ReturnData!$B$1:$B$2106,0,Input!W$74-1),OFFSET(ReturnData!$B$1:$B$2106,0,Input!$C75-1)) ->  | X75: =+CORREL(OFFSET(ReturnData!$B$1:$B$2106,0,Input!X$74-1),OFFSET(ReturnData!$B$1:$B$2106,0,Input!$C75-1)) ->  | Y75: =+CORREL(OFFSET(ReturnData!$B$1:$B$2106,0,Input!Y$74-1),OFFSET(ReturnData!$B$1:$B$2106,0,Input!$C75-1)) ->  | Z75: =+CORREL(OFFSET(ReturnData!$B$1:$B$2106,0,Input!Z$74-1),OFFSET(ReturnData!$B$1:$B$2106,0,Input!$C75-1)) -> 
B76: BUGST | C76: 2 | E76: =+CORREL(OFFSET(ReturnData!$B$1:$B$2106,0,Input!E$74-1),OFFSET(ReturnData!$B$1:$B$2106,0,Input!$C76-1)) -> 0.5238273196 | F76: =+CORREL(OFFSET(ReturnData!$B$1:$B$2106,0,Input!F$74-1),OFFSET(ReturnData!$B$1:$B$2106,0,Input!$C76-1)) -> 1 | G76: =+CORREL(OFFSET(ReturnData!$B$1:$B$2106,0,Input!G$74-1),OFFSET(ReturnData!$B$1:$B$2106,0,Input!$C76-1)) -> 0.9116323942 | H76: =+CORREL(OFFSET(ReturnData!$B$1:$B$2106,0,Input!H$74-1),OFFSET(ReturnData!$B$1:$B$2106,0,Input!$C76-1)) -> 0.5163397515 | I76: =+CORREL(OFFSET(ReturnData!$B$1:$B$2106,0,Input!I$74-1),OFFSET(ReturnData!$B$1:$B$2106,0,Input!$C76-1)) -> 0.4975830969 | J76: =+CORREL(OFFSET(ReturnData!$B$1:$B$2106,0,Input!J$74-1),OFFSET(ReturnData!$B$1:$B$2106,0,Input!$C76-1)) -> 0.4005825951 | K76: =+CORREL(OFFSET(ReturnData!$B$1:$B$2106,0,Input!K$74-1),OFFSET(ReturnData!$B$1:$B$2106,0,Input!$C76-1)) -> 0.4514942263 | L76: =+CORREL(OFFSET(ReturnData!$B$1:$B$2106,0,Input!L$74-1),OFFSET(ReturnData!$B$1:$B$2106,0,Input!$C76-1)) -> 0.4013108294 | M76: =+CORREL(OFFSET(ReturnData!$B$1:$B$2106,0,Input!M$74-1),OFFSET(ReturnData!$B$1:$B$2106,0,Input!$C76-1)) -> 0.4970765566 | N76: =+CORREL(OFFSET(ReturnData!$B$1:$B$2106,0,Input!N$74-1),OFFSET(ReturnData!$B$1:$B$2106,0,Input!$C76-1)) -> 0.4162511539 | O76: =+CORREL(OFFSET(ReturnData!$B$1:$B$2106,0,Input!O$74-1),OFFSET(ReturnData!$B$1:$B$2106,0,Input!$C76-1)) -> 0.1092137124 | P76: =+CORREL(OFFSET(ReturnData!$B$1:$B$2106,0,Input!P$74-1),OFFSET(ReturnData!$B$1:$B$2106,0,Input!$C76-1)) -> 0.2824042024 | Q76: =+CORREL(OFFSET(ReturnData!$B$1:$B$2106,0,Input!Q$74-1),OFFSET(ReturnData!$B$1:$B$2106,0,Input!$C76-1)) -> 0.2175355613 | R76: =+CORREL(OFFSET(ReturnData!$B$1:$B$2106,0,Input!R$74-1),OFFSET(ReturnData!$B$1:$B$2106,0,Input!$C76-1)) -> 0.1926969211 | S76: =+CORREL(OFFSET(ReturnData!$B$1:$B$2106,0,Input!S$74-1),OFFSET(ReturnData!$B$1:$B$2106,0,Input!$C76-1)) -> 0.4322445489 | T76: =+CORREL(OFFSET(ReturnData!$B$1:$B$2106,0,Input!T$74-1),OFFSET(ReturnData!$B$1:$B$2106,0,Input!$C76-1)) -> 0.3724858017 | U76: =+CORREL(OFFSET(ReturnData!$B$1:$B$2106,0,Input!U$74-1),OFFSET(ReturnData!$B$1:$B$2106,0,Input!$C76-1)) -> 0.2728814346 | V76: =+CORREL(OFFSET(ReturnData!$B$1:$B$2106,0,Input!V$74-1),OFFSET(ReturnData!$B$1:$B$2106,0,Input!$C76-1)) ->  | W76: =+CORREL(OFFSET(ReturnData!$B$1:$B$2106,0,Input!W$74-1),OFFSET(ReturnData!$B$1:$B$2106,0,Input!$C76-1)) ->  | X76: =+CORREL(OFFSET(ReturnData!$B$1:$B$2106,0,Input!X$74-1),OFFSET(ReturnData!$B$1:$B$2106,0,Input!$C76-1)) ->  | Y76: =+CORREL(OFFSET(ReturnData!$B$1:$B$2106,0,Input!Y$74-1),OFFSET(ReturnData!$B$1:$B$2106,0,Input!$C76-1)) ->  | Z76: =+CORREL(OFFSET(ReturnData!$B$1:$B$2106,0,Input!Z$74-1),OFFSET(ReturnData!$B$1:$B$2106,0,Input!$C76-1)) -> 
B77: BUGLEV | C77: 3 | E77: =+CORREL(OFFSET(ReturnData!$B$1:$B$2106,0,Input!E$74-1),OFFSET(ReturnData!$B$1:$B$2106,0,Input!$C77-1)) -> 0.5420338227 | F77: =+CORREL(OFFSET(ReturnData!$B$1:$B$2106,0,Input!F$74-1),OFFSET(ReturnData!$B$1:$B$2106,0,Input!$C77-1)) -> 0.9116323942 | G77: =+CORREL(OFFSET(ReturnData!$B$1:$B$2106,0,Input!G$74-1),OFFSET(ReturnData!$B$1:$B$2106,0,Input!$C77-1)) -> 1 | H77: =+CORREL(OFFSET(ReturnData!$B$1:$B$2106,0,Input!H$74-1),OFFSET(ReturnData!$B$1:$B$2106,0,Input!$C77-1)) -> 0.5806003217 | I77: =+CORREL(OFFSET(ReturnData!$B$1:$B$2106,0,Input!I$74-1),OFFSET(ReturnData!$B$1:$B$2106,0,Input!$C77-1)) -> 0.5356451799 | J77: =+CORREL(OFFSET(ReturnData!$B$1:$B$2106,0,Input!J$74-1),OFFSET(ReturnData!$B$1:$B$2106,0,Input!$C77-1)) -> 0.389677939 | K77: =+CORREL(OFFSET(ReturnData!$B$1:$B$2106,0,Input!K$74-1),OFFSET(ReturnData!$B$1:$B$2106,0,Input!$C77-1)) -> 0.4306715944 | L77: =+CORREL(OFFSET(ReturnData!$B$1:$B$2106,0,Input!L$74-1),OFFSET(ReturnData!$B$1:$B$2106,0,Input!$C77-1)) -> 0.3672771595 | M77: =+CORREL(OFFSET(ReturnData!$B$1:$B$2106,0,Input!M$74-1),OFFSET(ReturnData!$B$1:$B$2106,0,Input!$C77-1)) -> 0.5613398235 | N77: =+CORREL(OFFSET(ReturnData!$B$1:$B$2106,0,Input!N$74-1),OFFSET(ReturnData!$B$1:$B$2106,0,Input!$C77-1)) -> 0.4440511375 | O77: =+CORREL(OFFSET(ReturnData!$B$1:$B$2106,0,Input!O$74-1),OFFSET(ReturnData!$B$1:$B$2106,0,Input!$C77-1)) -> 0.1525079816 | P77: =+CORREL(OFFSET(ReturnData!$B$1:$B$2106,0,Input!P$74-1),OFFSET(ReturnData!$B$1:$B$2106,0,Input!$C77-1)) -> 0.2967810781 | Q77: =+CORREL(OFFSET(ReturnData!$B$1:$B$2106,0,Input!Q$74-1),OFFSET(ReturnData!$B$1:$B$2106,0,Input!$C77-1)) -> 0.2601702869 | R77: =+CORREL(OFFSET(ReturnData!$B$1:$B$2106,0,Input!R$74-1),OFFSET(ReturnData!$B$1:$B$2106,0,Input!$C77-1)) -> 0.2649905032 | S77: =+CORREL(OFFSET(ReturnData!$B$1:$B$2106,0,Input!S$74-1),OFFSET(ReturnData!$B$1:$B$2106,0,Input!$C77-1)) -> 0.4343896164 | T77: =+CORREL(OFFSET(ReturnData!$B$1:$B$2106,0,Input!T$74-1),OFFSET(ReturnData!$B$1:$B$2106,0,Input!$C77-1)) -> 0.4010778001 | U77: =+CORREL(OFFSET(ReturnData!$B$1:$B$2106,0,Input!U$74-1),OFFSET(ReturnData!$B$1:$B$2106,0,Input!$C77-1)) -> 0.223527866 | V77: =+CORREL(OFFSET(ReturnData!$B$1:$B$2106,0,Input!V$74-1),OFFSET(ReturnData!$B$1:$B$2106,0,Input!$C77-1)) ->  | W77: =+CORREL(OFFSET(ReturnData!$B$1:$B$2106,0,Input!W$74-1),OFFSET(ReturnData!$B$1:$B$2106,0,Input!$C77-1)) ->  | X77: =+CORREL(OFFSET(ReturnData!$B$1:$B$2106,0,Input!X$74-1),OFFSET(ReturnData!$B$1:$B$2106,0,Input!$C77-1)) ->  | Y77: =+CORREL(OFFSET(ReturnData!$B$1:$B$2106,0,Input!Y$74-1),OFFSET(ReturnData!$B$1:$B$2106,0,Input!$C77-1)) ->  | Z77: =+CORREL(OFFSET(ReturnData!$B$1:$B$2106,0,Input!Z$74-1),OFFSET(ReturnData!$B$1:$B$2106,0,Input!$C77-1)) -> 
B78: WTOP4 | C78: 4 | E78: =+CORREL(OFFSET(ReturnData!$B$1:$B$2106,0,Input!E$74-1),OFFSET(ReturnData!$B$1:$B$2106,0,Input!$C78-1)) -> 0.4480237112 | F78: =+CORREL(OFFSET(ReturnData!$B$1:$B$2106,0,Input!F$74-1),OFFSET(ReturnData!$B$1:$B$2106,0,Input!$C78-1)) -> 0.5163397515 | G78: =+CORREL(OFFSET(ReturnData!$B$1:$B$2106,0,Input!G$74-1),OFFSET(ReturnData!$B$1:$B$2106,0,Input!$C78-1)) -> 0.5806003217 | H78: =+CORREL(OFFSET(ReturnData!$B$1:$B$2106,0,Input!H$74-1),OFFSET(ReturnData!$B$1:$B$2106,0,Input!$C78-1)) -> 1 | I78: =+CORREL(OFFSET(ReturnData!$B$1:$B$2106,0,Input!I$74-1),OFFSET(ReturnData!$B$1:$B$2106,0,Input!$C78-1)) -> 0.4256298495 | J78: =+CORREL(OFFSET(ReturnData!$B$1:$B$2106,0,Input!J$74-1),OFFSET(ReturnData!$B$1:$B$2106,0,Input!$C78-1)) -> 0.4165663432 | K78: =+CORREL(OFFSET(ReturnData!$B$1:$B$2106,0,Input!K$74-1),OFFSET(ReturnData!$B$1:$B$2106,0,Input!$C78-1)) -> 0.3863857581 | L78: =+CORREL(OFFSET(ReturnData!$B$1:$B$2106,0,Input!L$74-1),OFFSET(ReturnData!$B$1:$B$2106,0,Input!$C78-1)) -> 0.3736939477 | M78: =+CORREL(OFFSET(ReturnData!$B$1:$B$2106,0,Input!M$74-1),OFFSET(ReturnData!$B$1:$B$2106,0,Input!$C78-1)) -> 0.5246712176 | N78: =+CORREL(OFFSET(ReturnData!$B$1:$B$2106,0,Input!N$74-1),OFFSET(ReturnData!$B$1:$B$2106,0,Input!$C78-1)) -> 0.5179242496 | O78: =+CORREL(OFFSET(ReturnData!$B$1:$B$2106,0,Input!O$74-1),OFFSET(ReturnData!$B$1:$B$2106,0,Input!$C78-1)) -> 0.2597352576 | P78: =+CORREL(OFFSET(ReturnData!$B$1:$B$2106,0,Input!P$74-1),OFFSET(ReturnData!$B$1:$B$2106,0,Input!$C78-1)) -> 0.1953099235 | Q78: =+CORREL(OFFSET(ReturnData!$B$1:$B$2106,0,Input!Q$74-1),OFFSET(ReturnData!$B$1:$B$2106,0,Input!$C78-1)) -> 0.1552978128 | R78: =+CORREL(OFFSET(ReturnData!$B$1:$B$2106,0,Input!R$74-1),OFFSET(ReturnData!$B$1:$B$2106,0,Input!$C78-1)) -> 0.0653942241 | S78: =+CORREL(OFFSET(ReturnData!$B$1:$B$2106,0,Input!S$74-1),OFFSET(ReturnData!$B$1:$B$2106,0,Input!$C78-1)) -> 0.189271771 | T78: =+CORREL(OFFSET(ReturnData!$B$1:$B$2106,0,Input!T$74-1),OFFSET(ReturnData!$B$1:$B$2106,0,Input!$C78-1)) -> 0.453896919 | U78: =+CORREL(OFFSET(ReturnData!$B$1:$B$2106,0,Input!U$74-1),OFFSET(ReturnData!$B$1:$B$2106,0,Input!$C78-1)) -> 0.0455249849 | V78: =+CORREL(OFFSET(ReturnData!$B$1:$B$2106,0,Input!V$74-1),OFFSET(ReturnData!$B$1:$B$2106,0,Input!$C78-1)) ->  | W78: =+CORREL(OFFSET(ReturnData!$B$1:$B$2106,0,Input!W$74-1),OFFSET(ReturnData!$B$1:$B$2106,0,Input!$C78-1)) ->  | X78: =+CORREL(OFFSET(ReturnData!$B$1:$B$2106,0,Input!X$74-1),OFFSET(ReturnData!$B$1:$B$2106,0,Input!$C78-1)) ->  | Y78: =+CORREL(OFFSET(ReturnData!$B$1:$B$2106,0,Input!Y$74-1),OFFSET(ReturnData!$B$1:$B$2106,0,Input!$C78-1)) ->  | Z78: =+CORREL(OFFSET(ReturnData!$B$1:$B$2106,0,Input!Z$74-1),OFFSET(ReturnData!$B$1:$B$2106,0,Input!$C78-1)) -> 
B79: GSRlv | C79: 5 | E79: =+CORREL(OFFSET(ReturnData!$B$1:$B$2106,0,Input!E$74-1),OFFSET(ReturnData!$B$1:$B$2106,0,Input!$C79-1)) -> 0.5881646045 | F79: =+CORREL(OFFSET(ReturnData!$B$1:$B$2106,0,Input!F$74-1),OFFSET(ReturnData!$B$1:$B$2106,0,Input!$C79-1)) -> 0.4975830969 | G79: =+CORREL(OFFSET(ReturnData!$B$1:$B$2106,0,Input!G$74-1),OFFSET(ReturnData!$B$1:$B$2106,0,Input!$C79-1)) -> 0.5356451799 | H79: =+CORREL(OFFSET(ReturnData!$B$1:$B$2106,0,Input!H$74-1),OFFSET(ReturnData!$B$1:$B$2106,0,Input!$C79-1)) -> 0.4256298495 | I79: =+CORREL(OFFSET(ReturnData!$B$1:$B$2106,0,Input!I$74-1),OFFSET(ReturnData!$B$1:$B$2106,0,Input!$C79-1)) -> 1 | J79: =+CORREL(OFFSET(ReturnData!$B$1:$B$2106,0,Input!J$74-1),OFFSET(ReturnData!$B$1:$B$2106,0,Input!$C79-1)) -> 0.6403651522 | K79: =+CORREL(OFFSET(ReturnData!$B$1:$B$2106,0,Input!K$74-1),OFFSET(ReturnData!$B$1:$B$2106,0,Input!$C79-1)) -> 0.6093691981 | L79: =+CORREL(OFFSET(ReturnData!$B$1:$B$2106,0,Input!L$74-1),OFFSET(ReturnData!$B$1:$B$2106,0,Input!$C79-1)) -> 0.3427834567 | M79: =+CORREL(OFFSET(ReturnData!$B$1:$B$2106,0,Input!M$74-1),OFFSET(ReturnData!$B$1:$B$2106,0,Input!$C79-1)) -> 0.6684586724 | N79: =+CORREL(OFFSET(ReturnData!$B$1:$B$2106,0,Input!N$74-1),OFFSET(ReturnData!$B$1:$B$2106,0,Input!$C79-1)) -> 0.4738316741 | O79: =+CORREL(OFFSET(ReturnData!$B$1:$B$2106,0,Input!O$74-1),OFFSET(ReturnData!$B$1:$B$2106,0,Input!$C79-1)) -> 0.1927960796 | P79: =+CORREL(OFFSET(ReturnData!$B$1:$B$2106,0,Input!P$74-1),OFFSET(ReturnData!$B$1:$B$2106,0,Input!$C79-1)) -> 0.1332837382 | Q79: =+CORREL(OFFSET(ReturnData!$B$1:$B$2106,0,Input!Q$74-1),OFFSET(ReturnData!$B$1:$B$2106,0,Input!$C79-1)) -> 0.1047137724 | R79: =+CORREL(OFFSET(ReturnData!$B$1:$B$2106,0,Input!R$74-1),OFFSET(ReturnData!$B$1:$B$2106,0,Input!$C79-1)) -> 0.1012692558 | S79: =+CORREL(OFFSET(ReturnData!$B$1:$B$2106,0,Input!S$74-1),OFFSET(ReturnData!$B$1:$B$2106,0,Input!$C79-1)) -> 0.1325948791 | T79: =+CORREL(OFFSET(ReturnData!$B$1:$B$2106,0,Input!T$74-1),OFFSET(ReturnData!$B$1:$B$2106,0,Input!$C79-1)) -> 0.3999435665 | U79: =+CORREL(OFFSET(ReturnData!$B$1:$B$2106,0,Input!U$74-1),OFFSET(ReturnData!$B$1:$B$2106,0,Input!$C79-1)) -> 0.06452627078 | V79: =+CORREL(OFFSET(ReturnData!$B$1:$B$2106,0,Input!V$74-1),OFFSET(ReturnData!$B$1:$B$2106,0,Input!$C79-1)) ->  | W79: =+CORREL(OFFSET(ReturnData!$B$1:$B$2106,0,Input!W$74-1),OFFSET(ReturnData!$B$1:$B$2106,0,Input!$C79-1)) ->  | X79: =+CORREL(OFFSET(ReturnData!$B$1:$B$2106,0,Input!X$74-1),OFFSET(ReturnData!$B$1:$B$2106,0,Input!$C79-1)) ->  | Y79: =+CORREL(OFFSET(ReturnData!$B$1:$B$2106,0,Input!Y$74-1),OFFSET(ReturnData!$B$1:$B$2106,0,Input!$C79-1)) ->  | Z79: =+CORREL(OFFSET(ReturnData!$B$1:$B$2106,0,Input!Z$74-1),OFFSET(ReturnData!$B$1:$B$2106,0,Input!$C79-1)) -> 
B80: GMRS | C80: 6 | E80: =+CORREL(OFFSET(ReturnData!$B$1:$B$2106,0,Input!E$74-1),OFFSET(ReturnData!$B$1:$B$2106,0,Input!$C80-1)) -> 0.5888540669 | F80: =+CORREL(OFFSET(ReturnData!$B$1:$B$2106,0,Input!F$74-1),OFFSET(ReturnData!$B$1:$B$2106,0,Input!$C80-1)) -> 0.4005825951 | G80: =+CORREL(OFFSET(ReturnData!$B$1:$B$2106,0,Input!G$74-1),OFFSET(ReturnData!$B$1:$B$2106,0,Input!$C80-1)) -> 0.389677939 | H80: =+CORREL(OFFSET(ReturnData!$B$1:$B$2106,0,Input!H$74-1),OFFSET(ReturnData!$B$1:$B$2106,0,Input!$C80-1)) -> 0.4165663432 | I80: =+CORREL(OFFSET(ReturnData!$B$1:$B$2106,0,Input!I$74-1),OFFSET(ReturnData!$B$1:$B$2106,0,Input!$C80-1)) -> 0.6403651522 | J80: =+CORREL(OFFSET(ReturnData!$B$1:$B$2106,0,Input!J$74-1),OFFSET(ReturnData!$B$1:$B$2106,0,Input!$C80-1)) -> 1 | K80: =+CORREL(OFFSET(ReturnData!$B$1:$B$2106,0,Input!K$74-1),OFFSET(ReturnData!$B$1:$B$2106,0,Input!$C80-1)) -> 0.8013380422 | L80: =+CORREL(OFFSET(ReturnData!$B$1:$B$2106,0,Input!L$74-1),OFFSET(ReturnData!$B$1:$B$2106,0,Input!$C80-1)) -> 0.3845573874 | M80: =+CORREL(OFFSET(ReturnData!$B$1:$B$2106,0,Input!M$74-1),OFFSET(ReturnData!$B$1:$B$2106,0,Input!$C80-1)) -> 0.6212368843 | N80: =+CORREL(OFFSET(ReturnData!$B$1:$B$2106,0,Input!N$74-1),OFFSET(ReturnData!$B$1:$B$2106,0,Input!$C80-1)) -> 0.495728164 | O80: =+CORREL(OFFSET(ReturnData!$B$1:$B$2106,0,Input!O$74-1),OFFSET(ReturnData!$B$1:$B$2106,0,Input!$C80-1)) -> 0.1513252162 | P80: =+CORREL(OFFSET(ReturnData!$B$1:$B$2106,0,Input!P$74-1),OFFSET(ReturnData!$B$1:$B$2106,0,Input!$C80-1)) -> 0.1912929478 | Q80: =+CORREL(OFFSET(ReturnData!$B$1:$B$2106,0,Input!Q$74-1),OFFSET(ReturnData!$B$1:$B$2106,0,Input!$C80-1)) -> 0.08055878196 | R80: =+CORREL(OFFSET(ReturnData!$B$1:$B$2106,0,Input!R$74-1),OFFSET(ReturnData!$B$1:$B$2106,0,Input!$C80-1)) -> -0.001509219179 | S80: =+CORREL(OFFSET(ReturnData!$B$1:$B$2106,0,Input!S$74-1),OFFSET(ReturnData!$B$1:$B$2106,0,Input!$C80-1)) -> 0.1014665597 | T80: =+CORREL(OFFSET(ReturnData!$B$1:$B$2106,0,Input!T$74-1),OFFSET(ReturnData!$B$1:$B$2106,0,Input!$C80-1)) -> 0.282682643 | U80: =+CORREL(OFFSET(ReturnData!$B$1:$B$2106,0,Input!U$74-1),OFFSET(ReturnData!$B$1:$B$2106,0,Input!$C80-1)) -> 0.07826907862 | V80: =+CORREL(OFFSET(ReturnData!$B$1:$B$2106,0,Input!V$74-1),OFFSET(ReturnData!$B$1:$B$2106,0,Input!$C80-1)) ->  | W80: =+CORREL(OFFSET(ReturnData!$B$1:$B$2106,0,Input!W$74-1),OFFSET(ReturnData!$B$1:$B$2106,0,Input!$C80-1)) ->  | X80: =+CORREL(OFFSET(ReturnData!$B$1:$B$2106,0,Input!X$74-1),OFFSET(ReturnData!$B$1:$B$2106,0,Input!$C80-1)) ->  | Y80: =+CORREL(OFFSET(ReturnData!$B$1:$B$2106,0,Input!Y$74-1),OFFSET(ReturnData!$B$1:$B$2106,0,Input!$C80-1)) ->  | Z80: =+CORREL(OFFSET(ReturnData!$B$1:$B$2106,0,Input!Z$74-1),OFFSET(ReturnData!$B$1:$B$2106,0,Input!$C80-1)) -> 
B81: GMRSE | C81: 7 | E81: =+CORREL(OFFSET(ReturnData!$B$1:$B$2106,0,Input!E$74-1),OFFSET(ReturnData!$B$1:$B$2106,0,Input!$C81-1)) -> 0.5830677077 | F81: =+CORREL(OFFSET(ReturnData!$B$1:$B$2106,0,Input!F$74-1),OFFSET(ReturnData!$B$1:$B$2106,0,Input!$C81-1)) -> 0.4514942263 | G81: =+CORREL(OFFSET(ReturnData!$B$1:$B$2106,0,Input!G$74-1),OFFSET(ReturnData!$B$1:$B$2106,0,Input!$C81-1)) -> 0.4306715944 | H81: =+CORREL(OFFSET(ReturnData!$B$1:$B$2106,0,Input!H$74-1),OFFSET(ReturnData!$B$1:$B$2106,0,Input!$C81-1)) -> 0.3863857581 | I81: =+CORREL(OFFSET(ReturnData!$B$1:$B$2106,0,Input!I$74-1),OFFSET(ReturnData!$B$1:$B$2106,0,Input!$C81-1)) -> 0.6093691981 | J81: =+CORREL(OFFSET(ReturnData!$B$1:$B$2106,0,Input!J$74-1),OFFSET(ReturnData!$B$1:$B$2106,0,Input!$C81-1)) -> 0.8013380422 | K81: =+CORREL(OFFSET(ReturnData!$B$1:$B$2106,0,Input!K$74-1),OFFSET(ReturnData!$B$1:$B$2106,0,Input!$C81-1)) -> 1 | L81: =+CORREL(OFFSET(ReturnData!$B$1:$B$2106,0,Input!L$74-1),OFFSET(ReturnData!$B$1:$B$2106,0,Input!$C81-1)) -> 0.5881441943 | M81: =+CORREL(OFFSET(ReturnData!$B$1:$B$2106,0,Input!M$74-1),OFFSET(ReturnData!$B$1:$B$2106,0,Input!$C81-1)) -> 0.5996749501 | N81: =+CORREL(OFFSET(ReturnData!$B$1:$B$2106,0,Input!N$74-1),OFFSET(ReturnData!$B$1:$B$2106,0,Input!$C81-1)) -> 0.4735599421 | O81: =+CORREL(OFFSET(ReturnData!$B$1:$B$2106,0,Input!O$74-1),OFFSET(ReturnData!$B$1:$B$2106,0,Input!$C81-1)) -> 0.1269549647 | P81: =+CORREL(OFFSET(ReturnData!$B$1:$B$2106,0,Input!P$74-1),OFFSET(ReturnData!$B$1:$B$2106,0,Input!$C81-1)) -> 0.2112352778 | Q81: =+CORREL(OFFSET(ReturnData!$B$1:$B$2106,0,Input!Q$74-1),OFFSET(ReturnData!$B$1:$B$2106,0,Input!$C81-1)) -> 0.0902701726 | R81: =+CORREL(OFFSET(ReturnData!$B$1:$B$2106,0,Input!R$74-1),OFFSET(ReturnData!$B$1:$B$2106,0,Input!$C81-1)) -> -0.0006222003135 | S81: =+CORREL(OFFSET(ReturnData!$B$1:$B$2106,0,Input!S$74-1),OFFSET(ReturnData!$B$1:$B$2106,0,Input!$C81-1)) -> 0.1112303926 | T81: =+CORREL(OFFSET(ReturnData!$B$1:$B$2106,0,Input!T$74-1),OFFSET(ReturnData!$B$1:$B$2106,0,Input!$C81-1)) -> 0.3322365605 | U81: =+CORREL(OFFSET(ReturnData!$B$1:$B$2106,0,Input!U$74-1),OFFSET(ReturnData!$B$1:$B$2106,0,Input!$C81-1)) -> 0.1023316603 | V81: =+CORREL(OFFSET(ReturnData!$B$1:$B$2106,0,Input!V$74-1),OFFSET(ReturnData!$B$1:$B$2106,0,Input!$C81-1)) ->  | W81: =+CORREL(OFFSET(ReturnData!$B$1:$B$2106,0,Input!W$74-1),OFFSET(ReturnData!$B$1:$B$2106,0,Input!$C81-1)) ->  | X81: =+CORREL(OFFSET(ReturnData!$B$1:$B$2106,0,Input!X$74-1),OFFSET(ReturnData!$B$1:$B$2106,0,Input!$C81-1)) ->  | Y81: =+CORREL(OFFSET(ReturnData!$B$1:$B$2106,0,Input!Y$74-1),OFFSET(ReturnData!$B$1:$B$2106,0,Input!$C81-1)) ->  | Z81: =+CORREL(OFFSET(ReturnData!$B$1:$B$2106,0,Input!Z$74-1),OFFSET(ReturnData!$B$1:$B$2106,0,Input!$C81-1)) -> 
B82: MYRS | C82: 8 | E82: =+CORREL(OFFSET(ReturnData!$B$1:$B$2106,0,Input!E$74-1),OFFSET(ReturnData!$B$1:$B$2106,0,Input!$C82-1)) -> 0.3825414902 | F82: =+CORREL(OFFSET(ReturnData!$B$1:$B$2106,0,Input!F$74-1),OFFSET(ReturnData!$B$1:$B$2106,0,Input!$C82-1)) -> 0.4013108294 | G82: =+CORREL(OFFSET(ReturnData!$B$1:$B$2106,0,Input!G$74-1),OFFSET(ReturnData!$B$1:$B$2106,0,Input!$C82-1)) -> 0.3672771595 | H82: =+CORREL(OFFSET(ReturnData!$B$1:$B$2106,0,Input!H$74-1),OFFSET(ReturnData!$B$1:$B$2106,0,Input!$C82-1)) -> 0.3736939477 | I82: =+CORREL(OFFSET(ReturnData!$B$1:$B$2106,0,Input!I$74-1),OFFSET(ReturnData!$B$1:$B$2106,0,Input!$C82-1)) -> 0.3427834567 | J82: =+CORREL(OFFSET(ReturnData!$B$1:$B$2106,0,Input!J$74-1),OFFSET(ReturnData!$B$1:$B$2106,0,Input!$C82-1)) -> 0.3845573874 | K82: =+CORREL(OFFSET(ReturnData!$B$1:$B$2106,0,Input!K$74-1),OFFSET(ReturnData!$B$1:$B$2106,0,Input!$C82-1)) -> 0.5881441943 | L82: =+CORREL(OFFSET(ReturnData!$B$1:$B$2106,0,Input!L$74-1),OFFSET(ReturnData!$B$1:$B$2106,0,Input!$C82-1)) -> 1 | M82: =+CORREL(OFFSET(ReturnData!$B$1:$B$2106,0,Input!M$74-1),OFFSET(ReturnData!$B$1:$B$2106,0,Input!$C82-1)) -> 0.3463244005 | N82: =+CORREL(OFFSET(ReturnData!$B$1:$B$2106,0,Input!N$74-1),OFFSET(ReturnData!$B$1:$B$2106,0,Input!$C82-1)) -> 0.3614994074 | O82: =+CORREL(OFFSET(ReturnData!$B$1:$B$2106,0,Input!O$74-1),OFFSET(ReturnData!$B$1:$B$2106,0,Input!$C82-1)) -> 0.08658187703 | P82: =+CORREL(OFFSET(ReturnData!$B$1:$B$2106,0,Input!P$74-1),OFFSET(ReturnData!$B$1:$B$2106,0,Input!$C82-1)) -> 0.1715007802 | Q82: =+CORREL(OFFSET(ReturnData!$B$1:$B$2106,0,Input!Q$74-1),OFFSET(ReturnData!$B$1:$B$2106,0,Input!$C82-1)) -> 0.1055347014 | R82: =+CORREL(OFFSET(ReturnData!$B$1:$B$2106,0,Input!R$74-1),OFFSET(ReturnData!$B$1:$B$2106,0,Input!$C82-1)) -> 0.01852435981 | S82: =+CORREL(OFFSET(ReturnData!$B$1:$B$2106,0,Input!S$74-1),OFFSET(ReturnData!$B$1:$B$2106,0,Input!$C82-1)) -> 0.08514892314 | T82: =+CORREL(OFFSET(ReturnData!$B$1:$B$2106,0,Input!T$74-1),OFFSET(ReturnData!$B$1:$B$2106,0,Input!$C82-1)) -> 0.2858058091 | U82: =+CORREL(OFFSET(ReturnData!$B$1:$B$2106,0,Input!U$74-1),OFFSET(ReturnData!$B$1:$B$2106,0,Input!$C82-1)) -> 0.0939667548 | V82: =+CORREL(OFFSET(ReturnData!$B$1:$B$2106,0,Input!V$74-1),OFFSET(ReturnData!$B$1:$B$2106,0,Input!$C82-1)) ->  | W82: =+CORREL(OFFSET(ReturnData!$B$1:$B$2106,0,Input!W$74-1),OFFSET(ReturnData!$B$1:$B$2106,0,Input!$C82-1)) ->  | X82: =+CORREL(OFFSET(ReturnData!$B$1:$B$2106,0,Input!X$74-1),OFFSET(ReturnData!$B$1:$B$2106,0,Input!$C82-1)) ->  | Y82: =+CORREL(OFFSET(ReturnData!$B$1:$B$2106,0,Input!Y$74-1),OFFSET(ReturnData!$B$1:$B$2106,0,Input!$C82-1)) ->  | Z82: =+CORREL(OFFSET(ReturnData!$B$1:$B$2106,0,Input!Z$74-1),OFFSET(ReturnData!$B$1:$B$2106,0,Input!$C82-1)) -> 
B83: UIS | C83: 9 | E83: =+CORREL(OFFSET(ReturnData!$B$1:$B$2106,0,Input!E$74-1),OFFSET(ReturnData!$B$1:$B$2106,0,Input!$C83-1)) -> 0.601363468 | F83: =+CORREL(OFFSET(ReturnData!$B$1:$B$2106,0,Input!F$74-1),OFFSET(ReturnData!$B$1:$B$2106,0,Input!$C83-1)) -> 0.4970765566 | G83: =+CORREL(OFFSET(ReturnData!$B$1:$B$2106,0,Input!G$74-1),OFFSET(ReturnData!$B$1:$B$2106,0,Input!$C83-1)) -> 0.5613398235 | H83: =+CORREL(OFFSET(ReturnData!$B$1:$B$2106,0,Input!H$74-1),OFFSET(ReturnData!$B$1:$B$2106,0,Input!$C83-1)) -> 0.5246712176 | I83: =+CORREL(OFFSET(ReturnData!$B$1:$B$2106,0,Input!I$74-1),OFFSET(ReturnData!$B$1:$B$2106,0,Input!$C83-1)) -> 0.6684586724 | J83: =+CORREL(OFFSET(ReturnData!$B$1:$B$2106,0,Input!J$74-1),OFFSET(ReturnData!$B$1:$B$2106,0,Input!$C83-1)) -> 0.6212368843 | K83: =+CORREL(OFFSET(ReturnData!$B$1:$B$2106,0,Input!K$74-1),OFFSET(ReturnData!$B$1:$B$2106,0,Input!$C83-1)) -> 0.5996749501 | L83: =+CORREL(OFFSET(ReturnData!$B$1:$B$2106,0,Input!L$74-1),OFFSET(ReturnData!$B$1:$B$2106,0,Input!$C83-1)) -> 0.3463244005 | M83: =+CORREL(OFFSET(ReturnData!$B$1:$B$2106,0,Input!M$74-1),OFFSET(ReturnData!$B$1:$B$2106,0,Input!$C83-1)) -> 1 | N83: =+CORREL(OFFSET(ReturnData!$B$1:$B$2106,0,Input!N$74-1),OFFSET(ReturnData!$B$1:$B$2106,0,Input!$C83-1)) -> 0.6765039677 | O83: =+CORREL(OFFSET(ReturnData!$B$1:$B$2106,0,Input!O$74-1),OFFSET(ReturnData!$B$1:$B$2106,0,Input!$C83-1)) -> 0.2602481688 | P83: =+CORREL(OFFSET(ReturnData!$B$1:$B$2106,0,Input!P$74-1),OFFSET(ReturnData!$B$1:$B$2106,0,Input!$C83-1)) -> 0.4091894848 | Q83: =+CORREL(OFFSET(ReturnData!$B$1:$B$2106,0,Input!Q$74-1),OFFSET(ReturnData!$B$1:$B$2106,0,Input!$C83-1)) -> 0.2678730512 | R83: =+CORREL(OFFSET(ReturnData!$B$1:$B$2106,0,Input!R$74-1),OFFSET(ReturnData!$B$1:$B$2106,0,Input!$C83-1)) -> 0.1769912851 | S83: =+CORREL(OFFSET(ReturnData!$B$1:$B$2106,0,Input!S$74-1),OFFSET(ReturnData!$B$1:$B$2106,0,Input!$C83-1)) -> 0.09764760581 | T83: =+CORREL(OFFSET(ReturnData!$B$1:$B$2106,0,Input!T$74-1),OFFSET(ReturnData!$B$1:$B$2106,0,Input!$C83-1)) -> 0.3562006765 | U83: =+CORREL(OFFSET(ReturnData!$B$1:$B$2106,0,Input!U$74-1),OFFSET(ReturnData!$B$1:$B$2106,0,Input!$C83-1)) -> 0.03944931335 | V83: =+CORREL(OFFSET(ReturnData!$B$1:$B$2106,0,Input!V$74-1),OFFSET(ReturnData!$B$1:$B$2106,0,Input!$C83-1)) ->  | W83: =+CORREL(OFFSET(ReturnData!$B$1:$B$2106,0,Input!W$74-1),OFFSET(ReturnData!$B$1:$B$2106,0,Input!$C83-1)) ->  | X83: =+CORREL(OFFSET(ReturnData!$B$1:$B$2106,0,Input!X$74-1),OFFSET(ReturnData!$B$1:$B$2106,0,Input!$C83-1)) ->  | Y83: =+CORREL(OFFSET(ReturnData!$B$1:$B$2106,0,Input!Y$74-1),OFFSET(ReturnData!$B$1:$B$2106,0,Input!$C83-1)) ->  | Z83: =+CORREL(OFFSET(ReturnData!$B$1:$B$2106,0,Input!Z$74-1),OFFSET(ReturnData!$B$1:$B$2106,0,Input!$C83-1)) -> 
B84: UIS-SPXL-TMF | C84: 10 | E84: =+CORREL(OFFSET(ReturnData!$B$1:$B$2106,0,Input!E$74-1),OFFSET(ReturnData!$B$1:$B$2106,0,Input!$C84-1)) -> 0.4494929864 | F84: =+CORREL(OFFSET(ReturnData!$B$1:$B$2106,0,Input!F$74-1),OFFSET(ReturnData!$B$1:$B$2106,0,Input!$C84-1)) -> 0.4162511539 | G84: =+CORREL(OFFSET(ReturnData!$B$1:$B$2106,0,Input!G$74-1),OFFSET(ReturnData!$B$1:$B$2106,0,Input!$C84-1)) -> 0.4440511375 | H84: =+CORREL(OFFSET(ReturnData!$B$1:$B$2106,0,Input!H$74-1),OFFSET(ReturnData!$B$1:$B$2106,0,Input!$C84-1)) -> 0.5179242496 | I84: =+CORREL(OFFSET(ReturnData!$B$1:$B$2106,0,Input!I$74-1),OFFSET(ReturnData!$B$1:$B$2106,0,Input!$C84-1)) -> 0.4738316741 | J84: =+CORREL(OFFSET(ReturnData!$B$1:$B$2106,0,Input!J$74-1),OFFSET(ReturnData!$B$1:$B$2106,0,Input!$C84-1)) -> 0.495728164 | K84: =+CORREL(OFFSET(ReturnData!$B$1:$B$2106,0,Input!K$74-1),OFFSET(ReturnData!$B$1:$B$2106,0,Input!$C84-1)) -> 0.4735599421 | L84: =+CORREL(OFFSET(ReturnData!$B$1:$B$2106,0,Input!L$74-1),OFFSET(ReturnData!$B$1:$B$2106,0,Input!$C84-1)) -> 0.3614994074 | M84: =+CORREL(OFFSET(ReturnData!$B$1:$B$2106,0,Input!M$74-1),OFFSET(ReturnData!$B$1:$B$2106,0,Input!$C84-1)) -> 0.6765039677 | N84: =+CORREL(OFFSET(ReturnData!$B$1:$B$2106,0,Input!N$74-1),OFFSET(ReturnData!$B$1:$B$2106,0,Input!$C84-1)) -> 1 | O84: =+CORREL(OFFSET(ReturnData!$B$1:$B$2106,0,Input!O$74-1),OFFSET(ReturnData!$B$1:$B$2106,0,Input!$C84-1)) -> 0.329223734 | P84: =+CORREL(OFFSET(ReturnData!$B$1:$B$2106,0,Input!P$74-1),OFFSET(ReturnData!$B$1:$B$2106,0,Input!$C84-1)) -> 0.2295193117 | Q84: =+CORREL(OFFSET(ReturnData!$B$1:$B$2106,0,Input!Q$74-1),OFFSET(ReturnData!$B$1:$B$2106,0,Input!$C84-1)) -> 0.1796092744 | R84: =+CORREL(OFFSET(ReturnData!$B$1:$B$2106,0,Input!R$74-1),OFFSET(ReturnData!$B$1:$B$2106,0,Input!$C84-1)) -> 0.02536237162 | S84: =+CORREL(OFFSET(ReturnData!$B$1:$B$2106,0,Input!S$74-1),OFFSET(ReturnData!$B$1:$B$2106,0,Input!$C84-1)) -> 0.1070646296 | T84: =+CORREL(OFFSET(ReturnData!$B$1:$B$2106,0,Input!T$74-1),OFFSET(ReturnData!$B$1:$B$2106,0,Input!$C84-1)) -> 0.3407104128 | U84: =+CORREL(OFFSET(ReturnData!$B$1:$B$2106,0,Input!U$74-1),OFFSET(ReturnData!$B$1:$B$2106,0,Input!$C84-1)) -> 0.03925430399 | V84: =+CORREL(OFFSET(ReturnData!$B$1:$B$2106,0,Input!V$74-1),OFFSET(ReturnData!$B$1:$B$2106,0,Input!$C84-1)) ->  | W84: =+CORREL(OFFSET(ReturnData!$B$1:$B$2106,0,Input!W$74-1),OFFSET(ReturnData!$B$1:$B$2106,0,Input!$C84-1)) ->  | X84: =+CORREL(OFFSET(ReturnData!$B$1:$B$2106,0,Input!X$74-1),OFFSET(ReturnData!$B$1:$B$2106,0,Input!$C84-1)) ->  | Y84: =+CORREL(OFFSET(ReturnData!$B$1:$B$2106,0,Input!Y$74-1),OFFSET(ReturnData!$B$1:$B$2106,0,Input!$C84-1)) ->  | Z84: =+CORREL(OFFSET(ReturnData!$B$1:$B$2106,0,Input!Z$74-1),OFFSET(ReturnData!$B$1:$B$2106,0,Input!$C84-1)) -> 
B85: SPY | C85: 11 | E85: =+CORREL(OFFSET(ReturnData!$B$1:$B$2106,0,Input!E$74-1),OFFSET(ReturnData!$B$1:$B$2106,0,Input!$C85-1)) -> 0.07405379518 | F85: =+CORREL(OFFSET(ReturnData!$B$1:$B$2106,0,Input!F$74-1),OFFSET(ReturnData!$B$1:$B$2106,0,Input!$C85-1)) -> 0.1092137124 | G85: =+CORREL(OFFSET(ReturnData!$B$1:$B$2106,0,Input!G$74-1),OFFSET(ReturnData!$B$1:$B$2106,0,Input!$C85-1)) -> 0.1525079816 | H85: =+CORREL(OFFSET(ReturnData!$B$1:$B$2106,0,Input!H$74-1),OFFSET(ReturnData!$B$1:$B$2106,0,Input!$C85-1)) -> 0.2597352576 | I85: =+CORREL(OFFSET(ReturnData!$B$1:$B$2106,0,Input!I$74-1),OFFSET(ReturnData!$B$1:$B$2106,0,Input!$C85-1)) -> 0.1927960796 | J85: =+CORREL(OFFSET(ReturnData!$B$1:$B$2106,0,Input!J$74-1),OFFSET(ReturnData!$B$1:$B$2106,0,Input!$C85-1)) -> 0.1513252162 | K85: =+CORREL(OFFSET(ReturnData!$B$1:$B$2106,0,Input!K$74-1),OFFSET(ReturnData!$B$1:$B$2106,0,Input!$C85-1)) -> 0.1269549647 | L85: =+CORREL(OFFSET(ReturnData!$B$1:$B$2106,0,Input!L$74-1),OFFSET(ReturnData!$B$1:$B$2106,0,Input!$C85-1)) -> 0.08658187703 | M85: =+CORREL(OFFSET(ReturnData!$B$1:$B$2106,0,Input!M$74-1),OFFSET(ReturnData!$B$1:$B$2106,0,Input!$C85-1)) -> 0.2602481688 | N85: =+CORREL(OFFSET(ReturnData!$B$1:$B$2106,0,Input!N$74-1),OFFSET(ReturnData!$B$1:$B$2106,0,Input!$C85-1)) -> 0.329223734 | O85: =+CORREL(OFFSET(ReturnData!$B$1:$B$2106,0,Input!O$74-1),OFFSET(ReturnData!$B$1:$B$2106,0,Input!$C85-1)) -> 1 | P85: =+CORREL(OFFSET(ReturnData!$B$1:$B$2106,0,Input!P$74-1),OFFSET(ReturnData!$B$1:$B$2106,0,Input!$C85-1)) -> -0.4604846658 | Q85: =+CORREL(OFFSET(ReturnData!$B$1:$B$2106,0,Input!Q$74-1),OFFSET(ReturnData!$B$1:$B$2106,0,Input!$C85-1)) -> -0.1022008766 | R85: =+CORREL(OFFSET(ReturnData!$B$1:$B$2106,0,Input!R$74-1),OFFSET(ReturnData!$B$1:$B$2106,0,Input!$C85-1)) -> -0.3924709648 | S85: =+CORREL(OFFSET(ReturnData!$B$1:$B$2106,0,Input!S$74-1),OFFSET(ReturnData!$B$1:$B$2106,0,Input!$C85-1)) -> 0.009948948969 | T85: =+CORREL(OFFSET(ReturnData!$B$1:$B$2106,0,Input!T$74-1),OFFSET(ReturnData!$B$1:$B$2106,0,Input!$C85-1)) -> 0.2905927737 | U85: =+CORREL(OFFSET(ReturnData!$B$1:$B$2106,0,Input!U$74-1),OFFSET(ReturnData!$B$1:$B$2106,0,Input!$C85-1)) -> -0.07720170073 | V85: =+CORREL(OFFSET(ReturnData!$B$1:$B$2106,0,Input!V$74-1),OFFSET(ReturnData!$B$1:$B$2106,0,Input!$C85-1)) ->  | W85: =+CORREL(OFFSET(ReturnData!$B$1:$B$2106,0,Input!W$74-1),OFFSET(ReturnData!$B$1:$B$2106,0,Input!$C85-1)) ->  | X85: =+CORREL(OFFSET(ReturnData!$B$1:$B$2106,0,Input!X$74-1),OFFSET(ReturnData!$B$1:$B$2106,0,Input!$C85-1)) ->  | Y85: =+CORREL(OFFSET(ReturnData!$B$1:$B$2106,0,Input!Y$74-1),OFFSET(ReturnData!$B$1:$B$2106,0,Input!$C85-1)) ->  | Z85: =+CORREL(OFFSET(ReturnData!$B$1:$B$2106,0,Input!Z$74-1),OFFSET(ReturnData!$B$1:$B$2106,0,Input!$C85-1)) -> 
B86: TLT | C86: 12 | E86: =+CORREL(OFFSET(ReturnData!$B$1:$B$2106,0,Input!E$74-1),OFFSET(ReturnData!$B$1:$B$2106,0,Input!$C86-1)) -> 0.2769685109 | F86: =+CORREL(OFFSET(ReturnData!$B$1:$B$2106,0,Input!F$74-1),OFFSET(ReturnData!$B$1:$B$2106,0,Input!$C86-1)) -> 0.2824042024 | G86: =+CORREL(OFFSET(ReturnData!$B$1:$B$2106,0,Input!G$74-1),OFFSET(ReturnData!$B$1:$B$2106,0,Input!$C86-1)) -> 0.2967810781 | H86: =+CORREL(OFFSET(ReturnData!$B$1:$B$2106,0,Input!H$74-1),OFFSET(ReturnData!$B$1:$B$2106,0,Input!$C86-1)) -> 0.1953099235 | I86: =+CORREL(OFFSET(ReturnData!$B$1:$B$2106,0,Input!I$74-1),OFFSET(ReturnData!$B$1:$B$2106,0,Input!$C86-1)) -> 0.1332837382 | J86: =+CORREL(OFFSET(ReturnData!$B$1:$B$2106,0,Input!J$74-1),OFFSET(ReturnData!$B$1:$B$2106,0,Input!$C86-1)) -> 0.1912929478 | K86: =+CORREL(OFFSET(ReturnData!$B$1:$B$2106,0,Input!K$74-1),OFFSET(ReturnData!$B$1:$B$2106,0,Input!$C86-1)) -> 0.2112352778 | L86: =+CORREL(OFFSET(ReturnData!$B$1:$B$2106,0,Input!L$74-1),OFFSET(ReturnData!$B$1:$B$2106,0,Input!$C86-1)) -> 0.1715007802 | M86: =+CORREL(OFFSET(ReturnData!$B$1:$B$2106,0,Input!M$74-1),OFFSET(ReturnData!$B$1:$B$2106,0,Input!$C86-1)) -> 0.4091894848 | N86: =+CORREL(OFFSET(ReturnData!$B$1:$B$2106,0,Input!N$74-1),OFFSET(ReturnData!$B$1:$B$2106,0,Input!$C86-1)) -> 0.2295193117 | O86: =+CORREL(OFFSET(ReturnData!$B$1:$B$2106,0,Input!O$74-1),OFFSET(ReturnData!$B$1:$B$2106,0,Input!$C86-1)) -> -0.4604846658 | P86: =+CORREL(OFFSET(ReturnData!$B$1:$B$2106,0,Input!P$74-1),OFFSET(ReturnData!$B$1:$B$2106,0,Input!$C86-1)) -> 1 | Q86: =+CORREL(OFFSET(ReturnData!$B$1:$B$2106,0,Input!Q$74-1),OFFSET(ReturnData!$B$1:$B$2106,0,Input!$C86-1)) -> 0.5621550393 | R86: =+CORREL(OFFSET(ReturnData!$B$1:$B$2106,0,Input!R$74-1),OFFSET(ReturnData!$B$1:$B$2106,0,Input!$C86-1)) -> 0.5320574095 | S86: =+CORREL(OFFSET(ReturnData!$B$1:$B$2106,0,Input!S$74-1),OFFSET(ReturnData!$B$1:$B$2106,0,Input!$C86-1)) -> 0.1196540397 | T86: =+CORREL(OFFSET(ReturnData!$B$1:$B$2106,0,Input!T$74-1),OFFSET(ReturnData!$B$1:$B$2106,0,Input!$C86-1)) -> -0.02154682196 | U86: =+CORREL(OFFSET(ReturnData!$B$1:$B$2106,0,Input!U$74-1),OFFSET(ReturnData!$B$1:$B$2106,0,Input!$C86-1)) -> 0.05243238228 | V86: =+CORREL(OFFSET(ReturnData!$B$1:$B$2106,0,Input!V$74-1),OFFSET(ReturnData!$B$1:$B$2106,0,Input!$C86-1)) ->  | W86: =+CORREL(OFFSET(ReturnData!$B$1:$B$2106,0,Input!W$74-1),OFFSET(ReturnData!$B$1:$B$2106,0,Input!$C86-1)) ->  | X86: =+CORREL(OFFSET(ReturnData!$B$1:$B$2106,0,Input!X$74-1),OFFSET(ReturnData!$B$1:$B$2106,0,Input!$C86-1)) ->  | Y86: =+CORREL(OFFSET(ReturnData!$B$1:$B$2106,0,Input!Y$74-1),OFFSET(ReturnData!$B$1:$B$2106,0,Input!$C86-1)) ->  | Z86: =+CORREL(OFFSET(ReturnData!$B$1:$B$2106,0,Input!Z$74-1),OFFSET(ReturnData!$B$1:$B$2106,0,Input!$C86-1)) -> 
B87: AGG | C87: 13 | E87: =+CORREL(OFFSET(ReturnData!$B$1:$B$2106,0,Input!E$74-1),OFFSET(ReturnData!$B$1:$B$2106,0,Input!$C87-1)) -> 0.2333518353 | F87: =+CORREL(OFFSET(ReturnData!$B$1:$B$2106,0,Input!F$74-1),OFFSET(ReturnData!$B$1:$B$2106,0,Input!$C87-1)) -> 0.2175355613 | G87: =+CORREL(OFFSET(ReturnData!$B$1:$B$2106,0,Input!G$74-1),OFFSET(ReturnData!$B$1:$B$2106,0,Input!$C87-1)) -> 0.2601702869 | H87: =+CORREL(OFFSET(ReturnData!$B$1:$B$2106,0,Input!H$74-1),OFFSET(ReturnData!$B$1:$B$2106,0,Input!$C87-1)) -> 0.1552978128 | I87: =+CORREL(OFFSET(ReturnData!$B$1:$B$2106,0,Input!I$74-1),OFFSET(ReturnData!$B$1:$B$2106,0,Input!$C87-1)) -> 0.1047137724 | J87: =+CORREL(OFFSET(ReturnData!$B$1:$B$2106,0,Input!J$74-1),OFFSET(ReturnData!$B$1:$B$2106,0,Input!$C87-1)) -> 0.08055878196 | K87: =+CORREL(OFFSET(ReturnData!$B$1:$B$2106,0,Input!K$74-1),OFFSET(ReturnData!$B$1:$B$2106,0,Input!$C87-1)) -> 0.0902701726 | L87: =+CORREL(OFFSET(ReturnData!$B$1:$B$2106,0,Input!L$74-1),OFFSET(ReturnData!$B$1:$B$2106,0,Input!$C87-1)) -> 0.1055347014 | M87: =+CORREL(OFFSET(ReturnData!$B$1:$B$2106,0,Input!M$74-1),OFFSET(ReturnData!$B$1:$B$2106,0,Input!$C87-1)) -> 0.2678730512 | N87: =+CORREL(OFFSET(ReturnData!$B$1:$B$2106,0,Input!N$74-1),OFFSET(ReturnData!$B$1:$B$2106,0,Input!$C87-1)) -> 0.1796092744 | O87: =+CORREL(OFFSET(ReturnData!$B$1:$B$2106,0,Input!O$74-1),OFFSET(ReturnData!$B$1:$B$2106,0,Input!$C87-1)) -> -0.1022008766 | P87: =+CORREL(OFFSET(ReturnData!$B$1:$B$2106,0,Input!P$74-1),OFFSET(ReturnData!$B$1:$B$2106,0,Input!$C87-1)) -> 0.5621550393 | Q87: =+CORREL(OFFSET(ReturnData!$B$1:$B$2106,0,Input!Q$74-1),OFFSET(ReturnData!$B$1:$B$2106,0,Input!$C87-1)) -> 1 | R87: =+CORREL(OFFSET(ReturnData!$B$1:$B$2106,0,Input!R$74-1),OFFSET(ReturnData!$B$1:$B$2106,0,Input!$C87-1)) -> 0.4079965486 | S87: =+CORREL(OFFSET(ReturnData!$B$1:$B$2106,0,Input!S$74-1),OFFSET(ReturnData!$B$1:$B$2106,0,Input!$C87-1)) -> 0.1524744243 | T87: =+CORREL(OFFSET(ReturnData!$B$1:$B$2106,0,Input!T$74-1),OFFSET(ReturnData!$B$1:$B$2106,0,Input!$C87-1)) -> 0.02032679963 | U87: =+CORREL(OFFSET(ReturnData!$B$1:$B$2106,0,Input!U$74-1),OFFSET(ReturnData!$B$1:$B$2106,0,Input!$C87-1)) -> -0.008449774131 | V87: =+CORREL(OFFSET(ReturnData!$B$1:$B$2106,0,Input!V$74-1),OFFSET(ReturnData!$B$1:$B$2106,0,Input!$C87-1)) ->  | W87: =+CORREL(OFFSET(ReturnData!$B$1:$B$2106,0,Input!W$74-1),OFFSET(ReturnData!$B$1:$B$2106,0,Input!$C87-1)) ->  | X87: =+CORREL(OFFSET(ReturnData!$B$1:$B$2106,0,Input!X$74-1),OFFSET(ReturnData!$B$1:$B$2106,0,Input!$C87-1)) ->  | Y87: =+CORREL(OFFSET(ReturnData!$B$1:$B$2106,0,Input!Y$74-1),OFFSET(ReturnData!$B$1:$B$2106,0,Input!$C87-1)) ->  | Z87: =+CORREL(OFFSET(ReturnData!$B$1:$B$2106,0,Input!Z$74-1),OFFSET(ReturnData!$B$1:$B$2106,0,Input!$C87-1)) -> 
B88: SHY | C88: 14 | E88: =+CORREL(OFFSET(ReturnData!$B$1:$B$2106,0,Input!E$74-1),OFFSET(ReturnData!$B$1:$B$2106,0,Input!$C88-1)) -> 0.1982732379 | F88: =+CORREL(OFFSET(ReturnData!$B$1:$B$2106,0,Input!F$74-1),OFFSET(ReturnData!$B$1:$B$2106,0,Input!$C88-1)) -> 0.1926969211 | G88: =+CORREL(OFFSET(ReturnData!$B$1:$B$2106,0,Input!G$74-1),OFFSET(ReturnData!$B$1:$B$2106,0,Input!$C88-1)) -> 0.2649905032 | H88: =+CORREL(OFFSET(ReturnData!$B$1:$B$2106,0,Input!H$74-1),OFFSET(ReturnData!$B$1:$B$2106,0,Input!$C88-1)) -> 0.0653942241 | I88: =+CORREL(OFFSET(ReturnData!$B$1:$B$2106,0,Input!I$74-1),OFFSET(ReturnData!$B$1:$B$2106,0,Input!$C88-1)) -> 0.1012692558 | J88: =+CORREL(OFFSET(ReturnData!$B$1:$B$2106,0,Input!J$74-1),OFFSET(ReturnData!$B$1:$B$2106,0,Input!$C88-1)) -> -0.001509219179 | K88: =+CORREL(OFFSET(ReturnData!$B$1:$B$2106,0,Input!K$74-1),OFFSET(ReturnData!$B$1:$B$2106,0,Input!$C88-1)) -> -0.0006222003135 | L88: =+CORREL(OFFSET(ReturnData!$B$1:$B$2106,0,Input!L$74-1),OFFSET(ReturnData!$B$1:$B$2106,0,Input!$C88-1)) -> 0.01852435981 | M88: =+CORREL(OFFSET(ReturnData!$B$1:$B$2106,0,Input!M$74-1),OFFSET(ReturnData!$B$1:$B$2106,0,Input!$C88-1)) -> 0.1769912851 | N88: =+CORREL(OFFSET(ReturnData!$B$1:$B$2106,0,Input!N$74-1),OFFSET(ReturnData!$B$1:$B$2106,0,Input!$C88-1)) -> 0.02536237162 | O88: =+CORREL(OFFSET(ReturnData!$B$1:$B$2106,0,Input!O$74-1),OFFSET(ReturnData!$B$1:$B$2106,0,Input!$C88-1)) -> -0.3924709648 | P88: =+CORREL(OFFSET(ReturnData!$B$1:$B$2106,0,Input!P$74-1),OFFSET(ReturnData!$B$1:$B$2106,0,Input!$C88-1)) -> 0.5320574095 | Q88: =+CORREL(OFFSET(ReturnData!$B$1:$B$2106,0,Input!Q$74-1),OFFSET(ReturnData!$B$1:$B$2106,0,Input!$C88-1)) -> 0.4079965486 | R88: =+CORREL(OFFSET(ReturnData!$B$1:$B$2106,0,Input!R$74-1),OFFSET(ReturnData!$B$1:$B$2106,0,Input!$C88-1)) -> 1 | S88: =+CORREL(OFFSET(ReturnData!$B$1:$B$2106,0,Input!S$74-1),OFFSET(ReturnData!$B$1:$B$2106,0,Input!$C88-1)) -> 0.1901199074 | T88: =+CORREL(OFFSET(ReturnData!$B$1:$B$2106,0,Input!T$74-1),OFFSET(ReturnData!$B$1:$B$2106,0,Input!$C88-1)) -> -0.05305235892 | U88: =+CORREL(OFFSET(ReturnData!$B$1:$B$2106,0,Input!U$74-1),OFFSET(ReturnData!$B$1:$B$2106,0,Input!$C88-1)) -> 0.01358735687 | V88: =+CORREL(OFFSET(ReturnData!$B$1:$B$2106,0,Input!V$74-1),OFFSET(ReturnData!$B$1:$B$2106,0,Input!$C88-1)) ->  | W88: =+CORREL(OFFSET(ReturnData!$B$1:$B$2106,0,Input!W$74-1),OFFSET(ReturnData!$B$1:$B$2106,0,Input!$C88-1)) ->  | X88: =+CORREL(OFFSET(ReturnData!$B$1:$B$2106,0,Input!X$74-1),OFFSET(ReturnData!$B$1:$B$2106,0,Input!$C88-1)) ->  | Y88: =+CORREL(OFFSET(ReturnData!$B$1:$B$2106,0,Input!Y$74-1),OFFSET(ReturnData!$B$1:$B$2106,0,Input!$C88-1)) ->  | Z88: =+CORREL(OFFSET(ReturnData!$B$1:$B$2106,0,Input!Z$74-1),OFFSET(ReturnData!$B$1:$B$2106,0,Input!$C88-1)) -> 
B89: GLD | C89: 15 | E89: =+CORREL(OFFSET(ReturnData!$B$1:$B$2106,0,Input!E$74-1),OFFSET(ReturnData!$B$1:$B$2106,0,Input!$C89-1)) -> 0.1263959063 | F89: =+CORREL(OFFSET(ReturnData!$B$1:$B$2106,0,Input!F$74-1),OFFSET(ReturnData!$B$1:$B$2106,0,Input!$C89-1)) -> 0.4322445489 | G89: =+CORREL(OFFSET(ReturnData!$B$1:$B$2106,0,Input!G$74-1),OFFSET(ReturnData!$B$1:$B$2106,0,Input!$C89-1)) -> 0.4343896164 | H89: =+CORREL(OFFSET(ReturnData!$B$1:$B$2106,0,Input!H$74-1),OFFSET(ReturnData!$B$1:$B$2106,0,Input!$C89-1)) -> 0.189271771 | I89: =+CORREL(OFFSET(ReturnData!$B$1:$B$2106,0,Input!I$74-1),OFFSET(ReturnData!$B$1:$B$2106,0,Input!$C89-1)) -> 0.1325948791 | J89: =+CORREL(OFFSET(ReturnData!$B$1:$B$2106,0,Input!J$74-1),OFFSET(ReturnData!$B$1:$B$2106,0,Input!$C89-1)) -> 0.1014665597 | K89: =+CORREL(OFFSET(ReturnData!$B$1:$B$2106,0,Input!K$74-1),OFFSET(ReturnData!$B$1:$B$2106,0,Input!$C89-1)) -> 0.1112303926 | L89: =+CORREL(OFFSET(ReturnData!$B$1:$B$2106,0,Input!L$74-1),OFFSET(ReturnData!$B$1:$B$2106,0,Input!$C89-1)) -> 0.08514892314 | M89: =+CORREL(OFFSET(ReturnData!$B$1:$B$2106,0,Input!M$74-1),OFFSET(ReturnData!$B$1:$B$2106,0,Input!$C89-1)) -> 0.09764760581 | N89: =+CORREL(OFFSET(ReturnData!$B$1:$B$2106,0,Input!N$74-1),OFFSET(ReturnData!$B$1:$B$2106,0,Input!$C89-1)) -> 0.1070646296 | O89: =+CORREL(OFFSET(ReturnData!$B$1:$B$2106,0,Input!O$74-1),OFFSET(ReturnData!$B$1:$B$2106,0,Input!$C89-1)) -> 0.009948948969 | P89: =+CORREL(OFFSET(ReturnData!$B$1:$B$2106,0,Input!P$74-1),OFFSET(ReturnData!$B$1:$B$2106,0,Input!$C89-1)) -> 0.1196540397 | Q89: =+CORREL(OFFSET(ReturnData!$B$1:$B$2106,0,Input!Q$74-1),OFFSET(ReturnData!$B$1:$B$2106,0,Input!$C89-1)) -> 0.1524744243 | R89: =+CORREL(OFFSET(ReturnData!$B$1:$B$2106,0,Input!R$74-1),OFFSET(ReturnData!$B$1:$B$2106,0,Input!$C89-1)) -> 0.1901199074 | S89: =+CORREL(OFFSET(ReturnData!$B$1:$B$2106,0,Input!S$74-1),OFFSET(ReturnData!$B$1:$B$2106,0,Input!$C89-1)) -> 1 | T89: =+CORREL(OFFSET(ReturnData!$B$1:$B$2106,0,Input!T$74-1),OFFSET(ReturnData!$B$1:$B$2106,0,Input!$C89-1)) -> 0.005717718151 | U89: =+CORREL(OFFSET(ReturnData!$B$1:$B$2106,0,Input!U$74-1),OFFSET(ReturnData!$B$1:$B$2106,0,Input!$C89-1)) -> 0.3835576638 | V89: =+CORREL(OFFSET(ReturnData!$B$1:$B$2106,0,Input!V$74-1),OFFSET(ReturnData!$B$1:$B$2106,0,Input!$C89-1)) ->  | W89: =+CORREL(OFFSET(ReturnData!$B$1:$B$2106,0,Input!W$74-1),OFFSET(ReturnData!$B$1:$B$2106,0,Input!$C89-1)) ->  | X89: =+CORREL(OFFSET(ReturnData!$B$1:$B$2106,0,Input!X$74-1),OFFSET(ReturnData!$B$1:$B$2106,0,Input!$C89-1)) ->  | Y89: =+CORREL(OFFSET(ReturnData!$B$1:$B$2106,0,Input!Y$74-1),OFFSET(ReturnData!$B$1:$B$2106,0,Input!$C89-1)) ->  | Z89: =+CORREL(OFFSET(ReturnData!$B$1:$B$2106,0,Input!Z$74-1),OFFSET(ReturnData!$B$1:$B$2106,0,Input!$C89-1)) -> 
B90: NASDAQ100 | C90: 16 | E90: =+CORREL(OFFSET(ReturnData!$B$1:$B$2106,0,Input!E$74-1),OFFSET(ReturnData!$B$1:$B$2106,0,Input!$C90-1)) -> 0.38961322 | F90: =+CORREL(OFFSET(ReturnData!$B$1:$B$2106,0,Input!F$74-1),OFFSET(ReturnData!$B$1:$B$2106,0,Input!$C90-1)) -> 0.3724858017 | G90: =+CORREL(OFFSET(ReturnData!$B$1:$B$2106,0,Input!G$74-1),OFFSET(ReturnData!$B$1:$B$2106,0,Input!$C90-1)) -> 0.4010778001 | H90: =+CORREL(OFFSET(ReturnData!$B$1:$B$2106,0,Input!H$74-1),OFFSET(ReturnData!$B$1:$B$2106,0,Input!$C90-1)) -> 0.453896919 | I90: =+CORREL(OFFSET(ReturnData!$B$1:$B$2106,0,Input!I$74-1),OFFSET(ReturnData!$B$1:$B$2106,0,Input!$C90-1)) -> 0.3999435665 | J90: =+CORREL(OFFSET(ReturnData!$B$1:$B$2106,0,Input!J$74-1),OFFSET(ReturnData!$B$1:$B$2106,0,Input!$C90-1)) -> 0.282682643 | K90: =+CORREL(OFFSET(ReturnData!$B$1:$B$2106,0,Input!K$74-1),OFFSET(ReturnData!$B$1:$B$2106,0,Input!$C90-1)) -> 0.3322365605 | L90: =+CORREL(OFFSET(ReturnData!$B$1:$B$2106,0,Input!L$74-1),OFFSET(ReturnData!$B$1:$B$2106,0,Input!$C90-1)) -> 0.2858058091 | M90: =+CORREL(OFFSET(ReturnData!$B$1:$B$2106,0,Input!M$74-1),OFFSET(ReturnData!$B$1:$B$2106,0,Input!$C90-1)) -> 0.3562006765 | N90: =+CORREL(OFFSET(ReturnData!$B$1:$B$2106,0,Input!N$74-1),OFFSET(ReturnData!$B$1:$B$2106,0,Input!$C90-1)) -> 0.3407104128 | O90: =+CORREL(OFFSET(ReturnData!$B$1:$B$2106,0,Input!O$74-1),OFFSET(ReturnData!$B$1:$B$2106,0,Input!$C90-1)) -> 0.2905927737 | P90: =+CORREL(OFFSET(ReturnData!$B$1:$B$2106,0,Input!P$74-1),OFFSET(ReturnData!$B$1:$B$2106,0,Input!$C90-1)) -> -0.02154682196 | Q90: =+CORREL(OFFSET(ReturnData!$B$1:$B$2106,0,Input!Q$74-1),OFFSET(ReturnData!$B$1:$B$2106,0,Input!$C90-1)) -> 0.02032679963 | R90: =+CORREL(OFFSET(ReturnData!$B$1:$B$2106,0,Input!R$74-1),OFFSET(ReturnData!$B$1:$B$2106,0,Input!$C90-1)) -> -0.05305235892 | S90: =+CORREL(OFFSET(ReturnData!$B$1:$B$2106,0,Input!S$74-1),OFFSET(ReturnData!$B$1:$B$2106,0,Input!$C90-1)) -> 0.005717718151 | T90: =+CORREL(OFFSET(ReturnData!$B$1:$B$2106,0,Input!T$74-1),OFFSET(ReturnData!$B$1:$B$2106,0,Input!$C90-1)) -> 1 | U90: =+CORREL(OFFSET(ReturnData!$B$1:$B$2106,0,Input!U$74-1),OFFSET(ReturnData!$B$1:$B$2106,0,Input!$C90-1)) -> 0.0387054516 | V90: =+CORREL(OFFSET(ReturnData!$B$1:$B$2106,0,Input!V$74-1),OFFSET(ReturnData!$B$1:$B$2106,0,Input!$C90-1)) ->  | W90: =+CORREL(OFFSET(ReturnData!$B$1:$B$2106,0,Input!W$74-1),OFFSET(ReturnData!$B$1:$B$2106,0,Input!$C90-1)) ->  | X90: =+CORREL(OFFSET(ReturnData!$B$1:$B$2106,0,Input!X$74-1),OFFSET(ReturnData!$B$1:$B$2106,0,Input!$C90-1)) ->  | Y90: =+CORREL(OFFSET(ReturnData!$B$1:$B$2106,0,Input!Y$74-1),OFFSET(ReturnData!$B$1:$B$2106,0,Input!$C90-1)) ->  | Z90: =+CORREL(OFFSET(ReturnData!$B$1:$B$2106,0,Input!Z$74-1),OFFSET(ReturnData!$B$1:$B$2106,0,Input!$C90-1)) -> 
B91: GLD-USD | C91: 17 | E91: =+CORREL(OFFSET(ReturnData!$B$1:$B$2106,0,Input!E$74-1),OFFSET(ReturnData!$B$1:$B$2106,0,Input!$C91-1)) -> 0.07714628698 | F91: =+CORREL(OFFSET(ReturnData!$B$1:$B$2106,0,Input!F$74-1),OFFSET(ReturnData!$B$1:$B$2106,0,Input!$C91-1)) -> 0.2728814346 | G91: =+CORREL(OFFSET(ReturnData!$B$1:$B$2106,0,Input!G$74-1),OFFSET(ReturnData!$B$1:$B$2106,0,Input!$C91-1)) -> 0.223527866 | H91: =+CORREL(OFFSET(ReturnData!$B$1:$B$2106,0,Input!H$74-1),OFFSET(ReturnData!$B$1:$B$2106,0,Input!$C91-1)) -> 0.0455249849 | I91: =+CORREL(OFFSET(ReturnData!$B$1:$B$2106,0,Input!I$74-1),OFFSET(ReturnData!$B$1:$B$2106,0,Input!$C91-1)) -> 0.06452627078 | J91: =+CORREL(OFFSET(ReturnData!$B$1:$B$2106,0,Input!J$74-1),OFFSET(ReturnData!$B$1:$B$2106,0,Input!$C91-1)) -> 0.07826907862 | K91: =+CORREL(OFFSET(ReturnData!$B$1:$B$2106,0,Input!K$74-1),OFFSET(ReturnData!$B$1:$B$2106,0,Input!$C91-1)) -> 0.1023316603 | L91: =+CORREL(OFFSET(ReturnData!$B$1:$B$2106,0,Input!L$74-1),OFFSET(ReturnData!$B$1:$B$2106,0,Input!$C91-1)) -> 0.0939667548 | M91: =+CORREL(OFFSET(ReturnData!$B$1:$B$2106,0,Input!M$74-1),OFFSET(ReturnData!$B$1:$B$2106,0,Input!$C91-1)) -> 0.03944931335 | N91: =+CORREL(OFFSET(ReturnData!$B$1:$B$2106,0,Input!N$74-1),OFFSET(ReturnData!$B$1:$B$2106,0,Input!$C91-1)) -> 0.03925430399 | O91: =+CORREL(OFFSET(ReturnData!$B$1:$B$2106,0,Input!O$74-1),OFFSET(ReturnData!$B$1:$B$2106,0,Input!$C91-1)) -> -0.07720170073 | P91: =+CORREL(OFFSET(ReturnData!$B$1:$B$2106,0,Input!P$74-1),OFFSET(ReturnData!$B$1:$B$2106,0,Input!$C91-1)) -> 0.05243238228 | Q91: =+CORREL(OFFSET(ReturnData!$B$1:$B$2106,0,Input!Q$74-1),OFFSET(ReturnData!$B$1:$B$2106,0,Input!$C91-1)) -> -0.008449774131 | R91: =+CORREL(OFFSET(ReturnData!$B$1:$B$2106,0,Input!R$74-1),OFFSET(ReturnData!$B$1:$B$2106,0,Input!$C91-1)) -> 0.01358735687 | S91: =+CORREL(OFFSET(ReturnData!$B$1:$B$2106,0,Input!S$74-1),OFFSET(ReturnData!$B$1:$B$2106,0,Input!$C91-1)) -> 0.3835576638 | T91: =+CORREL(OFFSET(ReturnData!$B$1:$B$2106,0,Input!T$74-1),OFFSET(ReturnData!$B$1:$B$2106,0,Input!$C91-1)) -> 0.0387054516 | U91: =+CORREL(OFFSET(ReturnData!$B$1:$B$2106,0,Input!U$74-1),OFFSET(ReturnData!$B$1:$B$2106,0,Input!$C91-1)) -> 1 | V91: =+CORREL(OFFSET(ReturnData!$B$1:$B$2106,0,Input!V$74-1),OFFSET(ReturnData!$B$1:$B$2106,0,Input!$C91-1)) ->  | W91: =+CORREL(OFFSET(ReturnData!$B$1:$B$2106,0,Input!W$74-1),OFFSET(ReturnData!$B$1:$B$2106,0,Input!$C91-1)) ->  | X91: =+CORREL(OFFSET(ReturnData!$B$1:$B$2106,0,Input!X$74-1),OFFSET(ReturnData!$B$1:$B$2106,0,Input!$C91-1)) ->  | Y91: =+CORREL(OFFSET(ReturnData!$B$1:$B$2106,0,Input!Y$74-1),OFFSET(ReturnData!$B$1:$B$2106,0,Input!$C91-1)) ->  | Z91: =+CORREL(OFFSET(ReturnData!$B$1:$B$2106,0,Input!Z$74-1),OFFSET(ReturnData!$B$1:$B$2106,0,Input!$C91-1)) -> 
B92: empty | C92: 18 | E92: =+CORREL(OFFSET(ReturnData!$B$1:$B$2106,0,Input!E$74-1),OFFSET(ReturnData!$B$1:$B$2106,0,Input!$C92-1)) ->  | F92: =+CORREL(OFFSET(ReturnData!$B$1:$B$2106,0,Input!F$74-1),OFFSET(ReturnData!$B$1:$B$2106,0,Input!$C92-1)) ->  | G92: =+CORREL(OFFSET(ReturnData!$B$1:$B$2106,0,Input!G$74-1),OFFSET(ReturnData!$B$1:$B$2106,0,Input!$C92-1)) ->  | H92: =+CORREL(OFFSET(ReturnData!$B$1:$B$2106,0,Input!H$74-1),OFFSET(ReturnData!$B$1:$B$2106,0,Input!$C92-1)) ->  | I92: =+CORREL(OFFSET(ReturnData!$B$1:$B$2106,0,Input!I$74-1),OFFSET(ReturnData!$B$1:$B$2106,0,Input!$C92-1)) ->  | J92: =+CORREL(OFFSET(ReturnData!$B$1:$B$2106,0,Input!J$74-1),OFFSET(ReturnData!$B$1:$B$2106,0,Input!$C92-1)) ->  | K92: =+CORREL(OFFSET(ReturnData!$B$1:$B$2106,0,Input!K$74-1),OFFSET(ReturnData!$B$1:$B$2106,0,Input!$C92-1)) ->  | L92: =+CORREL(OFFSET(ReturnData!$B$1:$B$2106,0,Input!L$74-1),OFFSET(ReturnData!$B$1:$B$2106,0,Input!$C92-1)) ->  | M92: =+CORREL(OFFSET(ReturnData!$B$1:$B$2106,0,Input!M$74-1),OFFSET(ReturnData!$B$1:$B$2106,0,Input!$C92-1)) ->  | N92: =+CORREL(OFFSET(ReturnData!$B$1:$B$2106,0,Input!N$74-1),OFFSET(ReturnData!$B$1:$B$2106,0,Input!$C92-1)) ->  | O92: =+CORREL(OFFSET(ReturnData!$B$1:$B$2106,0,Input!O$74-1),OFFSET(ReturnData!$B$1:$B$2106,0,Input!$C92-1)) ->  | P92: =+CORREL(OFFSET(ReturnData!$B$1:$B$2106,0,Input!P$74-1),OFFSET(ReturnData!$B$1:$B$2106,0,Input!$C92-1)) ->  | Q92: =+CORREL(OFFSET(ReturnData!$B$1:$B$2106,0,Input!Q$74-1),OFFSET(ReturnData!$B$1:$B$2106,0,Input!$C92-1)) ->  | R92: =+CORREL(OFFSET(ReturnData!$B$1:$B$2106,0,Input!R$74-1),OFFSET(ReturnData!$B$1:$B$2106,0,Input!$C92-1)) ->  | S92: =+CORREL(OFFSET(ReturnData!$B$1:$B$2106,0,Input!S$74-1),OFFSET(ReturnData!$B$1:$B$2106,0,Input!$C92-1)) ->  | T92: =+CORREL(OFFSET(ReturnData!$B$1:$B$2106,0,Input!T$74-1),OFFSET(ReturnData!$B$1:$B$2106,0,Input!$C92-1)) ->  | U92: =+CORREL(OFFSET(ReturnData!$B$1:$B$2106,0,Input!U$74-1),OFFSET(ReturnData!$B$1:$B$2106,0,Input!$C92-1)) ->  | V92: =+CORREL(OFFSET(ReturnData!$B$1:$B$2106,0,Input!V$74-1),OFFSET(ReturnData!$B$1:$B$2106,0,Input!$C92-1)) ->  | W92: =+CORREL(OFFSET(ReturnData!$B$1:$B$2106,0,Input!W$74-1),OFFSET(ReturnData!$B$1:$B$2106,0,Input!$C92-1)) ->  | X92: =+CORREL(OFFSET(ReturnData!$B$1:$B$2106,0,Input!X$74-1),OFFSET(ReturnData!$B$1:$B$2106,0,Input!$C92-1)) ->  | Y92: =+CORREL(OFFSET(ReturnData!$B$1:$B$2106,0,Input!Y$74-1),OFFSET(ReturnData!$B$1:$B$2106,0,Input!$C92-1)) ->  | Z92: =+CORREL(OFFSET(ReturnData!$B$1:$B$2106,0,Input!Z$74-1),OFFSET(ReturnData!$B$1:$B$2106,0,Input!$C92-1)) -> 
B93: empty | C93: 19 | E93: =+CORREL(OFFSET(ReturnData!$B$1:$B$2106,0,Input!E$74-1),OFFSET(ReturnData!$B$1:$B$2106,0,Input!$C93-1)) ->  | F93: =+CORREL(OFFSET(ReturnData!$B$1:$B$2106,0,Input!F$74-1),OFFSET(ReturnData!$B$1:$B$2106,0,Input!$C93-1)) ->  | G93: =+CORREL(OFFSET(ReturnData!$B$1:$B$2106,0,Input!G$74-1),OFFSET(ReturnData!$B$1:$B$2106,0,Input!$C93-1)) ->  | H93: =+CORREL(OFFSET(ReturnData!$B$1:$B$2106,0,Input!H$74-1),OFFSET(ReturnData!$B$1:$B$2106,0,Input!$C93-1)) ->  | I93: =+CORREL(OFFSET(ReturnData!$B$1:$B$2106,0,Input!I$74-1),OFFSET(ReturnData!$B$1:$B$2106,0,Input!$C93-1)) ->  | J93: =+CORREL(OFFSET(ReturnData!$B$1:$B$2106,0,Input!J$74-1),OFFSET(ReturnData!$B$1:$B$2106,0,Input!$C93-1)) ->  | K93: =+CORREL(OFFSET(ReturnData!$B$1:$B$2106,0,Input!K$74-1),OFFSET(ReturnData!$B$1:$B$2106,0,Input!$C93-1)) ->  | L93: =+CORREL(OFFSET(ReturnData!$B$1:$B$2106,0,Input!L$74-1),OFFSET(ReturnData!$B$1:$B$2106,0,Input!$C93-1)) ->  | M93: =+CORREL(OFFSET(ReturnData!$B$1:$B$2106,0,Input!M$74-1),OFFSET(ReturnData!$B$1:$B$2106,0,Input!$C93-1)) ->  | N93: =+CORREL(OFFSET(ReturnData!$B$1:$B$2106,0,Input!N$74-1),OFFSET(ReturnData!$B$1:$B$2106,0,Input!$C93-1)) ->  | O93: =+CORREL(OFFSET(ReturnData!$B$1:$B$2106,0,Input!O$74-1),OFFSET(ReturnData!$B$1:$B$2106,0,Input!$C93-1)) ->  | P93: =+CORREL(OFFSET(ReturnData!$B$1:$B$2106,0,Input!P$74-1),OFFSET(ReturnData!$B$1:$B$2106,0,Input!$C93-1)) ->  | Q93: =+CORREL(OFFSET(ReturnData!$B$1:$B$2106,0,Input!Q$74-1),OFFSET(ReturnData!$B$1:$B$2106,0,Input!$C93-1)) ->  | R93: =+CORREL(OFFSET(ReturnData!$B$1:$B$2106,0,Input!R$74-1),OFFSET(ReturnData!$B$1:$B$2106,0,Input!$C93-1)) ->  | S93: =+CORREL(OFFSET(ReturnData!$B$1:$B$2106,0,Input!S$74-1),OFFSET(ReturnData!$B$1:$B$2106,0,Input!$C93-1)) ->  | T93: =+CORREL(OFFSET(ReturnData!$B$1:$B$2106,0,Input!T$74-1),OFFSET(ReturnData!$B$1:$B$2106,0,Input!$C93-1)) ->  | U93: =+CORREL(OFFSET(ReturnData!$B$1:$B$2106,0,Input!U$74-1),OFFSET(ReturnData!$B$1:$B$2106,0,Input!$C93-1)) ->  | V93: =+CORREL(OFFSET(ReturnData!$B$1:$B$2106,0,Input!V$74-1),OFFSET(ReturnData!$B$1:$B$2106,0,Input!$C93-1)) ->  | W93: =+CORREL(OFFSET(ReturnData!$B$1:$B$2106,0,Input!W$74-1),OFFSET(ReturnData!$B$1:$B$2106,0,Input!$C93-1)) ->  | X93: =+CORREL(OFFSET(ReturnData!$B$1:$B$2106,0,Input!X$74-1),OFFSET(ReturnData!$B$1:$B$2106,0,Input!$C93-1)) ->  | Y93: =+CORREL(OFFSET(ReturnData!$B$1:$B$2106,0,Input!Y$74-1),OFFSET(ReturnData!$B$1:$B$2106,0,Input!$C93-1)) ->  | Z93: =+CORREL(OFFSET(ReturnData!$B$1:$B$2106,0,Input!Z$74-1),OFFSET(ReturnData!$B$1:$B$2106,0,Input!$C93-1)) -> 
B94: empty | C94: 20 | E94: =+CORREL(OFFSET(ReturnData!$B$1:$B$2106,0,Input!E$74-1),OFFSET(ReturnData!$B$1:$B$2106,0,Input!$C94-1)) ->  | F94: =+CORREL(OFFSET(ReturnData!$B$1:$B$2106,0,Input!F$74-1),OFFSET(ReturnData!$B$1:$B$2106,0,Input!$C94-1)) ->  | G94: =+CORREL(OFFSET(ReturnData!$B$1:$B$2106,0,Input!G$74-1),OFFSET(ReturnData!$B$1:$B$2106,0,Input!$C94-1)) ->  | H94: =+CORREL(OFFSET(ReturnData!$B$1:$B$2106,0,Input!H$74-1),OFFSET(ReturnData!$B$1:$B$2106,0,Input!$C94-1)) ->  | I94: =+CORREL(OFFSET(ReturnData!$B$1:$B$2106,0,Input!I$74-1),OFFSET(ReturnData!$B$1:$B$2106,0,Input!$C94-1)) ->  | J94: =+CORREL(OFFSET(ReturnData!$B$1:$B$2106,0,Input!J$74-1),OFFSET(ReturnData!$B$1:$B$2106,0,Input!$C94-1)) ->  | K94: =+CORREL(OFFSET(ReturnData!$B$1:$B$2106,0,Input!K$74-1),OFFSET(ReturnData!$B$1:$B$2106,0,Input!$C94-1)) ->  | L94: =+CORREL(OFFSET(ReturnData!$B$1:$B$2106,0,Input!L$74-1),OFFSET(ReturnData!$B$1:$B$2106,0,Input!$C94-1)) ->  | M94: =+CORREL(OFFSET(ReturnData!$B$1:$B$2106,0,Input!M$74-1),OFFSET(ReturnData!$B$1:$B$2106,0,Input!$C94-1)) ->  | N94: =+CORREL(OFFSET(ReturnData!$B$1:$B$2106,0,Input!N$74-1),OFFSET(ReturnData!$B$1:$B$2106,0,Input!$C94-1)) ->  | O94: =+CORREL(OFFSET(ReturnData!$B$1:$B$2106,0,Input!O$74-1),OFFSET(ReturnData!$B$1:$B$2106,0,Input!$C94-1)) ->  | P94: =+CORREL(OFFSET(ReturnData!$B$1:$B$2106,0,Input!P$74-1),OFFSET(ReturnData!$B$1:$B$2106,0,Input!$C94-1)) ->  | Q94: =+CORREL(OFFSET(ReturnData!$B$1:$B$2106,0,Input!Q$74-1),OFFSET(ReturnData!$B$1:$B$2106,0,Input!$C94-1)) ->  | R94: =+CORREL(OFFSET(ReturnData!$B$1:$B$2106,0,Input!R$74-1),OFFSET(ReturnData!$B$1:$B$2106,0,Input!$C94-1)) ->  | S94: =+CORREL(OFFSET(ReturnData!$B$1:$B$2106,0,Input!S$74-1),OFFSET(ReturnData!$B$1:$B$2106,0,Input!$C94-1)) ->  | T94: =+CORREL(OFFSET(ReturnData!$B$1:$B$2106,0,Input!T$74-1),OFFSET(ReturnData!$B$1:$B$2106,0,Input!$C94-1)) ->  | U94: =+CORREL(OFFSET(ReturnData!$B$1:$B$2106,0,Input!U$74-1),OFFSET(ReturnData!$B$1:$B$2106,0,Input!$C94-1)) ->  | V94: =+CORREL(OFFSET(ReturnData!$B$1:$B$2106,0,Input!V$74-1),OFFSET(ReturnData!$B$1:$B$2106,0,Input!$C94-1)) ->  | W94: =+CORREL(OFFSET(ReturnData!$B$1:$B$2106,0,Input!W$74-1),OFFSET(ReturnData!$B$1:$B$2106,0,Input!$C94-1)) ->  | X94: =+CORREL(OFFSET(ReturnData!$B$1:$B$2106,0,Input!X$74-1),OFFSET(ReturnData!$B$1:$B$2106,0,Input!$C94-1)) ->  | Y94: =+CORREL(OFFSET(ReturnData!$B$1:$B$2106,0,Input!Y$74-1),OFFSET(ReturnData!$B$1:$B$2106,0,Input!$C94-1)) ->  | Z94: =+CORREL(OFFSET(ReturnData!$B$1:$B$2106,0,Input!Z$74-1),OFFSET(ReturnData!$B$1:$B$2106,0,Input!$C94-1)) -> 
B95: empty | C95: 21 | E95: =+CORREL(OFFSET(ReturnData!$B$1:$B$2106,0,Input!E$74-1),OFFSET(ReturnData!$B$1:$B$2106,0,Input!$C95-1)) ->  | F95: =+CORREL(OFFSET(ReturnData!$B$1:$B$2106,0,Input!F$74-1),OFFSET(ReturnData!$B$1:$B$2106,0,Input!$C95-1)) ->  | G95: =+CORREL(OFFSET(ReturnData!$B$1:$B$2106,0,Input!G$74-1),OFFSET(ReturnData!$B$1:$B$2106,0,Input!$C95-1)) ->  | H95: =+CORREL(OFFSET(ReturnData!$B$1:$B$2106,0,Input!H$74-1),OFFSET(ReturnData!$B$1:$B$2106,0,Input!$C95-1)) ->  | I95: =+CORREL(OFFSET(ReturnData!$B$1:$B$2106,0,Input!I$74-1),OFFSET(ReturnData!$B$1:$B$2106,0,Input!$C95-1)) ->  | J95: =+CORREL(OFFSET(ReturnData!$B$1:$B$2106,0,Input!J$74-1),OFFSET(ReturnData!$B$1:$B$2106,0,Input!$C95-1)) ->  | K95: =+CORREL(OFFSET(ReturnData!$B$1:$B$2106,0,Input!K$74-1),OFFSET(ReturnData!$B$1:$B$2106,0,Input!$C95-1)) ->  | L95: =+CORREL(OFFSET(ReturnData!$B$1:$B$2106,0,Input!L$74-1),OFFSET(ReturnData!$B$1:$B$2106,0,Input!$C95-1)) ->  | M95: =+CORREL(OFFSET(ReturnData!$B$1:$B$2106,0,Input!M$74-1),OFFSET(ReturnData!$B$1:$B$2106,0,Input!$C95-1)) ->  | N95: =+CORREL(OFFSET(ReturnData!$B$1:$B$2106,0,Input!N$74-1),OFFSET(ReturnData!$B$1:$B$2106,0,Input!$C95-1)) ->  | O95: =+CORREL(OFFSET(ReturnData!$B$1:$B$2106,0,Input!O$74-1),OFFSET(ReturnData!$B$1:$B$2106,0,Input!$C95-1)) ->  | P95: =+CORREL(OFFSET(ReturnData!$B$1:$B$2106,0,Input!P$74-1),OFFSET(ReturnData!$B$1:$B$2106,0,Input!$C95-1)) ->  | Q95: =+CORREL(OFFSET(ReturnData!$B$1:$B$2106,0,Input!Q$74-1),OFFSET(ReturnData!$B$1:$B$2106,0,Input!$C95-1)) ->  | R95: =+CORREL(OFFSET(ReturnData!$B$1:$B$2106,0,Input!R$74-1),OFFSET(ReturnData!$B$1:$B$2106,0,Input!$C95-1)) ->  | S95: =+CORREL(OFFSET(ReturnData!$B$1:$B$2106,0,Input!S$74-1),OFFSET(ReturnData!$B$1:$B$2106,0,Input!$C95-1)) ->  | T95: =+CORREL(OFFSET(ReturnData!$B$1:$B$2106,0,Input!T$74-1),OFFSET(ReturnData!$B$1:$B$2106,0,Input!$C95-1)) ->  | U95: =+CORREL(OFFSET(ReturnData!$B$1:$B$2106,0,Input!U$74-1),OFFSET(ReturnData!$B$1:$B$2106,0,Input!$C95-1)) ->  | V95: =+CORREL(OFFSET(ReturnData!$B$1:$B$2106,0,Input!V$74-1),OFFSET(ReturnData!$B$1:$B$2106,0,Input!$C95-1)) ->  | W95: =+CORREL(OFFSET(ReturnData!$B$1:$B$2106,0,Input!W$74-1),OFFSET(ReturnData!$B$1:$B$2106,0,Input!$C95-1)) ->  | X95: =+CORREL(OFFSET(ReturnData!$B$1:$B$2106,0,Input!X$74-1),OFFSET(ReturnData!$B$1:$B$2106,0,Input!$C95-1)) ->  | Y95: =+CORREL(OFFSET(ReturnData!$B$1:$B$2106,0,Input!Y$74-1),OFFSET(ReturnData!$B$1:$B$2106,0,Input!$C95-1)) ->  | Z95: =+CORREL(OFFSET(ReturnData!$B$1:$B$2106,0,Input!Z$74-1),OFFSET(ReturnData!$B$1:$B$2106,0,Input!$C95-1)) -> 
B96: empty | C96: 22 | E96: =+CORREL(OFFSET(ReturnData!$B$1:$B$2106,0,Input!E$74-1),OFFSET(ReturnData!$B$1:$B$2106,0,Input!$C96-1)) ->  | F96: =+CORREL(OFFSET(ReturnData!$B$1:$B$2106,0,Input!F$74-1),OFFSET(ReturnData!$B$1:$B$2106,0,Input!$C96-1)) ->  | G96: =+CORREL(OFFSET(ReturnData!$B$1:$B$2106,0,Input!G$74-1),OFFSET(ReturnData!$B$1:$B$2106,0,Input!$C96-1)) ->  | H96: =+CORREL(OFFSET(ReturnData!$B$1:$B$2106,0,Input!H$74-1),OFFSET(ReturnData!$B$1:$B$2106,0,Input!$C96-1)) ->  | I96: =+CORREL(OFFSET(ReturnData!$B$1:$B$2106,0,Input!I$74-1),OFFSET(ReturnData!$B$1:$B$2106,0,Input!$C96-1)) ->  | J96: =+CORREL(OFFSET(ReturnData!$B$1:$B$2106,0,Input!J$74-1),OFFSET(ReturnData!$B$1:$B$2106,0,Input!$C96-1)) ->  | K96: =+CORREL(OFFSET(ReturnData!$B$1:$B$2106,0,Input!K$74-1),OFFSET(ReturnData!$B$1:$B$2106,0,Input!$C96-1)) ->  | L96: =+CORREL(OFFSET(ReturnData!$B$1:$B$2106,0,Input!L$74-1),OFFSET(ReturnData!$B$1:$B$2106,0,Input!$C96-1)) ->  | M96: =+CORREL(OFFSET(ReturnData!$B$1:$B$2106,0,Input!M$74-1),OFFSET(ReturnData!$B$1:$B$2106,0,Input!$C96-1)) ->  | N96: =+CORREL(OFFSET(ReturnData!$B$1:$B$2106,0,Input!N$74-1),OFFSET(ReturnData!$B$1:$B$2106,0,Input!$C96-1)) ->  | O96: =+CORREL(OFFSET(ReturnData!$B$1:$B$2106,0,Input!O$74-1),OFFSET(ReturnData!$B$1:$B$2106,0,Input!$C96-1)) ->  | P96: =+CORREL(OFFSET(ReturnData!$B$1:$B$2106,0,Input!P$74-1),OFFSET(ReturnData!$B$1:$B$2106,0,Input!$C96-1)) ->  | Q96: =+CORREL(OFFSET(ReturnData!$B$1:$B$2106,0,Input!Q$74-1),OFFSET(ReturnData!$B$1:$B$2106,0,Input!$C96-1)) ->  | R96: =+CORREL(OFFSET(ReturnData!$B$1:$B$2106,0,Input!R$74-1),OFFSET(ReturnData!$B$1:$B$2106,0,Input!$C96-1)) ->  | S96: =+CORREL(OFFSET(ReturnData!$B$1:$B$2106,0,Input!S$74-1),OFFSET(ReturnData!$B$1:$B$2106,0,Input!$C96-1)) ->  | T96: =+CORREL(OFFSET(ReturnData!$B$1:$B$2106,0,Input!T$74-1),OFFSET(ReturnData!$B$1:$B$2106,0,Input!$C96-1)) ->  | U96: =+CORREL(OFFSET(ReturnData!$B$1:$B$2106,0,Input!U$74-1),OFFSET(ReturnData!$B$1:$B$2106,0,Input!$C96-1)) ->  | V96: =+CORREL(OFFSET(ReturnData!$B$1:$B$2106,0,Input!V$74-1),OFFSET(ReturnData!$B$1:$B$2106,0,Input!$C96-1)) ->  | W96: =+CORREL(OFFSET(ReturnData!$B$1:$B$2106,0,Input!W$74-1),OFFSET(ReturnData!$B$1:$B$2106,0,Input!$C96-1)) ->  | X96: =+CORREL(OFFSET(ReturnData!$B$1:$B$2106,0,Input!X$74-1),OFFSET(ReturnData!$B$1:$B$2106,0,Input!$C96-1)) ->  | Y96: =+CORREL(OFFSET(ReturnData!$B$1:$B$2106,0,Input!Y$74-1),OFFSET(ReturnData!$B$1:$B$2106,0,Input!$C96-1)) ->  | Z96: =+CORREL(OFFSET(ReturnData!$B$1:$B$2106,0,Input!Z$74-1),OFFSET(ReturnData!$B$1:$B$2106,0,Input!$C96-1)) -> 
C112: =StratNames -> BUGST

Sheet Solver
B2: Solver input | D2: 1) Strategies to in/exclude in optimization? | H2: 2) Select Scenario from list or set custom input: | P2: 2) Instructions:
P3: The preconfigured Scenarios pull the needed solver configuration from the table starting in cell B61. If you want to configure your own scenario you can just link the custom cells to the constraint cell you want to use. Example: If you set Cell J10 to =L19 you would use CAGR as constraint.. There are some named ranges you can also use: SolCAGR SolVolatility SolSharpe SolMaxDD e.g. You can set Cell J10 to =SolSharpe as constraint..
D4: Strategies | E4: Exclude from Portfolio? | F4: Final Weighting | H4: Pre-configured Scenarios (drop-down list):
D5: =+TRANSPOSE(StratNames) -> BRS | E5: FALSE | F5: =+TRANSPOSE(Weights) -> -9.439140556e-06 | I5: =OFFSET(B62,I6-1,0,1,1) -> Max CAGR, Sharpe >1.5
D6: BUGST | E6: FALSE | F6: -9.565934344e-06 | I6: 9
D7: BUGLEV | E7: FALSE | F7: -9.395438627e-06 | J7: Custom | K7: Selected
D8: WTOP4 | E8: FALSE | F8: -9.257278458e-06 | H8: Risk Free Rate | J8: 0 | K8: =+SolRiskFree -> 0
D9: GSRlv | E9: FALSE | F9: -9.015420777e-06 | H9: Minimize Target: | K9: =+TRANSPOSE(OFFSET($D$62,MATCH(I5,SolScenarios,0)-1,0,1,8)) -> -0.09840785891 | L9: (invert if target is to maximize)
D10: GMRS | E10: FALSE | F10: -8.720063981e-06 | H10: Constraint Max : | K10: 0.4518840699 | L10: (select Concept, leave empty to ignore)
D11: GMRSE | E11: TRUE | F11: -8.589555979e-06 | H11: - Value | K11: 1.5 | L11: (set to -99 to ignore)
D12: MYRS | E12: FALSE | F12: -8.573117132e-06 | H12: Constraint Min: | K12: 0 | L12: (select Concept, leave empty to ignore)
D13: UIS | E13: FALSE | F13: -9.280563423e-06 | H13: - Value | K13: 0 | L13: (set to 99 to ignore)
D14: UIS-SPXL-TMF | E14: FALSE | F14: 6.518564142e-05 | H14: Min Weight: | K14: 0 | L14: (set to 0 to ignore, or -1 to allow shorting)
D15: SPY | E15: TRUE | F15: 1.00000997 | H15: Max Weight: | K15: 1 | L15: (set to 1 to ignore, or >1 to allow leverage)
D16: TLT | E16: TRUE | F16: 0 | H16: Max Portfolio Weight: | K16: 1 | L16: (set to 1 to ignore, or >1 to allow leverage)
D17: AGG | E17: TRUE | F17: 0
D18: SHY | E18: TRUE | F18: 0 | H18: Portfolio Statistics:
D19: GLD | E19: TRUE | F19: 0 | J19: Expected CAGR: | L19: =SolCAGR -> 0.09840785891
D20: NASDAQ100 | E20: FALSE | F20: 0 | J20: Expected Volatility: | L20: =+SolVolatility -> 0.2177723568
D21: GLD-USD | E21: FALSE | F21: 6.680681466e-06 | J21: Expected Sharpe: | L21: =+(SolCAGR-SolRiskFree)/SolVolatility -> 0.4518840699
D22: empty | E22: TRUE | F22: 0 | J22: MaxDrawDown: | L22: =+DrawDown!X2107 -> -0.1687242319
D23: empty | E23: TRUE | F23: 0
D24: empty | E24: TRUE | F24: 0 | H24: 3) Run Solver Optimization
D25: empty | E25: TRUE | F25: 0
D26: empty | E26: TRUE | F26: 0
B29: Solver Calculations - do not change below here
D30: =+StratNames -> BRS | E30: BUGST | F30: BUGLEV | G30: WTOP4 | H30: GSRlv | I30: GMRS | J30: GMRSE | K30: MYRS | L30: UIS | M30: UIS-SPXL-TMF | N30: SPY | O30: TLT | P30: AGG | Q30: SHY | R30: GLD | S30: NASDAQ100 | T30: GLD-USD | U30: empty | V30: empty | W30: empty | X30: empty | Y30: empty
D31: 1 | E31: 2 | F31: 3 | G31: 4 | H31: 5 | I31: 6 | J31: 7 | K31: 8 | L31: 9 | M31: 10 | N31: 11 | O31: 12 | P31: 13 | Q31: 14 | R31: 15 | S31: 16 | T31: 17 | U31: 18 | V31: 19 | W31: 20 | X31: 21 | Y31: 22
B32: =+TRANSPOSE(StratNames) -> BRS | C32: 1 | D32: =+_xlfn.COVARIANCE.P(OFFSET(ReturnData!$B$1:$B$2106,0,Input!E$74-1),OFFSET(ReturnData!$B$1:$B$2106,0,Solver!$C32-1)) -> 2.165695882e-05 | E32: =+_xlfn.COVARIANCE.P(OFFSET(ReturnData!$B$1:$B$2106,0,Input!F$74-1),OFFSET(ReturnData!$B$1:$B$2106,0,Solver!$C32-1)) -> 1.031559024e-05 | F32: =+_xlfn.COVARIANCE.P(OFFSET(ReturnData!$B$1:$B$2106,0,Input!G$74-1),OFFSET(ReturnData!$B$1:$B$2106,0,Solver!$C32-1)) -> 1.280066452e-05 | G32: =+_xlfn.COVARIANCE.P(OFFSET(ReturnData!$B$1:$B$2106,0,Input!H$74-1),OFFSET(ReturnData!$B$1:$B$2106,0,Solver!$C32-1)) -> 1.591983327e-05 | H32: =+_xlfn.COVARIANCE.P(OFFSET(ReturnData!$B$1:$B$2106,0,Input!I$74-1),OFFSET(ReturnData!$B$1:$B$2106,0,Solver!$C32-1)) -> 2.563814874e-05 | I32: =+_xlfn.COVARIANCE.P(OFFSET(ReturnData!$B$1:$B$2106,0,Input!J$74-1),OFFSET(ReturnData!$B$1:$B$2106,0,Solver!$C32-1)) -> 4.153918521e-05 | J32: =+_xlfn.COVARIANCE.P(OFFSET(ReturnData!$B$1:$B$2106,0,Input!K$74-1),OFFSET(ReturnData!$B$1:$B$2106,0,Solver!$C32-1)) -> 4.598540135e-05 | K32: =+_xlfn.COVARIANCE.P(OFFSET(ReturnData!$B$1:$B$2106,0,Input!L$74-1),OFFSET(ReturnData!$B$1:$B$2106,0,Solver!$C32-1)) -> 2.201136832e-05 | L32: =+_xlfn.COVARIANCE.P(OFFSET(ReturnData!$B$1:$B$2106,0,Input!M$74-1),OFFSET(ReturnData!$B$1:$B$2106,0,Solver!$C32-1)) -> 1.908567763e-05 | M32: =+_xlfn.COVARIANCE.P(OFFSET(ReturnData!$B$1:$B$2106,0,Input!N$74-1),OFFSET(ReturnData!$B$1:$B$2106,0,Solver!$C32-1)) -> 4.343224939e-05 | N32: =+_xlfn.COVARIANCE.P(OFFSET(ReturnData!$B$1:$B$2106,0,Input!O$74-1),OFFSET(ReturnData!$B$1:$B$2106,0,Solver!$C32-1)) -> 4.727524841e-06 | O32: =+_xlfn.COVARIANCE.P(OFFSET(ReturnData!$B$1:$B$2106,0,Input!P$74-1),OFFSET(ReturnData!$B$1:$B$2106,0,Solver!$C32-1)) -> 1.282856689e-05 | P32: =+_xlfn.COVARIANCE.P(OFFSET(ReturnData!$B$1:$B$2106,0,Input!Q$74-1),OFFSET(ReturnData!$B$1:$B$2106,0,Solver!$C32-1)) -> 3.724165145e-06 | Q32: =+_xlfn.COVARIANCE.P(OFFSET(ReturnData!$B$1:$B$2106,0,Input!R$74-1),OFFSET(ReturnData!$B$1:$B$2106,0,Solver!$C32-1)) -> 7.8442577e-07 | R32: =+_xlfn.COVARIANCE.P(OFFSET(ReturnData!$B$1:$B$2106,0,Input!S$74-1),OFFSET(ReturnData!$B$1:$B$2106,0,Solver!$C32-1)) -> 7.491812844e-06 | S32: =+_xlfn.COVARIANCE.P(OFFSET(ReturnData!$B$1:$B$2106,0,Input!T$74-1),OFFSET(ReturnData!$B$1:$B$2106,0,Solver!$C32-1)) -> 2.560582578e-05 | T32: =+_xlfn.COVARIANCE.P(OFFSET(ReturnData!$B$1:$B$2106,0,Input!U$74-1),OFFSET(ReturnData!$B$1:$B$2106,0,Solver!$C32-1)) -> 2.646470423e-06 | U32: =+_xlfn.COVARIANCE.P(OFFSET(ReturnData!$B$1:$B$2106,0,Input!V$74-1),OFFSET(ReturnData!$B$1:$B$2106,0,Solver!$C32-1)) -> 0 | V32: =+_xlfn.COVARIANCE.P(OFFSET(ReturnData!$B$1:$B$2106,0,Input!W$74-1),OFFSET(ReturnData!$B$1:$B$2106,0,Solver!$C32-1)) -> 0 | W32: =+_xlfn.COVARIANCE.P(OFFSET(ReturnData!$B$1:$B$2106,0,Input!X$74-1),OFFSET(ReturnData!$B$1:$B$2106,0,Solver!$C32-1)) -> 0 | X32: =+_xlfn.COVARIANCE.P(OFFSET(ReturnData!$B$1:$B$2106,0,Input!Y$74-1),OFFSET(ReturnData!$B$1:$B$2106,0,Solver!$C32-1)) -> 0 | Y32: =+_xlfn.COVARIANCE.P(OFFSET(ReturnData!$B$1:$B$2106,0,Input!Z$74-1),OFFSET(ReturnData!$B$1:$B$2106,0,Solver!$C32-1)) -> 0
B33: BUGST | C33: 2 | D33: =+_xlfn.COVARIANCE.P(OFFSET(ReturnData!$B$1:$B$2106,0,Input!E$74-1),OFFSET(ReturnData!$B$1:$B$2106,0,Solver!$C33-1)) -> 1.031559024e-05 | E33: =+_xlfn.COVARIANCE.P(OFFSET(ReturnData!$B$1:$B$2106,0,Input!F$74-1),OFFSET(ReturnData!$B$1:$B$2106,0,Solver!$C33-1)) -> 1.790665246e-05 | F33: =+_xlfn.COVARIANCE.P(OFFSET(ReturnData!$B$1:$B$2106,0,Input!G$74-1),OFFSET(ReturnData!$B$1:$B$2106,0,Solver!$C33-1)) -> 1.957646825e-05 | G33: =+_xlfn.COVARIANCE.P(OFFSET(ReturnData!$B$1:$B$2106,0,Input!H$74-1),OFFSET(ReturnData!$B$1:$B$2106,0,Solver!$C33-1)) -> 1.668328404e-05 | H33: =+_xlfn.COVARIANCE.P(OFFSET(ReturnData!$B$1:$B$2106,0,Input!I$74-1),OFFSET(ReturnData!$B$1:$B$2106,0,Solver!$C33-1)) -> 1.972249539e-05 | I33: =+_xlfn.COVARIANCE.P(OFFSET(ReturnData!$B$1:$B$2106,0,Input!J$74-1),OFFSET(ReturnData!$B$1:$B$2106,0,Solver!$C33-1)) -> 2.569513108e-05 | J33: =+_xlfn.COVARIANCE.P(OFFSET(ReturnData!$B$1:$B$2106,0,Input!K$74-1),OFFSET(ReturnData!$B$1:$B$2106,0,Solver!$C33-1)) -> 3.237886789e-05 | K33: =+_xlfn.COVARIANCE.P(OFFSET(ReturnData!$B$1:$B$2106,0,Input!L$74-1),OFFSET(ReturnData!$B$1:$B$2106,0,Solver!$C33-1)) -> 2.09970287e-05 | L33: =+_xlfn.COVARIANCE.P(OFFSET(ReturnData!$B$1:$B$2106,0,Input!M$74-1),OFFSET(ReturnData!$B$1:$B$2106,0,Solver!$C33-1)) -> 1.43450574e-05 | M33: =+_xlfn.COVARIANCE.P(OFFSET(ReturnData!$B$1:$B$2106,0,Input!N$74-1),OFFSET(ReturnData!$B$1:$B$2106,0,Solver!$C33-1)) -> 3.657238812e-05 | N33: =+_xlfn.COVARIANCE.P(OFFSET(ReturnData!$B$1:$B$2106,0,Input!O$74-1),OFFSET(ReturnData!$B$1:$B$2106,0,Solver!$C33-1)) -> 6.339750051e-06 | O33: =+_xlfn.COVARIANCE.P(OFFSET(ReturnData!$B$1:$B$2106,0,Input!P$74-1),OFFSET(ReturnData!$B$1:$B$2106,0,Solver!$C33-1)) -> 1.189398452e-05 | P33: =+_xlfn.COVARIANCE.P(OFFSET(ReturnData!$B$1:$B$2106,0,Input!Q$74-1),OFFSET(ReturnData!$B$1:$B$2106,0,Solver!$C33-1)) -> 3.156868123e-06 | Q33: =+_xlfn.COVARIANCE.P(OFFSET(ReturnData!$B$1:$B$2106,0,Input!R$74-1),OFFSET(ReturnData!$B$1:$B$2106,0,Solver!$C33-1)) -> 6.932198598e-07 | R33: =+_xlfn.COVARIANCE.P(OFFSET(ReturnData!$B$1:$B$2106,0,Input!S$74-1),OFFSET(ReturnData!$B$1:$B$2106,0,Solver!$C33-1)) -> 2.329656568e-05 | S33: =+_xlfn.COVARIANCE.P(OFFSET(ReturnData!$B$1:$B$2106,0,Input!T$74-1),OFFSET(ReturnData!$B$1:$B$2106,0,Solver!$C33-1)) -> 2.225990424e-05 | T33: =+_xlfn.COVARIANCE.P(OFFSET(ReturnData!$B$1:$B$2106,0,Input!U$74-1),OFFSET(ReturnData!$B$1:$B$2106,0,Solver!$C33-1)) -> 8.512056012e-06 | U33: =+_xlfn.COVARIANCE.P(OFFSET(ReturnData!$B$1:$B$2106,0,Input!V$74-1),OFFSET(ReturnData!$B$1:$B$2106,0,Solver!$C33-1)) -> 0 | V33: =+_xlfn.COVARIANCE.P(OFFSET(ReturnData!$B$1:$B$2106,0,Input!W$74-1),OFFSET(ReturnData!$B$1:$B$2106,0,Solver!$C33-1)) -> 0 | W33: =+_xlfn.COVARIANCE.P(OFFSET(ReturnData!$B$1:$B$2106,0,Input!X$74-1),OFFSET(ReturnData!$B$1:$B$2106,0,Solver!$C33-1)) -> 0 | X33: =+_xlfn.COVARIANCE.P(OFFSET(ReturnData!$B$1:$B$2106,0,Input!Y$74-1),OFFSET(ReturnData!$B$1:$B$2106,0,Solver!$C33-1)) -> 0 | Y33: =+_xlfn.COVARIANCE.P(OFFSET(ReturnData!$B$1:$B$2106,0,Input!Z$74-1),OFFSET(ReturnData!$B$1:$B$2106,0,Solver!$C33-1)) -> 0
B34: BUGLEV | C34: 3 | D34: =+_xlfn.COVARIANCE.P(OFFSET(ReturnData!$B$1:$B$2106,0,Input!E$74-1),OFFSET(ReturnData!$B$1:$B$2106,0,Solver!$C34-1)) -> 1.280066452e-05 | E34: =+_xlfn.COVARIANCE.P(OFFSET(ReturnData!$B$1:$B$2106,0,Input!F$74-1),OFFSET(ReturnData!$B$1:$B$2106,0,Solver!$C34-1)) -> 1.957646825e-05 | F34: =+_xlfn.COVARIANCE.P(OFFSET(ReturnData!$B$1:$B$2106,0,Input!G$74-1),OFFSET(ReturnData!$B$1:$B$2106,0,Solver!$C34-1)) -> 2.575222664e-05 | G34: =+_xlfn.COVARIANCE.P(OFFSET(ReturnData!$B$1:$B$2106,0,Input!H$74-1),OFFSET(ReturnData!$B$1:$B$2106,0,Solver!$C34-1)) -> 2.249693976e-05 | H34: =+_xlfn.COVARIANCE.P(OFFSET(ReturnData!$B$1:$B$2106,0,Input!I$74-1),OFFSET(ReturnData!$B$1:$B$2106,0,Solver!$C34-1)) -> 2.546089326e-05 | I34: =+_xlfn.COVARIANCE.P(OFFSET(ReturnData!$B$1:$B$2106,0,Input!J$74-1),OFFSET(ReturnData!$B$1:$B$2106,0,Solver!$C34-1)) -> 2.997538514e-05 | J34: =+_xlfn.COVARIANCE.P(OFFSET(ReturnData!$B$1:$B$2106,0,Input!K$74-1),OFFSET(ReturnData!$B$1:$B$2106,0,Solver!$C34-1)) -> 3.703871214e-05 | K34: =+_xlfn.COVARIANCE.P(OFFSET(ReturnData!$B$1:$B$2106,0,Input!L$74-1),OFFSET(ReturnData!$B$1:$B$2106,0,Solver!$C34-1)) -> 2.304470081e-05 | L34: =+_xlfn.COVARIANCE.P(OFFSET(ReturnData!$B$1:$B$2106,0,Input!M$74-1),OFFSET(ReturnData!$B$1:$B$2106,0,Solver!$C34-1)) -> 1.942696928e-05 | M34: =+_xlfn.COVARIANCE.P(OFFSET(ReturnData!$B$1:$B$2106,0,Input!N$74-1),OFFSET(ReturnData!$B$1:$B$2106,0,Solver!$C34-1)) -> 4.678763003e-05 | N34: =+_xlfn.COVARIANCE.P(OFFSET(ReturnData!$B$1:$B$2106,0,Input!O$74-1),OFFSET(ReturnData!$B$1:$B$2106,0,Solver!$C34-1)) -> 1.061665561e-05 | O34: =+_xlfn.COVARIANCE.P(OFFSET(ReturnData!$B$1:$B$2106,0,Input!P$74-1),OFFSET(ReturnData!$B$1:$B$2106,0,Solver!$C34-1)) -> 1.498968866e-05 | P34: =+_xlfn.COVARIANCE.P(OFFSET(ReturnData!$B$1:$B$2106,0,Input!Q$74-1),OFFSET(ReturnData!$B$1:$B$2106,0,Solver!$C34-1)) -> 4.527766935e-06 | Q34: =+_xlfn.COVARIANCE.P(OFFSET(ReturnData!$B$1:$B$2106,0,Input!R$74-1),OFFSET(ReturnData!$B$1:$B$2106,0,Solver!$C34-1)) -> 1.143211859e-06 | R34: =+_xlfn.COVARIANCE.P(OFFSET(ReturnData!$B$1:$B$2106,0,Input!S$74-1),OFFSET(ReturnData!$B$1:$B$2106,0,Solver!$C34-1)) -> 2.807643769e-05 | S34: =+_xlfn.COVARIANCE.P(OFFSET(ReturnData!$B$1:$B$2106,0,Input!T$74-1),OFFSET(ReturnData!$B$1:$B$2106,0,Solver!$C34-1)) -> 2.874368094e-05 | T34: =+_xlfn.COVARIANCE.P(OFFSET(ReturnData!$B$1:$B$2106,0,Input!U$74-1),OFFSET(ReturnData!$B$1:$B$2106,0,Solver!$C34-1)) -> 8.361656943e-06 | U34: =+_xlfn.COVARIANCE.P(OFFSET(ReturnData!$B$1:$B$2106,0,Input!V$74-1),OFFSET(ReturnData!$B$1:$B$2106,0,Solver!$C34-1)) -> 0 | V34: =+_xlfn.COVARIANCE.P(OFFSET(ReturnData!$B$1:$B$2106,0,Input!W$74-1),OFFSET(ReturnData!$B$1:$B$2106,0,Solver!$C34-1)) -> 0 | W34: =+_xlfn.COVARIANCE.P(OFFSET(ReturnData!$B$1:$B$2106,0,Input!X$74-1),OFFSET(ReturnData!$B$1:$B$2106,0,Solver!$C34-1)) -> 0 | X34: =+_xlfn.COVARIANCE.P(OFFSET(ReturnData!$B$1:$B$2106,0,Input!Y$74-1),OFFSET(ReturnData!$B$1:$B$2106,0,Solver!$C34-1)) -> 0 | Y34: =+_xlfn.COVARIANCE.P(OFFSET(ReturnData!$B$1:$B$2106,0,Input!Z$74-1),OFFSET(ReturnData!$B$1:$B$2106,0,Solver!$C34-1)) -> 0
B35: WTOP4 | C35: 4 | D35: =+_xlfn.COVARIANCE.P(OFFSET(ReturnData!$B$1:$B$2106,0,Input!E$74-1),OFFSET(ReturnData!$B$1:$B$2106,0,Solver!$C35-1)) -> 1.591983327e-05 | E35: =+_xlfn.COVARIANCE.P(OFFSET(ReturnData!$B$1:$B$2106,0,Input!F$74-1),OFFSET(ReturnData!$B$1:$B$2106,0,Solver!$C35-1)) -> 1.668328404e-05 | F35: =+_xlfn.COVARIANCE.P(OFFSET(ReturnData!$B$1:$B$2106,0,Input!G$74-1),OFFSET(ReturnData!$B$1:$B$2106,0,Solver!$C35-1)) -> 2.249693976e-05 | G35: =+_xlfn.COVARIANCE.P(OFFSET(ReturnData!$B$1:$B$2106,0,Input!H$74-1),OFFSET(ReturnData!$B$1:$B$2106,0,Solver!$C35-1)) -> 5.830120897e-05 | H35: =+_xlfn.COVARIANCE.P(OFFSET(ReturnData!$B$1:$B$2106,0,Input!I$74-1),OFFSET(ReturnData!$B$1:$B$2106,0,Solver!$C35-1)) -> 3.044106903e-05 | I35: =+_xlfn.COVARIANCE.P(OFFSET(ReturnData!$B$1:$B$2106,0,Input!J$74-1),OFFSET(ReturnData!$B$1:$B$2106,0,Solver!$C35-1)) -> 4.821415032e-05 | J35: =+_xlfn.COVARIANCE.P(OFFSET(ReturnData!$B$1:$B$2106,0,Input!K$74-1),OFFSET(ReturnData!$B$1:$B$2106,0,Solver!$C35-1)) -> 4.999909541e-05 | K35: =+_xlfn.COVARIANCE.P(OFFSET(ReturnData!$B$1:$B$2106,0,Input!L$74-1),OFFSET(ReturnData!$B$1:$B$2106,0,Solver!$C35-1)) -> 3.527967735e-05 | L35: =+_xlfn.COVARIANCE.P(OFFSET(ReturnData!$B$1:$B$2106,0,Input!M$74-1),OFFSET(ReturnData!$B$1:$B$2106,0,Solver!$C35-1)) -> 2.732107776e-05 | M35: =+_xlfn.COVARIANCE.P(OFFSET(ReturnData!$B$1:$B$2106,0,Input!N$74-1),OFFSET(ReturnData!$B$1:$B$2106,0,Solver!$C35-1)) -> 8.210993212e-05 | N35: =+_xlfn.COVARIANCE.P(OFFSET(ReturnData!$B$1:$B$2106,0,Input!O$74-1),OFFSET(ReturnData!$B$1:$B$2106,0,Solver!$C35-1)) -> 2.720554626e-05 | O35: =+_xlfn.COVARIANCE.P(OFFSET(ReturnData!$B$1:$B$2106,0,Input!P$74-1),OFFSET(ReturnData!$B$1:$B$2106,0,Solver!$C35-1)) -> 1.48426724e-05 | P35: =+_xlfn.COVARIANCE.P(OFFSET(ReturnData!$B$1:$B$2106,0,Input!Q$74-1),OFFSET(ReturnData!$B$1:$B$2106,0,Solver!$C35-1)) -> 4.066521701e-06 | Q35: =+_xlfn.COVARIANCE.P(OFFSET(ReturnData!$B$1:$B$2106,0,Input!R$74-1),OFFSET(ReturnData!$B$1:$B$2106,0,Solver!$C35-1)) -> 4.244897323e-07 | R35: =+_xlfn.COVARIANCE.P(OFFSET(ReturnData!$B$1:$B$2106,0,Input!S$74-1),OFFSET(ReturnData!$B$1:$B$2106,0,Solver!$C35-1)) -> 1.840686393e-05 | S35: =+_xlfn.COVARIANCE.P(OFFSET(ReturnData!$B$1:$B$2106,0,Input!T$74-1),OFFSET(ReturnData!$B$1:$B$2106,0,Solver!$C35-1)) -> 4.894432928e-05 | T35: =+_xlfn.COVARIANCE.P(OFFSET(ReturnData!$B$1:$B$2106,0,Input!U$74-1),OFFSET(ReturnData!$B$1:$B$2106,0,Solver!$C35-1)) -> 2.56237018e-06 | U35: =+_xlfn.COVARIANCE.P(OFFSET(ReturnData!$B$1:$B$2106,0,Input!V$74-1),OFFSET(ReturnData!$B$1:$B$2106,0,Solver!$C35-1)) -> 0 | V35: =+_xlfn.COVARIANCE.P(OFFSET(ReturnData!$B$1:$B$2106,0,Input!W$74-1),OFFSET(ReturnData!$B$1:$B$2106,0,Solver!$C35-1)) -> 0 | W35: =+_xlfn.COVARIANCE.P(OFFSET(ReturnData!$B$1:$B$2106,0,Input!X$74-1),OFFSET(ReturnData!$B$1:$B$2106,0,Solver!$C35-1)) -> 0 | X35: =+_xlfn.COVARIANCE.P(OFFSET(ReturnData!$B$1:$B$2106,0,Input!Y$74-1),OFFSET(ReturnData!$B$1:$B$2106,0,Solver!$C35-1)) -> 0 | Y35: =+_xlfn.COVARIANCE.P(OFFSET(ReturnData!$B$1:$B$2106,0,Input!Z$74-1),OFFSET(ReturnData!$B$1:$B$2106,0,Solver!$C35-1)) -> 0
B36: GSRlv | C36: 5 | D36: =+_xlfn.COVARIANCE.P(OFFSET(ReturnData!$B$1:$B$2106,0,Input!E$74-1),OFFSET(ReturnData!$B$1:$B$2106,0,Solver!$C36-1)) -> 2.563814874e-05 | E36: =+_xlfn.COVARIANCE.P(OFFSET(ReturnData!$B$1:$B$2106,0,Input!F$74-1),OFFSET(ReturnData!$B$1:$B$2106,0,Solver!$C36-1)) -> 1.972249539e-05 | F36: =+_xlfn.COVARIANCE.P(OFFSET(ReturnData!$B$1:$B$2106,0,Input!G$74-1),OFFSET(ReturnData!$B$1:$B$2106,0,Solver!$C36-1)) -> 2.546089326e-05 | G36: =+_xlfn.COVARIANCE.P(OFFSET(ReturnData!$B$1:$B$2106,0,Input!H$74-1),OFFSET(ReturnData!$B$1:$B$2106,0,Solver!$C36-1)) -> 3.044106903e-05 | H36: =+_xlfn.COVARIANCE.P(OFFSET(ReturnData!$B$1:$B$2106,0,Input!I$74-1),OFFSET(ReturnData!$B$1:$B$2106,0,Solver!$C36-1)) -> 8.773605123e-05 | I36: =+_xlfn.COVARIANCE.P(OFFSET(ReturnData!$B$1:$B$2106,0,Input!J$74-1),OFFSET(ReturnData!$B$1:$B$2106,0,Solver!$C36-1)) -> 9.092185582e-05 | J36: =+_xlfn.COVARIANCE.P(OFFSET(ReturnData!$B$1:$B$2106,0,Input!K$74-1),OFFSET(ReturnData!$B$1:$B$2106,0,Solver!$C36-1)) -> 9.673236292e-05 | K36: =+_xlfn.COVARIANCE.P(OFFSET(ReturnData!$B$1:$B$2106,0,Input!L$74-1),OFFSET(ReturnData!$B$1:$B$2106,0,Solver!$C36-1)) -> 3.969891673e-05 | L36: =+_xlfn.COVARIANCE.P(OFFSET(ReturnData!$B$1:$B$2106,0,Input!M$74-1),OFFSET(ReturnData!$B$1:$B$2106,0,Solver!$C36-1)) -> 4.270074093e-05 | M36: =+_xlfn.COVARIANCE.P(OFFSET(ReturnData!$B$1:$B$2106,0,Input!N$74-1),OFFSET(ReturnData!$B$1:$B$2106,0,Solver!$C36-1)) -> 9.215179472e-05 | N36: =+_xlfn.COVARIANCE.P(OFFSET(ReturnData!$B$1:$B$2106,0,Input!O$74-1),OFFSET(ReturnData!$B$1:$B$2106,0,Solver!$C36-1)) -> 2.477279472e-05 | O36: =+_xlfn.COVARIANCE.P(OFFSET(ReturnData!$B$1:$B$2106,0,Input!P$74-1),OFFSET(ReturnData!$B$1:$B$2106,0,Solver!$C36-1)) -> 1.242553847e-05 | P36: =+_xlfn.COVARIANCE.P(OFFSET(ReturnData!$B$1:$B$2106,0,Input!Q$74-1),OFFSET(ReturnData!$B$1:$B$2106,0,Solver!$C36-1)) -> 3.363657924e-06 | Q36: =+_xlfn.COVARIANCE.P(OFFSET(ReturnData!$B$1:$B$2106,0,Input!R$74-1),OFFSET(ReturnData!$B$1:$B$2106,0,Solver!$C36-1)) -> 8.064095809e-07 | R36: =+_xlfn.COVARIANCE.P(OFFSET(ReturnData!$B$1:$B$2106,0,Input!S$74-1),OFFSET(ReturnData!$B$1:$B$2106,0,Solver!$C36-1)) -> 1.581870655e-05 | S36: =+_xlfn.COVARIANCE.P(OFFSET(ReturnData!$B$1:$B$2106,0,Input!T$74-1),OFFSET(ReturnData!$B$1:$B$2106,0,Solver!$C36-1)) -> 5.290468385e-05 | T36: =+_xlfn.COVARIANCE.P(OFFSET(ReturnData!$B$1:$B$2106,0,Input!U$74-1),OFFSET(ReturnData!$B$1:$B$2106,0,Solver!$C36-1)) -> 4.455319864e-06 | U36: =+_xlfn.COVARIANCE.P(OFFSET(ReturnData!$B$1:$B$2106,0,Input!V$74-1),OFFSET(ReturnData!$B$1:$B$2106,0,Solver!$C36-1)) -> 0 | V36: =+_xlfn.COVARIANCE.P(OFFSET(ReturnData!$B$1:$B$2106,0,Input!W$74-1),OFFSET(ReturnData!$B$1:$B$2106,0,Solver!$C36-1)) -> 0 | W36: =+_xlfn.COVARIANCE.P(OFFSET(ReturnData!$B$1:$B$2106,0,Input!X$74-1),OFFSET(ReturnData!$B$1:$B$2106,0,Solver!$C36-1)) -> 0 | X36: =+_xlfn.COVARIANCE.P(OFFSET(ReturnData!$B$1:$B$2106,0,Input!Y$74-1),OFFSET(ReturnData!$B$1:$B$2106,0,Solver!$C36-1)) -> 0 | Y36: =+_xlfn.COVARIANCE.P(OFFSET(ReturnData!$B$1:$B$2106,0,Input!Z$74-1),OFFSET(ReturnData!$B$1:$B$2106,0,Solver!$C36-1)) -> 0
B37: GMRS | C37: 6 | D37: =+_xlfn.COVARIANCE.P(OFFSET(ReturnData!$B$1:$B$2106,0,Input!E$74-1),OFFSET(ReturnData!$B$1:$B$2106,0,Solver!$C37-1)) -> 4.153918521e-05 | E37: =+_xlfn.COVARIANCE.P(OFFSET(ReturnData!$B$1:$B$2106,0,Input!F$74-1),OFFSET(ReturnData!$B$1:$B$2106,0,Solver!$C37-1)) -> 2.569513108e-05 | F37: =+_xlfn.COVARIANCE.P(OFFSET(ReturnData!$B$1:$B$2106,0,Input!G$74-1),OFFSET(ReturnData!$B$1:$B$2106,0,Solver!$C37-1)) -> 2.997538514e-05 | G37: =+_xlfn.COVARIANCE.P(OFFSET(ReturnData!$B$1:$B$2106,0,Input!H$74-1),OFFSET(ReturnData!$B$1:$B$2106,0,Solver!$C37-1)) -> 4.821415032e-05 | H37: =+_xlfn.COVARIANCE.P(OFFSET(ReturnData!$B$1:$B$2106,0,Input!I$74-1),OFFSET(ReturnData!$B$1:$B$2106,0,Solver!$C37-1)) -> 9.092185582e-05 | I37: =+_xlfn.COVARIANCE.P(OFFSET(ReturnData!$B$1:$B$2106,0,Input!J$74-1),OFFSET(ReturnData!$B$1:$B$2106,0,Solver!$C37-1)) -> 0.000229775182 | J37: =+_xlfn.COVARIANCE.P(OFFSET(ReturnData!$B$1:$B$2106,0,Input!K$74-1),OFFSET(ReturnData!$B$1:$B$2106,0,Solver!$C37-1)) -> 0.0002058588662 | K37: =+_xlfn.COVARIANCE.P(OFFSET(ReturnData!$B$1:$B$2106,0,Input!L$74-1),OFFSET(ReturnData!$B$1:$B$2106,0,Solver!$C37-1)) -> 7.207463939e-05 | L37: =+_xlfn.COVARIANCE.P(OFFSET(ReturnData!$B$1:$B$2106,0,Input!M$74-1),OFFSET(ReturnData!$B$1:$B$2106,0,Solver!$C37-1)) -> 6.422152277e-05 | M37: =+_xlfn.COVARIANCE.P(OFFSET(ReturnData!$B$1:$B$2106,0,Input!N$74-1),OFFSET(ReturnData!$B$1:$B$2106,0,Solver!$C37-1)) -> 0.0001560219926 | N37: =+_xlfn.COVARIANCE.P(OFFSET(ReturnData!$B$1:$B$2106,0,Input!O$74-1),OFFSET(ReturnData!$B$1:$B$2106,0,Solver!$C37-1)) -> 3.146665843e-05 | O37: =+_xlfn.COVARIANCE.P(OFFSET(ReturnData!$B$1:$B$2106,0,Input!P$74-1),OFFSET(ReturnData!$B$1:$B$2106,0,Solver!$C37-1)) -> 2.886021291e-05 | P37: =+_xlfn.COVARIANCE.P(OFFSET(ReturnData!$B$1:$B$2106,0,Input!Q$74-1),OFFSET(ReturnData!$B$1:$B$2106,0,Solver!$C37-1)) -> 4.187775823e-06 | Q37: =+_xlfn.COVARIANCE.P(OFFSET(ReturnData!$B$1:$B$2106,0,Input!R$74-1),OFFSET(ReturnData!$B$1:$B$2106,0,Solver!$C37-1)) -> -1.944880372e-08 | R37: =+_xlfn.COVARIANCE.P(OFFSET(ReturnData!$B$1:$B$2106,0,Input!S$74-1),OFFSET(ReturnData!$B$1:$B$2106,0,Solver!$C37-1)) -> 1.958978505e-05 | S37: =+_xlfn.COVARIANCE.P(OFFSET(ReturnData!$B$1:$B$2106,0,Input!T$74-1),OFFSET(ReturnData!$B$1:$B$2106,0,Solver!$C37-1)) -> 6.051416832e-05 | T37: =+_xlfn.COVARIANCE.P(OFFSET(ReturnData!$B$1:$B$2106,0,Input!U$74-1),OFFSET(ReturnData!$B$1:$B$2106,0,Solver!$C37-1)) -> 8.745709781e-06 | U37: =+_xlfn.COVARIANCE.P(OFFSET(ReturnData!$B$1:$B$2106,0,Input!V$74-1),OFFSET(ReturnData!$B$1:$B$2106,0,Solver!$C37-1)) -> 0 | V37: =+_xlfn.COVARIANCE.P(OFFSET(ReturnData!$B$1:$B$2106,0,Input!W$74-1),OFFSET(ReturnData!$B$1:$B$2106,0,Solver!$C37-1)) -> 0 | W37: =+_xlfn.COVARIANCE.P(OFFSET(ReturnData!$B$1:$B$2106,0,Input!X$74-1),OFFSET(ReturnData!$B$1:$B$2106,0,Solver!$C37-1)) -> 0 | X37: =+_xlfn.COVARIANCE.P(OFFSET(ReturnData!$B$1:$B$2106,0,Input!Y$74-1),OFFSET(ReturnData!$B$1:$B$2106,0,Solver!$C37-1)) -> 0 | Y37: =+_xlfn.COVARIANCE.P(OFFSET(ReturnData!$B$1:$B$2106,0,Input!Z$74-1),OFFSET(ReturnData!$B$1:$B$2106,0,Solver!$C37-1)) -> 0
B38: GMRSE | C38: 7 | D38: =+_xlfn.COVARIANCE.P(OFFSET(ReturnData!$B$1:$B$2106,0,Input!E$74-1),OFFSET(ReturnData!$B$1:$B$2106,0,Solver!$C38-1)) -> 4.598540135e-05 | E38: =+_xlfn.COVARIANCE.P(OFFSET(ReturnData!$B$1:$B$2106,0,Input!F$74-1),OFFSET(ReturnData!$B$1:$B$2106,0,Solver!$C38-1)) -> 3.237886789e-05 | F38: =+_xlfn.COVARIANCE.P(OFFSET(ReturnData!$B$1:$B$2106,0,Input!G$74-1),OFFSET(ReturnData!$B$1:$B$2106,0,Solver!$C38-1)) -> 3.703871214e-05 | G38: =+_xlfn.COVARIANCE.P(OFFSET(ReturnData!$B$1:$B$2106,0,Input!H$74-1),OFFSET(ReturnData!$B$1:$B$2106,0,Solver!$C38-1)) -> 4.999909541e-05 | H38: =+_xlfn.COVARIANCE.P(OFFSET(ReturnData!$B$1:$B$2106,0,Input!I$74-1),OFFSET(ReturnData!$B$1:$B$2106,0,Solver!$C38-1)) -> 9.673236292e-05 | I38: =+_xlfn.COVARIANCE.P(OFFSET(ReturnData!$B$1:$B$2106,0,Input!J$74-1),OFFSET(ReturnData!$B$1:$B$2106,0,Solver!$C38-1)) -> 0.0002058588662 | J38: =+_xlfn.COVARIANCE.P(OFFSET(ReturnData!$B$1:$B$2106,0,Input!K$74-1),OFFSET(ReturnData!$B$1:$B$2106,0,Solver!$C38-1)) -> 0.0002872132775 | K38: =+_xlfn.COVARIANCE.P(OFFSET(ReturnData!$B$1:$B$2106,0,Input!L$74-1),OFFSET(ReturnData!$B$1:$B$2106,0,Solver!$C38-1)) -> 0.0001232411752 | L38: =+_xlfn.COVARIANCE.P(OFFSET(ReturnData!$B$1:$B$2106,0,Input!M$74-1),OFFSET(ReturnData!$B$1:$B$2106,0,Solver!$C38-1)) -> 6.930905396e-05 | M38: =+_xlfn.COVARIANCE.P(OFFSET(ReturnData!$B$1:$B$2106,0,Input!N$74-1),OFFSET(ReturnData!$B$1:$B$2106,0,Solver!$C38-1)) -> 0.0001666356357 | N38: =+_xlfn.COVARIANCE.P(OFFSET(ReturnData!$B$1:$B$2106,0,Input!O$74-1),OFFSET(ReturnData!$B$1:$B$2106,0,Solver!$C38-1)) -> 2.951479077e-05 | O38: =+_xlfn.COVARIANCE.P(OFFSET(ReturnData!$B$1:$B$2106,0,Input!P$74-1),OFFSET(ReturnData!$B$1:$B$2106,0,Solver!$C38-1)) -> 3.563015555e-05 | P38: =+_xlfn.COVARIANCE.P(OFFSET(ReturnData!$B$1:$B$2106,0,Input!Q$74-1),OFFSET(ReturnData!$B$1:$B$2106,0,Solver!$C38-1)) -> 5.246449587e-06 | Q38: =+_xlfn.COVARIANCE.P(OFFSET(ReturnData!$B$1:$B$2106,0,Input!R$74-1),OFFSET(ReturnData!$B$1:$B$2106,0,Solver!$C38-1)) -> -8.964405644e-09 | R38: =+_xlfn.COVARIANCE.P(OFFSET(ReturnData!$B$1:$B$2106,0,Input!S$74-1),OFFSET(ReturnData!$B$1:$B$2106,0,Solver!$C38-1)) -> 2.400937763e-05 | S38: =+_xlfn.COVARIANCE.P(OFFSET(ReturnData!$B$1:$B$2106,0,Input!T$74-1),OFFSET(ReturnData!$B$1:$B$2106,0,Solver!$C38-1)) -> 7.951627827e-05 | T38: =+_xlfn.COVARIANCE.P(OFFSET(ReturnData!$B$1:$B$2106,0,Input!U$74-1),OFFSET(ReturnData!$B$1:$B$2106,0,Solver!$C38-1)) -> 1.278396456e-05 | U38: =+_xlfn.COVARIANCE.P(OFFSET(ReturnData!$B$1:$B$2106,0,Input!V$74-1),OFFSET(ReturnData!$B$1:$B$2106,0,Solver!$C38-1)) -> 0 | V38: =+_xlfn.COVARIANCE.P(OFFSET(ReturnData!$B$1:$B$2106,0,Input!W$74-1),OFFSET(ReturnData!$B$1:$B$2106,0,Solver!$C38-1)) -> 0 | W38: =+_xlfn.COVARIANCE.P(OFFSET(ReturnData!$B$1:$B$2106,0,Input!X$74-1),OFFSET(ReturnData!$B$1:$B$2106,0,Solver!$C38-1)) -> 0 | X38: =+_xlfn.COVARIANCE.P(OFFSET(ReturnData!$B$1:$B$2106,0,Input!Y$74-1),OFFSET(ReturnData!$B$1:$B$2106,0,Solver!$C38-1)) -> 0 | Y38: =+_xlfn.COVARIANCE.P(OFFSET(ReturnData!$B$1:$B$2106,0,Input!Z$74-1),OFFSET(ReturnData!$B$1:$B$2106,0,Solver!$C38-1)) -> 0
B39: MYRS | C39: 8 | D39: =+_xlfn.COVARIANCE.P(OFFSET(ReturnData!$B$1:$B$2106,0,Input!E$74-1),OFFSET(ReturnData!$B$1:$B$2106,0,Solver!$C39-1)) -> 2.201136832e-05 | E39: =+_xlfn.COVARIANCE.P(OFFSET(ReturnData!$B$1:$B$2106,0,Input!F$74-1),OFFSET(ReturnData!$B$1:$B$2106,0,Solver!$C39-1)) -> 2.09970287e-05 | F39: =+_xlfn.COVARIANCE.P(OFFSET(ReturnData!$B$1:$B$2106,0,Input!G$74-1),OFFSET(ReturnData!$B$1:$B$2106,0,Solver!$C39-1)) -> 2.304470081e-05 | G39: =+_xlfn.COVARIANCE.P(OFFSET(ReturnData!$B$1:$B$2106,0,Input!H$74-1),OFFSET(ReturnData!$B$1:$B$2106,0,Solver!$C39-1)) -> 3.527967735e-05 | H39: =+_xlfn.COVARIANCE.P(OFFSET(ReturnData!$B$1:$B$2106,0,Input!I$74-1),OFFSET(ReturnData!$B$1:$B$2106,0,Solver!$C39-1)) -> 3.969891673e-05 | I39: =+_xlfn.COVARIANCE.P(OFFSET(ReturnData!$B$1:$B$2106,0,Input!J$74-1),OFFSET(ReturnData!$B$1:$B$2106,0,Solver!$C39-1)) -> 7.207463939e-05 | J39: =+_xlfn.COVARIANCE.P(OFFSET(ReturnData!$B$1:$B$2106,0,Input!K$74-1),OFFSET(ReturnData!$B$1:$B$2106,0,Solver!$C39-1)) -> 0.0001232411752 | K39: =+_xlfn.COVARIANCE.P(OFFSET(ReturnData!$B$1:$B$2106,0,Input!L$74-1),OFFSET(ReturnData!$B$1:$B$2106,0,Solver!$C39-1)) -> 0.0001528760737 | L39: =+_xlfn.COVARIANCE.P(OFFSET(ReturnData!$B$1:$B$2106,0,Input!M$74-1),OFFSET(ReturnData!$B$1:$B$2106,0,Solver!$C39-1)) -> 2.920281102e-05 | M39: =+_xlfn.COVARIANCE.P(OFFSET(ReturnData!$B$1:$B$2106,0,Input!N$74-1),OFFSET(ReturnData!$B$1:$B$2106,0,Solver!$C39-1)) -> 9.280428244e-05 | N39: =+_xlfn.COVARIANCE.P(OFFSET(ReturnData!$B$1:$B$2106,0,Input!O$74-1),OFFSET(ReturnData!$B$1:$B$2106,0,Solver!$C39-1)) -> 1.46853574e-05 | O39: =+_xlfn.COVARIANCE.P(OFFSET(ReturnData!$B$1:$B$2106,0,Input!P$74-1),OFFSET(ReturnData!$B$1:$B$2106,0,Solver!$C39-1)) -> 2.110497644e-05 | P39: =+_xlfn.COVARIANCE.P(OFFSET(ReturnData!$B$1:$B$2106,0,Input!Q$74-1),OFFSET(ReturnData!$B$1:$B$2106,0,Solver!$C39-1)) -> 4.474907067e-06 | Q39: =+_xlfn.COVARIANCE.P(OFFSET(ReturnData!$B$1:$B$2106,0,Input!R$74-1),OFFSET(ReturnData!$B$1:$B$2106,0,Solver!$C39-1)) -> 1.947161556e-07 | R39: =+_xlfn.COVARIANCE.P(OFFSET(ReturnData!$B$1:$B$2106,0,Input!S$74-1),OFFSET(ReturnData!$B$1:$B$2106,0,Solver!$C39-1)) -> 1.34092379e-05 | S39: =+_xlfn.COVARIANCE.P(OFFSET(ReturnData!$B$1:$B$2106,0,Input!T$74-1),OFFSET(ReturnData!$B$1:$B$2106,0,Solver!$C39-1)) -> 4.990535832e-05 | T39: =+_xlfn.COVARIANCE.P(OFFSET(ReturnData!$B$1:$B$2106,0,Input!U$74-1),OFFSET(ReturnData!$B$1:$B$2106,0,Solver!$C39-1)) -> 8.564406441e-06 | U39: =+_xlfn.COVARIANCE.P(OFFSET(ReturnData!$B$1:$B$2106,0,Input!V$74-1),OFFSET(ReturnData!$B$1:$B$2106,0,Solver!$C39-1)) -> 0 | V39: =+_xlfn.COVARIANCE.P(OFFSET(ReturnData!$B$1:$B$2106,0,Input!W$74-1),OFFSET(ReturnData!$B$1:$B$2106,0,Solver!$C39-1)) -> 0 | W39: =+_xlfn.COVARIANCE.P(OFFSET(ReturnData!$B$1:$B$2106,0,Input!X$74-1),OFFSET(ReturnData!$B$1:$B$2106,0,Solver!$C39-1)) -> 0 | X39: =+_xlfn.COVARIANCE.P(OFFSET(ReturnData!$B$1:$B$2106,0,Input!Y$74-1),OFFSET(ReturnData!$B$1:$B$2106,0,Solver!$C39-1)) -> 0 | Y39: =+_xlfn.COVARIANCE.P(OFFSET(ReturnData!$B$1:$B$2106,0,Input!Z$74-1),OFFSET(ReturnData!$B$1:$B$2106,0,Solver!$C39-1)) -> 0
B40: UIS | C40: 9 | D40: =+_xlfn.COVARIANCE.P(OFFSET(ReturnData!$B$1:$B$2106,0,Input!E$74-1),OFFSET(ReturnData!$B$1:$B$2106,0,Solver!$C40-1)) -> 1.908567763e-05 | E40: =+_xlfn.COVARIANCE.P(OFFSET(ReturnData!$B$1:$B$2106,0,Input!F$74-1),OFFSET(ReturnData!$B$1:$B$2106,0,Solver!$C40-1)) -> 1.43450574e-05 | F40: =+_xlfn.COVARIANCE.P(OFFSET(ReturnData!$B$1:$B$2106,0,Input!G$74-1),OFFSET(ReturnData!$B$1:$B$2106,0,Solver!$C40-1)) -> 1.942696928e-05 | G40: =+_xlfn.COVARIANCE.P(OFFSET(ReturnData!$B$1:$B$2106,0,Input!H$74-1),OFFSET(ReturnData!$B$1:$B$2106,0,Solver!$C40-1)) -> 2.732107776e-05 | H40: =+_xlfn.COVARIANCE.P(OFFSET(ReturnData!$B$1:$B$2106,0,Input!I$74-1),OFFSET(ReturnData!$B$1:$B$2106,0,Solver!$C40-1)) -> 4.270074093e-05 | I40: =+_xlfn.COVARIANCE.P(OFFSET(ReturnData!$B$1:$B$2106,0,Input!J$74-1),OFFSET(ReturnData!$B$1:$B$2106,0,Solver!$C40-1)) -> 6.422152277e-05 | J40: =+_xlfn.COVARIANCE.P(OFFSET(ReturnData!$B$1:$B$2106,0,Input!K$74-1),OFFSET(ReturnData!$B$1:$B$2106,0,Solver!$C40-1)) -> 6.930905396e-05 | K40: =+_xlfn.COVARIANCE.P(OFFSET(ReturnData!$B$1:$B$2106,0,Input!L$74-1),OFFSET(ReturnData!$B$1:$B$2106,0,Solver!$C40-1)) -> 2.920281102e-05 | L40: =+_xlfn.COVARIANCE.P(OFFSET(ReturnData!$B$1:$B$2106,0,Input!M$74-1),OFFSET(ReturnData!$B$1:$B$2106,0,Solver!$C40-1)) -> 4.650970806e-05 | M40: =+_xlfn.COVARIANCE.P(OFFSET(ReturnData!$B$1:$B$2106,0,Input!N$74-1),OFFSET(ReturnData!$B$1:$B$2106,0,Solver!$C40-1)) -> 9.579278993e-05 | N40: =+_xlfn.COVARIANCE.P(OFFSET(ReturnData!$B$1:$B$2106,0,Input!O$74-1),OFFSET(ReturnData!$B$1:$B$2106,0,Solver!$C40-1)) -> 2.434710073e-05 | O40: =+_xlfn.COVARIANCE.P(OFFSET(ReturnData!$B$1:$B$2106,0,Input!P$74-1),OFFSET(ReturnData!$B$1:$B$2106,0,Solver!$C40-1)) -> 2.77744382e-05 | P40: =+_xlfn.COVARIANCE.P(OFFSET(ReturnData!$B$1:$B$2106,0,Input!Q$74-1),OFFSET(ReturnData!$B$1:$B$2106,0,Solver!$C40-1)) -> 6.26498169e-06 | Q40: =+_xlfn.COVARIANCE.P(OFFSET(ReturnData!$B$1:$B$2106,0,Input!R$74-1),OFFSET(ReturnData!$B$1:$B$2106,0,Solver!$C40-1)) -> 1.026154391e-06 | R40: =+_xlfn.COVARIANCE.P(OFFSET(ReturnData!$B$1:$B$2106,0,Input!S$74-1),OFFSET(ReturnData!$B$1:$B$2106,0,Solver!$C40-1)) -> 8.481810828e-06 | S40: =+_xlfn.COVARIANCE.P(OFFSET(ReturnData!$B$1:$B$2106,0,Input!T$74-1),OFFSET(ReturnData!$B$1:$B$2106,0,Solver!$C40-1)) -> 3.430622352e-05 | T40: =+_xlfn.COVARIANCE.P(OFFSET(ReturnData!$B$1:$B$2106,0,Input!U$74-1),OFFSET(ReturnData!$B$1:$B$2106,0,Solver!$C40-1)) -> 1.983190968e-06 | U40: =+_xlfn.COVARIANCE.P(OFFSET(ReturnData!$B$1:$B$2106,0,Input!V$74-1),OFFSET(ReturnData!$B$1:$B$2106,0,Solver!$C40-1)) -> 0 | V40: =+_xlfn.COVARIANCE.P(OFFSET(ReturnData!$B$1:$B$2106,0,Input!W$74-1),OFFSET(ReturnData!$B$1:$B$2106,0,Solver!$C40-1)) -> 0 | W40: =+_xlfn.COVARIANCE.P(OFFSET(ReturnData!$B$1:$B$2106,0,Input!X$74-1),OFFSET(ReturnData!$B$1:$B$2106,0,Solver!$C40-1)) -> 0 | X40: =+_xlfn.COVARIANCE.P(OFFSET(ReturnData!$B$1:$B$2106,0,Input!Y$74-1),OFFSET(ReturnData!$B$1:$B$2106,0,Solver!$C40-1)) -> 0 | Y40: =+_xlfn.COVARIANCE.P(OFFSET(ReturnData!$B$1:$B$2106,0,Input!Z$74-1),OFFSET(ReturnData!$B$1:$B$2106,0,Solver!$C40-1)) -> 0
B41: UIS-SPXL-TMF | C41: 10 | D41: =+_xlfn.COVARIANCE.P(OFFSET(ReturnData!$B$1:$B$2106,0,Input!E$74-1),OFFSET(ReturnData!$B$1:$B$2106,0,Solver!$C41-1)) -> 4.343224939e-05 | E41: =+_xlfn.COVARIANCE.P(OFFSET(ReturnData!$B$1:$B$2106,0,Input!F$74-1),OFFSET(ReturnData!$B$1:$B$2106,0,Solver!$C41-1)) -> 3.657238812e-05 | F41: =+_xlfn.COVARIANCE.P(OFFSET(ReturnData!$B$1:$B$2106,0,Input!G$74-1),OFFSET(ReturnData!$B$1:$B$2106,0,Solver!$C41-1)) -> 4.678763003e-05 | G41: =+_xlfn.COVARIANCE.P(OFFSET(ReturnData!$B$1:$B$2106,0,Input!H$74-1),OFFSET(ReturnData!$B$1:$B$2106,0,Solver!$C41-1)) -> 8.210993212e-05 | H41: =+_xlfn.COVARIANCE.P(OFFSET(ReturnData!$B$1:$B$2106,0,Input!I$74-1),OFFSET(ReturnData!$B$1:$B$2106,0,Solver!$C41-1)) -> 9.215179472e-05 | I41: =+_xlfn.COVARIANCE.P(OFFSET(ReturnData!$B$1:$B$2106,0,Input!J$74-1),OFFSET(ReturnData!$B$1:$B$2106,0,Solver!$C41-1)) -> 0.0001560219926 | J41: =+_xlfn.COVARIANCE.P(OFFSET(ReturnData!$B$1:$B$2106,0,Input!K$74-1),OFFSET(ReturnData!$B$1:$B$2106,0,Solver!$C41-1)) -> 0.0001666356357 | K41: =+_xlfn.COVARIANCE.P(OFFSET(ReturnData!$B$1:$B$2106,0,Input!L$74-1),OFFSET(ReturnData!$B$1:$B$2106,0,Solver!$C41-1)) -> 9.280428244e-05 | L41: =+_xlfn.COVARIANCE.P(OFFSET(ReturnData!$B$1:$B$2106,0,Input!M$74-1),OFFSET(ReturnData!$B$1:$B$2106,0,Solver!$C41-1)) -> 9.579278993e-05 | M41: =+_xlfn.COVARIANCE.P(OFFSET(ReturnData!$B$1:$B$2106,0,Input!N$74-1),OFFSET(ReturnData!$B$1:$B$2106,0,Solver!$C41-1)) -> 0.0004311032873 | N41: =+_xlfn.COVARIANCE.P(OFFSET(ReturnData!$B$1:$B$2106,0,Input!O$74-1),OFFSET(ReturnData!$B$1:$B$2106,0,Solver!$C41-1)) -> 9.377122014e-05 | O41: =+_xlfn.COVARIANCE.P(OFFSET(ReturnData!$B$1:$B$2106,0,Input!P$74-1),OFFSET(ReturnData!$B$1:$B$2106,0,Solver!$C41-1)) -> 4.743063201e-05 | P41: =+_xlfn.COVARIANCE.P(OFFSET(ReturnData!$B$1:$B$2106,0,Input!Q$74-1),OFFSET(ReturnData!$B$1:$B$2106,0,Solver!$C41-1)) -> 1.278905339e-05 | Q41: =+_xlfn.COVARIANCE.P(OFFSET(ReturnData!$B$1:$B$2106,0,Input!R$74-1),OFFSET(ReturnData!$B$1:$B$2106,0,Solver!$C41-1)) -> 4.476819117e-07 | R41: =+_xlfn.COVARIANCE.P(OFFSET(ReturnData!$B$1:$B$2106,0,Input!S$74-1),OFFSET(ReturnData!$B$1:$B$2106,0,Solver!$C41-1)) -> 2.831338939e-05 | S41: =+_xlfn.COVARIANCE.P(OFFSET(ReturnData!$B$1:$B$2106,0,Input!T$74-1),OFFSET(ReturnData!$B$1:$B$2106,0,Solver!$C41-1)) -> 9.990389951e-05 | T41: =+_xlfn.COVARIANCE.P(OFFSET(ReturnData!$B$1:$B$2106,0,Input!U$74-1),OFFSET(ReturnData!$B$1:$B$2106,0,Solver!$C41-1)) -> 6.00801806e-06 | U41: =+_xlfn.COVARIANCE.P(OFFSET(ReturnData!$B$1:$B$2106,0,Input!V$74-1),OFFSET(ReturnData!$B$1:$B$2106,0,Solver!$C41-1)) -> 0 | V41: =+_xlfn.COVARIANCE.P(OFFSET(ReturnData!$B$1:$B$2106,0,Input!W$74-1),OFFSET(ReturnData!$B$1:$B$2106,0,Solver!$C41-1)) -> 0 | W41: =+_xlfn.COVARIANCE.P(OFFSET(ReturnData!$B$1:$B$2106,0,Input!X$74-1),OFFSET(ReturnData!$B$1:$B$2106,0,Solver!$C41-1)) -> 0 | X41: =+_xlfn.COVARIANCE.P(OFFSET(ReturnData!$B$1:$B$2106,0,Input!Y$74-1),OFFSET(ReturnData!$B$1:$B$2106,0,Solver!$C41-1)) -> 0 | Y41: =+_xlfn.COVARIANCE.P(OFFSET(ReturnData!$B$1:$B$2106,0,Input!Z$74-1),OFFSET(ReturnData!$B$1:$B$2106,0,Solver!$C41-1)) -> 0
B42: SPY | C42: 11 | D42: =+_xlfn.COVARIANCE.P(OFFSET(ReturnData!$B$1:$B$2106,0,Input!E$74-1),OFFSET(ReturnData!$B$1:$B$2106,0,Solver!$C42-1)) -> 4.727524841e-06 | E42: =+_xlfn.COVARIANCE.P(OFFSET(ReturnData!$B$1:$B$2106,0,Input!F$74-1),OFFSET(ReturnData!$B$1:$B$2106,0,Solver!$C42-1)) -> 6.339750051e-06 | F42: =+_xlfn.COVARIANCE.P(OFFSET(ReturnData!$B$1:$B$2106,0,Input!G$74-1),OFFSET(ReturnData!$B$1:$B$2106,0,Solver!$C42-1)) -> 1.061665561e-05 | G42: =+_xlfn.COVARIANCE.P(OFFSET(ReturnData!$B$1:$B$2106,0,Input!H$74-1),OFFSET(ReturnData!$B$1:$B$2106,0,Solver!$C42-1)) -> 2.720554626e-05 | H42: =+_xlfn.COVARIANCE.P(OFFSET(ReturnData!$B$1:$B$2106,0,Input!I$74-1),OFFSET(ReturnData!$B$1:$B$2106,0,Solver!$C42-1)) -> 2.477279472e-05 | I42: =+_xlfn.COVARIANCE.P(OFFSET(ReturnData!$B$1:$B$2106,0,Input!J$74-1),OFFSET(ReturnData!$B$1:$B$2106,0,Solver!$C42-1)) -> 3.146665843e-05 | J42: =+_xlfn.COVARIANCE.P(OFFSET(ReturnData!$B$1:$B$2106,0,Input!K$74-1),OFFSET(ReturnData!$B$1:$B$2106,0,Solver!$C42-1)) -> 2.951479077e-05 | K42: =+_xlfn.COVARIANCE.P(OFFSET(ReturnData!$B$1:$B$2106,0,Input!L$74-1),OFFSET(ReturnData!$B$1:$B$2106,0,Solver!$C42-1)) -> 1.46853574e-05 | L42: =+_xlfn.COVARIANCE.P(OFFSET(ReturnData!$B$1:$B$2106,0,Input!M$74-1),OFFSET(ReturnData!$B$1:$B$2106,0,Solver!$C42-1)) -> 2.434710073e-05 | M42: =+_xlfn.COVARIANCE.P(OFFSET(ReturnData!$B$1:$B$2106,0,Input!N$74-1),OFFSET(ReturnData!$B$1:$B$2106,0,Solver!$C42-1)) -> 9.377122014e-05 | N42: =+_xlfn.COVARIANCE.P(OFFSET(ReturnData!$B$1:$B$2106,0,Input!O$74-1),OFFSET(ReturnData!$B$1:$B$2106,0,Solver!$C42-1)) -> 0.0001881808938 | O42: =+_xlfn.COVARIANCE.P(OFFSET(ReturnData!$B$1:$B$2106,0,Input!P$74-1),OFFSET(ReturnData!$B$1:$B$2106,0,Solver!$C42-1)) -> -6.287122869e-05 | P42: =+_xlfn.COVARIANCE.P(OFFSET(ReturnData!$B$1:$B$2106,0,Input!Q$74-1),OFFSET(ReturnData!$B$1:$B$2106,0,Solver!$C42-1)) -> -4.807965683e-06 | Q42: =+_xlfn.COVARIANCE.P(OFFSET(ReturnData!$B$1:$B$2106,0,Input!R$74-1),OFFSET(ReturnData!$B$1:$B$2106,0,Solver!$C42-1)) -> -4.577035857e-06 | R42: =+_xlfn.COVARIANCE.P(OFFSET(ReturnData!$B$1:$B$2106,0,Input!S$74-1),OFFSET(ReturnData!$B$1:$B$2106,0,Solver!$C42-1)) -> 1.738281638e-06 | S42: =+_xlfn.COVARIANCE.P(OFFSET(ReturnData!$B$1:$B$2106,0,Input!T$74-1),OFFSET(ReturnData!$B$1:$B$2106,0,Solver!$C42-1)) -> 5.629618175e-05 | T42: =+_xlfn.COVARIANCE.P(OFFSET(ReturnData!$B$1:$B$2106,0,Input!U$74-1),OFFSET(ReturnData!$B$1:$B$2106,0,Solver!$C42-1)) -> -7.806707581e-06 | U42: =+_xlfn.COVARIANCE.P(OFFSET(ReturnData!$B$1:$B$2106,0,Input!V$74-1),OFFSET(ReturnData!$B$1:$B$2106,0,Solver!$C42-1)) -> 0 | V42: =+_xlfn.COVARIANCE.P(OFFSET(ReturnData!$B$1:$B$2106,0,Input!W$74-1),OFFSET(ReturnData!$B$1:$B$2106,0,Solver!$C42-1)) -> 0 | W42: =+_xlfn.COVARIANCE.P(OFFSET(ReturnData!$B$1:$B$2106,0,Input!X$74-1),OFFSET(ReturnData!$B$1:$B$2106,0,Solver!$C42-1)) -> 0 | X42: =+_xlfn.COVARIANCE.P(OFFSET(ReturnData!$B$1:$B$2106,0,Input!Y$74-1),OFFSET(ReturnData!$B$1:$B$2106,0,Solver!$C42-1)) -> 0 | Y42: =+_xlfn.COVARIANCE.P(OFFSET(ReturnData!$B$1:$B$2106,0,Input!Z$74-1),OFFSET(ReturnData!$B$1:$B$2106,0,Solver!$C42-1)) -> 0
B43: TLT | C43: 12 | D43: =+_xlfn.COVARIANCE.P(OFFSET(ReturnData!$B$1:$B$2106,0,Input!E$74-1),OFFSET(ReturnData!$B$1:$B$2106,0,Solver!$C43-1)) -> 1.282856689e-05 | E43: =+_xlfn.COVARIANCE.P(OFFSET(ReturnData!$B$1:$B$2106,0,Input!F$74-1),OFFSET(ReturnData!$B$1:$B$2106,0,Solver!$C43-1)) -> 1.189398452e-05 | F43: =+_xlfn.COVARIANCE.P(OFFSET(ReturnData!$B$1:$B$2106,0,Input!G$74-1),OFFSET(ReturnData!$B$1:$B$2106,0,Solver!$C43-1)) -> 1.498968866e-05 | G43: =+_xlfn.COVARIANCE.P(OFFSET(ReturnData!$B$1:$B$2106,0,Input!H$74-1),OFFSET(ReturnData!$B$1:$B$2106,0,Solver!$C43-1)) -> 1.48426724e-05 | H43: =+_xlfn.COVARIANCE.P(OFFSET(ReturnData!$B$1:$B$2106,0,Input!I$74-1),OFFSET(ReturnData!$B$1:$B$2106,0,Solver!$C43-1)) -> 1.242553847e-05 | I43: =+_xlfn.COVARIANCE.P(OFFSET(ReturnData!$B$1:$B$2106,0,Input!J$74-1),OFFSET(ReturnData!$B$1:$B$2106,0,Solver!$C43-1)) -> 2.886021291e-05 | J43: =+_xlfn.COVARIANCE.P(OFFSET(ReturnData!$B$1:$B$2106,0,Input!K$74-1),OFFSET(ReturnData!$B$1:$B$2106,0,Solver!$C43-1)) -> 3.563015555e-05 | K43: =+_xlfn.COVARIANCE.P(OFFSET(ReturnData!$B$1:$B$2106,0,Input!L$74-1),OFFSET(ReturnData!$B$1:$B$2106,0,Solver!$C43-1)) -> 2.110497644e-05 | L43: =+_xlfn.COVARIANCE.P(OFFSET(ReturnData!$B$1:$B$2106,0,Input!M$74-1),OFFSET(ReturnData!$B$1:$B$2106,0,Solver!$C43-1)) -> 2.77744382e-05 | M43: =+_xlfn.COVARIANCE.P(OFFSET(ReturnData!$B$1:$B$2106,0,Input!N$74-1),OFFSET(ReturnData!$B$1:$B$2106,0,Solver!$C43-1)) -> 4.743063201e-05 | N43: =+_xlfn.COVARIANCE.P(OFFSET(ReturnData!$B$1:$B$2106,0,Input!O$74-1),OFFSET(ReturnData!$B$1:$B$2106,0,Solver!$C43-1)) -> -6.287122869e-05 | O43: =+_xlfn.COVARIANCE.P(OFFSET(ReturnData!$B$1:$B$2106,0,Input!P$74-1),OFFSET(ReturnData!$B$1:$B$2106,0,Solver!$C43-1)) -> 9.905993147e-05 | P43: =+_xlfn.COVARIANCE.P(OFFSET(ReturnData!$B$1:$B$2106,0,Input!Q$74-1),OFFSET(ReturnData!$B$1:$B$2106,0,Solver!$C43-1)) -> 1.918775191e-05 | Q43: =+_xlfn.COVARIANCE.P(OFFSET(ReturnData!$B$1:$B$2106,0,Input!R$74-1),OFFSET(ReturnData!$B$1:$B$2106,0,Solver!$C43-1)) -> 4.501907066e-06 | R43: =+_xlfn.COVARIANCE.P(OFFSET(ReturnData!$B$1:$B$2106,0,Input!S$74-1),OFFSET(ReturnData!$B$1:$B$2106,0,Solver!$C43-1)) -> 1.516811291e-05 | S43: =+_xlfn.COVARIANCE.P(OFFSET(ReturnData!$B$1:$B$2106,0,Input!T$74-1),OFFSET(ReturnData!$B$1:$B$2106,0,Solver!$C43-1)) -> -3.028576869e-06 | T43: =+_xlfn.COVARIANCE.P(OFFSET(ReturnData!$B$1:$B$2106,0,Input!U$74-1),OFFSET(ReturnData!$B$1:$B$2106,0,Solver!$C43-1)) -> 3.846820155e-06 | U43: =+_xlfn.COVARIANCE.P(OFFSET(ReturnData!$B$1:$B$2106,0,Input!V$74-1),OFFSET(ReturnData!$B$1:$B$2106,0,Solver!$C43-1)) -> 0 | V43: =+_xlfn.COVARIANCE.P(OFFSET(ReturnData!$B$1:$B$2106,0,Input!W$74-1),OFFSET(ReturnData!$B$1:$B$2106,0,Solver!$C43-1)) -> 0 | W43: =+_xlfn.COVARIANCE.P(OFFSET(ReturnData!$B$1:$B$2106,0,Input!X$74-1),OFFSET(ReturnData!$B$1:$B$2106,0,Solver!$C43-1)) -> 0 | X43: =+_xlfn.COVARIANCE.P(OFFSET(ReturnData!$B$1:$B$2106,0,Input!Y$74-1),OFFSET(ReturnData!$B$1:$B$2106,0,Solver!$C43-1)) -> 0 | Y43: =+_xlfn.COVARIANCE.P(OFFSET(ReturnData!$B$1:$B$2106,0,Input!Z$74-1),OFFSET(ReturnData!$B$1:$B$2106,0,Solver!$C43-1)) -> 0
B44: AGG | C44: 13 | D44: =+_xlfn.COVARIANCE.P(OFFSET(ReturnData!$B$1:$B$2106,0,Input!E$74-1),OFFSET(ReturnData!$B$1:$B$2106,0,Solver!$C44-1)) -> 3.724165145e-06 | E44: =+_xlfn.COVARIANCE.P(OFFSET(ReturnData!$B$1:$B$2106,0,Input!F$74-1),OFFSET(ReturnData!$B$1:$B$2106,0,Solver!$C44-1)) -> 3.156868123e-06 | F44: =+_xlfn.COVARIANCE.P(OFFSET(ReturnData!$B$1:$B$2106,0,Input!G$74-1),OFFSET(ReturnData!$B$1:$B$2106,0,Solver!$C44-1)) -> 4.527766935e-06 | G44: =+_xlfn.COVARIANCE.P(OFFSET(ReturnData!$B$1:$B$2106,0,Input!H$74-1),OFFSET(ReturnData!$B$1:$B$2106,0,Solver!$C44-1)) -> 4.066521701e-06 | H44: =+_xlfn.COVARIANCE.P(OFFSET(ReturnData!$B$1:$B$2106,0,Input!I$74-1),OFFSET(ReturnData!$B$1:$B$2106,0,Solver!$C44-1)) -> 3.363657924e-06 | I44: =+_xlfn.COVARIANCE.P(OFFSET(ReturnData!$B$1:$B$2106,0,Input!J$74-1),OFFSET(ReturnData!$B$1:$B$2106,0,Solver!$C44-1)) -> 4.187775823e-06 | J44: =+_xlfn.COVARIANCE.P(OFFSET(ReturnData!$B$1:$B$2106,0,Input!K$74-1),OFFSET(ReturnData!$B$1:$B$2106,0,Solver!$C44-1)) -> 5.246449587e-06 | K44: =+_xlfn.COVARIANCE.P(OFFSET(ReturnData!$B$1:$B$2106,0,Input!L$74-1),OFFSET(ReturnData!$B$1:$B$2106,0,Solver!$C44-1)) -> 4.474907067e-06 | L44: =+_xlfn.COVARIANCE.P(OFFSET(ReturnData!$B$1:$B$2106,0,Input!M$74-1),OFFSET(ReturnData!$B$1:$B$2106,0,Solver!$C44-1)) -> 6.26498169e-06 | M44: =+_xlfn.COVARIANCE.P(OFFSET(ReturnData!$B$1:$B$2106,0,Input!N$74-1),OFFSET(ReturnData!$B$1:$B$2106,0,Solver!$C44-1)) -> 1.278905339e-05 | N44: =+_xlfn.COVARIANCE.P(OFFSET(ReturnData!$B$1:$B$2106,0,Input!O$74-1),OFFSET(ReturnData!$B$1:$B$2106,0,Solver!$C44-1)) -> -4.807965683e-06 | O44: =+_xlfn.COVARIANCE.P(OFFSET(ReturnData!$B$1:$B$2106,0,Input!P$74-1),OFFSET(ReturnData!$B$1:$B$2106,0,Solver!$C44-1)) -> 1.918775191e-05 | P44: =+_xlfn.COVARIANCE.P(OFFSET(ReturnData!$B$1:$B$2106,0,Input!Q$74-1),OFFSET(ReturnData!$B$1:$B$2106,0,Solver!$C44-1)) -> 1.176082938e-05 | Q44: =+_xlfn.COVARIANCE.P(OFFSET(ReturnData!$B$1:$B$2106,0,Input!R$74-1),OFFSET(ReturnData!$B$1:$B$2106,0,Solver!$C44-1)) -> 1.189500099e-06 | R44: =+_xlfn.COVARIANCE.P(OFFSET(ReturnData!$B$1:$B$2106,0,Input!S$74-1),OFFSET(ReturnData!$B$1:$B$2106,0,Solver!$C44-1)) -> 6.659952824e-06 | S44: =+_xlfn.COVARIANCE.P(OFFSET(ReturnData!$B$1:$B$2106,0,Input!T$74-1),OFFSET(ReturnData!$B$1:$B$2106,0,Solver!$C44-1)) -> 9.844515501e-07 | T44: =+_xlfn.COVARIANCE.P(OFFSET(ReturnData!$B$1:$B$2106,0,Input!U$74-1),OFFSET(ReturnData!$B$1:$B$2106,0,Solver!$C44-1)) -> -2.136079222e-07 | U44: =+_xlfn.COVARIANCE.P(OFFSET(ReturnData!$B$1:$B$2106,0,Input!V$74-1),OFFSET(ReturnData!$B$1:$B$2106,0,Solver!$C44-1)) -> 0 | V44: =+_xlfn.COVARIANCE.P(OFFSET(ReturnData!$B$1:$B$2106,0,Input!W$74-1),OFFSET(ReturnData!$B$1:$B$2106,0,Solver!$C44-1)) -> 0 | W44: =+_xlfn.COVARIANCE.P(OFFSET(ReturnData!$B$1:$B$2106,0,Input!X$74-1),OFFSET(ReturnData!$B$1:$B$2106,0,Solver!$C44-1)) -> 0 | X44: =+_xlfn.COVARIANCE.P(OFFSET(ReturnData!$B$1:$B$2106,0,Input!Y$74-1),OFFSET(ReturnData!$B$1:$B$2106,0,Solver!$C44-1)) -> 0 | Y44: =+_xlfn.COVARIANCE.P(OFFSET(ReturnData!$B$1:$B$2106,0,Input!Z$74-1),OFFSET(ReturnData!$B$1:$B$2106,0,Solver!$C44-1)) -> 0
B45: SHY | C45: 14 | D45: =+_xlfn.COVARIANCE.P(OFFSET(ReturnData!$B$1:$B$2106,0,Input!E$74-1),OFFSET(ReturnData!$B$1:$B$2106,0,Solver!$C45-1)) -> 7.8442577e-07 | E45: =+_xlfn.COVARIANCE.P(OFFSET(ReturnData!$B$1:$B$2106,0,Input!F$74-1),OFFSET(ReturnData!$B$1:$B$2106,0,Solver!$C45-1)) -> 6.932198598e-07 | F45: =+_xlfn.COVARIANCE.P(OFFSET(ReturnData!$B$1:$B$2106,0,Input!G$74-1),OFFSET(ReturnData!$B$1:$B$2106,0,Solver!$C45-1)) -> 1.143211859e-06 | G45: =+_xlfn.COVARIANCE.P(OFFSET(ReturnData!$B$1:$B$2106,0,Input!H$74-1),OFFSET(ReturnData!$B$1:$B$2106,0,Solver!$C45-1)) -> 4.244897323e-07 | H45: =+_xlfn.COVARIANCE.P(OFFSET(ReturnData!$B$1:$B$2106,0,Input!I$74-1),OFFSET(ReturnData!$B$1:$B$2106,0,Solver!$C45-1)) -> 8.064095809e-07 | I45: =+_xlfn.COVARIANCE.P(OFFSET(ReturnData!$B$1:$B$2106,0,Input!J$74-1),OFFSET(ReturnData!$B$1:$B$2106,0,Solver!$C45-1)) -> -1.944880372e-08 | J45: =+_xlfn.COVARIANCE.P(OFFSET(ReturnData!$B$1:$B$2106,0,Input!K$74-1),OFFSET(ReturnData!$B$1:$B$2106,0,Solver!$C45-1)) -> -8.964405644e-09 | K45: =+_xlfn.COVARIANCE.P(OFFSET(ReturnData!$B$1:$B$2106,0,Input!L$74-1),OFFSET(ReturnData!$B$1:$B$2106,0,Solver!$C45-1)) -> 1.947161556e-07 | L45: =+_xlfn.COVARIANCE.P(OFFSET(ReturnData!$B$1:$B$2106,0,Input!M$74-1),OFFSET(ReturnData!$B$1:$B$2106,0,Solver!$C45-1)) -> 1.026154391e-06 | M45: =+_xlfn.COVARIANCE.P(OFFSET(ReturnData!$B$1:$B$2106,0,Input!N$74-1),OFFSET(ReturnData!$B$1:$B$2106,0,Solver!$C45-1)) -> 4.476819117e-07 | N45: =+_xlfn.COVARIANCE.P(OFFSET(ReturnData!$B$1:$B$2106,0,Input!O$74-1),OFFSET(ReturnData!$B$1:$B$2106,0,Solver!$C45-1)) -> -4.577035857e-06 | O45: =+_xlfn.COVARIANCE.P(OFFSET(ReturnData!$B$1:$B$2106,0,Input!P$74-1),OFFSET(ReturnData!$B$1:$B$2106,0,Solver!$C45-1)) -> 4.501907066e-06 | P45: =+_xlfn.COVARIANCE.P(OFFSET(ReturnData!$B$1:$B$2106,0,Input!Q$74-1),OFFSET(ReturnData!$B$1:$B$2106,0,Solver!$C45-1)) -> 1.189500099e-06 | Q45: =+_xlfn.COVARIANCE.P(OFFSET(ReturnData!$B$1:$B$2106,0,Input!R$74-1),OFFSET(ReturnData!$B$1:$B$2106,0,Solver!$C45-1)) -> 7.227332522e-07 | R45: =+_xlfn.COVARIANCE.P(OFFSET(ReturnData!$B$1:$B$2106,0,Input!S$74-1),OFFSET(ReturnData!$B$1:$B$2106,0,Solver!$C45-1)) -> 2.058599146e-06 | S45: =+_xlfn.COVARIANCE.P(OFFSET(ReturnData!$B$1:$B$2106,0,Input!T$74-1),OFFSET(ReturnData!$B$1:$B$2106,0,Solver!$C45-1)) -> -6.369422882e-07 | T45: =+_xlfn.COVARIANCE.P(OFFSET(ReturnData!$B$1:$B$2106,0,Input!U$74-1),OFFSET(ReturnData!$B$1:$B$2106,0,Solver!$C45-1)) -> 8.514855479e-08 | U45: =+_xlfn.COVARIANCE.P(OFFSET(ReturnData!$B$1:$B$2106,0,Input!V$74-1),OFFSET(ReturnData!$B$1:$B$2106,0,Solver!$C45-1)) -> 0 | V45: =+_xlfn.COVARIANCE.P(OFFSET(ReturnData!$B$1:$B$2106,0,Input!W$74-1),OFFSET(ReturnData!$B$1:$B$2106,0,Solver!$C45-1)) -> 0 | W45: =+_xlfn.COVARIANCE.P(OFFSET(ReturnData!$B$1:$B$2106,0,Input!X$74-1),OFFSET(ReturnData!$B$1:$B$2106,0,Solver!$C45-1)) -> 0 | X45: =+_xlfn.COVARIANCE.P(OFFSET(ReturnData!$B$1:$B$2106,0,Input!Y$74-1),OFFSET(ReturnData!$B$1:$B$2106,0,Solver!$C45-1)) -> 0 | Y45: =+_xlfn.COVARIANCE.P(OFFSET(ReturnData!$B$1:$B$2106,0,Input!Z$74-1),OFFSET(ReturnData!$B$1:$B$2106,0,Solver!$C45-1)) -> 0
B46: GLD | C46: 15 | D46: =+_xlfn.COVARIANCE.P(OFFSET(ReturnData!$B$1:$B$2106,0,Input!E$74-1),OFFSET(ReturnData!$B$1:$B$2106,0,Solver!$C46-1)) -> 7.491812844e-06 | E46: =+_xlfn.COVARIANCE.P(OFFSET(ReturnData!$B$1:$B$2106,0,Input!F$74-1),OFFSET(ReturnData!$B$1:$B$2106,0,Solver!$C46-1)) -> 2.329656568e-05 | F46: =+_xlfn.COVARIANCE.P(OFFSET(ReturnData!$B$1:$B$2106,0,Input!G$74-1),OFFSET(ReturnData!$B$1:$B$2106,0,Solver!$C46-1)) -> 2.807643769e-05 | G46: =+_xlfn.COVARIANCE.P(OFFSET(ReturnData!$B$1:$B$2106,0,Input!H$74-1),OFFSET(ReturnData!$B$1:$B$2106,0,Solver!$C46-1)) -> 1.840686393e-05 | H46: =+_xlfn.COVARIANCE.P(OFFSET(ReturnData!$B$1:$B$2106,0,Input!I$74-1),OFFSET(ReturnData!$B$1:$B$2106,0,Solver!$C46-1)) -> 1.581870655e-05 | I46: =+_xlfn.COVARIANCE.P(OFFSET(ReturnData!$B$1:$B$2106,0,Input!J$74-1),OFFSET(ReturnData!$B$1:$B$2106,0,Solver!$C46-1)) -> 1.958978505e-05 | J46: =+_xlfn.COVARIANCE.P(OFFSET(ReturnData!$B$1:$B$2106,0,Input!K$74-1),OFFSET(ReturnData!$B$1:$B$2106,0,Solver!$C46-1)) -> 2.400937763e-05 | K46: =+_xlfn.COVARIANCE.P(OFFSET(ReturnData!$B$1:$B$2106,0,Input!L$74-1),OFFSET(ReturnData!$B$1:$B$2106,0,Solver!$C46-1)) -> 1.34092379e-05 | L46: =+_xlfn.COVARIANCE.P(OFFSET(ReturnData!$B$1:$B$2106,0,Input!M$74-1),OFFSET(ReturnData!$B$1:$B$2106,0,Solver!$C46-1)) -> 8.481810828e-06 | M46: =+_xlfn.COVARIANCE.P(OFFSET(ReturnData!$B$1:$B$2106,0,Input!N$74-1),OFFSET(ReturnData!$B$1:$B$2106,0,Solver!$C46-1)) -> 2.831338939e-05 | N46: =+_xlfn.COVARIANCE.P(OFFSET(ReturnData!$B$1:$B$2106,0,Input!O$74-1),OFFSET(ReturnData!$B$1:$B$2106,0,Solver!$C46-1)) -> 1.738281638e-06 | O46: =+_xlfn.COVARIANCE.P(OFFSET(ReturnData!$B$1:$B$2106,0,Input!P$74-1),OFFSET(ReturnData!$B$1:$B$2106,0,Solver!$C46-1)) -> 1.516811291e-05 | P46: =+_xlfn.COVARIANCE.P(OFFSET(ReturnData!$B$1:$B$2106,0,Input!Q$74-1),OFFSET(ReturnData!$B$1:$B$2106,0,Solver!$C46-1)) -> 6.659952824e-06 | Q46: =+_xlfn.COVARIANCE.P(OFFSET(ReturnData!$B$1:$B$2106,0,Input!R$74-1),OFFSET(ReturnData!$B$1:$B$2106,0,Solver!$C46-1)) -> 2.058599146e-06 | R46: =+_xlfn.COVARIANCE.P(OFFSET(ReturnData!$B$1:$B$2106,0,Input!S$74-1),OFFSET(ReturnData!$B$1:$B$2106,0,Solver!$C46-1)) -> 0.0001622222242 | S46: =+_xlfn.COVARIANCE.P(OFFSET(ReturnData!$B$1:$B$2106,0,Input!T$74-1),OFFSET(ReturnData!$B$1:$B$2106,0,Solver!$C46-1)) -> 1.028452612e-06 | T46: =+_xlfn.COVARIANCE.P(OFFSET(ReturnData!$B$1:$B$2106,0,Input!U$74-1),OFFSET(ReturnData!$B$1:$B$2106,0,Solver!$C46-1)) -> 3.601132668e-05 | U46: =+_xlfn.COVARIANCE.P(OFFSET(ReturnData!$B$1:$B$2106,0,Input!V$74-1),OFFSET(ReturnData!$B$1:$B$2106,0,Solver!$C46-1)) -> 0 | V46: =+_xlfn.COVARIANCE.P(OFFSET(ReturnData!$B$1:$B$2106,0,Input!W$74-1),OFFSET(ReturnData!$B$1:$B$2106,0,Solver!$C46-1)) -> 0 | W46: =+_xlfn.COVARIANCE.P(OFFSET(ReturnData!$B$1:$B$2106,0,Input!X$74-1),OFFSET(ReturnData!$B$1:$B$2106,0,Solver!$C46-1)) -> 0 | X46: =+_xlfn.COVARIANCE.P(OFFSET(ReturnData!$B$1:$B$2106,0,Input!Y$74-1),OFFSET(ReturnData!$B$1:$B$2106,0,Solver!$C46-1)) -> 0 | Y46: =+_xlfn.COVARIANCE.P(OFFSET(ReturnData!$B$1:$B$2106,0,Input!Z$74-1),OFFSET(ReturnData!$B$1:$B$2106,0,Solver!$C46-1)) -> 0
B47: NASDAQ100 | C47: 16 | D47: =+_xlfn.COVARIANCE.P(OFFSET(ReturnData!$B$1:$B$2106,0,Input!E$74-1),OFFSET(ReturnData!$B$1:$B$2106,0,Solver!$C47-1)) -> 2.560582578e-05 | E47: =+_xlfn.COVARIANCE.P(OFFSET(ReturnData!$B$1:$B$2106,0,Input!F$74-1),OFFSET(ReturnData!$B$1:$B$2106,0,Solver!$C47-1)) -> 2.225990424e-05 | F47: =+_xlfn.COVARIANCE.P(OFFSET(ReturnData!$B$1:$B$2106,0,Input!G$74-1),OFFSET(ReturnData!$B$1:$B$2106,0,Solver!$C47-1)) -> 2.874368094e-05 | G47: =+_xlfn.COVARIANCE.P(OFFSET(ReturnData!$B$1:$B$2106,0,Input!H$74-1),OFFSET(ReturnData!$B$1:$B$2106,0,Solver!$C47-1)) -> 4.894432928e-05 | H47: =+_xlfn.COVARIANCE.P(OFFSET(ReturnData!$B$1:$B$2106,0,Input!I$74-1),OFFSET(ReturnData!$B$1:$B$2106,0,Solver!$C47-1)) -> 5.290468385e-05 | I47: =+_xlfn.COVARIANCE.P(OFFSET(ReturnData!$B$1:$B$2106,0,Input!J$74-1),OFFSET(ReturnData!$B$1:$B$2106,0,Solver!$C47-1)) -> 6.051416832e-05 | J47: =+_xlfn.COVARIANCE.P(OFFSET(ReturnData!$B$1:$B$2106,0,Input!K$74-1),OFFSET(ReturnData!$B$1:$B$2106,0,Solver!$C47-1)) -> 7.951627827e-05 | K47: =+_xlfn.COVARIANCE.P(OFFSET(ReturnData!$B$1:$B$2106,0,Input!L$74-1),OFFSET(ReturnData!$B$1:$B$2106,0,Solver!$C47-1)) -> 4.990535832e-05 | L47: =+_xlfn.COVARIANCE.P(OFFSET(ReturnData!$B$1:$B$2106,0,Input!M$74-1),OFFSET(ReturnData!$B$1:$B$2106,0,Solver!$C47-1)) -> 3.430622352e-05 | M47: =+_xlfn.COVARIANCE.P(OFFSET(ReturnData!$B$1:$B$2106,0,Input!N$74-1),OFFSET(ReturnData!$B$1:$B$2106,0,Solver!$C47-1)) -> 9.990389951e-05 | N47: =+_xlfn.COVARIANCE.P(OFFSET(ReturnData!$B$1:$B$2106,0,Input!O$74-1),OFFSET(ReturnData!$B$1:$B$2106,0,Solver!$C47-1)) -> 5.629618175e-05 | O47: =+_xlfn.COVARIANCE.P(OFFSET(ReturnData!$B$1:$B$2106,0,Input!P$74-1),OFFSET(ReturnData!$B$1:$B$2106,0,Solver!$C47-1)) -> -3.028576869e-06 | P47: =+_xlfn.COVARIANCE.P(OFFSET(ReturnData!$B$1:$B$2106,0,Input!Q$74-1),OFFSET(ReturnData!$B$1:$B$2106,0,Solver!$C47-1)) -> 9.844515501e-07 | Q47: =+_xlfn.COVARIANCE.P(OFFSET(ReturnData!$B$1:$B$2106,0,Input!R$74-1),OFFSET(ReturnData!$B$1:$B$2106,0,Solver!$C47-1)) -> -6.369422882e-07 | R47: =+_xlfn.COVARIANCE.P(OFFSET(ReturnData!$B$1:$B$2106,0,Input!S$74-1),OFFSET(ReturnData!$B$1:$B$2106,0,Solver!$C47-1)) -> 1.028452612e-06 | S47: =+_xlfn.COVARIANCE.P(OFFSET(ReturnData!$B$1:$B$2106,0,Input!T$74-1),OFFSET(ReturnData!$B$1:$B$2106,0,Solver!$C47-1)) -> 0.0001994402145 | T47: =+_xlfn.COVARIANCE.P(OFFSET(ReturnData!$B$1:$B$2106,0,Input!U$74-1),OFFSET(ReturnData!$B$1:$B$2106,0,Solver!$C47-1)) -> 4.029320247e-06 | U47: =+_xlfn.COVARIANCE.P(OFFSET(ReturnData!$B$1:$B$2106,0,Input!V$74-1),OFFSET(ReturnData!$B$1:$B$2106,0,Solver!$C47-1)) -> 0 | V47: =+_xlfn.COVARIANCE.P(OFFSET(ReturnData!$B$1:$B$2106,0,Input!W$74-1),OFFSET(ReturnData!$B$1:$B$2106,0,Solver!$C47-1)) -> 0 | W47: =+_xlfn.COVARIANCE.P(OFFSET(ReturnData!$B$1:$B$2106,0,Input!X$74-1),OFFSET(ReturnData!$B$1:$B$2106,0,Solver!$C47-1)) -> 0 | X47: =+_xlfn.COVARIANCE.P(OFFSET(ReturnData!$B$1:$B$2106,0,Input!Y$74-1),OFFSET(ReturnData!$B$1:$B$2106,0,Solver!$C47-1)) -> 0 | Y47: =+_xlfn.COVARIANCE.P(OFFSET(ReturnData!$B$1:$B$2106,0,Input!Z$74-1),OFFSET(ReturnData!$B$1:$B$2106,0,Solver!$C47-1)) -> 0
B48: GLD-USD | C48: 17 | D48: =+_xlfn.COVARIANCE.P(OFFSET(ReturnData!$B$1:$B$2106,0,Input!E$74-1),OFFSET(ReturnData!$B$1:$B$2106,0,Solver!$C48-1)) -> 2.646470423e-06 | E48: =+_xlfn.COVARIANCE.P(OFFSET(ReturnData!$B$1:$B$2106,0,Input!F$74-1),OFFSET(ReturnData!$B$1:$B$2106,0,Solver!$C48-1)) -> 8.512056012e-06 | F48: =+_xlfn.COVARIANCE.P(OFFSET(ReturnData!$B$1:$B$2106,0,Input!G$74-1),OFFSET(ReturnData!$B$1:$B$2106,0,Solver!$C48-1)) -> 8.361656943e-06 | G48: =+_xlfn.COVARIANCE.P(OFFSET(ReturnData!$B$1:$B$2106,0,Input!H$74-1),OFFSET(ReturnData!$B$1:$B$2106,0,Solver!$C48-1)) -> 2.56237018e-06 | H48: =+_xlfn.COVARIANCE.P(OFFSET(ReturnData!$B$1:$B$2106,0,Input!I$74-1),OFFSET(ReturnData!$B$1:$B$2106,0,Solver!$C48-1)) -> 4.455319864e-06 | I48: =+_xlfn.COVARIANCE.P(OFFSET(ReturnData!$B$1:$B$2106,0,Input!J$74-1),OFFSET(ReturnData!$B$1:$B$2106,0,Solver!$C48-1)) -> 8.745709781e-06 | J48: =+_xlfn.COVARIANCE.P(OFFSET(ReturnData!$B$1:$B$2106,0,Input!K$74-1),OFFSET(ReturnData!$B$1:$B$2106,0,Solver!$C48-1)) -> 1.278396456e-05 | K48: =+_xlfn.COVARIANCE.P(OFFSET(ReturnData!$B$1:$B$2106,0,Input!L$74-1),OFFSET(ReturnData!$B$1:$B$2106,0,Solver!$C48-1)) -> 8.564406441e-06 | L48: =+_xlfn.COVARIANCE.P(OFFSET(ReturnData!$B$1:$B$2106,0,Input!M$74-1),OFFSET(ReturnData!$B$1:$B$2106,0,Solver!$C48-1)) -> 1.983190968e-06 | M48: =+_xlfn.COVARIANCE.P(OFFSET(ReturnData!$B$1:$B$2106,0,Input!N$74-1),OFFSET(ReturnData!$B$1:$B$2106,0,Solver!$C48-1)) -> 6.00801806e-06 | N48: =+_xlfn.COVARIANCE.P(OFFSET(ReturnData!$B$1:$B$2106,0,Input!O$74-1),OFFSET(ReturnData!$B$1:$B$2106,0,Solver!$C48-1)) -> -7.806707581e-06 | O48: =+_xlfn.COVARIANCE.P(OFFSET(ReturnData!$B$1:$B$2106,0,Input!P$74-1),OFFSET(ReturnData!$B$1:$B$2106,0,Solver!$C48-1)) -> 3.846820155e-06 | P48: =+_xlfn.COVARIANCE.P(OFFSET(ReturnData!$B$1:$B$2106,0,Input!Q$74-1),OFFSET(ReturnData!$B$1:$B$2106,0,Solver!$C48-1)) -> -2.136079222e-07 | Q48: =+_xlfn.COVARIANCE.P(OFFSET(ReturnData!$B$1:$B$2106,0,Input!R$74-1),OFFSET(ReturnData!$B$1:$B$2106,0,Solver!$C48-1)) -> 8.514855479e-08 | R48: =+_xlfn.COVARIANCE.P(OFFSET(ReturnData!$B$1:$B$2106,0,Input!S$74-1),OFFSET(ReturnData!$B$1:$B$2106,0,Solver!$C48-1)) -> 3.601132668e-05 | S48: =+_xlfn.COVARIANCE.P(OFFSET(ReturnData!$B$1:$B$2106,0,Input!T$74-1),OFFSET(ReturnData!$B$1:$B$2106,0,Solver!$C48-1)) -> 4.029320247e-06 | T48: =+_xlfn.COVARIANCE.P(OFFSET(ReturnData!$B$1:$B$2106,0,Input!U$74-1),OFFSET(ReturnData!$B$1:$B$2106,0,Solver!$C48-1)) -> 5.433836436e-05 | U48: =+_xlfn.COVARIANCE.P(OFFSET(ReturnData!$B$1:$B$2106,0,Input!V$74-1),OFFSET(ReturnData!$B$1:$B$2106,0,Solver!$C48-1)) -> 0 | V48: =+_xlfn.COVARIANCE.P(OFFSET(ReturnData!$B$1:$B$2106,0,Input!W$74-1),OFFSET(ReturnData!$B$1:$B$2106,0,Solver!$C48-1)) -> 0 | W48: =+_xlfn.COVARIANCE.P(OFFSET(ReturnData!$B$1:$B$2106,0,Input!X$74-1),OFFSET(ReturnData!$B$1:$B$2106,0,Solver!$C48-1)) -> 0 | X48: =+_xlfn.COVARIANCE.P(OFFSET(ReturnData!$B$1:$B$2106,0,Input!Y$74-1),OFFSET(ReturnData!$B$1:$B$2106,0,Solver!$C48-1)) -> 0 | Y48: =+_xlfn.COVARIANCE.P(OFFSET(ReturnData!$B$1:$B$2106,0,Input!Z$74-1),OFFSET(ReturnData!$B$1:$B$2106,0,Solver!$C48-1)) -> 0
B49: empty | C49: 18 | D49: =+_xlfn.COVARIANCE.P(OFFSET(ReturnData!$B$1:$B$2106,0,Input!E$74-1),OFFSET(ReturnData!$B$1:$B$2106,0,Solver!$C49-1)) -> 0 | E49: =+_xlfn.COVARIANCE.P(OFFSET(ReturnData!$B$1:$B$2106,0,Input!F$74-1),OFFSET(ReturnData!$B$1:$B$2106,0,Solver!$C49-1)) -> 0 | F49: =+_xlfn.COVARIANCE.P(OFFSET(ReturnData!$B$1:$B$2106,0,Input!G$74-1),OFFSET(ReturnData!$B$1:$B$2106,0,Solver!$C49-1)) -> 0 | G49: =+_xlfn.COVARIANCE.P(OFFSET(ReturnData!$B$1:$B$2106,0,Input!H$74-1),OFFSET(ReturnData!$B$1:$B$2106,0,Solver!$C49-1)) -> 0 | H49: =+_xlfn.COVARIANCE.P(OFFSET(ReturnData!$B$1:$B$2106,0,Input!I$74-1),OFFSET(ReturnData!$B$1:$B$2106,0,Solver!$C49-1)) -> 0 | I49: =+_xlfn.COVARIANCE.P(OFFSET(ReturnData!$B$1:$B$2106,0,Input!J$74-1),OFFSET(ReturnData!$B$1:$B$2106,0,Solver!$C49-1)) -> 0 | J49: =+_xlfn.COVARIANCE.P(OFFSET(ReturnData!$B$1:$B$2106,0,Input!K$74-1),OFFSET(ReturnData!$B$1:$B$2106,0,Solver!$C49-1)) -> 0 | K49: =+_xlfn.COVARIANCE.P(OFFSET(ReturnData!$B$1:$B$2106,0,Input!L$74-1),OFFSET(ReturnData!$B$1:$B$2106,0,Solver!$C49-1)) -> 0 | L49: =+_xlfn.COVARIANCE.P(OFFSET(ReturnData!$B$1:$B$2106,0,Input!M$74-1),OFFSET(ReturnData!$B$1:$B$2106,0,Solver!$C49-1)) -> 0 | M49: =+_xlfn.COVARIANCE.P(OFFSET(ReturnData!$B$1:$B$2106,0,Input!N$74-1),OFFSET(ReturnData!$B$1:$B$2106,0,Solver!$C49-1)) -> 0 | N49: =+_xlfn.COVARIANCE.P(OFFSET(ReturnData!$B$1:$B$2106,0,Input!O$74-1),OFFSET(ReturnData!$B$1:$B$2106,0,Solver!$C49-1)) -> 0 | O49: =+_xlfn.COVARIANCE.P(OFFSET(ReturnData!$B$1:$B$2106,0,Input!P$74-1),OFFSET(ReturnData!$B$1:$B$2106,0,Solver!$C49-1)) -> 0 | P49: =+_xlfn.COVARIANCE.P(OFFSET(ReturnData!$B$1:$B$2106,0,Input!Q$74-1),OFFSET(ReturnData!$B$1:$B$2106,0,Solver!$C49-1)) -> 0 | Q49: =+_xlfn.COVARIANCE.P(OFFSET(ReturnData!$B$1:$B$2106,0,Input!R$74-1),OFFSET(ReturnData!$B$1:$B$2106,0,Solver!$C49-1)) -> 0 | R49: =+_xlfn.COVARIANCE.P(OFFSET(ReturnData!$B$1:$B$2106,0,Input!S$74-1),OFFSET(ReturnData!$B$1:$B$2106,0,Solver!$C49-1)) -> 0 | S49: =+_xlfn.COVARIANCE.P(OFFSET(ReturnData!$B$1:$B$2106,0,Input!T$74-1),OFFSET(ReturnData!$B$1:$B$2106,0,Solver!$C49-1)) -> 0 | T49: =+_xlfn.COVARIANCE.P(OFFSET(ReturnData!$B$1:$B$2106,0,Input!U$74-1),OFFSET(ReturnData!$B$1:$B$2106,0,Solver!$C49-1)) -> 0 | U49: =+_xlfn.COVARIANCE.P(OFFSET(ReturnData!$B$1:$B$2106,0,Input!V$74-1),OFFSET(ReturnData!$B$1:$B$2106,0,Solver!$C49-1)) -> 0 | V49: =+_xlfn.COVARIANCE.P(OFFSET(ReturnData!$B$1:$B$2106,0,Input!W$74-1),OFFSET(ReturnData!$B$1:$B$2106,0,Solver!$C49-1)) -> 0 | W49: =+_xlfn.COVARIANCE.P(OFFSET(ReturnData!$B$1:$B$2106,0,Input!X$74-1),OFFSET(ReturnData!$B$1:$B$2106,0,Solver!$C49-1)) -> 0 | X49: =+_xlfn.COVARIANCE.P(OFFSET(ReturnData!$B$1:$B$2106,0,Input!Y$74-1),OFFSET(ReturnData!$B$1:$B$2106,0,Solver!$C49-1)) -> 0 | Y49: =+_xlfn.COVARIANCE.P(OFFSET(ReturnData!$B$1:$B$2106,0,Input!Z$74-1),OFFSET(ReturnData!$B$1:$B$2106,0,Solver!$C49-1)) -> 0
B50: empty | C50: 19 | D50: =+_xlfn.COVARIANCE.P(OFFSET(ReturnData!$B$1:$B$2106,0,Input!E$74-1),OFFSET(ReturnData!$B$1:$B$2106,0,Solver!$C50-1)) -> 0 | E50: =+_xlfn.COVARIANCE.P(OFFSET(ReturnData!$B$1:$B$2106,0,Input!F$74-1),OFFSET(ReturnData!$B$1:$B$2106,0,Solver!$C50-1)) -> 0 | F50: =+_xlfn.COVARIANCE.P(OFFSET(ReturnData!$B$1:$B$2106,0,Input!G$74-1),OFFSET(ReturnData!$B$1:$B$2106,0,Solver!$C50-1)) -> 0 | G50: =+_xlfn.COVARIANCE.P(OFFSET(ReturnData!$B$1:$B$2106,0,Input!H$74-1),OFFSET(ReturnData!$B$1:$B$2106,0,Solver!$C50-1)) -> 0 | H50: =+_xlfn.COVARIANCE.P(OFFSET(ReturnData!$B$1:$B$2106,0,Input!I$74-1),OFFSET(ReturnData!$B$1:$B$2106,0,Solver!$C50-1)) -> 0 | I50: =+_xlfn.COVARIANCE.P(OFFSET(ReturnData!$B$1:$B$2106,0,Input!J$74-1),OFFSET(ReturnData!$B$1:$B$2106,0,Solver!$C50-1)) -> 0 | J50: =+_xlfn.COVARIANCE.P(OFFSET(ReturnData!$B$1:$B$2106,0,Input!K$74-1),OFFSET(ReturnData!$B$1:$B$2106,0,Solver!$C50-1)) -> 0 | K50: =+_xlfn.COVARIANCE.P(OFFSET(ReturnData!$B$1:$B$2106,0,Input!L$74-1),OFFSET(ReturnData!$B$1:$B$2106,0,Solver!$C50-1)) -> 0 | L50: =+_xlfn.COVARIANCE.P(OFFSET(ReturnData!$B$1:$B$2106,0,Input!M$74-1),OFFSET(ReturnData!$B$1:$B$2106,0,Solver!$C50-1)) -> 0 | M50: =+_xlfn.COVARIANCE.P(OFFSET(ReturnData!$B$1:$B$2106,0,Input!N$74-1),OFFSET(ReturnData!$B$1:$B$2106,0,Solver!$C50-1)) -> 0 | N50: =+_xlfn.COVARIANCE.P(OFFSET(ReturnData!$B$1:$B$2106,0,Input!O$74-1),OFFSET(ReturnData!$B$1:$B$2106,0,Solver!$C50-1)) -> 0 | O50: =+_xlfn.COVARIANCE.P(OFFSET(ReturnData!$B$1:$B$2106,0,Input!P$74-1),OFFSET(ReturnData!$B$1:$B$2106,0,Solver!$C50-1)) -> 0 | P50: =+_xlfn.COVARIANCE.P(OFFSET(ReturnData!$B$1:$B$2106,0,Input!Q$74-1),OFFSET(ReturnData!$B$1:$B$2106,0,Solver!$C50-1)) -> 0 | Q50: =+_xlfn.COVARIANCE.P(OFFSET(ReturnData!$B$1:$B$2106,0,Input!R$74-1),OFFSET(ReturnData!$B$1:$B$2106,0,Solver!$C50-1)) -> 0 | R50: =+_xlfn.COVARIANCE.P(OFFSET(ReturnData!$B$1:$B$2106,0,Input!S$74-1),OFFSET(ReturnData!$B$1:$B$2106,0,Solver!$C50-1)) -> 0 | S50: =+_xlfn.COVARIANCE.P(OFFSET(ReturnData!$B$1:$B$2106,0,Input!T$74-1),OFFSET(ReturnData!$B$1:$B$2106,0,Solver!$C50-1)) -> 0 | T50: =+_xlfn.COVARIANCE.P(OFFSET(ReturnData!$B$1:$B$2106,0,Input!U$74-1),OFFSET(ReturnData!$B$1:$B$2106,0,Solver!$C50-1)) -> 0 | U50: =+_xlfn.COVARIANCE.P(OFFSET(ReturnData!$B$1:$B$2106,0,Input!V$74-1),OFFSET(ReturnData!$B$1:$B$2106,0,Solver!$C50-1)) -> 0 | V50: =+_xlfn.COVARIANCE.P(OFFSET(ReturnData!$B$1:$B$2106,0,Input!W$74-1),OFFSET(ReturnData!$B$1:$B$2106,0,Solver!$C50-1)) -> 0 | W50: =+_xlfn.COVARIANCE.P(OFFSET(ReturnData!$B$1:$B$2106,0,Input!X$74-1),OFFSET(ReturnData!$B$1:$B$2106,0,Solver!$C50-1)) -> 0 | X50: =+_xlfn.COVARIANCE.P(OFFSET(ReturnData!$B$1:$B$2106,0,Input!Y$74-1),OFFSET(ReturnData!$B$1:$B$2106,0,Solver!$C50-1)) -> 0 | Y50: =+_xlfn.COVARIANCE.P(OFFSET(ReturnData!$B$1:$B$2106,0,Input!Z$74-1),OFFSET(ReturnData!$B$1:$B$2106,0,Solver!$C50-1)) -> 0
B51: empty | C51: 20 | D51: =+_xlfn.COVARIANCE.P(OFFSET(ReturnData!$B$1:$B$2106,0,Input!E$74-1),OFFSET(ReturnData!$B$1:$B$2106,0,Solver!$C51-1)) -> 0 | E51: =+_xlfn.COVARIANCE.P(OFFSET(ReturnData!$B$1:$B$2106,0,Input!F$74-1),OFFSET(ReturnData!$B$1:$B$2106,0,Solver!$C51-1)) -> 0 | F51: =+_xlfn.COVARIANCE.P(OFFSET(ReturnData!$B$1:$B$2106,0,Input!G$74-1),OFFSET(ReturnData!$B$1:$B$2106,0,Solver!$C51-1)) -> 0 | G51: =+_xlfn.COVARIANCE.P(OFFSET(ReturnData!$B$1:$B$2106,0,Input!H$74-1),OFFSET(ReturnData!$B$1:$B$2106,0,Solver!$C51-1)) -> 0 | H51: =+_xlfn.COVARIANCE.P(OFFSET(ReturnData!$B$1:$B$2106,0,Input!I$74-1),OFFSET(ReturnData!$B$1:$B$2106,0,Solver!$C51-1)) -> 0 | I51: =+_xlfn.COVARIANCE.P(OFFSET(ReturnData!$B$1:$B$2106,0,Input!J$74-1),OFFSET(ReturnData!$B$1:$B$2106,0,Solver!$C51-1)) -> 0 | J51: =+_xlfn.COVARIANCE.P(OFFSET(ReturnData!$B$1:$B$2106,0,Input!K$74-1),OFFSET(ReturnData!$B$1:$B$2106,0,Solver!$C51-1)) -> 0 | K51: =+_xlfn.COVARIANCE.P(OFFSET(ReturnData!$B$1:$B$2106,0,Input!L$74-1),OFFSET(ReturnData!$B$1:$B$2106,0,Solver!$C51-1)) -> 0 | L51: =+_xlfn.COVARIANCE.P(OFFSET(ReturnData!$B$1:$B$2106,0,Input!M$74-1),OFFSET(ReturnData!$B$1:$B$2106,0,Solver!$C51-1)) -> 0 | M51: =+_xlfn.COVARIANCE.P(OFFSET(ReturnData!$B$1:$B$2106,0,Input!N$74-1),OFFSET(ReturnData!$B$1:$B$2106,0,Solver!$C51-1)) -> 0 | N51: =+_xlfn.COVARIANCE.P(OFFSET(ReturnData!$B$1:$B$2106,0,Input!O$74-1),OFFSET(ReturnData!$B$1:$B$2106,0,Solver!$C51-1)) -> 0 | O51: =+_xlfn.COVARIANCE.P(OFFSET(ReturnData!$B$1:$B$2106,0,Input!P$74-1),OFFSET(ReturnData!$B$1:$B$2106,0,Solver!$C51-1)) -> 0 | P51: =+_xlfn.COVARIANCE.P(OFFSET(ReturnData!$B$1:$B$2106,0,Input!Q$74-1),OFFSET(ReturnData!$B$1:$B$2106,0,Solver!$C51-1)) -> 0 | Q51: =+_xlfn.COVARIANCE.P(OFFSET(ReturnData!$B$1:$B$2106,0,Input!R$74-1),OFFSET(ReturnData!$B$1:$B$2106,0,Solver!$C51-1)) -> 0 | R51: =+_xlfn.COVARIANCE.P(OFFSET(ReturnData!$B$1:$B$2106,0,Input!S$74-1),OFFSET(ReturnData!$B$1:$B$2106,0,Solver!$C51-1)) -> 0 | S51: =+_xlfn.COVARIANCE.P(OFFSET(ReturnData!$B$1:$B$2106,0,Input!T$74-1),OFFSET(ReturnData!$B$1:$B$2106,0,Solver!$C51-1)) -> 0 | T51: =+_xlfn.COVARIANCE.P(OFFSET(ReturnData!$B$1:$B$2106,0,Input!U$74-1),OFFSET(ReturnData!$B$1:$B$2106,0,Solver!$C51-1)) -> 0 | U51: =+_xlfn.COVARIANCE.P(OFFSET(ReturnData!$B$1:$B$2106,0,Input!V$74-1),OFFSET(ReturnData!$B$1:$B$2106,0,Solver!$C51-1)) -> 0 | V51: =+_xlfn.COVARIANCE.P(OFFSET(ReturnData!$B$1:$B$2106,0,Input!W$74-1),OFFSET(ReturnData!$B$1:$B$2106,0,Solver!$C51-1)) -> 0 | W51: =+_xlfn.COVARIANCE.P(OFFSET(ReturnData!$B$1:$B$2106,0,Input!X$74-1),OFFSET(ReturnData!$B$1:$B$2106,0,Solver!$C51-1)) -> 0 | X51: =+_xlfn.COVARIANCE.P(OFFSET(ReturnData!$B$1:$B$2106,0,Input!Y$74-1),OFFSET(ReturnData!$B$1:$B$2106,0,Solver!$C51-1)) -> 0 | Y51: =+_xlfn.COVARIANCE.P(OFFSET(ReturnData!$B$1:$B$2106,0,Input!Z$74-1),OFFSET(ReturnData!$B$1:$B$2106,0,Solver!$C51-1)) -> 0
B52: empty | C52: 21 | D52: =+_xlfn.COVARIANCE.P(OFFSET(ReturnData!$B$1:$B$2106,0,Input!E$74-1),OFFSET(ReturnData!$B$1:$B$2106,0,Solver!$C52-1)) -> 0 | E52: =+_xlfn.COVARIANCE.P(OFFSET(ReturnData!$B$1:$B$2106,0,Input!F$74-1),OFFSET(ReturnData!$B$1:$B$2106,0,Solver!$C52-1)) -> 0 | F52: =+_xlfn.COVARIANCE.P(OFFSET(ReturnData!$B$1:$B$2106,0,Input!G$74-1),OFFSET(ReturnData!$B$1:$B$2106,0,Solver!$C52-1)) -> 0 | G52: =+_xlfn.COVARIANCE.P(OFFSET(ReturnData!$B$1:$B$2106,0,Input!H$74-1),OFFSET(ReturnData!$B$1:$B$2106,0,Solver!$C52-1)) -> 0 | H52: =+_xlfn.COVARIANCE.P(OFFSET(ReturnData!$B$1:$B$2106,0,Input!I$74-1),OFFSET(ReturnData!$B$1:$B$2106,0,Solver!$C52-1)) -> 0 | I52: =+_xlfn.COVARIANCE.P(OFFSET(ReturnData!$B$1:$B$2106,0,Input!J$74-1),OFFSET(ReturnData!$B$1:$B$2106,0,Solver!$C52-1)) -> 0 | J52: =+_xlfn.COVARIANCE.P(OFFSET(ReturnData!$B$1:$B$2106,0,Input!K$74-1),OFFSET(ReturnData!$B$1:$B$2106,0,Solver!$C52-1)) -> 0 | K52: =+_xlfn.COVARIANCE.P(OFFSET(ReturnData!$B$1:$B$2106,0,Input!L$74-1),OFFSET(ReturnData!$B$1:$B$2106,0,Solver!$C52-1)) -> 0 | L52: =+_xlfn.COVARIANCE.P(OFFSET(ReturnData!$B$1:$B$2106,0,Input!M$74-1),OFFSET(ReturnData!$B$1:$B$2106,0,Solver!$C52-1)) -> 0 | M52: =+_xlfn.COVARIANCE.P(OFFSET(ReturnData!$B$1:$B$2106,0,Input!N$74-1),OFFSET(ReturnData!$B$1:$B$2106,0,Solver!$C52-1)) -> 0 | N52: =+_xlfn.COVARIANCE.P(OFFSET(ReturnData!$B$1:$B$2106,0,Input!O$74-1),OFFSET(ReturnData!$B$1:$B$2106,0,Solver!$C52-1)) -> 0 | O52: =+_xlfn.COVARIANCE.P(OFFSET(ReturnData!$B$1:$B$2106,0,Input!P$74-1),OFFSET(ReturnData!$B$1:$B$2106,0,Solver!$C52-1)) -> 0 | P52: =+_xlfn.COVARIANCE.P(OFFSET(ReturnData!$B$1:$B$2106,0,Input!Q$74-1),OFFSET(ReturnData!$B$1:$B$2106,0,Solver!$C52-1)) -> 0 | Q52: =+_xlfn.COVARIANCE.P(OFFSET(ReturnData!$B$1:$B$2106,0,Input!R$74-1),OFFSET(ReturnData!$B$1:$B$2106,0,Solver!$C52-1)) -> 0 | R52: =+_xlfn.COVARIANCE.P(OFFSET(ReturnData!$B$1:$B$2106,0,Input!S$74-1),OFFSET(ReturnData!$B$1:$B$2106,0,Solver!$C52-1)) -> 0 | S52: =+_xlfn.COVARIANCE.P(OFFSET(ReturnData!$B$1:$B$2106,0,Input!T$74-1),OFFSET(ReturnData!$B$1:$B$2106,0,Solver!$C52-1)) -> 0 | T52: =+_xlfn.COVARIANCE.P(OFFSET(ReturnData!$B$1:$B$2106,0,Input!U$74-1),OFFSET(ReturnData!$B$1:$B$2106,0,Solver!$C52-1)) -> 0 | U52: =+_xlfn.COVARIANCE.P(OFFSET(ReturnData!$B$1:$B$2106,0,Input!V$74-1),OFFSET(ReturnData!$B$1:$B$2106,0,Solver!$C52-1)) -> 0 | V52: =+_xlfn.COVARIANCE.P(OFFSET(ReturnData!$B$1:$B$2106,0,Input!W$74-1),OFFSET(ReturnData!$B$1:$B$2106,0,Solver!$C52-1)) -> 0 | W52: =+_xlfn.COVARIANCE.P(OFFSET(ReturnData!$B$1:$B$2106,0,Input!X$74-1),OFFSET(ReturnData!$B$1:$B$2106,0,Solver!$C52-1)) -> 0 | X52: =+_xlfn.COVARIANCE.P(OFFSET(ReturnData!$B$1:$B$2106,0,Input!Y$74-1),OFFSET(ReturnData!$B$1:$B$2106,0,Solver!$C52-1)) -> 0 | Y52: =+_xlfn.COVARIANCE.P(OFFSET(ReturnData!$B$1:$B$2106,0,Input!Z$74-1),OFFSET(ReturnData!$B$1:$B$2106,0,Solver!$C52-1)) -> 0
B53: empty | C53: 22 | D53: =+_xlfn.COVARIANCE.P(OFFSET(ReturnData!$B$1:$B$2106,0,Input!E$74-1),OFFSET(ReturnData!$B$1:$B$2106,0,Solver!$C53-1)) -> 0 | E53: =+_xlfn.COVARIANCE.P(OFFSET(ReturnData!$B$1:$B$2106,0,Input!F$74-1),OFFSET(ReturnData!$B$1:$B$2106,0,Solver!$C53-1)) -> 0 | F53: =+_xlfn.COVARIANCE.P(OFFSET(ReturnData!$B$1:$B$2106,0,Input!G$74-1),OFFSET(ReturnData!$B$1:$B$2106,0,Solver!$C53-1)) -> 0 | G53: =+_xlfn.COVARIANCE.P(OFFSET(ReturnData!$B$1:$B$2106,0,Input!H$74-1),OFFSET(ReturnData!$B$1:$B$2106,0,Solver!$C53-1)) -> 0 | H53: =+_xlfn.COVARIANCE.P(OFFSET(ReturnData!$B$1:$B$2106,0,Input!I$74-1),OFFSET(ReturnData!$B$1:$B$2106,0,Solver!$C53-1)) -> 0 | I53: =+_xlfn.COVARIANCE.P(OFFSET(ReturnData!$B$1:$B$2106,0,Input!J$74-1),OFFSET(ReturnData!$B$1:$B$2106,0,Solver!$C53-1)) -> 0 | J53: =+_xlfn.COVARIANCE.P(OFFSET(ReturnData!$B$1:$B$2106,0,Input!K$74-1),OFFSET(ReturnData!$B$1:$B$2106,0,Solver!$C53-1)) -> 0 | K53: =+_xlfn.COVARIANCE.P(OFFSET(ReturnData!$B$1:$B$2106,0,Input!L$74-1),OFFSET(ReturnData!$B$1:$B$2106,0,Solver!$C53-1)) -> 0 | L53: =+_xlfn.COVARIANCE.P(OFFSET(ReturnData!$B$1:$B$2106,0,Input!M$74-1),OFFSET(ReturnData!$B$1:$B$2106,0,Solver!$C53-1)) -> 0 | M53: =+_xlfn.COVARIANCE.P(OFFSET(ReturnData!$B$1:$B$2106,0,Input!N$74-1),OFFSET(ReturnData!$B$1:$B$2106,0,Solver!$C53-1)) -> 0 | N53: =+_xlfn.COVARIANCE.P(OFFSET(ReturnData!$B$1:$B$2106,0,Input!O$74-1),OFFSET(ReturnData!$B$1:$B$2106,0,Solver!$C53-1)) -> 0 | O53: =+_xlfn.COVARIANCE.P(OFFSET(ReturnData!$B$1:$B$2106,0,Input!P$74-1),OFFSET(ReturnData!$B$1:$B$2106,0,Solver!$C53-1)) -> 0 | P53: =+_xlfn.COVARIANCE.P(OFFSET(ReturnData!$B$1:$B$2106,0,Input!Q$74-1),OFFSET(ReturnData!$B$1:$B$2106,0,Solver!$C53-1)) -> 0 | Q53: =+_xlfn.COVARIANCE.P(OFFSET(ReturnData!$B$1:$B$2106,0,Input!R$74-1),OFFSET(ReturnData!$B$1:$B$2106,0,Solver!$C53-1)) -> 0 | R53: =+_xlfn.COVARIANCE.P(OFFSET(ReturnData!$B$1:$B$2106,0,Input!S$74-1),OFFSET(ReturnData!$B$1:$B$2106,0,Solver!$C53-1)) -> 0 | S53: =+_xlfn.COVARIANCE.P(OFFSET(ReturnData!$B$1:$B$2106,0,Input!T$74-1),OFFSET(ReturnData!$B$1:$B$2106,0,Solver!$C53-1)) -> 0 | T53: =+_xlfn.COVARIANCE.P(OFFSET(ReturnData!$B$1:$B$2106,0,Input!U$74-1),OFFSET(ReturnData!$B$1:$B$2106,0,Solver!$C53-1)) -> 0 | U53: =+_xlfn.COVARIANCE.P(OFFSET(ReturnData!$B$1:$B$2106,0,Input!V$74-1),OFFSET(ReturnData!$B$1:$B$2106,0,Solver!$C53-1)) -> 0 | V53: =+_xlfn.COVARIANCE.P(OFFSET(ReturnData!$B$1:$B$2106,0,Input!W$74-1),OFFSET(ReturnData!$B$1:$B$2106,0,Solver!$C53-1)) -> 0 | W53: =+_xlfn.COVARIANCE.P(OFFSET(ReturnData!$B$1:$B$2106,0,Input!X$74-1),OFFSET(ReturnData!$B$1:$B$2106,0,Solver!$C53-1)) -> 0 | X53: =+_xlfn.COVARIANCE.P(OFFSET(ReturnData!$B$1:$B$2106,0,Input!Y$74-1),OFFSET(ReturnData!$B$1:$B$2106,0,Solver!$C53-1)) -> 0 | Y53: =+_xlfn.COVARIANCE.P(OFFSET(ReturnData!$B$1:$B$2106,0,Input!Z$74-1),OFFSET(ReturnData!$B$1:$B$2106,0,Solver!$C53-1)) -> 0
B55: Weights | D55: -9.439140556e-06 | E55: -9.565934344e-06 | F55: -9.395438627e-06 | G55: -9.257278458e-06 | H55: -9.015420777e-06 | I55: -8.720063981e-06 | J55: -8.589555979e-06 | K55: -8.573117132e-06 | L55: -9.280563423e-06 | M55: 6.518564142e-05 | N55: 1.00000997 | O55: 0 | P55: 0 | Q55: 0 | R55: 0 | S55: 0 | T55: 6.680681466e-06 | U55: 0 | V55: 0 | W55: 0 | X55: 0 | Y55: 0 | Z55: =SUM(D55:Y55) -> 1
B56: Variances | D56: =+D55*SUMPRODUCT(TRANSPOSE(Weights),D32:D53) -> -4.463293725e-11 | E56: =+E55*SUMPRODUCT(TRANSPOSE(Weights),E32:E53) -> -6.065427943e-11 | F56: =+F55*SUMPRODUCT(TRANSPOSE(Weights),F32:F53) -> -9.976003415e-11 | G56: =+G55*SUMPRODUCT(TRANSPOSE(Weights),G32:G53) -> -2.518761584e-10 | H56: =+H55*SUMPRODUCT(TRANSPOSE(Weights),H32:H53) -> -2.233568282e-10 | I56: =+I55*SUMPRODUCT(TRANSPOSE(Weights),I32:I53) -> -2.744206717e-10 | J56: =+J55*SUMPRODUCT(TRANSPOSE(Weights),J32:J53) -> -2.535434559e-10 | K56: =+K55*SUMPRODUCT(TRANSPOSE(Weights),K32:K53) -> -1.259136472e-10 | L56: =+L55*SUMPRODUCT(TRANSPOSE(Weights),L32:L53) -> -2.259875281e-10 | M56: =+M55*SUMPRODUCT(TRANSPOSE(Weights),M32:M53) -> 6.113958831e-09 | N56: =+N55*SUMPRODUCT(TRANSPOSE(Weights),N32:N53) -> 0.0001881891467 | O56: =+O55*SUMPRODUCT(TRANSPOSE(Weights),O32:O53) -> 0 | P56: =+P55*SUMPRODUCT(TRANSPOSE(Weights),P32:P53) -> 0 | Q56: =+Q55*SUMPRODUCT(TRANSPOSE(Weights),Q32:Q53) -> 0 | R56: =+R55*SUMPRODUCT(TRANSPOSE(Weights),R32:R53) -> 0 | S56: =+S55*SUMPRODUCT(TRANSPOSE(Weights),S32:S53) -> 0 | T56: =+T55*SUMPRODUCT(TRANSPOSE(Weights),T32:T53) -> -5.215312412e-11 | U56: =+U55*SUMPRODUCT(TRANSPOSE(Weights),U32:U53) -> 0 | V56: =+V55*SUMPRODUCT(TRANSPOSE(Weights),V32:V53) -> 0 | W56: =+W55*SUMPRODUCT(TRANSPOSE(Weights),W32:W53) -> 0 | X56: =+X55*SUMPRODUCT(TRANSPOSE(Weights),X32:X53) -> 0 | Y56: =+Y55*SUMPRODUCT(TRANSPOSE(Weights),Y32:Y53) -> 0 | Z56: =SUM(D56:Y56)^0.5*SQRT(252) -> 0.2177723568 | AH56: TRUE
B57: CAGR | D57: =+CAGR -> 0.1448058669 | E57: 0.09005141163 | F57: 0.1342523869 | G57: 0.1669795987 | H57: 0.2610646507 | I57: 0.3792395395 | J57: 0.3953587851 | K57: 0.3156534302 | L57: 0.190620556 | M57: 0.5582167126 | N57: 0.09838794087 | O57: 0.0982871548 | P57: 0.05152771588 | Q57: 0.01475924807 | R57: 0.03802488756 | S57: 0.3959007476 | T57: 0.1671309955 | U57: 0 | V57: 0 | W57: 0 | X57: 0 | Y57: 0 | Z57: =+SUMPRODUCT(D57:Y57,Weights) -> 0.09840785891 | AH57: FALSE
B58: CheckExclude | D58: =+TRANSPOSE(SolExclude)*Weights -> 0 | E58: 0 | F58: 0 | G58: 0 | H58: 0 | I58: 0 | J58: -8.589555979e-06 | K58: 0 | L58: 0 | M58: 0 | N58: 1.00000997 | O58: 0 | P58: 0 | Q58: 0 | R58: 0 | S58: 0 | T58: 0 | U58: 0 | V58: 0 | W58: 0 | X58: 0 | Y58: 0 | Z58: =SUM(D58:Y58) -> 1.000001381
B61: Solver Scenarios: | D61: Target | E61: Constraint Max | F61: Const Max Value | G61: Const Min | H61: Const Min Value | I61: Min Weight | J61: Max Weight | K61: Max Portfolio Weight | L61: CAGR:
B62: Custom Selection | D62: =+J9 -> 0 | E62: =+J10 -> 0 | F62: =+J11 -> 0 | G62: =+J12 -> 0 | H62: =+J13 -> 0 | I62: =+J14 -> 0 | J62: =+J15 -> 0 | K62: =+J16 -> 0
B63: Maximum Sharpe | D63: =-SolSharpe -> -0.4518840699 | E63: 0 | F63: 0 | G63: 0 | H63: 0 | I63: 0 | J63: 1 | K63: 1
B64: Minimum Volatility | D64: =+SolVolatility -> 0.2177723568 | E64: 0 | F64: 0 | G64: 0 | H64: 0 | I64: 0 | J64: 1 | K64: 1
B65: Max CAGR, Vol <25% | D65: =-SolCAGR -> -0.09840785891 | E65: 0 | F65: 0 | G65: =+SolVolatility -> 0.2177723568 | H65: 0.25 | I65: 0 | J65: 1 | K65: 1
B66: Max CAGR, Vol <20% | D66: -0.09840785891 | E66: 0 | F66: 0 | G66: =+SolVolatility -> 0.2177723568 | H66: 0.2 | I66: 0 | J66: 1 | K66: 1
B67: Max CAGR, Vol <15% | D67: -0.09840785891 | E67: 0 | F67: 0 | G67: =+SolVolatility -> 0.2177723568 | H67: 0.15 | I67: 0 | J67: 1 | K67: 1
B68: Max CAGR, Vol <10% | D68: -0.09840785891 | E68: 0 | F68: 0 | G68: =+SolVolatility -> 0.2177723568 | H68: 0.1 | I68: 0 | J68: 1 | K68: 1
B69: Max CAGR, Vol <7% | D69: -0.09840785891 | E69: 0 | F69: 0 | G69: =+SolVolatility -> 0.2177723568 | H69: 0.07 | I69: 0 | J69: 1 | K69: 1
B70: Max CAGR, Sharpe >1.5 | D70: -0.09840785891 | E70: =+SolSharpe -> 0.4518840699 | F70: 1.5 | G70: 0 | H70: 0 | I70: 0 | J70: 1 | K70: 1
B71: Min DrawDown | D71: =-SolMaxDD -> 0.1687242319 | E71: 0 | F71: 0 | G71: 0 | H71: 0 | I71: 0 | J71: 1 | K71: 1
B72: Max CAGR, MaxDD <15% | D72: =-SolCAGR -> -0.09840785891 | E72: 0 | F72: 0 | G72: =-SolMaxDD -> 0.1687242319 | H72: 0.15 | I72: 0 | J72: 1 | K72: 1
B73: Max CAGR, MaxDD <10% | D73: =-SolCAGR -> -0.09840785891 | E73: 0 | F73: 0 | G73: =-SolMaxDD -> 0.1687242319 | H73: 0.1 | I73: 0 | J73: 1 | K73: 1
B74: Max CAGR, MaxDD <7% | D74: =-SolCAGR -> -0.09840785891 | E74: 0 | F74: 0 | G74: =-SolMaxDD -> 0.1687242319 | H74: 0.07 | I74: 0 | J74: 1 | K74: 1
B75: Lev 2: Maximum Sharpe | D75: =-SolSharpe -> -0.4518840699 | E75: 0 | F75: 0 | G75: 0 | H75: 0 | I75: 0 | J75: 2 | K75: 2
B76: Lev 2: Minimum Volatility | D76: =+SolVolatility -> 0.2177723568 | E76: 0 | F76: 0 | G76: 0 | H76: 0 | I76: 0 | J76: 2 | K76: 2
B77: Lev 2: Max CAGR, Vol <15% | D77: =-SolCAGR -> -0.09840785891 | E77: 0 | F77: 0 | G77: =+SolVolatility -> 0.2177723568 | H77: 0.15 | I77: 0 | J77: 2 | K77: 2
B78: Lev 2: Max CAGR, MaxDD <15% | D78: =-SolCAGR -> -0.09840785891 | E78: 0 | F78: 0 | G78: =-SolMaxDD -> 0.1687242319 | H78: 0.15 | I78: 0 | J78: 2 | K78: 2
B79: Lev 2: Minimum DrawDown | D79: =-SolMaxDD -> 0.1687242319 | E79: 0 | F79: 0 | G79: 0 | H79: 0 | I79: 0 | J79: 2 | K79: 2
B80: none
B81: none
B82: none
B83: none
B84: none
B85: none
B86: none
B87: none
B88: none
B89: For Efficient Frontier: | L89: CAGR:
B90: Strategies: MaxCAGR, Vola <0.07 | C90: 0.07 | D90: =-SolCAGR -> -0.09840785891 | E90: 0 | F90: 0 | G90: =+SolVolatility -> 0.2177723568 | H90: =+C90 -> 0.07 | I90: 0 | J90: 1 | K90: 1 | L90: 0.197
B91: Strategies: MaxCAGR, Vola <0.1 | C91: 0.1 | D91: -0.09840785891 | E91: 0 | F91: 0 | G91: 0.2177723568 | H91: =+C91 -> 0.1 | I91: 0 | J91: 1 | K91: 1 | L91: 0.273
B92: Strategies: MaxCAGR, Vola <0.15 | C92: 0.15 | D92: -0.09840785891 | E92: 0 | F92: 0 | G92: 0.2177723568 | H92: 0.15 | I92: 0 | J92: 1 | K92: 1 | L92: 0.391
B93: Strategies: MaxCAGR, Vola <0.2 | C93: 0.2 | D93: -0.09840785891 | E93: 0 | F93: 0 | G93: 0.2177723568 | H93: 0.2 | I93: 0 | J93: 1 | K93: 1 | L93: 0.465
B94: Strategies: MaxCAGR, Vola <0.25 | C94: 0.25 | D94: -0.09840785891 | E94: 0 | F94: 0 | G94: 0.2177723568 | H94: 0.25 | I94: 0 | J94: 1 | K94: 1 | L94: 0.515
B95: Strategies: MaxCAGR, Vola <0.3 | C95: 0.33 | D95: -0.09840785891 | E95: 0 | F95: 0 | G95: 0.2177723568 | H95: =+C95 -> 0.33 | I95: 0 | J95: 1 | K95: 1 | L95: 0.56
B96: Strategies: MaxCAGR, Vola <0.37 | D96: -0.09840785891 | E96: 0 | F96: 0 | G96: 0.2177723568 | H96: 0 | I96: 0 | J96: 1 | K96: 1
B97: Proxies: MaxCAGR, Vola <0.015 | C97: 0.01 | D97: -0.09840785891 | E97: 0 | F97: 0 | G97: 0.2177723568 | H97: =+C97 -> 0.01 | I97: 0 | J97: 1 | K97: 1 | L97: 0.019
B98: Proxies: MaxCAGR, Vola <0.05 | C98: 0.05 | D98: -0.09840785891 | E98: 0 | F98: 0 | G98: 0.2177723568 | H98: 0.05 | I98: 0 | J98: 1 | K98: 1 | L98: 0.0495
B99: Proxies: MaxCAGR, Vola <0.1 | C99: 0.1 | D99: -0.09840785891 | E99: 0 | F99: 0 | G99: 0.2177723568 | H99: 0.1 | I99: 0 | J99: 1 | K99: 1 | L99: 0.098
B100: Proxies: MaxCAGR, Vola <0.15 | C100: 0.161 | D100: -0.09840785891 | E100: 0 | F100: 0 | G100: 0.2177723568 | H100: 0.161 | I100: 0 | J100: 1 | K100: 1 | L100: 0.174
B101: Proxies: MaxCAGR, Vola <0.2 | C101: 0.218 | D101: -0.09840785891 | E101: 0 | F101: 0 | G101: 0.2177723568 | H101: 0.218 | I101: 0 | J101: 1 | K101: 1
B102: Proxies: MaxCAGR, Vola <0.23 | C102: 0.036 | D102: -0.09840785891 | E102: 0 | F102: 0 | G102: 0.2177723568 | H102: =+C102 -> 0.036 | I102: 0 | J102: 1 | K102: 1
O106: Saved Solver model - do not change
O108: =MIN($K$9) -> -0.09840785891
O109: =COUNT($D$55:$Y$55) -> 22
O110: =$K$10>=$K$11 -> FALSE
O111: =$K$12<=$K$13 -> TRUE
O112: =SolCheckExclude=0 -> FALSE
O113: =SolSumWeights=$K$16 -> TRUE
O114: =Weights<=$K$15 -> TRUE
O115: =Weights>=$K$14 -> FALSE
O116: ={1000,32767,0.00001,0.01,FALSE,FALSE,FALSE,1,1,1,0.0001,TRUE} -> 1000
O117: ={1000,0,1,100,0,FALSE,TRUE,0.075,0,0,FALSE,30} -> 1000

Sheet Output (hidden)

Sheet >> Data Tables Do not Change

Sheet PortfolioTemplates
A1: Name | B1: Description | C1: =StratNames -> BRS | D1: BUGST | E1: BUGLEV | F1: WTOP4 | G1: GSRlv | H1: GMRS | I1: GMRSE | J1: MYRS | K1: UIS | L1: UIS-SPXL-TMF | M1: SPY | N1: TLT | O1: AGG | P1: SHY | Q1: GLD | R1: NASDAQ100 | S1: GLD-USD | T1: empty | U1: empty | V1: empty | W1: empty | X1: empty | Y1: Total
A2: Use Manual Input (Column D) | B2: Please select your custom weightings in the list below | C2: =+TRANSPOSE(Input) -> 0 | D2: 0 | E2: 0 | F2: 0 | G2: 0 | H2: 0 | I2: 0 | J2: 0 | K2: 0 | L2: 0 | M2: 0 | N2: 0 | O2: 0 | P2: 0 | Q2: 0 | R2: 0 | S2: 0 | T2: 0 | U2: 0 | V2: 0 | W2: 0 | X2: 0 | Y2: =SUM(C2:X2) -> 0
A3: Use Solver Solution | B3: Select this option to do your own solver solution | C3: =+Weights -> -9.439140556e-06 | D3: -9.565934344e-06 | E3: -9.395438627e-06 | F3: -9.257278458e-06 | G3: -9.015420777e-06 | H3: -8.720063981e-06 | I3: -8.589555979e-06 | J3: -8.573117132e-06 | K3: -9.280563423e-06 | L3: 6.518564142e-05 | M3: 1.00000997 | N3: 0 | O3: 0 | P3: 0 | Q3: 0 | R3: 0 | S3: 6.680681466e-06 | T3: 0 | U3: 0 | V3: 0 | W3: 0 | X3: 0 | Y3: =SUM(C3:X3) -> 1
A4: Maximum Sharpe | C4: 0.3169768395 | D4: 0.04366131852 | E4: 0.06963104459 | F4: 0 | G4: 0.04891009849 | H4: 0 | I4: 0 | J4: 0.09051976604 | K4: 0.06463159526 | L4: 0.01033078581 | M4: 0 | N4: 0 | O4: 0 | P4: 0 | Q4: 0 | R4: 0.1050059083 | S4: 0.2503326435 | T4: 0 | U4: 0 | V4: 0 | W4: 0 | X4: 0 | Y4: =SUM(C4:X4) -> 1
A5: Minimum Volatility | C5: 0.4202254205 | D5: 0.4130087046 | E5: 0 | F5: 0 | G5: 0 | H5: 0 | I5: 0 | J5: 0 | K5: 0.03115153531 | L5: 0 | M5: 0 | N5: 0 | O5: 0 | P5: 0 | Q5: 0 | R5: 0 | S5: 0.1356143396 | T5: 0 | U5: 0 | V5: 0 | W5: 0 | X5: 0 | Y5: 1
A6: Max CAGR, Vol <25% | C6: 0 | D6: 0 | E6: 0 | F6: 0 | G6: 0 | H6: 0 | I6: 0 | J6: 0 | K6: 0 | L6: 0.8601289378 | M6: 0 | N6: 0 | O6: 0 | P6: 0 | Q6: 0 | R6: 0.1398710622 | S6: 0 | T6: 0 | U6: 0 | V6: 0 | W6: 0 | X6: 0 | Y6: 1
A7: Max CAGR, Vol <20% | C7: 0 | D7: 0 | E7: 0 | F7: 0 | G7: 0 | H7: 0 | I7: 0 | J7: 0.144080242 | K7: 0 | L7: 0.4655050322 | M7: 0 | N7: 0 | O7: 0 | P7: 0 | Q7: 0 | R7: 0.3682018152 | S7: 0.02221291057 | T7: 0 | U7: 0 | V7: 0 | W7: 0 | X7: 0 | Y7: 1
A8: Max CAGR, Vol <15% | C8: 0 | D8: 0 | E8: 0 | F8: 0 | G8: 0 | H8: 0 | I8: 0 | J8: 0.1499946738 | K8: 0 | L8: 0.3023468881 | M8: 0 | N8: 0 | O8: 0 | P8: 0 | Q8: 0 | R8: 0.2767671354 | S8: 0.2708913027 | T8: 0 | U8: 0 | V8: 0 | W8: 0 | X8: 0 | Y8: 1
A9: Max CAGR, Vol <10% | C9: 0.09136223624 | D9: 0.04473418285 | E9: 0.07373357986 | F9: 0.01638210223 | G9: 0.06998700901 | H9: 0 | I9: 0 | J9: 0.1459232698 | K9: 0.06437884274 | L9: 0.02680163705 | M9: 0 | N9: 0 | O9: 0 | P9: 0 | Q9: 0 | R9: 0.2100329213 | S9: 0.2566642189 | T9: 0 | U9: 0 | V9: 0 | W9: 0 | X9: 0 | Y9: 1
A10: Max CAGR, Vol <7% | C10: 0.3656945927 | D10: 0 | E10: 0.06010893565 | F10: 0 | G10: 0.005316408697 | H10: -1e-05 | I10: 0 | J10: 0.05120126198 | K10: 0.1577614078 | L10: 0 | M10: 0 | N10: 0 | O10: 0 | P10: 0 | Q10: 0 | R10: 0.06329693312 | S10: 0.29663046 | T10: 0 | U10: 0 | V10: 0 | W10: 0 | X10: 0 | Y10: 1
A11: Max CAGR, Sharpe >1.5 | C11: 0 | D11: 0 | E11: 0 | F11: 0 | G11: 0 | H11: 0 | I11: 0 | J11: 0 | K11: 0 | L11: 1 | M11: 0 | N11: 0 | O11: 0 | P11: 0 | Q11: 0 | R11: 0 | S11: 0 | T11: 0 | U11: 0 | V11: 0 | W11: 0 | X11: 0 | Y11: 1
A12: Min DrawDown | C12: 0.2997866447 | D12: 0.08398078774 | E12: 0.06095983831 | F12: 0.07140257945 | G12: 0.06148800849 | H12: 3.800332611e-05 | I12: 0 | J12: 0.009115983548 | K12: 0.03248293983 | L12: 0.006883838045 | M12: 0 | N12: 0 | O12: 0 | P12: 0 | Q12: 0 | R12: 0.03893039835 | S12: 0.3349309782 | T12: 0 | U12: 0 | V12: 0 | W12: 0 | X12: 0 | Y12: 1
A13: Max CAGR, MaxDD <15% | C13: 0 | D13: 0 | E13: 0 | F13: 0 | G13: 0 | H13: 0 | I13: 0 | J13: 0 | K13: 0 | L13: 0.2916622543 | M13: 0 | N13: 0 | O13: 0 | P13: 0 | Q13: 0 | R13: 0.6348751656 | S13: 0.07346258017 | T13: 0 | U13: 0 | V13: 0 | W13: 0 | X13: 0 | Y13: 1
A14: Max CAGR, MaxDD <10% | C14: 0 | D14: 0 | E14: 0 | F14: 0 | G14: 0 | H14: 0 | I14: 0 | J14: 0.02504826522 | K14: 0 | L14: 0.1694766817 | M14: 0 | N14: 0 | O14: 0 | P14: 0 | Q14: 0 | R14: 0.5227193525 | S14: 0.2827557006 | T14: 0 | U14: 0 | V14: 0 | W14: 0 | X14: 0 | Y14: 1
A15: Max CAGR, MaxDD <7% | C15: 0.005279859559 | D15: 0.02615738972 | E15: 0.07812732352 | F15: 0.08813438573 | G15: 0.1245985536 | H15: 0.02443918201 | I15: 0 | J15: 0.1243575135 | K15: 0.0784199771 | L15: 0.01605115901 | M15: 0 | N15: 0 | O15: 0 | P15: 0 | Q15: 0 | R15: 0.2231959916 | S15: 0.2112386647 | T15: 0 | U15: 0 | V15: 0 | W15: 0 | X15: 0 | Y15: 1
A16: Lev 2: Maximum Sharpe | C16: 0.5089576731 | D16: 0.1230323163 | E16: 0.152319275 | F16: 0.05886270277 | G16: 0.120001488 | H16: 0 | I16: 0 | J16: 0.1954717837 | K16: 0.1293458747 | L16: 0.05073955169 | M16: 0 | N16: 0 | O16: 0 | P16: 0 | Q16: 0 | R16: 0.2623871002 | S16: 0.3988822345 | T16: 0 | U16: 0 | V16: 0 | W16: 0 | X16: 0 | Y16: 2
A17: Lev 2: Minimum Volatility | C17: 0.8410026985 | D17: 0.8233172719 | E17: 0 | F17: 0 | G17: 0 | H17: 0 | I17: 0 | J17: 0 | K17: 0.06366771735 | L17: 0 | M17: 0 | N17: 0 | O17: 0 | P17: 0 | Q17: 0 | R17: 0 | S17: 0.2720123122 | T17: 0 | U17: 0 | V17: 0 | W17: 0 | X17: 0 | Y17: 2
A18: Lev 2: Max CAGR, Vol <15% | C18: 0.5218456473 | D18: 0.1428456364 | E18: 0.174546229 | F18: 0 | G18: 0.1097798893 | H18: 0 | I18: 0 | J18: 0.1155326054 | K18: 0.2039657537 | L18: 0 | M18: 0 | N18: 0 | O18: 0 | P18: 0 | Q18: 0 | R18: 0.2102163931 | S18: 0.5212678458 | T18: 0 | U18: 0 | V18: 0 | W18: 0 | X18: 0 | Y18: 2
A19: Lev 2: Max CAGR, MaxDD <15% | C19: 1e-05 | D19: 0.1663524552 | E19: 0.1697894575 | F19: 0.1838421892 | G19: 0.2177961444 | H19: 0.1876620348 | I19: 0 | J19: 0.2743551449 | K19: 0.1720572202 | L19: 0 | M19: 0 | N19: 0 | O19: 0 | P19: 0 | Q19: 0 | R19: 0.312568449 | S19: 0.3155669047 | T19: 0 | U19: 0 | V19: 0 | W19: 0 | X19: 0 | Y19: 2
A20: Lev 2: Minimum DrawDown | C20: 0.538354054 | D20: 0.1664519779 | E20: 0.1140725144 | F20: 0.1519168341 | G20: 0.1338262928 | H20: 0 | I20: 0 | J20: 0.06205858305 | K20: 0.07007894685 | L20: 6.370940885e-07 | M20: 0 | N20: 0 | O20: 0 | P20: 0 | Q20: 0 | R20: 0.1045856885 | S20: 0.6586544713 | T20: 0 | U20: 0 | V20: 0 | W20: 0 | X20: 0 | Y20: 2

Sheet ReturnData
A1: Date | B1: BRS | C1: BUGST | D1: BUGLEV | E1: WTOP4 | F1: GSRlv | G1: GMRS | H1: GMRSE | I1: MYRS | J1: UIS | K1: UIS-SPXL-TMF | L1: SPY | M1: TLT | N1: AGG | O1: SHY | P1: GLD | Q1: NASDAQ100 | R1: GLD-USD | S1: empty | T1: empty | U1: empty | V1: empty | W1: empty
A2: 2008-03-12 | B2: 0.009544259663 | C2: 0.008309283699 | D2: 0.01244018404 | E2: 0 | F2: 0.01760192686 | G2: -0.006051915867 | H2: 0.001563877112 | I2: 0 | J2: 0.01642008413 | K2: -0.01499098865 | L2: -0.009351474458 | M2: 0.01929088345 | N2: 0.01024428937 | O2: 0.003220472317 | P2: 0.01062614878 | Q2: 0 | R2: 0 | S2: 0 | T2: 0 | U2: 0 | V2: 0 | W2: 0
A3: 2008-03-13 | B3: -0.003932720013 | C3: 0.0005128473806 | D3: -0.00118256103 | E3: 0 | F3: -0.007598532297 | G3: 0.01045838072 | H3: 0.004567102417 | I3: 0 | J3: -0.006844143332 | K3: 0.05060661375 | L3: 0.00220761527 | M3: -0.007824122098 | N3: -0.004290121214 | O3: -0.0004755836239 | P3: 0.01370986468 | Q3: 0 | R3: 0 | S3: 0 | T3: 0 | U3: 0 | V3: 0 | W3: 0
A4: 2008-03-14 | B4: 0.006728786898 | C4: 0.00347065877 | D4: 0.00610278208 | E4: 0 | F4: 0.01142677214 | G4: -0.01460369479 | H4: -0.02098312604 | I4: 0 | J4: 0.00961541847 | K4: -0.02114420721 | L4: -0.01549558178 | M4: 0.0123615149 | N4: 0.004210736944 | O4: 0.00297371107 | P4: 0.003762487442 | Q4: 0 | R4: 0 | S4: 0 | T4: 0 | U4: 0 | V4: 0 | W4: 0
A5: 2008-03-17 | B5: 0.00287409256 | C5: -0.0006012688309 | D5: 0.0006491876849 | E5: 0 | F5: 0.005590766267 | G5: -0.02460429895 | H5: -0.0357213515 | I5: 0 | J5: 0.005974012327 | K5: 0.03023315761 | L5: -0.01010722424 | M5: 0.007684234515 | N5: 0.004290539322 | O5: 0.002253353952 | P5: 0.004660105406 | Q5: 0 | R5: 0 | S5: 0 | T5: 0 | U5: 0 | V5: 0 | W5: 0
A6: 2008-03-18 | B6: -0.004341250004 | C6: -0.00792521353 | D6: -0.009064447757 | E6: 0 | F6: -0.004493943944 | G6: 0.04174660765 | H6: 0.05206829172 | I6: 0 | J6: 0.0004300847243 | K6: 0.01938075895 | L6: 0.04154327119 | M6: -0.003865065591 | N6: -0.002330301661 | O6: -0.00354991033 | P6: -0.02692344513 | Q6: 0 | R6: 0 | S6: 0 | T6: 0 | U6: 0 | V6: 0 | W6: 0
A7: 2008-03-19 | B7: 0.005700047432 | C7: -0.005468863842 | D7: -0.002159285459 | E7: 0 | F7: 0.01345100486 | G7: -0.02931181689 | H7: -0.0667448783 | I7: 0 | J7: 0.0124979182 | K7: -0.001646053554 | L7: -0.02476986363 | M7: 0.01656881527 | N7: 0.003017002982 | O7: 0.001068795715 | P7: -0.03585491192 | Q7: 0 | R7: 0 | S7: 0 | T7: 0 | U7: 0 | V7: 0 | W7: 0
A8: 2008-03-20 | B8: -0.0002218997434 | C8: -0.00735438822 | D8: -0.006881807965 | E8: 0 | F8: 0.001608545422 | G8: 0.01655360267 | H8: 0.001089910951 | I8: 0 | J8: 0.003997828756 | K8: 0.03979150177 | L8: 0.01852276564 | M8: 0.002475736942 | N8: 0.003493122296 | O8: -0.001186311746 | P8: -0.03364141193 | Q8: 0 | R8: 0 | S8: 0 | T8: 0 | U8: 0 | V8: 0 | W8: 0
A9: 2008-03-24 | B9: -0.01068746579 | C9: -0.007557811779 | D9: -0.01227057682 | E9: 0 | F9: -0.01823811625 | G9: 0.03029422518 | H9: 0.02156622918 | I9: 0 | J9: -0.01556068498 | K9: 0.01107096977 | L9: 0.01998787674 | M9: -0.01934551375 | N9: -0.007348617356 | O9: -0.004156749716 | P9: 0.002113157508 | Q9: 0 | R9: 0 | S9: 0 | T9: 0 | U9: 0 | V9: 0 | W9: 0
A10: 2008-03-25 | B10: 0.001748585938 | C10: 0.007320960745 | D10: 0.008022773545 | E10: 0 | F10: 0.003492661984 | G10: 0.005936625146 | H10: 0.02984213598 | I10: 0 | J10: 0.00387495851 | K10: -0.04949362935 | L10: 0.0009649987909 | M10: 0.004197208137 | N10: 0.001850720162 | O10: 0.0007156331521 | P10: 0.02918984527 | Q10: 0 | R10: 0 | S10: 0 | T10: 0 | U10: 0 | V10: 0 | W10: 0
A11: 2008-03-26 | B11: 0.001162334967 | C11: 0.003042315349 | D11: 0.002705818187 | E11: 0 | F11: -0.002014182017 | G11: -0.01201134085 | H11: 0.01046848804 | I11: 0 | J11: -0.004980530949 | K11: 0.01169110737 | L11: -0.01223588433 | M11: -0.004179665212 | N11: -0.002916832624 | O11: 0.002145064217 | P11: 0.01153887593 | Q11: 0 | R11: 0 | S11: 0 | T11: 0 | U11: 0 | V11: 0 | W11: 0
A12: 2008-03-27 | B12: -0.002009159043 | C12: -0.001443810822 | D12: -0.002423170962 | E12: 0 | F12: -0.006059833886 | G12: -0.006535548471 | H12: -0.01036003414 | I12: 0 | J12: -0.006647851009 | K12: -0.01447634461 | L12: -0.003153135156 | M12: -0.007030486884 | N12: 0.0003899847859 | O12: 0.001070320969 | P12: -0.003624776003 | Q12: 0 | R12: 0 | S12: 0 | T12: 0 | U12: 0 | V12: 0 | W12: 0
A13: 2008-03-28 | B13: 0.003527865873 | C13: -0.0006682348048 | D13: 0.00142560886 | E13: 0 | F13: 0.008162758528 | G13: -0.004456314564 | H13: -0.004816266939 | I13: 0 | J13: 0.007812110109 | K13: -0.02050305843 | L13: -0.00956472663 | M13: 0.009722131172 | N13: 0.002436896232 | O13: 0.0004751881585 | P13: -0.01690564966 | Q13: 0 | R13: 0 | S13: 0 | T13: 0 | U13: 0 | V13: 0 | W13: 0
A14: 2008-03-31 | B14: 0.0008111549961 | C14: -0.002728786869 | D14: -0.001925216919 | E14: 0 | F14: 0.002477233388 | G14: 0.002984207593 | H14: 0.009919193823 | I14: 0 | J14: 0.003552431233 | K14: 0.02483781335 | L14: 0.0034978875 | M14: 0.003558315832 | N14: -0.001555779427 | O14: 0.0002374357552 | P14: -0.01599905364 | Q14: 0 | R14: 0 | S14: 0 | T14: 0 | U14: 0 | V14: 0 | W14: 0
A15: 2008-04-01 | B15: -0.007556492142 | C15: -0.01457104224 | D15: -0.01817257194 | E15: 0 | F15: -0.01388585273 | G15: 0.03180647553 | H15: 0.03782177884 | I15: 0 | J15: -0.01113148225 | K15: 0.01051691897 | L15: 0.03515949885 | M15: -0.01627492338 | N15: -0.006796041534 | O15: -0.003616197193 | P15: -0.03926559941 | Q15: 0 | R15: 0 | S15: 0 | T15: 0 | U15: 0 | V15: 0 | W15: 0
A16: 2008-04-02 | B16: -0.0002798479023 | C16: 0.006924039811 | D16: 0.007094708964 | E16: 0 | F16: 0.001202603932 | G16: 0.0003691739008 | H16: 0.008204537143 | I16: 0 | J16: 0.001975293033 | K16: -0.03384061723 | L16: 0.0006587823247 | M16: 0.002129216941 | N16: 0.0004923016513 | O16: -0.0008357205663 | P16: 0.02774575147 | Q16: 0 | R16: 0 | S16: 0 | T16: 0 | U16: 0 | V16: 0 | W16: 0
A17: 2008-04-03 | B17: 0.0001060217214 | C17: 0.002081264258 | D17: 0.002484585725 | E17: 0 | F17: 0.001581828765 | G17: 0.001660681357 | H17: 0.00866767674 | I17: 0 | J17: 0.002257728308 | K17: 0.005443409928 | L17: 0.002487171186 | M17: 0.002230943631 | N17: 0.0031489849 | O17: -0.0007169907162 | P17: 0.00168030699 | Q17: 0 | R17: 0 | S17: 0 | T17: 0 | U17: 0 | V17: 0 | W17: 0
A18: 2008-04-04 | B18: 0.005882044447 | C18: 0.004189641689 | D18: 0.005948881107 | E18: 0 | F18: 0.009554185607 | G18: 0.005434310551 | H18: 0.006867090986 | I18: 0 | J18: 0.008048281988 | K18: 0.007057681423 | L18: -0.001094531211 | M18: 0.009115966342 | N18: 0.005101007344 | O18: 0.001793632328 | P18: 0.009282062386 | Q18: 0 | R18: 0 | S18: 0 | T18: 0 | U18: 0 | V18: 0 | W18: 0
A19: 2008-04-07 | B19: -0.003777535324 | C19: 0.0001416202032 | D19: -0.0007035227233 | E19: 0 | F19: -0.005446191256 | G19: 0.00494680684 | H19: 0.005105814206 | I19: 0 | J19: -0.004654882251 | K19: 0.02429918552 | L19: 0.000511414513 | M19: -0.005252093181 | N19: -9.761513642e-05 | O19: -0.001909708509 | P19: 0.01019388366 | Q19: 0 | R19: 0 | S19: 0 | T19: 0 | U19: 0 | V19: 0 | W19: 0
A20: 2008-04-08 | B20: 2.020153456e-05 | C20: -0.00229339483 | D20: -0.002842966195 | E20: 0 | F20: -0.002019691148 | G20: -0.009115792152 | H20: 0.002892234905 | I20: 0 | J20: -0.003228147068 | K20: -0.01428355675 | L20: -0.00102219325 | M20: -0.003484627883 | N20: -9.756176358e-05 | O20: 0.0005978792505 | P20: -0.008994186882 | Q20: 0 | R20: 0 | S20: 0 | T20: 0 | U20: 0 | V20: 0 | W20: 0
A21: 2008-04-09 | B21: 0.005046570609 | C21: 0.006420924125 | D21: 0.008592228634 | E21: 0 | F21: 0.009282930428 | G21: -0.003863809315 | H21: -0.009686870864 | I21: 0 | J21: 0.008545256364 | K21: -0.009617951118 | L21: -0.007235821918 | M21: 0.01038461091 | N21: 0.004392783711 | O21: 0.001912323607 | P21: 0.02147208681 | Q21: 0 | R21: 0 | S21: 0 | T21: 0 | U21: 0 | V21: 0 | W21: 0
A22: 2008-04-10 | B22: -0.001981816059 | C22: -0.002502023097 | D22: -0.003221998171 | E22: 0 | F22: -0.003477606166 | G22: -0.002955300509 | H22: 0.007205551491 | I22: 0 | J22: -0.002867481819 | K22: 0.02570266443 | L22: 0.001398828917 | M22: -0.003356064274 | N22: -0.003110116207 | O22: -0.0003578575758 | P22: -0.005634456543 | Q22: 0 | R22: 0 | S22: 0 | T22: 0 | U22: 0 | V22: 0 | W22: 0
A23: 2008-04-11 | B23: 0.004077939844 | C23: 0.002228949565 | D23: 0.003496460498 | E23: 0 | F23: 0.006608520739 | G23: -0.01630235494 | H23: -0.01586482516 | I23: 0 | J23: 0.004036860532 | K23: -0.008919684396 | L23: -0.01940890976 | M23: 0.006734716979 | N23: 0.002144890627 | O23: 0.001670643294 | P23: -0.005121434187 | Q23: 0 | R23: 0 | S23: 0 | T23: 0 | U23: 0 | V23: 0 | W23: 0
A24: 2008-04-14 | B24: -0.002788625581 | C24: -0.001974323922 | D24: -0.002925145197 | E24: 0 | F24: -0.005410540858 | G24: 0.001977443229 | H24: 0.003276808754 | I24: 0 | J24: -0.005603542547 | K24: 0.0122086658 | L24: -0.003373910593 | M24: -0.005853437197 | N24: -0.001167457977 | O24: -0.0005957040645 | P24: -0.002081073316 | Q24: 0 | R24: 0 | S24: 0 | T24: 0 | U24: 0 | V24: 0 | W24: 0
A25: 2008-04-15 | B25: -0.004356802751 | C25: -0.001811146057 | D25: -0.003544251108 | E25: 0 | F25: -0.009898091994 | G25: 0.004886757728 | H25: 0.01088717051 | I25: 0 | J25: -0.01091791036 | K25: -0.016834802 | L25: 0.002332149508 | M25: -0.01240668331 | N25: -0.005356922273 | O25: -0.001311249401 | P25: 0.006036691845 | Q25: 0 | R25: 0 | S25: 0 | T25: 0 | U25: 0 | V25: 0 | W25: 0
A26: 2008-04-16 | B26: -0.005119861067 | C26: -0.0004151693715 | D26: -0.00185306285 | E26: 0 | F26: -0.008946225427 | G26: 0.03011316384 | H26: 0.02759312361 | I26: 0 | J26: -0.006018489841 | K26: -0.03318362816 | L26: 0.02709397232 | M26: -0.009794506493 | N26: -0.003623217032 | O26: -0.002148479097 | P26: 0.01756483668 | Q26: 0 | R26: 0 | S26: 0 | T26: 0 | U26: 0 | V26: 0 | W26: 0
A27: 2008-04-17 | B27: -0.002303287893 | C27: -0.002543255628 | D27: -0.003324070003 | E27: 0 | F27: -0.002271773882 | G27: -0.01280076443 | H27: 0.01156486509 | I27: 0 | J27: -0.001383741067 | K27: -0.01825221198 | L27: 0.001461429969 | M27: -0.001720284128 | N27: -0.0001965165647 | O27: -0.001794275935 | P27: -0.007612297875 | Q27: 0 | R27: 0 | S27: 0 | T27: 0 | U27: 0 | V27: 0 | W27: 0
A28: 2008-04-18 | B28: -0.0008631080573 | C28: -0.003538707158 | D28: -0.004145910337 | E28: 0 | F28: -0.0009965205046 | G28: 0.01213904511 | H28: 0.0001071643089 | I28: 0 | J28: 0.0003365632784 | K28: -0.004098582791 | L28: 0.01043409471 | M28: -0.0008616243028 | N28: 0.002654052538 | O28: -0.0005991103452 | P28: -0.02095932413 | Q28: 0 | R28: 0 | S28: 0 | T28: 0 | U28: 0 | V28: 0 | W28: 0
A29: 2008-04-21 | B29: 0.0008763764061 | C29: 2.761311237e-05 | D29: 0.0002979848511 | E29: 0 | F29: 0.003358699532 | G29: 0.002544043028 | H29: 0.01800449925 | I29: 0 | J29: 0.003615213947 | K29: 0.001294136123 | L29: 0.0005055425654 | M29: 0.003988383767 | N29: 9.805536003e-05 | O29: -0.0009592506998 | P29: -0.004083016859 | Q29: 0 | R29: 0 | S29: 0 | T29: 0 | U29: 0 | V29: 0 | W29: 0
A30: 2008-04-22 | B30: 0.001023522872 | C30: 0.001191090916 | D30: 0.001762409068 | E30: 0 | F30: 0.002560917106 | G30: -0.008790955762 | H30: -0.003719652641 | I30: 0 | J30: 0.002598436168 | K30: 0.01074166101 | L30: -0.004402746397 | M30: 0.003435681984 | N30: 0.001470458766 | O30: 0.000360034916 | P30: 0.0002215734072 | Q30: 0 | R30: 0 | S30: 0 | T30: 0 | U30: 0 | V30: 0 | W30: 0
A31: 2008-04-23 | B31: -0.001496683189 | C31: -0.003015660947 | D31: -0.003738467459 | E31: 0 | F31: -0.003160052443 | G31: 0.001280070026 | H31: -0.005670860735 | I31: 0 | J31: -0.003134244844 | K31: 0.007858795163 | L31: -0.001594902771 | M31: -0.003316892185 | N31: -0.0009789169262 | O31: 0 | P31: -0.01163172743 | Q31: 0 | R31: 0 | S31: 0 | T31: 0 | U31: 0 | V31: 0 | W31: 0
A32: 2008-04-24 | B32: -0.004806129669 | C32: -0.006934650139 | D32: -0.009132400705 | E32: 0 | F32: -0.007674944161 | G32: -0.003926587072 | H32: -0.01888057803 | I32: 0 | J32: -0.00711719616 | K32: -0.009405176794 | L32: 0.004356706097 | M32: -0.00848095629 | N32: -0.003723269197 | O32: -0.002759392165 | P32: -0.02241649829 | Q32: 0 | R32: 0 | S32: 0 | T32: 0 | U32: 0 | V32: 0 | W32: 0
A33: 2008-04-25 | B33: -0.002057533618 | C33: -0.001089921538 | D33: -0.001822538522 | E33: 0 | F33: -0.005053638484 | G33: 0.009809318083 | H33: -0.01148141645 | I33: 0 | J33: -0.004224003947 | K33: -0.02119414038 | L33: 0.009253898806 | M33: -0.005846695644 | N33: -0.0009834620661 | O33: 0.0001202347141 | P33: 0.0005732171455 | Q33: 0 | R33: 0 | S33: 0 | T33: 0 | U33: 0 | V33: 0 | W33: 0
A34: 2008-04-28 | B34: 0.00304617181 | C34: 0.001571019586 | D34: 0.002260403064 | E34: 0 | F34: 0.004052684379 | G34: 0.0007262821852 | H34: 0.001826251357 | I34: 0 | J34: 0.002740704148 | K34: -0.01229211459 | L34: 0.0002148850759 | M34: 0.003049421215 | N34: 0.002461113604 | O34: 0.001082691677 | P34: 0.004812707854 | Q34: 0 | R34: 0 | S34: 0 | T34: 0 | U34: 0 | V34: 0 | W34: 0
A35: 2008-04-29 | B35: 0.0006312681218 | C35: -0.002573182813 | D35: -0.002528424798 | E35: 0 | F35: 0.002651593626 | G35: -0.008164732994 | H35: -0.0342338673 | I35: 0 | J35: 0.002959414829 | K35: 0.007984123234 | L35: -0.003938997443 | M35: 0.003800198791 | N35: 0.001473058025 | O35: -0.0002403773038 | P35: -0.02143920581 | Q35: 0 | R35: 0 | S35: 0 | T35: 0 | U35: 0 | V35: 0 | W35: 0
A36: 2008-04-30 | B36: 0.003552380864 | C36: 0.003656948039 | D36: 0.005180422038 | E36: 0 | F36: 0.006166650952 | G36: 0.003018401679 | H36: 0.04379009915 | I36: 0 | J36: 0.005732678706 | K36: 0.008763302618 | L36: -0.005895942189 | M36: 0.007139039683 | N36: 0.00607957542 | O36: 0.001923126419 | P36: 0.009789115716 | Q36: 0 | R36: 0 | S36: 0 | T36: 0 | U36: 0 | V36: 0 | W36: 0
A37: 2008-05-01 | B37: 0.006118264849 | C37: -0.004578831122 | D37: -0.005403231722 | E37: 0 | F37: -0.00457103264 | G37: 0.01345387076 | H37: 0.01345388007 | I37: 0 | J37: 0.01243724166 | K37: -0.001741849124 | L37: 0.02068567193 | M37: 6.460319576e-05 | N37: -0.001701298507 | O37: -0.001778862108 | P37: -0.03069825665 | Q37: 0 | R37: 0 | S37: 0 | T37: 0 | U37: 0 | V37: 0 | W37: 0
A38: 2008-05-02 | B38: -0.004849302217 | C38: -0.001435164061 | D38: -0.003160997398 | E38: 0 | F38: 0.003931137086 | G38: 0.01491689136 | H38: 0.01491689335 | I38: 0 | J38: -0.003310870408 | K38: 0.03584063149 | L38: 0.00276360294 | M38: -0.01261045647 | N38: -0.001665025378 | O38: -0.001324509916 | P38: 0.007024693583 | Q38: 0 | R38: 0 | S38: 0 | T38: 0 | U38: 0 | V38: 0 | W38: 0
A39: 2008-05-05 | B39: 0.001725052623 | C39: 0.005314203915 | D39: 0.00609441351 | E39: 0 | F39: 0.003579679709 | G39: 0.01086498987 | H39: 0.01086496898 | I39: 0 | J39: -0.002924361425 | K39: -0.01022888749 | L39: -0.004805261904 | M39: 0 | N39: 0.0003924411264 | O39: 0.001085086577 | P39: 0.01998102341 | Q39: 0 | R39: 0 | S39: 0 | T39: 0 | U39: 0 | V39: 0 | W39: 0
A40: 2008-05-06 | B40: -0.00411734386 | C40: -0.0002758182653 | D40: -0.001331785114 | E40: 0 | F40: 0.01081679248 | G40: 0.005495807012 | H40: 0.00549580495 | I40: 0 | J40: 0.002433809061 | K40: -0.008574791409 | L40: 0.008662934256 | M40: -0.007204494634 | N40: -0.003236258962 | O40: 0.0006022176795 | P40: 0.004172945549 | Q40: 0 | R40: 0 | S40: 0 | T40: 0 | U40: 0 | V40: 0 | W40: 0
A41: 2008-05-07 | B41: 0.001857498471 | C41: -0.0009020948585 | D41: -0.0002327972138 | E41: 0 | F41: -0.009639707894 | G41: -0.02725983776 | H41: -0.02725983205 | I41: 0 | J41: -0.009218683892 | K41: 0.006976540317 | L41: -0.01781062645 | M41: 0.004288063682 | N41: 0.002853205497 | O41: 0.001203644872 | P41: -0.009350075356 | Q41: 0 | R41: 0 | S41: 0 | T41: 0 | U41: 0 | V41: 0 | W41: 0
A42: 2008-05-08 | B42: 0.001270222698 | C42: 0.007297589685 | D42: 0.009660238724 | E42: 0 | F42: 0.01027278056 | G42: 0.008606282967 | H42: 0.00860630304 | I42: 0 | J42: 0.001974638741 | K42: -0.02763694299 | L42: -0.002580278641 | M42: 0.008977524749 | N42: 0.002550797997 | O42: 0.000841550289 | P42: 0.01654623631 | Q42: 0 | R42: 0 | S42: 0 | T42: 0 | U42: 0 | V42: 0 | W42: 0
A43: 2008-05-09 | B43: -0.00155183093 | C43: 0.001793808664 | D43: 0.002611778225 | E43: 0 | F43: -0.001337775113 | G43: -0.002679724736 | H43: -0.002679724683 | I43: 0 | J43: 0.0003371394789 | K43: 0.006160135743 | L43: -0.001868419587 | M43: 0.003689204728 | N43: 0.0003914300628 | O43: 0.0003603443156 | P43: 0.002063273775 | Q43: 0 | R43: 0 | S43: 0 | T43: 0 | U43: 0 | V43: 0 | W43: 0
A44: 2008-05-12 | B44: 0.001307539039 | C44: -0.001836266729 | D44: -0.002493798728 | E44: 0 | F44: 0.005324449001 | G44: 0.02064697072 | H44: 0.02064695583 | I44: 0 | J44: 0.006156469406 | K44: 0.00114380748 | L44: 0.01123119425 | M44: -0.001513511455 | N44: -0.001760733506 | O44: -0.001921183337 | P44: -0.004918783 | Q44: 0 | R44: 0 | S44: 0 | T44: 0 | U44: 0 | V44: 0 | W44: 0
A45: 2008-05-13 | B45: -0.004578111603 | C45: -0.008086499698 | D45: -0.01090943384 | E45: 0 | F45: 0.001022873741 | G45: 0.002078400652 | H45: 0.002078389427 | I45: 0 | J45: -0.004235061775 | K45: 0.01776930392 | L45: 0.0001423089908 | M45: -0.01093549833 | N45: -0.005683509705 | O45: -0.001684302355 | P45: -0.01839290765 | Q45: 0 | R45: 0 | S45: 0 | T45: 0 | U45: 0 | V45: 0 | W45: 0
A46: 2008-05-14 | B46: 0.0007354379878 | C46: -0.0001894566689 | D46: -0.000221482956 | E46: 0 | F46: -0.001801750876 | G46: 0.001555544952 | H46: 0.001555546121 | I46: 0 | J46: 0.001426020197 | K46: -0.01301783236 | L46: 0.002064410827 | M46: 0.0004378960875 | N46: 0.001478284595 | O46: -0.0007231386492 | P46: -0.002225108353 | Q46: 0 | R46: 0 | S46: 0 | T46: 0 | U46: 0 | V46: 0 | W46: 0
A47: 2008-05-15 | B47: 0.004399805336 | C47: 0.008308868458 | D47: 0.01081701592 | E47: 0 | F47: 0.01238544275 | G47: 0.02101881811 | H47: 0.02101880498 | I47: 0 | J47: 0.01116138411 | K47: 0.004442417949 | L47: 0.01250262971 | M47: 0.009081967579 | N47: 0.005313920941 | O47: 0.0008441890404 | P47: 0.02112679652 | Q47: 0 | R47: 0 | S47: 0 | T47: 0 | U47: 0 | V47: 0 | W47: 0
A48: 2008-05-16 | B48: -0.001656090549 | C48: 0.005106439141 | D48: 0.005126808664 | E48: 0 | F48: 0.01585287421 | G48: 0.02129596572 | H48: 0.02129599975 | I48: 0 | J48: -0.001057167992 | K48: 0.03305925021 | L48: 0.0009121212283 | M48: -0.004120626046 | N48: -0.002447137431 | O48: 0.0002410478309 | P48: 0.02413790805 | Q48: 0 | R48: 0 | S48: 0 | T48: 0 | U48: 0 | V48: 0 | W48: 0
A49: 2008-05-19 | B49: 0.003673376106 | C49: 0.001869190891 | D49: 0.002415537339 | E49: 0 | F49: 0.004616801268 | G49: 0.009764027863 | H49: 0.009764012392 | I49: 0 | J49: 0.002177056315 | K49: -0.003129896078 | L49: 0.002733769964 | M49: 0.001306650906 | N49: 0.001668116952 | O49: 0.001084158423 | P49: 0.003254781218 | Q49: 0 | R49: 0 | S49: 0 | T49: 0 | U49: 0 | V49: 0 | W49: 0
A50: 2008-05-20 | B50: 0.0003084278074 | C50: 0.006537065294 | D50: 0.008271394598 | E50: 0 | F50: -0.0001043016585 | G50: -0.0002949856777 | H50: -0.0002949582818 | I50: 0 | J50: -0.002914102377 | K50: 0.006351373942 | L50: -0.008109080159 | M50: 0.005219698197 | N50: 0.002155185271 | O50: 0.001444083983 | P50: 0.01689230358 | Q50: 0 | R50: 0 | S50: 0 | T50: 0 | U50: 0 | V50: 0 | W50: 0
A51: 2008-05-21 | B51: -0.0003546314641 | C51: 0.003186350556 | D51: 0.003483452506 | E51: 0 | F51: -0.00565222469 | G51: -0.01534476075 | H51: -0.01534480168 | I51: 0 | J51: -0.0101831728 | K51: -0.008724559297 | L51: -0.01691446702 | M51: 0.0002163099537 | N51: -0.001368519537 | O51: -0.001081527401 | P51: 0.01166113286 | Q51: 0 | R51: 0 | S51: 0 | T51: 0 | U51: 0 | V51: 0 | W51: 0
A52: 2008-05-22 | B52: -0.005693190129 | C52: -0.006290133767 | D52: -0.009087837859 | E52: 0 | F52: 0.001357160086 | G52: -0.004761743529 | H52: -0.004761721751 | I52: 0 | J52: -0.004594527081 | K52: -0.02993958184 | L52: 0.0001432985948 | M52: -0.01178883669 | N52: -0.00597102992 | O52: -0.002766693349 | P52: -0.01065676393 | Q52: 0 | R52: 0 | S52: 0 | T52: 0 | U52: 0 | V52: 0 | W52: 0
A53: 2008-05-23 | B53: -0.004554870252 | C53: 0.002398512722 | D53: 0.003551448462 | E53: 0 | F53: -0.008334792162 | G53: -0.004449986956 | H53: -0.00444998541 | I53: 0 | J53: -0.006394551635 | K53: -0.01397611094 | L53: -0.01340402662 | M53: 0.004377731253 | N53: 0.003840476557 | O53: 0.001929989662 | P53: 0.002747856581 | Q53: 0 | R53: 0 | S53: 0 | T53: 0 | U53: 0 | V53: 0 | W53: 0
A54: 2008-05-27 | B54: -0.002803572026 | C54: -0.007944698784 | D54: -0.01002892746 | E54: 0 | F54: -0.007315534301 | G54: -0.01445129939 | H54: -0.01445129592 | I54: 0 | J54: 0.001765714712 | K54: -0.01893957569 | L54: 0.007410668117 | M54: -0.006755956864 | N54: -0.005591526181 | O54: -0.001083518966 | P54: -0.02049766457 | Q54: 0 | R54: 0 | S54: 0 | T54: 0 | U54: 0 | V54: 0 | W54: 0
A55: 2008-05-28 | B55: -0.003201212419 | C55: -0.004425669885 | D55: -0.006505407278 | E55: 0 | F55: 0.005081426941 | G55: 0.02762148295 | H55: 0.02762147024 | I55: 0 | J55: -0.0007187917589 | K55: 0.004629476842 | L55: 0.004615604057 | M55: -0.008886509103 | N55: -0.004636488799 | O55: -0.001807893812 | P55: -0.00246197401 | Q55: 0 | R55: 0 | S55: 0 | T55: 0 | U55: 0 | V55: 0 | W55: 0
A56: 2008-05-29 | B56: 0.002157905849 | C56: -0.00925374552 | D56: -0.01151648672 | E56: 0 | F56: -0.006888821493 | G56: -0.01237768034 | H56: -0.01237767623 | I56: 0 | J56: 0.0002366759264 | K56: -0.002256910263 | L56: 0.005025102404 | M56: -0.007194976883 | N56: -0.002775015847 | O56: -0.0003622152191 | P56: -0.02950411745 | Q56: 0 | R56: 0 | S56: 0 | T56: 0 | U56: 0 | V56: 0 | W56: 0
A57: 2008-05-30 | B57: 0.005534266298 | C57: 0.004638831002 | D57: 0.006373191733 | E57: 0 | F57: 0.002505470056 | G57: 0.009844791973 | H57: 0.009844804893 | I57: 0 | J57: 0.00408618507 | K57: 0.0006012557002 | L57: 0.002500048004 | M57: 0.00657817674 | N57: 0.003577826051 | O57: 0.001449478016 | P57: 0.01086573781 | Q57: 0 | R57: 0 | S57: 0 | T57: 0 | U57: 0 | V57: 0 | W57: 0
A58: 2008-06-02 | B58: 0.00105726306 | C58: 0.002898478378 | D58: 0.004056679073 | E58: 0 | F58: -0.008585565144 | G58: -0.009961335706 | H58: -0.00885045214 | I58: 0 | J58: -0.003236855857 | K58: 0.01347810537 | L58: -0.01033140223 | M58: 0.003857682348 | N58: 0.003718116787 | O58: 0.00197117741 | P58: 0.005831927015 | Q58: 0 | R58: 0 | S58: 0 | T58: 0 | U58: 0 | V58: 0 | W58: 0
A59: 2008-06-03 | B59: -0.001250897191 | C59: -0.001908913816 | D59: -0.0009206763826 | E59: 0 | F59: -0.0008938643373 | G59: 0.002389573859 | H59: -0.02171943336 | I59: 0 | J59: 0.00072968461 | K59: -0.009145742482 | L59: -0.005831522319 | M59: 0.007198150077 | N59: 0.001881960285 | O59: 0.001448429088 | P59: -0.0122783312 | Q59: 0 | R59: 0 | S59: 0 | T59: 0 | U59: 0 | V59: 0 | W59: 0
A60: 2008-06-04 | B60: -0.002888409755 | C60: -0.003441288841 | D60: -0.003716820621 | E60: 0 | F60: 0.004220051857 | G60: 0.0009410901717 | H60: -0.02041724148 | I60: 0 | J60: -0.00476363996 | K60: 0.003077922706 | L60: -0.0005068583102 | M60: -0.008905958777 | N60: -0.003559084738 | O60: -0.0003615573431 | P60: -0.002647272191 | Q60: 0 | R60: 0 | S60: 0 | T60: 0 | U60: 0 | V60: 0 | W60: 0
A61: 2008-06-05 | B61: 0.001019585311 | C61: -0.002320604158 | D61: -0.002827442508 | E61: 0 | F61: 0.01664266896 | G61: 0.02369160899 | H61: 0.04340207027 | I61: 0 | J61: 0.006880933976 | K61: -0.01495417338 | L61: 0.01999706798 | M61: -0.005990692006 | N61: -0.003671014004 | O61: -0.001326264014 | P61: -0.00230819383 | Q61: 0 | R61: 0 | S61: 0 | T61: 0 | U61: 0 | V61: 0 | W61: 0
A62: 2008-06-06 | B62: 0.002679430775 | C62: 0.01211653589 | D62: 0.01230556976 | E62: 0 | F62: -0.02796721554 | G62: -0.02859239127 | H62: -0.03159203341 | I62: 0 | J62: -0.009552017301 | K62: 0.01886840148 | L62: -0.03189377606 | M62: 0.01294647253 | N62: 0.005576620372 | O62: 0.001328025326 | P62: 0.03019087438 | Q62: 0 | R62: 0 | S62: 0 | T62: 0 | U62: 0 | V62: 0 | W62: 0
A63: 2008-06-09 | B63: -0.002972700079 | C63: -0.004192608612 | D63: -0.005691179408 | E63: 0 | F63: -0.003830940101 | G63: 0.0005672220332 | H63: 0.00114407306 | I63: 0 | J63: 0.001187486857 | K63: -0.02724408854 | L63: 0.002421317443 | M63: 0 | N63: -0.005050517532 | O63: -0.005063974331 | P63: -0.0120143726 | Q63: 0 | R63: 0 | S63: 0 | T63: 0 | U63: 0 | V63: 0 | W63: 0
A64: 2008-06-10 | B64: -0.00341145204 | C64: -0.008683927748 | D64: -0.008964393394 | E64: 0 | F64: -0.01206597828 | G64: -0.007874025731 | H64: -0.03248146575 | I64: 0 | J64: -0.005752644209 | K64: 0.003264433806 | L64: -0.004977255267 | M64: -0.006500703094 | N64: -0.005275195156 | O64: -0.002302407511 | P64: -0.02773036772 | Q64: 0 | R64: 0 | S64: 0 | T64: 0 | U64: 0 | V64: 0 | W64: 0
A65: 2008-06-11 | B65: 0.0005394432064 | C65: 0.003923606874 | D65: 0.00411576389 | E65: 0 | F65: -0.00456808652 | G65: -0.0154285187 | H65: -0.01524696669 | I65: 0 | J65: -0.008414363073 | K65: -0.01723346335 | L65: -0.01471236648 | M65: -0.002328937674 | N65: 0.001300751797 | O65: 0.001700471731 | P65: 0.01718286322 | Q65: 0 | R65: 0 | S65: 0 | T65: 0 | U65: 0 | V65: 0 | W65: 0
A66: 2008-06-12 | B66: -0.002435674095 | C66: -0.007811416265 | D66: -0.009352963573 | E66: 0 | F66: -0.0180137185 | G66: 0.002450441912 | H66: 0.01359310867 | I66: 0 | J66: -0.003260071273 | K66: -0.02417994025 | L66: 0.003807629049 | M66: -0.01000445504 | N66: -0.006195696837 | O66: -0.004850273084 | P66: -0.01631807687 | Q66: 0 | R66: 0 | S66: 0 | T66: 0 | U66: 0 | V66: 0 | W66: 0
A67: 2008-06-13 | B67: -0.003133918202 | C67: 0.0002346413284 | D67: 0.000508450661 | E67: 0 | F67: 0.01667145066 | G67: 0.01383086641 | H67: 0.00498421266 | I67: 0 | J67: 0.005133579176 | K67: -0.01121295606 | L67: 0.01264408316 | M67: -0.002133340181 | N67: -0.002513819295 | O67: 0.001096672782 | P67: 0.00268696268 | Q67: 0 | R67: 0 | S67: 0 | T67: 0 | U67: 0 | V67: 0 | W67: 0
A68: 2008-06-16 | B68: 0.001663075333 | C68: 0.003755825161 | D68: 0.00371617712 | E68: 0 | F68: 0.01063029075 | G68: 0.004949230431 | H68: 0.001748311676 | I68: 0 | J68: 0.0004046565553 | K68: 0.01408603418 | L68: 0.0005876055214 | M68: 0.0002250168496 | N68: 0.001108879336 | O68: 0.0006085187894 | P68: 0.0137481064 | Q68: 0 | R68: 0 | S68: 0 | T68: 0 | U68: 0 | V68: 0 | W68: 0
A69: 2008-06-17 | B69: 0.00225988994 | C69: 0.001734851296 | D69: 0.002406206186 | E69: 0 | F69: -0.003037070176 | G69: 0.003283171726 | H69: 0.01791565485 | I69: 0 | J69: -0.001379092312 | K69: 0.001353247069 | L69: -0.004844662808 | M69: 0.002024973485 | N69: 0.003423661695 | O69: 0.001946282158 | P69: 0.002758280594 | Q69: 0 | R69: 0 | S69: 0 | T69: 0 | U69: 0 | V69: 0 | W69: 0
A70: 2008-06-18 | B70: -0.001215634906 | C70: 0.005439780417 | D70: 0.005702648404 | E70: 0 | F70: -0.008851537593 | G70: -0.008621725072 | H70: -0.01039226741 | I70: 0 | J70: -0.0005456869297 | K70: -0.003809088337 | L70: -0.009736723879 | M70: 0.008420343417 | N70: 0.004214731871 | O70: 0.0009711583802 | P70: 0.01180514613 | Q70: 0 | R70: 0 | S70: 0 | T70: 0 | U70: 0 | V70: 0 | W70: 0
A71: 2008-06-19 | B71: -0.004216803896 | C71: -0.002330758695 | D71: -0.003243825222 | E71: 0 | F71: 0.002037813617 | G71: 0.003618395764 | H71: -0.004278359534 | I71: 0 | J71: -0.002394150906 | K71: -0.0001894973429 | L71: 0.001266275992 | M71: -0.005900680351 | N71: -0.005096458032 | O71: -0.001940524574 | P71: 0.001585851853 | Q71: 0 | R71: 0 | S71: 0 | T71: 0 | U71: 0 | V71: 0 | W71: 0
A72: 2008-06-20 | B72: 0.0002866121869 | C72: 0.003144411384 | D72: 0.003725728809 | E72: 0 | F72: -0.01182153633 | G72: -0.01595161963 | H72: -0.02968640666 | I72: 0 | J72: -0.005006722823 | K72: -0.007782884836 | L72: -0.01623157345 | M72: 0.005823689496 | N72: 0.003013293927 | O72: 0.001822830945 | P72: 0.005994107804 | Q72: 0 | R72: 0 | S72: 0 | T72: 0 | U72: 0 | V72: 0 | W72: 0
A73: 2008-06-23 | B73: -0.002210386181 | C73: -0.004367670523 | D73: -0.004191087407 | E73: 0 | F73: -0.02231100334 | G73: -0.003480475693 | H73: 0.003307346481 | I73: 0 | J73: 0.0006087254432 | K73: -0.0131624896 | L73: -0.0009880324099 | M73: 0.002115596996 | N73: -0.001301793881 | O73: -0.001091750757 | P73: -0.02091063589 | Q73: 0 | R73: 0 | S73: 0 | T73: 0 | U73: 0 | V73: 0 | W73: 0
A74: 2008-06-24 | B74: -0.007236147208 | C74: 0.003719987848 | D74: 0.004450235063 | E74: 0 | F74: -0.003690532783 | G74: -0.0104133005 | H74: 0 | I74: 0 | J74: 0.00247627591 | K74: 0.002200584476 | L74: -0.001977893055 | M74: 0.006666657918 | N74: 0.002005378293 | O74: 0.001821516104 | P74: 0.004363359943 | Q74: 0 | R74: 0 | S74: 0 | T74: 0 | U74: 0 | V74: 0 | W74: 0
A75: 2008-06-25 | B75: 0.0004784268414 | C75: 0.0001581943317 | D75: 0.0004330933392 | E75: 0 | F75: 0.01727473031 | G75: 0.005294098994 | H75: 0.0281399677 | I75: 0 | J75: 0.002509121875 | K75: 0.008565096585 | L75: 0.004725926721 | M75: 0.000441511989 | N75: 0.0005003796198 | O75: 0.0007272474313 | P75: -0.0005716588479 | Q75: 0 | R75: 0 | S75: 0 | T75: 0 | U75: 0 | V75: 0 | W75: 0
A76: 2008-06-26 | B76: -0.001022650595 | C76: 0.01156768575 | D76: 0.01195086638 | E76: 0 | F76: -0.03590801459 | G76: -0.02477078099 | H76: -0.02633083383 | I76: 0 | J76: -0.009661319597 | K76: 0.00676140281 | L76: -0.02716031704 | M76: 0.006729918162 | N76: 0.001300231388 | O76: 0.002907046858 | P76: 0.03649054076 | Q76: 0 | R76: 0 | S76: 0 | T76: 0 | U76: 0 | V76: 0 | W76: 0
A77: 2008-06-27 | B77: 0.002903961447 | C77: 0.005296869858 | D77: 0.005436580013 | E77: 0 | F77: 0.002451162249 | G77: -0.005799967471 | H77: -0.0002575613975 | I77: 0 | J77: 0.003561281479 | K77: -0.02430514788 | L77: -0.005458913945 | M77: 0.01172602837 | N77: 0.00239734257 | O77: 0.0004830049508 | P77: 0.009491226029 | Q77: 0 | R77: 0 | S77: 0 | T77: 0 | U77: 0 | V77: 0 | W77: 0
A78: 2008-06-30 | B78: 0.0008131680918 | C78: 0.0001259791619 | D78: 0.0003694201635 | E78: 0 | F78: -0.01156047415 | G78: -0.002212853163 | H78: 0.01207122401 | I78: 0 | J78: 0.001776039078 | K78: 0.01389667232 | L78: 0.003528617005 | M78: 0.0002166079731 | N78: 0.000498285365 | O78: 0.0006036156029 | P78: -0.0007652672924 | Q78: 0 | R78: 0 | S78: 0 | T78: 0 | U78: 0 | V78: 0 | W78: 0
A79: 2008-07-01 | B79: -0.002257285143 | C79: 0.002833379001 | D79: 0.002404851588 | E79: 0 | F79: -0.001199029284 | G79: -0.0003360490203 | H79: -0.02236364284 | I79: 0 | J79: 0.003125499157 | K79: 0.01033625312 | L79: 0.003125499126 | M79: -0.002369338563 | N79: -0.003459466939 | O79: -0.000253999239 | P79: 0.01378557957 | Q79: 0 | R79: 0 | S79: 0 | T79: 0 | U79: 0 | V79: 0 | W79: 0
A80: 2008-07-02 | B80: -0.004394525752 | C80: 0.00385042517 | D80: 0.00399982587 | E80: 0 | F80: 0.004142277246 | G80: -0.0299159509 | H80: -0.04035710045 | I80: 0 | J80: -0.01713667092 | K80: 0.009243479312 | L80: -0.01713666606 | M80: 0.005229280896 | N80: -0.001203930864 | O80: 0.0001210245955 | P80: 0.005503928103 | Q80: 0 | R80: 0 | S80: 0 | T80: 0 | U80: 0 | V80: 0 | W80: 0
A81: 2008-07-03 | B81: 0.001998269108 | C81: -0.00206955512 | D81: -0.001849744889 | E81: 0 | F81: -0.001512419507 | G81: -0.009702060839 | H81: -0.009651125481 | I81: 0 | J81: 0.001030262765 | K81: -0.05028448676 | L81: 0.001030259963 | M81: -0.002167520724 | N81: 0.0003013455152 | O81: 0.001693680288 | P81: -0.01191370638 | Q81: 0 | R81: 0 | S81: 0 | T81: 0 | U81: 0 | V81: 0 | W81: 0
A82: 2008-07-07 | B82: -0.002851154585 | C82: -0.001308864894 | D82: -0.0002841525618 | E82: 0 | F82: 0.00409213544 | G82: -0.008607396646 | H82: -0.001330677632 | I82: 0 | J82: -0.01021297625 | K82: 0.003214371795 | L82: -0.01021297843 | M82: 0.004561730222 | N82: 0.003514749512 | O82: 0.0006038041494 | P82: -0.009015805106 | Q82: 0 | R82: 0 | S82: 0 | T82: 0 | U82: 0 | V82: 0 | W82: 0
A83: 2008-07-08 | B83: 0.005199960235 | C83: -6.752960965e-05 | D83: 0.001111425819 | E83: 0 | F83: 0.004715623687 | G83: 0.02350534973 | H83: -0.001058132827 | I83: 0 | J83: 0.01775716399 | K83: -0.0299681046 | L83: 0.01775716798 | M83: 0.006487164764 | N83: 0.003902722468 | O83: 0.0001207193613 | P83: -0.004055705227 | Q83: 0 | R83: 0 | S83: 0 | T83: 0 | U83: 0 | V83: 0 | W83: 0
A84: 2008-07-09 | B84: -0.0004598738966 | C84: 0.003747699591 | D84: 0.004860680447 | E84: 0 | F84: 0.004617345821 | G84: -0.01275866335 | H84: -0.02091011697 | I84: 0 | J84: -0.0192549303 | K84: 0.05190470178 | L84: -0.0192549301 | M84: 0.004404384546 | N84: 0.003887563145 | O84: 0.001689592313 | P84: 0.007043792571 | Q84: 0 | R84: 0 | S84: 0 | T84: 0 | U84: 0 | V84: 0 | W84: 0
A85: 2008-07-10 | B85: 0.004131546448 | C85: 0.004488374142 | D85: 0.003852395679 | E85: 0 | F85: 0.0003230454083 | G85: 0.0056584772 | H85: 0.02171735255 | I85: 0 | J85: 0.004086886893 | K85: -0.05631402344 | L85: 0.004086886758 | M85: -0.0001069745424 | N85: 0.0008936869733 | O85: -0.001204802943 | P85: 0.02218578142 | Q85: 0 | R85: 0 | S85: 0 | T85: 0 | U85: 0 | V85: 0 | W85: 0
A86: 2008-07-11 | B86: -0.00204399249 | C86: -0.001059417978 | D86: -0.004498072411 | E86: 0 | F86: -0.01238964871 | G86: -0.009377627489 | H86: -0.007059121037 | I86: 0 | J86: -0.01165208744 | K86: 0.01191684528 | L86: -0.01165208665 | M86: -0.01422606532 | N86: -0.005654752939 | O86: -0.00205063823 | P86: 0.01742761699 | Q86: 0 | R86: 0 | S86: 0 | T86: 0 | U86: 0 | V86: 0 | W86: 0
A87: 2008-07-14 | B87: -0.001200713449 | C87: 0.0050505119 | D87: 0.007042070892 | E87: 0 | F87: 0.00815435394 | G87: -0.00813410719 | H87: 0.007978198822 | I87: 0 | J87: -0.009043883882 | K87: -0.03425697349 | L87: -0.009043886648 | M87: 0.008789044836 | N87: 0.001496492603 | O87: 0.002296562282 | P87: 0.007881462468 | Q87: 0 | R87: 0 | S87: 0 | T87: 0 | U87: 0 | V87: 0 | W87: 0
A88: 2008-07-15 | B88: -0.001149151776 | C88: 0.0003462374599 | D88: 0.0004375659955 | E88: 0 | F88: 0.0008785378181 | G88: -0.009190545747 | H88: -0.008267745221 | I88: 0 | J88: -0.01409716516 | K88: -0.02647425112 | L88: -0.01409716213 | M88: -0.0003226696683 | N88: 0.003885226819 | O88: 0.001447213326 | P88: 0.002710812107 | Q88: 0 | R88: 0 | S88: 0 | T88: 0 | U88: 0 | V88: 0 | W88: 0
A89: 2008-07-16 | B89: -0.008347834274 | C89: -0.007934902578 | D89: -0.01100003165 | E89: 0 | F89: -0.01549321415 | G89: 0.02354622889 | H89: 0.01414461593 | I89: 0 | J89: 0.0245474938 | K89: -0.04131278133 | L89: 0.02454748968 | M89: -0.01807618261 | N89: -0.007641131231 | O89: -0.0009634146177 | P89: -0.01798893663 | Q89: 0 | R89: 0 | S89: 0 | T89: 0 | U89: 0 | V89: 0 | W89: 0
A90: 2008-07-17 | B90: 0.001139297901 | C90: -0.003073226555 | D90: -0.004383417305 | E90: 0 | F90: -0.005873873217 | G90: 0.01045659328 | H90: -0.0127785303 | I90: 0 | J90: 0.01000321054 | K90: 0.07207408363 | L90: 0.01000321203 | M90: -0.005150135063 | N90: -0.004400019786 | O90: -0.001446502453 | P90: -0.002329531929 | Q90: 0 | R90: 0 | S90: 0 | T90: 0 | U90: 0 | V90: 0 | W90: 0
A91: 2008-07-18 | B91: -0.002929568866 | C91: -0.001943031419 | D91: -0.003033164298 | E91: 0 | F91: -0.003120394504 | G91: -0.0003449747963 | H91: 0.003433315886 | I91: 0 | J91: 0.006230089787 | K91: 0.02917366162 | L91: 0.006230087797 | M91: -0.003744944632 | N91: -0.005825573536 | O91: -0.001810655713 | P91: -0.000530704728 | Q91: 0 | R91: 0 | S91: 0 | T91: 0 | U91: 0 | V91: 0 | W91: 0
A92: 2008-07-21 | B92: 0.005655924307 | C92: 0.002748223189 | D92: 0.003301654787 | E92: 0 | F92: 0.002798050093 | G92: 0.01104214329 | H92: 0.01356822968 | I92: 0 | J92: 0.0005556327083 | K92: 0.01835751611 | L92: 0.0005556353275 | M92: 0.003869603719 | N92: 0.00525354794 | O92: 0.0004837462112 | P92: 0.01008819178 | Q92: 0 | R92: 0 | S92: 0 | T92: 0 | U92: 0 | V92: 0 | W92: 0
A93: 2008-07-22 | B93: 0.0004830350481 | C93: -0.006663823339 | D93: -0.007421694003 | E93: 0 | F93: -0.004256269824 | G93: 0.01017070213 | H93: -0.01583110648 | I93: 0 | J93: 0.01134470422 | K93: 0.001609702082 | L93: 0.01134470701 | M93: -0.004956000469 | N93: -0.003417046626 | O93: -0.0008461170662 | P93: -0.02165690638 | Q93: 0 | R93: 0 | S93: 0 | T93: 0 | U93: 0 | V93: 0 | W93: 0
A94: 2008-07-23 | B94: 0.001759308297 | C94: -0.007789753192 | D94: -0.00798795512 | E94: 0 | F94: -0.001525595121 | G94: 0.003784021876 | H94: -0.009186252845 | I94: 0 | J94: 0.00541257052 | K94: 0.03324880885 | L94: 0.005412570183 | M94: -0.001992259584 | N94: 0.001210122862 | O94: -0.0004839217684 | P94: -0.0267569101 | Q94: 0 | R94: 0 | S94: 0 | T94: 0 | U94: 0 | V94: 0 | W94: 0
A95: 2008-07-24 | B95: 0.00312206091 | C95: 0.00515402577 | D95: 0.007400992342 | E95: 0 | F95: 0.009616625063 | G95: -0.02860990879 | H95: -0.03903548706 | I95: 0 | J95: -0.02075364705 | K95: 0.01590767005 | L95: -0.02075364999 | M95: 0.009759404459 | N95: 0.006950066014 | O95: 0.002783775987 | P95: 0.00839132163 | Q95: 0 | R95: 0 | S95: 0 | T95: 0 | U95: 0 | V95: 0 | W95: 0
A96: 2008-07-25 | B96: -0.004509448129 | C96: -0.002596897039 | D96: -0.004860300311 | E96: 0 | F96: -0.008823592508 | G96: 6.925778224e-05 | H96: 0.002070456196 | I96: 0 | J96: -0.0002390140021 | K96: -0.06091380226 | L96: -0.0002390171141 | M96: -0.009994552943 | N96: -0.00510155531 | O96: -0.001327703619 | P96: 0.003941749613 | Q96: 0 | R96: 0 | S96: 0 | T96: 0 | U96: 0 | V96: 0 | W96: 0
A97: 2008-07-28 | B97: 0.002611353118 | C97: 0.003958141474 | D97: 0.006339545124 | E97: 0 | F97: 0.00909615962 | G97: -0.009077656457 | H97: -0.005578528693 | I97: 0 | J97: -0.01466372664 | K97: -0.0005385746197 | L97: -0.01466372123 | M97: 0.01009545248 | N97: 0.004524478213 | O97: 0.002054695474 | P97: 0.000436263487 | Q97: 0 | R97: 0 | S97: 0 | T97: 0 | U97: 0 | V97: 0 | W97: 0
A98: 2008-07-29 | B98: -0.001063076365 | C98: -0.005067776062 | D98: -0.005933637097 | E98: 0 | F98: -0.003946137211 | G98: 0.02069935072 | H98: 0.02347802411 | I98: 0 | J98: 0.02135230778 | K98: -0.04309491333 | L98: 0.02135230891 | M98: -0.004063738683 | N98: -0.001201115321 | O98: -0.0008443716422 | P98: -0.01242785308 | Q98: 0 | R98: 0 | S98: 0 | T98: 0 | U98: 0 | V98: 0 | W98: 0
A99: 2008-07-30 | B99: 0.0004374859655 | C99: -0.001110550663 | D99: -0.0005235371931 | E99: 0 | F99: 0.0008801556997 | G99: 0.01582622172 | H99: 0.0430370134 | I99: 0 | J99: 0.01781754947 | K99: 0.06260015308 | L99: 0.01781754941 | M99: 0.0009924690356 | N99: 0.001102323001 | O99: 0.0002414678724 | P99: -0.0118114477 | Q99: 0 | R99: 0 | S99: 0 | T99: 0 | U99: 0 | V99: 0 | W99: 0
A100: 2008-07-31 | B100: 0.001178995623 | C100: 0.003909959959 | D100: 0.005988167911 | E100: 0 | F100: 0.009903304262 | G100: -0.01470294403 | H100: -0.01712732639 | I100: 0 | J100: -0.01322646509 | K100: 0.05219096326 | L100: -0.01322646565 | M100: 0.009915177872 | N100: 0.00510513 | O100: 0.002051641267 | P100: 0.006255641407 | Q100: 0 | R100: 0 | S100: 0 | T100: 0 | U100: 0 | V100: 0 | W100: 0
A101: 2008-08-01 | B101: 0.0004020247472 | C101: 0.0002820227132 | D101: 0.0009498107182 | E101: 0 | F101: 0.001411162555 | G101: 0 | H101: 0 | I101: 0 | J101: 0.002211603254 | K101: 0.03033087896 | L101: -0.005282641845 | M101: 0.002211602119 | N101: -0.001179936396 | O101: 0.0001933250035 | P101: -0.00566165618 | Q101: 0 | R101: 0 | S101: 0 | T101: 0 | U101: 0 | V101: 0 | W101: 0
A102: 2008-08-04 | B102: -0.001205126217 | C102: -0.00437107545 | D102: -0.00460024874 | E102: 0 | F102: -0.002291520155 | G102: 0.01669364226 | H102: 0.0166936331 | I102: 0 | J102: -0.002294065563 | K102: 0.006541781564 | L102: -0.009273987616 | M102: -0.002294067729 | N102: -0.002903197398 | O102: -0.000120825985 | P102: -0.01596517807 | Q102: 0 | R102: 0 | S102: 0 | T102: 0 | U102: 0 | V102: 0 | W102: 0
A103: 2008-08-05 | B103: -0.002916045259 | C103: -0.007562707017 | D103: -0.009840077735 | E103: 0 | F103: -0.006400187977 | G103: 0 | H103: 0 | I103: 0 | J103: -0.007445530272 | K103: -0.007090120375 | L103: 0.02696218389 | M103: -0.007445530558 | N103: -0.001706814214 | O103: -0.0004831795675 | P103: -0.02337187456 | Q103: 0 | R103: 0 | S103: 0 | T103: 0 | U103: 0 | V103: 0 | W103: 0
A104: 2008-08-06 | B104: -0.0007536352958 | C104: -2.20563053e-05 | D104: -0.0006026842986 | E104: 0 | F104: -0.002857469234 | G104: 0 | H104: 0 | I104: 0 | J104: -0.004081659304 | K104: -0.02231476726 | L104: 0.004440567161 | M104: -0.00408165708 | N104: -0.001106303451 | O104: 0.0001208075698 | P104: 0.006505541206 | Q104: 0 | R104: 0 | S104: 0 | T104: 0 | U104: 0 | V104: 0 | W104: 0
A105: 2008-08-07 | B105: 0.007467073038 | C105: 0.004109038425 | D105: 0.007331177369 | E105: 0 | F105: 0.01454038901 | G105: -0.02203390909 | H105: -0.02203390809 | I105: 0 | J105: 0.01628268599 | K105: -0.01247718056 | L105: -0.01489172949 | M105: 0.01628268138 | N105: 0.005235569363 | O105: 0.002175488178 | P105: -0.006348141809 | Q105: 0 | R105: 0 | S105: 0 | T105: 0 | U105: 0 | V105: 0 | W105: 0
A106: 2008-08-08 | B106: -0.000944972756 | C106: -0.003900373726 | D106: -0.004164341222 | E106: 0 | F106: 0.0008400686836 | G106: 0 | H106: 0 | I106: 0 | J106: 0.002724799058 | K106: 0.04930661627 | L106: 0.01858115907 | M106: 0.002724800233 | N106: -0.001502351946 | O106: -0.0008441844903 | P106: -0.01928210102 | Q106: 0 | R106: 0 | S106: 0 | T106: 0 | U106: 0 | V106: 0 | W106: 0
A107: 2008-08-11 | B107: -0.00361563293 | C107: -0.01194701925 | D107: -0.0152930654 | E107: 0 | F107: -0.007736020555 | G107: 0.01364819898 | H107: 0.01364817777 | I107: 0 | J107: -0.00956518734 | K107: 0.008223208804 | L107: 0.01035797773 | M107: -0.009565188088 | N107: -0.002507763762 | O107: -0.001327702038 | P107: -0.0390856686 | Q107: 0 | R107: 0 | S107: 0 | T107: 0 | U107: 0 | V107: 0 | W107: 0
A108: 2008-08-12 | B108: 0.005209007042 | C108: 0.00133149422 | D108: 0.003121798181 | E108: 0 | F108: 0.008971286685 | G108: 0.01399867154 | H108: 0.01399869597 | I108: 0 | J108: 0.009328330521 | K108: -0.02883774809 | L108: -0.01040471396 | M108: 0.009328334015 | N108: 0.00422362887 | O108: 0.001812926405 | P108: -0.007518797271 | Q108: 0 | R108: 0 | S108: 0 | T108: 0 | U108: 0 | V108: 0 | W108: 0
A109: 2008-08-13 | B109: -0.0015816639 | C109: 0.001931253789 | D109: 0.001683583748 | E109: 0 | F109: -0.003258151595 | G109: 0.001159255006 | H109: 0.001159252429 | I109: 0 | J109: -0.003479385142 | K109: 0.02849430733 | L109: -0.006030140302 | M109: -0.003479382229 | N109: -0.001702370238 | O109: -0.00012066564 | P109: 0.0129160586 | Q109: 0 | R109: 0 | S109: 0 | T109: 0 | U109: 0 | V109: 0 | W109: 0
A110: 2008-08-14 | B110: 0.002228607977 | C110: -0.002840914709 | D110: -0.002302731231 | E110: 0 | F110: 0.005265668716 | G110: 0.004842096154 | H110: 0.004842102005 | I110: 0 | J110: 0.006437490454 | K110: -0.01079033158 | L110: 0.007544414991 | M110: 0.006437484057 | N110: 0.002407446079 | O110: 0.0003620406057 | P110: -0.02709661665 | Q110: 0 | R110: 0 | S110: 0 | T110: 0 | U110: 0 | V110: 0 | W110: 0
A111: 2008-08-15 | B111: 0.003544441965 | C111: -0.00206511671 | D111: -0.0009897405489 | E111: 0 | F111: 0.007514031368 | G111: 0.01435157406 | H111: 0.01435157393 | I111: 0 | J111: 0.008673060052 | K111: 0.01945755733 | L111: 0.004863408173 | M111: 0.008673064083 | N111: 0.002902035265 | O111: 0.0007236497262 | P111: -0.02167613161 | Q111: 0 | R111: 0 | S111: 0 | T111: 0 | U111: 0 | V111: 0 | W111: 0
A112: 2008-08-18 | B112: 0.002029400551 | C112: 0.003747587993 | D112: 0.005024902751 | E112: 0 | F112: 0.003590789197 | G112: 0.01208302119 | H112: 0.0120830259 | I112: 0 | J112: 0.003976810188 | K112: 0.0263157687 | L112: -0.01367442428 | M112: 0.003976808013 | N112: 0.001696255158 | O112: 0.0008436757271 | P112: 0.01507157085 | Q112: 0 | R112: 0 | S112: 0 | T112: 0 | U112: 0 | V112: 0 | W112: 0
A113: 2008-08-19 | B113: -0.001247590637 | C113: 0.003012093074 | D113: 0.0029575387 | E113: 0 | F113: -0.00352423796 | G113: -0.0102040869 | H113: -0.01020408276 | I113: 0 | J113: -0.003853983434 | K113: 0.01211610661 | L113: -0.01090428635 | M113: -0.00385397959 | N113: -0.0007969075762 | O113: 0.000722516866 | P113: 0.02068524033 | Q113: 0 | R113: 0 | S113: 0 | T113: 0 | U113: 0 | V113: 0 | W113: 0
A114: 2008-08-20 | B114: 0.002740500784 | C114: 0.0007512553647 | D114: 0.001404465591 | E114: 0 | F114: 0.003467519139 | G114: 0.004226857344 | H114: 0.004226838201 | I114: 0 | J114: 0.002794144348 | K114: -0.0116926438 | L114: 0.004646072799 | M114: 0.002794139248 | N114: 0.001595086289 | O114: 0.001323707736 | P114: -0.004600298396 | Q114: 0 | R114: 0 | S114: 0 | T114: 0 | U114: 0 | V114: 0 | W114: 0
A115: 2008-08-21 | B115: -0.00145611926 | C115: 0.005580046007 | D115: 0.006036097567 | E115: 0 | F115: -0.001942571757 | G115: -0.005440995753 | H115: -0.005440983455 | I115: 0 | J115: -0.00182186103 | K115: 0.008450689459 | L115: 0.001724417887 | M115: -0.00182185733 | N115: 0.000199039819 | O115: -0.000841242363 | P115: 0.02797907889 | Q115: 0 | R115: 0 | S115: 0 | T115: 0 | U115: 0 | V115: 0 | W115: 0
A116: 2008-08-22 | B116: -0.001842315778 | C116: -0.004124344464 | D116: -0.005005372625 | E116: 0 | F116: -0.001260733035 | G116: -0.003922346284 | H116: -0.00392234885 | I116: 0 | J116: -0.0006441653193 | K116: -0.005586582499 | L116: 0.01447566816 | M116: -0.0006441666148 | N116: -0.001094646466 | O116: -0.001804204097 | P116: -0.01482382692 | Q116: 0 | R116: 0 | S116: 0 | T116: 0 | U116: 0 | V116: 0 | W116: 0
A117: 2008-08-25 | B117: 0.005004675595 | C117: 0.002319626187 | D117: 0.004360813942 | E117: 0 | F117: 0.009142013834 | G117: 0.02590673764 | H117: 0.02590673867 | I117: 0 | J117: 0.009991397875 | K117: -0.001685397292 | L117: -0.02028536473 | M117: 0.009991399115 | N117: 0.003088319806 | O117: 0.001686944888 | P117: -0.001850049288 | Q117: 0 | R117: 0 | S117: 0 | T117: 0 | U117: 0 | V117: 0 | W117: 0
A118: 2008-08-26 | B118: -0.0008383043684 | C118: 0.000963487732 | D118: 0.001197182523 | E118: 0 | F118: -0.0002243977852 | G118: -0.0009090524958 | H118: -0.0009090580839 | I118: 0 | J118: 0.0008509251222 | K118: 0.03010693577 | L118: 0.002912945687 | M118: 0.0008509220833 | N118: -0.001191806117 | O118: -0.0003608608368 | P118: 0.003706944273 | Q118: 0 | R118: 0 | S118: 0 | T118: 0 | U118: 0 | V118: 0 | W118: 0
A119: 2008-08-27 | B119: 0.001995488026 | C119: 0.001340446714 | D119: 0.00184574952 | E119: 0 | F119: 0.002529800106 | G119: 0.0004043415305 | H119: 0.0004043385073 | I119: 0 | J119: 0.001700531711 | K119: 0.002458316686 | L119: 0.009733938693 | M119: 0.001700534213 | N119: 0.001193228214 | O119: 0.0006017125238 | P119: 0.001600369263 | Q119: 0 | R119: 0 | S119: 0 | T119: 0 | U119: 0 | V119: 0 | W119: 0
A120: 2008-08-28 | B120: -0.0006616588272 | C120: 0.001086818805 | D120: 0.001239561667 | E120: 0 | F120: -0.000364527699 | G120: 0.0006064227466 | H120: 0.0006064364841 | I120: 0 | J120: 0.0001061200861 | K120: 0.005177112932 | L120: 0.01212778748 | M120: 0.0001061217556 | N120: 0.0008937915348 | O120: -0.0004810623529 | P120: 0.01007865032 | Q120: 0 | R120: 0 | S120: 0 | T120: 0 | U120: 0 | V120: 0 | W120: 0
A121: 2008-08-29 | B121: -0.001927155759 | C121: -0.002673229928 | D121: -0.003682666362 | E121: 0 | F121: -0.004373990153 | G121: -0.005555036003 | H121: -0.005555049741 | I121: 0 | J121: -0.004455815269 | K121: 0.0005421648618 | L121: -0.01075358761 | M121: -0.004455820556 | N121: -0.0002976728612 | O121: 0.0004812938852 | P121: -0.005719165247 | Q121: 0 | R121: 0 | S121: 0 | T121: 0 | U121: 0 | V121: 0 | W121: 0
A122: 2008-09-02 | B122: 0.004060698584 | C122: -0.004661479056 | D122: -0.00377887339 | E122: 0 | F122: 0.008079990622 | G122: 0.02447698572 | H122: 0.02447699969 | I122: 0 | J122: 0.007753215302 | K122: -0.01557691959 | L122: -0.006211629145 | M122: 0.009304871502 | N122: 0.003328183569 | O122: 0.001266302392 | P122: -0.03071841917 | Q122: 0 | R122: 0 | S122: 0 | T122: 0 | U122: 0 | V122: 0 | W122: 0
A123: 2008-09-03 | B123: 0.001629855569 | C123: -0.0005468926532 | D123: 8.961102497e-05 | E123: 0 | F123: 0.003565719676 | G123: 0.006840431114 | H123: 0.00684043803 | I123: 0 | J123: 0.003735842394 | K123: 0.02370517137 | L123: -0.0008594423716 | M123: 0.004238574221 | N123: -0.0001986698591 | O123: 0.0003614339689 | P123: -0.00391411631 | Q123: 0 | R123: 0 | S123: 0 | T123: 0 | U123: 0 | V123: 0 | W123: 0
A124: 2008-09-04 | B124: 0.003241065213 | C124: 0.002109544884 | D124: 0.001853199206 | E124: 0 | F124: 0.006941196866 | G124: 0.004824807141 | H124: 0.004824773994 | I124: 0 | J124: 0.004276905706 | K124: 0.01187370699 | L124: -0.03010633917 | M124: 0.008019440161 | N124: 0.00367540659 | O124: 0.0006019949832 | P124: -0.006337938983 | Q124: 0 | R124: 0 | S124: 0 | T124: 0 | U124: 0 | V124: 0 | W124: 0
A125: 2008-09-05 | B125: -0.0006911821618 | C125: -0.0001116511268 | D125: -0.0001141863945 | E125: 0 | F125: -0.000769446571 | G125: 0.003919584413 | H125: 0.003919594345 | I125: 0 | J125: -0.0001756425541 | K125: 0.0137879772 | L125: 0.003144395273 | M125: -0.0005233496463 | N125: -0.002969161801 | O125: -0.0003609952421 | P125: 0.007526521336 | Q125: 0 | R125: 0 | S125: 0 | T125: 0 | U125: 0 | V125: 0 | W125: 0
A126: 2008-09-08 | B126: 0.001344049079 | C126: 0.001789028072 | D126: 0.002314271688 | E126: 0 | F126: 0.003669635961 | G126: 0.00234265033 | H126: 0.002342645367 | I126: 0 | J126: 0.005755532106 | K126: -0.0006401732464 | L126: 0.02065583809 | M126: 0.004189285309 | N126: 0.006253776963 | O126: -0.0004815397234 | P126: -0.001519397258 | Q126: 0 | R126: 0 | S126: 0 | T126: 0 | U126: 0 | V126: 0 | W126: 0
A127: 2008-09-09 | B127: 0.004171434694 | C127: 0.003149656593 | D127: 0.003557976708 | E127: 0 | F127: 0.008327530873 | G127: 0.0277534087 | H127: 0.0277534355 | I127: 0 | J127: 0.006086264116 | K127: 0.0166596239 | L127: -0.02968734921 | M127: 0.009908269279 | N127: 0.004439150345 | O127: 0.00156576132 | P127: -0.0300532966 | Q127: 0 | R127: 0 | S127: 0 | T127: 0 | U127: 0 | V127: 0 | W127: 0
A128: 2008-09-10 | B128: -0.001640960096 | C128: -0.00189567342 | D128: -0.001860465363 | E128: 0 | F128: -0.004846623917 | G128: -0.01459162106 | H128: -0.01459164607 | I128: 0 | J128: -0.00524180557 | K128: 0.01974859335 | L128: 0.004057787279 | M128: -0.006196410651 | N128: -0.0006874785186 | O128: 0.0002404639267 | P128: -0.02967704353 | Q128: 0 | R128: 0 | S128: 0 | T128: 0 | U128: 0 | V128: 0 | W128: 0
A129: 2008-09-11 | B129: -0.0007353661993 | C129: -4.264711348e-05 | D129: 3.390117525e-05 | E129: 0 | F129: -0.0008104106536 | G129: -0.002211576593 | H129: -0.002211563108 | I129: 0 | J129: 0.0008886884499 | K129: -0.0163711484 | L129: 0.01446815898 | M129: -0.0005196227085 | N129: -0.001277615281 | O129: -0.0003606480394 | P129: -0.01535972763 | Q129: 0 | R129: 0 | S129: 0 | T129: 0 | U129: 0 | V129: 0 | W129: 0
A130: 2008-09-12 | B130: -0.004071989214 | C130: -0.004813738735 | D130: -0.005820443361 | E130: 0 | F130: -0.01055300785 | G130: -0.02621174412 | H130: -0.02621174165 | I130: 0 | J130: -0.01122449213 | K130: 0.002048205475 | L130: 0.004621101316 | M130: -0.01289246448 | N130: -0.004034675369 | O130: 0.0001202853024 | P130: 0.03379858966 | Q130: 0 | R130: 0 | S130: 0 | T130: 0 | U130: 0 | V130: 0 | W130: 0
A131: 2008-09-15 | B131: 0.01532501816 | C131: 0.01029874879 | D131: 0.01200853696 | E131: 0 | F131: 0.0279713461 | G131: 0.06511621195 | H131: 0.0651162013 | I131: 0 | J131: 0.02469769981 | K131: -0.0348946866 | L131: -0.04758506519 | M131: 0.03244148004 | N131: 0.003952195353 | O131: 0.007094709474 | P131: 0.02660483018 | Q131: 0 | R131: 0 | S131: 0 | T131: 0 | U131: 0 | V131: 0 | W131: 0
A132: 2008-09-16 | B132: -0.0004253539968 | C132: -0.001495386769 | D132: -0.003419383787 | E132: 0 | F132: 0.0003480159934 | G132: -0.007339980241 | H132: -0.007339965404 | I132: 0 | J132: 0.001319694803 | K132: 0.07762657872 | L132: 0.01673746322 | M132: -0.0002040089093 | N132: -0.01013679327 | O132: -0.001791057481 | P132: -0.00992775941 | Q132: 0 | R132: 0 | S132: 0 | T132: 0 | U132: 0 | V132: 0 | W132: 0
A133: 2008-09-17 | B133: 0.003461768927 | C133: 0.002009185219 | D133: 0.003294983182 | E133: 0 | F133: 0.00359531142 | G133: 0.01151258454 | H133: 0.01151258451 | I133: 0 | J133: 0.0004371431081 | K133: 0.002599099966 | L133: -0.04496312059 | M133: 0.004999978383 | N133: 0.002485586216 | O133: 0.004784701514 | P133: 0.1129052987 | Q133: 0 | R133: 0 | S133: 0 | T133: 0 | U133: 0 | V133: 0 | W133: 0
A134: 2008-09-18 | B134: -0.006301441863 | C134: -0.006265919213 | D134: -0.008767197392 | E134: 0 | F134: -0.01198551598 | G134: -0.03072082453 | H134: -0.03072082568 | I134: 0 | J134: -0.01075933629 | K134: 0.004171278927 | L134: 0.02967154792 | M134: -0.01462072329 | N134: -0.00277693915 | O134: -0.00321423668 | P134: -0.03112562639 | Q134: 0 | R134: 0 | S134: 0 | T134: 0 | U134: 0 | V134: 0 | W134: 0
A135: 2008-09-19 | B135: -0.01438755146 | C135: -0.008672391048 | D135: -0.008341384381 | E135: 0 | F135: -0.02738671558 | G135: -0.05966588575 | H135: -0.05966587731 | I135: 0 | J135: -0.02525264378 | K135: -0.03568017248 | L135: 0.03971385677 | M135: -0.03173623716 | N135: 0.00447535226 | O135: -0.005613295446 | P135: 0.03840579571 | Q135: 0 | R135: 0 | S135: 0 | T135: 0 | U135: 0 | V135: 0 | W135: 0
A136: 2008-09-22 | B136: -0.001462457199 | C136: 0.0004682901089 | D136: 0.001159260018 | E136: 0 | F136: -0.001874996389 | G136: 0.008527900928 | H136: 0.008527868246 | I136: 0 | J136: -0.002287427576 | K136: -0.08102696292 | L136: -0.02263941561 | M136: -0.0001064348836 | N136: -0.0156435785 | O136: 0.0007206030081 | P136: 0.03721792147 | Q136: 0 | R136: 0 | S136: 0 | T136: 0 | U136: 0 | V136: 0 | W136: 0
A137: 2008-09-23 | B137: -0.0004817954899 | C137: -0.002590559476 | D137: -0.004141168215 | E137: 0 | F137: -0.002761292976 | G137: -0.01952884592 | H137: -0.01952884277 | I137: 0 | J137: -0.005625362925 | K137: -0.006316102482 | L137: -0.02275158417 | M137: -0.003831421446 | N137: -0.001508765104 | O137: 0.0007200841133 | P137: -0.009643417807 | Q137: 0 | R137: 0 | S137: 0 | T137: 0 | U137: 0 | V137: 0 | W137: 0
A138: 2008-09-24 | B138: 0.002533983332 | C138: 0.0005565112936 | D138: 2.99100393e-05 | E138: 0 | F138: 0.003646274313 | G138: 0.0003626935272 | H138: 0.0003626393391 | I138: 0 | J138: 0.004270893855 | K138: -0.01627364442 | L138: 0.003205370074 | M138: 0.00438038094 | N138: 0.00120885377 | O138: 0.002158788358 | P138: -0.01822917799 | Q138: 0 | R138: 0 | S138: 0 | T138: 0 | U138: 0 | V138: 0 | W138: 0
A139: 2008-09-25 | B139: -0.002627844544 | C139: -0.0006414625241 | D139: -0.0009681326364 | E139: 0 | F139: -0.0027419743 | G139: 0.03656134001 | H139: 0.03656136827 | I139: 0 | J139: -0.0003771633259 | K139: 0.01320895558 | L139: 0.01563946482 | M139: -0.002021088193 | N139: -0.001811046771 | O139: -0.001795039802 | P139: -0.00299852385 | Q139: 0 | R139: 0 | S139: 0 | T139: 0 | U139: 0 | V139: 0 | W139: 0
A140: 2008-09-26 | B140: 0.0008897605991 | C140: 0.001792627151 | D140: 0.0013582665 | E140: 0 | F140: 0.004522224346 | G140: 0.01688646285 | H140: 0.01688643335 | I140: 0 | J140: 0.006609420345 | K140: -0.001941641216 | L140: 0.0004967013444 | M140: 0.00724792568 | N140: -0.005039819893 | O140: 0 | P140: 0.002197825409 | Q140: 0 | R140: 0 | S140: 0 | T140: 0 | U140: 0 | V140: 0 | W140: 0
A141: 2008-09-29 | B141: 0.01350483433 | C141: 0.009039155933 | D141: 0.0102887905 | E141: 0 | F141: 0.02521510202 | G141: -0.01552515188 | H141: -0.01552515163 | I141: 0 | J141: 0.01899890664 | K141: 0.02025860903 | L141: -0.07836161592 | M141: 0.02910053097 | N141: -0.004558775063 | O141: 0.005754650625 | P141: 0.03381810981 | Q141: 0 | R141: 0 | S141: 0 | T141: 0 | U141: 0 | V141: 0 | W141: 0
A142: 2008-09-30 | B142: -0.01238942846 | C142: -0.009667501114 | D142: -0.01281799868 | E142: 0 | F142: -0.02257895665 | G142: 0.008084604102 | H142: 0.008084609159 | I142: 0 | J142: -0.01877927302 | K142: 0.06304487328 | L142: 0.04138984734 | M142: -0.02437020941 | N142: 0.003358373342 | O142: -0.003933745529 | P142: -0.05024003573 | Q142: 0 | R142: 0 | S142: 0 | T142: 0 | U142: 0 | V142: 0 | W142: 0
A143: 2008-10-01 | B143: 0.00602992631 | C143: 0.005539896523 | D143: 0.00806827545 | E143: 0 | F143: 0.01075917971 | G143: 0.005544541244 | H143: 0.005544522842 | I143: 0 | J143: 0.01018517646 | K143: -0.03509715244 | L143: 0.0006034995054 | M143: 0.01258059338 | N143: -0.007128317254 | O143: 0.003122079716 | P143: 0.0105795345 | Q143: 0 | R143: 0 | S143: 0 | T143: 0 | U143: 0 | V143: 0 | W143: 0
A144: 2008-10-02 | B144: 0.005656631036 | C144: 0.002075454583 | D144: 0.001987426148 | E144: 0 | F144: 0.008587871846 | G144: 0.02707757142 | H144: 0.0270775954 | I144: 0 | J144: -0.0007393605114 | K144: 0.02962782865 | L144: -0.03627433215 | M144: 0.00803930286 | N144: 0.003897409117 | O144: 0.002154658231 | P144: -0.04234033916 | Q144: 0 | R144: 0 | S144: 0 | T144: 0 | U144: 0 | V144: 0 | W144: 0
A145: 2008-10-03 | B145: 0.002108783138 | C145: 0.0004076155217 | D145: 0.001755832803 | E145: 0 | F145: 0.005145680597 | G145: 0.008244659841 | H145: 0.008244658323 | I145: 0 | J145: 0.004542359489 | K145: -0.00517199011 | L145: -0.0135002522 | M145: 0.008803714124 | N145: 0.007560322337 | O145: 0.002747202987 | P145: 0.003157949638 | Q145: 0 | R145: 0 | S145: 0 | T145: 0 | U145: 0 | V145: 0 | W145: 0
A146: 2008-10-06 | B146: 0.00583217048 | C146: 0.0008484472405 | D146: 0.003074488292 | E146: 0 | F146: 0.01390516841 | G146: 0.02900070678 | H146: 0.02900070412 | I146: 0 | J146: 0.005206341941 | K146: 0.01349138577 | L146: -0.05093343049 | M146: 0.01817244346 | N146: 0.0003041931466 | O146: 0.002025088439 | P146: 0.02046256304 | Q146: 0 | R146: 0 | S146: 0 | T146: 0 | U146: 0 | V146: 0 | W146: 0
A147: 2008-10-07 | B147: -0.0001128898988 | C147: -0.0001436802244 | D147: -0.0004288688908 | E147: 0 | F147: -0.001752706265 | G147: -0.007392365726 | H147: -0.00739238483 | I147: 0 | J147: -0.0104229373 | K147: 0.01576422231 | L147: -0.04478611453 | M147: -0.003025057265 | N147: -0.02067917564 | O147: 0.0002377146406 | P147: 0.03547695818 | Q147: 0 | R147: 0 | S147: 0 | T147: 0 | U147: 0 | V147: 0 | W147: 0
A148: 2008-10-08 | B148: -0.0117157233 | C148: -0.0006802002284 | D148: -0.002875419558 | E148: 0 | F148: -0.01667192476 | G148: -0.01005402481 | H148: -0.01005400696 | I148: 0 | J148: -0.01621425661 | K148: -0.02910587896 | L148: -0.02519240876 | M148: -0.01436235422 | N148: -0.0200807691 | O148: -0.004278599675 | P148: 0.02463619885 | Q148: 0 | R148: 0 | S148: 0 | T148: 0 | U148: 0 | V148: 0 | W148: 0
A149: 2008-10-09 | B149: -0.004650297081 | C149: -0.0003930572162 | D149: -0.001184802999 | E149: 0 | F149: -0.009139680571 | G149: -0.002068760685 | H149: -0.002068778887 | I149: 0 | J149: -0.01882207653 | K149: -0.04778994217 | L149: -0.0698390491 | M149: -0.008414566901 | N149: 0.002323883051 | O149: 0.0005968394007 | P149: 0.005367971491 | Q149: 0 | R149: 0 | S149: 0 | T149: 0 | U149: 0 | V149: 0 | W149: 0
A150: 2008-10-10 | B150: -0.004896738373 | C150: -0.0003260816349 | D150: -0.0008185654024 | E150: 0 | F150: -0.009189963338 | G150: -0.009800231748 | H150: -0.009800228039 | I150: 0 | J150: -0.009802910922 | K150: -0.05047544226 | L150: -0.02425575118 | M150: -0.007037159389 | N150: -0.06839496272 | O150: 0.001550733846 | P150: -0.07430479256 | Q150: 0 | R150: 0 | S150: 0 | T150: 0 | U150: 0 | V150: 0 | W150: 0
A151: 2008-10-13 | B151: -0.005666125451 | C151: -0.0005900014087 | D151: -0.002611443388 | E151: 0 | F151: -0.009923647517 | G151: -0.02198332215 | H151: -0.02198330224 | I151: 0 | J151: 0.01219200329 | K151: -0.02734902281 | L151: 0.1451977242 | M151: -0.01281912955 | N151: 0.0386877586 | O151: -0.00440689468 | P151: -0.01478013681 | Q151: 0 | R151: 0 | S151: 0 | T151: 0 | U151: 0 | V151: 0 | W151: 0
A152: 2008-10-14 | B152: -0.0046188704 | C152: -0.0002927804035 | D152: -0.0009176469299 | E152: 0 | F152: -0.007998311766 | G152: 0.0003892449964 | H152: 0.0003892301559 | I152: 0 | J152: -0.007937175536 | K152: 0.0132425821 | L152: -0.01480019597 | M152: -0.006440040463 | N152: 0.0210193895 | O152: 0.0002393118149 | P152: 0.002561275828 | Q152: 0 | R152: 0 | S152: 0 | T152: 0 | U152: 0 | V152: 0 | W152: 0
A153: 2008-10-15 | B153: 0.004177867113 | C153: 0.0004320964628 | D153: 0.00193494598 | E153: 0 | F153: 0.007325468992 | G153: -0.002431670362 | H153: -0.002431672152 | I153: 0 | J153: -0.009645528539 | K153: -0.02321278057 | L153: -0.09844770085 | M153: 0.009563291905 | N153: 0.01600000398 | O153: 0.003348870215 | P153: 0.01350366229 | Q153: 0 | R153: 0 | S153: 0 | T153: 0 | U153: 0 | V153: 0 | W153: 0
A154: 2008-10-16 | B154: -0.0006345726779 | C154: -0.0002351511028 | D154: -0.0008599166988 | E154: 0 | F154: -0.002947284032 | G154: 0.01257800973 | H154: 0.01257802511 | I154: 0 | J154: 0.002421667692 | K154: -0.02029772982 | L154: 0.04165741345 | M154: -0.005157409508 | N154: -0.01574803535 | O154: -0.0005960567901 | P154: -0.04825347613 | Q154: 0 | R154: 0 | S154: 0 | T154: 0 | U154: 0 | V154: 0 | W154: 0
A155: 2008-10-17 | B155: -0.002531109894 | C155: -0.0003120092113 | D155: -0.0009052513207 | E155: 0 | F155: -0.006384297596 | G155: -0.02965819523 | H155: -0.02965817317 | I155: 0 | J155: -0.006724574649 | K155: -9.950784839e-05 | L155: -0.005972026429 | M155: -0.00687678723 | N155: 0.003626627613 | O155: 0.0007157049902 | P155: -0.02623284114 | Q155: 0 | R155: 0 | S155: 0 | T155: 0 | U155: 0 | V155: 0 | W155: 0
A156: 2008-10-20 | B156: 0.002775404105 | C156: 0.0003601276466 | D156: 0.001062768118 | E156: 0 | F156: 0.007203711801 | G156: 0.01865639822 | H156: 0.01865638121 | I156: 0 | J156: 0.01675953297 | K156: -0.02047443786 | L156: 0.06007937377 | M156: 0.007989780813 | N156: 0.01785524636 | O156: -0.0007151931229 | P156: 0.01670769352 | Q156: 0 | R156: 0 | S156: 0 | T156: 0 | U156: 0 | V156: 0 | W156: 0
A157: 2008-10-21 | B157: 0.006769503135 | C157: 0.0002399929045 | D157: 0.001100684345 | E157: 0 | F157: 0.008432787127 | G157: 0.005260621093 | H157: 0.005260609725 | I157: 0 | J157: -0.0008838270456 | K157: 0.0435610258 | L157: -0.02985524874 | M157: 0.005284291123 | N157: 0.008771060596 | O157: 0.002027732601 | P157: -0.03146498089 | Q157: 0 | R157: 0 | S157: 0 | T157: 0 | U157: 0 | V157: 0 | W157: 0
A158: 2008-10-22 | B158: 0.006140522471 | C158: 0.0009261562187 | D158: 0.003241796514 | E158: 0 | F158: 0.01566282547 | G158: 0.03362727749 | H158: 0.03362729061 | I158: 0 | J158: 0.007550530359 | K158: 0.001286680362 | L158: -0.05445443064 | M158: 0.02029015708 | N158: 0.01159303357 | O158: 0.001428347154 | P158: -0.05681967719 | Q158: 0 | R158: 0 | S158: 0 | T158: 0 | U158: 0 | V158: 0 | W158: 0
A159: 2008-10-23 | B159: 0.0003568185536 | C159: 0.0003451847483 | D159: 0.001028932902 | E159: 0 | F159: 0.004409993697 | G159: 0.01725106 | H159: 0.01725104889 | I159: 0 | J159: 0.008085082629 | K159: 0.03276311941 | L159: 0.01158432608 | M159: 0.007418793784 | N159: -0.01759953247 | O159: -0.0005942670653 | P159: -0.01478171824 | Q159: 0 | R159: 0 | S159: 0 | T159: 0 | U159: 0 | V159: 0 | W159: 0
A160: 2008-10-24 | B160: -0.002577983213 | C160: -0.0004984319785 | D160: -0.001488831044 | E160: 0 | F160: -0.008367356856 | G160: -0.01382488618 | H160: -0.01382487969 | I160: 0 | J160: -0.01706987363 | K160: 0.02375879719 | L160: -0.05071437888 | M160: -0.01063714704 | N160: -0.008436672229 | O160: 0.0008325375726 | P160: 0.02208063632 | Q160: 0 | R160: 0 | S160: 0 | T160: 0 | U160: 0 | V160: 0 | W160: 0
A161: 2008-10-27 | B161: -0.001211068155 | C161: 3.355914046e-05 | D161: -0.0002822451487 | E161: 0 | F161: 0.0004136398813 | G161: 0.03271028371 | H161: 0.03271025694 | I161: 0 | J161: -0.004891669202 | K161: -0.04465424083 | L161: -0.03550096405 | M161: 0.0007236643277 | N161: -0.009978963122 | O161: -0.002495535091 | P161: -0.0004154410804 | Q161: 0 | R161: 0 | S161: 0 | T161: 0 | U161: 0 | V161: 0 | W161: 0
A162: 2008-10-28 | B162: -0.004663584094 | C162: -0.0006760739527 | D162: -0.002012621444 | E162: 0 | F162: -0.01261190455 | G162: -0.06497738355 | H162: -0.06497736353 | I162: 0 | J162: 0.005179402137 | K162: -0.008291441439 | L162: 0.1168553414 | M162: -0.0145661583 | N162: 0.003501351484 | O162: 0.001191313893 | P162: 0.0223053616 | Q162: 0 | R162: 0 | S162: 0 | T162: 0 | U162: 0 | V162: 0 | W162: 0
A163: 2008-10-29 | B163: -0.002909306866 | C163: -0.0002303035763 | D163: -0.0006567150728 | E163: 0 | F163: -0.005759084414 | G163: 0.04055363767 | H163: 0.04055363687 | I163: 0 | J163: -0.005402623857 | K163: -0.01055117119 | L163: -0.007252565984 | M163: -0.005031918416 | N163: 0.0190314615 | O163: 0.0005949034509 | P163: 0.00284590049 | Q163: 0 | R163: 0 | S163: 0 | T163: 0 | U163: 0 | V163: 0 | W163: 0
A164: 2008-10-30 | B164: -0.002275974822 | C164: -0.0004127334568 | D164: -0.001213981968 | E164: 0 | F164: -0.00729836672 | G164: -0.06594738075 | H164: -0.06594738146 | I164: 0 | J164: -0.001787058358 | K164: -0.0160811745 | L164: 0.03459391402 | M164: -0.009061220369 | N164: -0.001245025925 | O164: 0.0008325280143 | P164: -0.01743244595 | Q164: 0 | R164: 0 | S164: 0 | T164: 0 | U164: 0 | V164: 0 | W164: 0
A165: 2008-10-31 | B165: -0.004883450596 | C165: -0.0005857491689 | D165: -0.001835278014 | E165: 0 | F165: -0.01172833599 | G165: -0.01523600363 | H165: -0.01523601234 | I165: 0 | J165: -0.009781103045 | K165: -0.01262838231 | L165: 0.005503619935 | M165: -0.01297183662 | N165: -0.00311658883 | O165: 0.0004752033131 | P165: -0.01884201649 | Q165: 0 | R165: 0 | S165: 0 | T165: 0 | U165: 0 | V165: 0 | W165: 0
A166: 2008-11-03 | B166: 0.002826067651 | C166: 0.0001205755047 | D166: 0.0006892152458 | E166: 0 | F166: 0.004688990023 | G166: 0.006674126268 | H166: 0.006674134429 | I166: 0 | J166: 0.00270384517 | K166: -0.0395634395 | L166: 0.00289164972 | M166: 0.002703847971 | N166: -0.0159061885 | O166: 0.001871876016 | P166: -0.003364143727 | Q166: 0 | R166: 0 | S166: 0 | T166: 0 | U166: 0 | V166: 0 | W166: 0
A167: 2008-11-04 | B167: 0.007997280639 | C167: 0.0008391427482 | D167: 0.002681883315 | E167: 0 | F167: 0.02471471169 | G167: 0.03063780251 | H167: 0.03063781912 | I167: 0 | J167: 0.01876816843 | K167: 0.008522756697 | L167: 0.03398211969 | M167: 0.01876817017 | N167: 0.01605701397 | O167: -0.0003570061888 | P167: 0.06160344758 | Q167: 0 | R167: 0 | S167: 0 | T167: 0 | U167: 0 | V167: 0 | W167: 0
A168: 2008-11-05 | B168: 0.005935645953 | C168: 0.001958968507 | D168: 0.004285130909 | E168: 0 | F168: 0.012463986 | G168: 0.0130604952 | H168: 0.01306046509 | I168: 0 | J168: 0.01185815667 | K168: 0.05718309134 | L168: -0.04202770727 | M168: 0.01185815487 | N168: 0.01517526622 | O168: 0.001785732115 | P168: -0.03550609292 | Q168: 0 | R168: 0 | S168: 0 | T168: 0 | U168: 0 | V168: 0 | W168: 0
A169: 2008-11-06 | B169: 0.0003207087596 | C169: -0.001204503938 | D169: -0.002479656298 | E169: 0 | F169: -0.00983714183 | G169: -0.01241103322 | H169: -0.0124110102 | I169: 0 | J169: -0.007219862768 | K169: 0.03570474891 | L169: -0.05541117415 | M169: -0.007219862547 | N169: -0.004123727927 | O169: 0.0003564970795 | P169: -0.007967060111 | Q169: 0 | R169: 0 | S169: 0 | T169: 0 | U169: 0 | V169: 0 | W169: 0
A170: 2008-11-07 | B170: -0.004257725147 | C170: -0.001083600585 | D170: -0.002449577615 | E170: 0 | F170: -0.00594289541 | G170: -0.005358030173 | H170: -0.005358048495 | I170: 0 | J170: -0.006534507283 | K170: -0.02212502851 | L170: 0.03301782586 | M170: -0.006534510761 | N170: 0.00507243945 | O170: -0.001781913713 | P170: 0.00387702847 | Q170: 0 | R170: 0 | S170: 0 | T170: 0 | U170: 0 | V170: 0 | W170: 0
A171: 2008-11-10 | B171: 0.00419629036 | C171: 0.000804840258 | D171: 0.002003839808 | E171: 0 | F171: 0.003015997891 | G171: 0.001175355165 | H171: 0.001175353059 | I171: 0 | J171: 0.004880097705 | K171: -0.01973162462 | L171: -0.01310466184 | M171: 0.004880103097 | N171: -0.006385774708 | O171: 0.003094163969 | P171: 0.01489657931 | Q171: 0 | R171: 0 | S171: 0 | T171: 0 | U171: 0 | V171: 0 | W171: 0
A172: 2008-11-11 | B172: 0.003730488006 | C172: 0.0004895001496 | D172: 0.00109730532 | E172: 0 | F172: 0.006384750305 | G172: 0.009782800813 | H172: 0.009782829348 | I172: 0 | J172: 0.002956069556 | K172: 0.01476113156 | L172: -0.03087552593 | M172: 0.002956064581 | N172: 0.00756707618 | O172: 0.0007117972297 | P172: -0.02079367978 | Q172: 0 | R172: 0 | S172: 0 | T172: 0 | U172: 0 | V172: 0 | W172: 0
A173: 2008-11-12 | B173: 0.00321173986 | C173: 0.001065912418 | D173: 0.00238709565 | E173: 0 | F173: 0.002941108751 | G173: -0.0004844403007 | H173: -0.0004844513154 | I173: 0 | J173: 0.006421056254 | K173: 0.008992330991 | L173: -0.04400131301 | M173: 0.006421058114 | N173: -0.00864193031 | O173: 0.001541250841 | P173: -0.02845250402 | Q173: 0 | R173: 0 | S173: 0 | T173: 0 | U173: 0 | V173: 0 | W173: 0
A174: 2008-11-13 | B174: -0.009371469764 | C174: -0.003997267433 | D174: -0.008601739264 | E174: 0 | F174: -0.03309780778 | G174: -0.0421633958 | H174: -0.0421633966 | I174: 0 | J174: -0.02395147327 | K174: 0.01939711643 | L174: 0.0623397607 | M174: -0.02395147038 | N174: 0.003424675815 | O174: -0.002485870816 | P174: 0.03071431429 | Q174: 0 | R174: 0 | S174: 0 | T174: 0 | U174: 0 | V174: 0 | W174: 0
A175: 2008-11-14 | B175: 0.008302242313 | C175: 0.003242194262 | D175: 0.006776528525 | E175: 0 | F175: 0.04107466697 | G175: 0.06253795655 | H175: 0.06253794323 | I175: 0 | J175: 0.01982424175 | K175: -0.07251222985 | L175: -0.04990671503 | M175: 0.01982424094 | N175: 0.002999282163 | O175: -0.0002372966779 | P175: 0.01593902936 | Q175: 0 | R175: 0 | S175: 0 | T175: 0 | U175: 0 | V175: 0 | W175: 0
A176: 2008-11-17 | B176: 0.003177694081 | C176: 0.0007336773558 | D176: 0.001716479269 | E176: 0 | F176: -0.0047913525 | G176: -0.01371432118 | H176: -0.01371429788 | I176: 0 | J176: 0.004413131448 | K176: 0.06016081365 | L176: -0.01327639639 | M176: 0.00441313091 | N176: 0.002680907264 | O176: 0.001780433199 | P176: -0.008867680401 | Q176: 0 | R176: 0 | S176: 0 | T176: 0 | U176: 0 | V176: 0 | W176: 0
A177: 2008-11-18 | B177: 0.007842130708 | C177: 0.002147089502 | D177: 0.004593199577 | E177: 0 | F177: 0.007752957393 | G177: 0.002703740264 | H177: 0.00270372258 | I177: 0 | J177: 0.01286749932 | K177: 0.01359832126 | L177: 0.01883702096 | M177: 0.0128674951 | N177: -0.00143973352 | O177: 0.001066310635 | P177: -0.001927047435 | Q177: 0 | R177: 0 | S177: 0 | T177: 0 | U177: 0 | V177: 0 | W177: 0
A178: 2008-11-19 | B178: 0.009093247712 | C178: 0.004319798572 | D178: 0.009144272636 | E178: 0 | F178: 0.03251058541 | G178: 0.03938756783 | H178: 0.03938757856 | I178: 0 | J178: 0.0256145734 | K178: 0.03869967748 | L178: -0.06407901968 | M178: 0.02561457294 | N178: 0.002883618683 | O178: 0.001420313292 | P178: -0.003447800208 | Q178: 0 | R178: 0 | S178: 0 | T178: 0 | U178: 0 | V178: 0 | W178: 0
A179: 2008-11-20 | B179: 0.01568409135 | C179: 0.008897273046 | D179: 0.01863803059 | E179: 0 | F179: 0.06891310226 | G179: 0.0858889727 | H179: 0.08588896121 | I179: 0 | J179: 0.05166160624 | K179: 0.07799307535 | L179: -0.07423316768 | M179: 0.05166161103 | N179: 0.0002054191729 | O179: 0.001890985076 | P179: 0.01646823923 | Q179: 0 | R179: 0 | S179: 0 | T179: 0 | U179: 0 | V179: 0 | W179: 0
A180: 2008-11-21 | B180: -0.007456284355 | C180: -0.002595798979 | D180: -0.005495164184 | E180: 0 | F180: -0.01400224408 | G180: -0.01356651817 | H180: -0.0135665253 | I180: 0 | J180: -0.01445946372 | K180: 0.1566820098 | L180: 0.05394299882 | M180: -0.01445946791 | N180: -0.008008195398 | O180: -0.001651518972 | P180: 0.07351941757 | Q180: 0 | R180: 0 | S180: 0 | T180: 0 | U180: 0 | V180: 0 | W180: 0
A181: 2008-11-24 | B181: -0.006695763562 | C181: -0.002774899939 | D181: -0.005963406503 | E181: 0 | F181: -0.01981486996 | G181: -0.02378687182 | H181: -0.02378687378 | I181: 0 | J181: -0.01564322743 | K181: -0.04382471095 | L181: 0.06929077789 | M181: -0.01564322404 | N181: -0.0001035239726 | O181: -0.002481376499 | P181: 0.02612563161 | Q181: 0 | R181: 0 | S181: 0 | T181: 0 | U181: 0 | V181: 0 | W181: 0
A182: 2008-11-25 | B182: 0.01195512296 | C182: 0.005150451337 | D182: 0.01072417837 | E182: 0 | F182: 0.03746229938 | G182: 0.04518870659 | H182: 0.04518872877 | I182: 0 | J182: 0.02941469456 | K182: -0.04729165587 | L182: 0.007409209165 | M182: 0.0294146916 | N182: 0.02494561442 | O182: 0.0008291830148 | P182: -0.0004943888027 | Q182: 0 | R182: 0 | S182: 0 | T182: 0 | U182: 0 | V182: 0 | W182: 0
A183: 2008-11-26 | B183: 0.0011870012 | C183: 0.000240726858 | D183: 0.0008012505232 | E183: 0 | F183: 0.005183980547 | G183: 0.008816553433 | H183: 0.008816549834 | I183: 0 | J183: 0.001342411643 | K183: 0.0892193405 | L183: 0.03864110969 | M183: 0.001342415331 | N183: -0.003837574716 | O183: 0.003077305372 | P183: -0.006059181177 | Q183: 0 | R183: 0 | S183: 0 | T183: 0 | U183: 0 | V183: 0 | W183: 0
A184: 2008-11-28 | B184: 0.005103492547 | C184: 0.002217596462 | D184: 0.004612622439 | E184: 0 | F184: 0.01798806006 | G184: 0.02327729737 | H184: 0.02327728982 | I184: 0 | J184: 0.01235277608 | K184: 0.003814499632 | L184: 0.01258845629 | M184: 0.0123527722 | N184: -0.001926230088 | O184: 0.0005900142595 | P184: -0.0008708509905 | Q184: 0 | R184: 0 | S184: 0 | T184: 0 | U184: 0 | V184: 0 | W184: 0
A185: 2008-12-01 | B185: 0.01005666525 | C185: 0.006944408242 | D185: 0.01438953966 | E185: 0 | F185: 0.04784939274 | G185: 0.05740328045 | H185: 0.05740327406 | I185: 0 | J185: 0.02560814579 | K185: 0.008044568044 | L185: -0.08857803932 | M185: 0.03829550003 | N185: 0.01410549435 | O185: 0.001644601811 | P185: -0.05802510417 | Q185: 0 | R185: 0 | S185: 0 | T185: 0 | U185: 0 | V185: 0 | W185: 0
A186: 2008-12-02 | B186: 0.0009014894624 | C186: 0.0007178484934 | D186: 0.001448149319 | E186: 0 | F186: 0.01420645282 | G186: 0.0243864562 | H186: 0.02438645225 | I186: 0 | J186: 0.006917964238 | K186: 0.1152628224 | L186: 0.03848490528 | M186: 0.003839112978 | N186: 0.001005722517 | O186: -0.000118147692 | P186: 0.0171843353 | Q186: 0 | R186: 0 | S186: 0 | T186: 0 | U186: 0 | V186: 0 | W186: 0
A187: 2008-12-03 | B187: 0.002502408376 | C187: 6.013040778e-05 | D187: 0.0004904747297 | E187: 0 | F187: 0.01224129884 | G187: 0.02130410979 | H187: 0.021304118 | I187: 0 | J187: 0.004767508544 | K187: 0.01619456088 | L187: 0.02404131457 | M187: 0.002822778005 | N187: 0.0001004875245 | O187: 0.0008269300344 | P187: -0.01000645913 | Q187: 0 | R187: 0 | S187: 0 | T187: 0 | U187: 0 | V187: 0 | W187: 0
A188: 2008-12-04 | B188: 0.007466693233 | C188: 0.0004208538995 | D188: 0.00257812804 | E188: 0 | F188: 0.008618251871 | G188: -0.001855838565 | H188: -0.001855826597 | I188: 0 | J188: 0.01570257477 | K188: 0.001725830915 | L188: -0.02313326049 | M188: 0.01970403418 | N188: 0.003315265596 | O188: 0.0002360273602 | P188: -0.008926227356 | Q188: 0 | R188: 0 | S188: 0 | T188: 0 | U188: 0 | V188: 0 | W188: 0
A189: 2008-12-05 | B189: -0.007615851456 | C189: -0.0003528314461 | D189: -0.002307489054 | E189: 0 | F189: -0.01348513356 | G189: -0.01085829311 | H189: -0.01085831434 | I189: 0 | J189: -0.01198066362 | K189: 0.06302874476 | L189: 0.03083231999 | M189: -0.0162065906 | N189: -0.00550718488 | O189: -0.001180059642 | P189: -0.01298017219 | Q189: 0 | R189: 0 | S189: 0 | T189: 0 | U189: 0 | V189: 0 | W189: 0
A190: 2008-12-08 | B190: -0.002179610988 | C190: -4.653874693e-05 | D190: -0.000498918107 | E190: 0 | F190: -0.01936224961 | G190: -0.03586469992 | H190: -0.03586468248 | I190: 0 | J190: 0.001303805602 | K190: -0.037548008 | L190: 0.03491413164 | M190: -0.002172382764 | N190: -0.001308873471 | O190: -0.001417805061 | P190: 0.02254428432 | Q190: 0 | R190: 0 | S190: 0 | T190: 0 | U190: 0 | V190: 0 | W190: 0
A191: 2008-12-09 | B191: 0.009150380183 | C191: 0.0004227795705 | D191: 0.003026399551 | E191: 0 | F191: 0.01067708487 | G191: 0.001637729424 | H191: 0.001637730714 | I191: 0 | J191: 0.01626237897 | K191: -0.01091950799 | L191: -0.01648351485 | M191: 0.01977503511 | N191: 0.009375949748 | O191: 0.003076222059 | P191: 0.001706102429 | Q191: 0 | R191: 0 | S191: 0 | T191: 0 | U191: 0 | V191: 0 | W191: 0
A192: 2008-12-10 | B192: -0.003748124237 | C192: -5.233955323e-05 | D192: -0.0005145814098 | E192: 0 | F192: 0.02031233309 | G192: 0.04328868819 | H192: 0.04328867372 | I192: 0 | J192: -0.001537492899 | K192: 0.05771592051 | L192: 0.006815650277 | M192: -0.00240167456 | N192: -0.001797841851 | O192: -0.001297483335 | P192: 0.04480542264 | Q192: 0 | R192: 0 | S192: 0 | T192: 0 | U192: 0 | V192: 0 | W192: 0
A193: 2008-12-11 | B193: 0.003939145151 | C193: 4.265581548e-05 | D193: 0.0006194974732 | E193: 0 | F193: 0.003240606674 | G193: 0.004477654664 | H193: 0.004477663866 | I193: 0 | J193: -0.0005004871592 | K193: -0.01229079598 | L193: -0.0240816587 | M193: 0.001961673593 | N193: 0.005203089174 | O193: 0.002362171219 | P193: 0.01128529154 | Q193: 0 | R193: 0 | S193: 0 | T193: 0 | U193: 0 | V193: 0 | W193: 0
A194: 2008-12-12 | B194: 0.001354844792 | C194: 0 | D194: 7.242836762e-05 | E194: 0 | F194: -0.003705620006 | G194: -0.007280911511 | H194: -0.007280926818 | I194: 0 | J194: 0.001102178881 | K194: 0.007173011462 | L194: 0.01193991603 | M194: 0 | N194: 0.0002986096233 | O194: 0.0004713209032 | P194: 0.001983831321 | Q194: 0 | R194: 0 | S194: 0 | T194: 0 | U194: 0 | V194: 0 | W194: 0
A195: 2008-12-15 | B195: 0.003582353061 | C195: 0.0002481381295 | D195: 0.001603509571 | E195: 0 | F195: 0.02049176909 | G195: 0.02933692174 | H195: 0.02933693406 | I195: 0 | J195: 0.009027853197 | K195: -0.00322385022 | L195: -0.0139341353 | M195: 0.01139092947 | N195: 0.002388350356 | O195: 0.0007065980676 | P195: 0.02215072447 | Q195: 0 | R195: 0 | S195: 0 | T195: 0 | U195: 0 | V195: 0 | W195: 0
A196: 2008-12-16 | B196: 0.009084594375 | C196: 0.0005446050747 | D196: 0.003348789586 | E196: 0 | F196: 0.02420186188 | G196: 0.02370225542 | H196: 0.02370225747 | I196: 0 | J196: 0.02676215777 | K196: 0.04318127492 | L196: 0.04706550453 | M196: 0.02472500622 | N196: 0.003970946572 | O196: 0.000470766222 | P196: 0.02251817246 | Q196: 0 | R196: 0 | S196: 0 | T196: 0 | U196: 0 | V196: 0 | W196: 0
A197: 2008-12-17 | B197: 0.004039581586 | C197: 0.0006120993809 | D197: 0.003347982826 | E197: 0 | F197: 0.03864301283 | G197: 0.04964481978 | H197: 0.04964480961 | I197: 0 | J197: 0.02370990324 | K197: 0.06713164457 | L197: -0.009686551432 | M197: 0.02713380878 | N197: 0.005339672307 | O197: -0.002117401004 | P197: 0.01148473847 | Q197: 0 | R197: 0 | S197: 0 | T197: 0 | U197: 0 | V197: 0 | W197: 0
A198: 2008-12-18 | B198: 0.006463690883 | C198: 0.0004859072702 | D198: 0.002978997821 | E198: 0 | F198: 0.02790152013 | G198: 0.03437310899 | H198: 0.03437311842 | I198: 0 | J198: 0.01741484397 | K198: 0.07237422915 | L198: -0.01868333071 | M198: 0.02098307421 | N198: 0.00629487604 | O198: 0.0004715431514 | P198: -0.01826052909 | Q198: 0 | R198: 0 | S198: 0 | T198: 0 | U198: 0 | V198: 0 | W198: 0
A199: 2008-12-19 | B199: -0.0002839477318 | C199: 2.515131364e-05 | D199: 6.890719986e-06 | E199: 0 | F199: -0.002277934678 | G199: -0.0053639916 | H199: -0.00536398212 | I199: 0 | J199: 0.0005988945557 | K199: 0.05945776573 | L199: -0.004301628241 | M199: 0.001064477552 | N199: -0.003225433001 | O199: -0.0009426418064 | P199: -0.01478485699 | Q199: 0 | R199: 0 | S199: 0 | T199: 0 | U199: 0 | V199: 0 | W199: 0
A200: 2008-12-22 | B200: -0.001790744139 | C200: -0.0001818787824 | D200: -0.001371960957 | E200: 0 | F200: -0.009467378273 | G200: -0.01112039373 | H200: -0.01112039181 | I200: 0 | J200: -0.008131021087 | K200: 0.0001585113299 | L200: -0.01281329431 | M200: -0.007688551146 | N200: 0.005393165811 | O200: -0.001887062437 | P200: 0.01004480249 | Q200: 0 | R200: 0 | S200: 0 | T200: 0 | U200: 0 | V200: 0 | W200: 0
... 1906 more rows

Sheet ReturnWeighted
A1: =+Dates -> Date | B1: =+StratNames -> BRS | C1: BUGST | D1: BUGLEV | E1: WTOP4 | F1: GSRlv | G1: GMRS | H1: GMRSE | I1: MYRS | J1: UIS | K1: UIS-SPXL-TMF | L1: SPY | M1: TLT | N1: AGG | O1: SHY | P1: GLD | Q1: NASDAQ100 | R1: GLD-USD | S1: empty | T1: empty | U1: empty | V1: empty | W1: empty | X1: Custom
A2: 2008-03-12 | B2: =+Returns*TRANSPOSE(StratWeights) -> 0 | C2: 0 | D2: 0 | E2: 0 | F2: 0 | G2: 0 | H2: 0 | I2: 0 | J2: 0 | K2: -0.004532478768 | L2: 0 | M2: 0 | N2: 0 | O2: 0 | P2: 0 | Q2: 0 | R2: 0 | S2: 0 | T2: 0 | U2: 0 | V2: 0 | W2: 0 | X2: =SUM(B2:W2) -> -0.004532478768
A3: 2008-03-13 | B3: 0 | C3: 0 | D3: 0 | E3: 0 | F3: 0 | G3: 0 | H3: 0 | I3: 0 | J3: 0 | K3: 0.01530075219 | L3: 0 | M3: 0 | N3: 0 | O3: 0 | P3: 0 | Q3: 0 | R3: 0 | S3: 0 | T3: 0 | U3: 0 | V3: 0 | W3: 0 | X3: =SUM(B3:W3) -> 0.01530075219
A4: 2008-03-14 | B4: 0 | C4: 0 | D4: 0 | E4: 0 | F4: 0 | G4: 0 | H4: 0 | I4: 0 | J4: 0 | K4: -0.006392885253 | L4: 0 | M4: 0 | N4: 0 | O4: 0 | P4: 0 | Q4: 0 | R4: 0 | S4: 0 | T4: 0 | U4: 0 | V4: 0 | W4: 0 | X4: -0.006392885253
A5: 2008-03-17 | B5: 0 | C5: 0 | D5: 0 | E5: 0 | F5: 0 | G5: 0 | H5: 0 | I5: 0 | J5: 0 | K5: 0.009140901121 | L5: 0 | M5: 0 | N5: 0 | O5: 0 | P5: 0 | Q5: 0 | R5: 0 | S5: 0 | T5: 0 | U5: 0 | V5: 0 | W5: 0 | X5: 0.009140901121
A6: 2008-03-18 | B6: 0 | C6: 0 | D6: 0 | E6: 0 | F6: 0 | G6: 0 | H6: 0 | I6: 0 | J6: 0 | K6: 0.005859712159 | L6: 0 | M6: 0 | N6: 0 | O6: 0 | P6: 0 | Q6: 0 | R6: 0 | S6: 0 | T6: 0 | U6: 0 | V6: 0 | W6: 0 | X6: 0.005859712159
A7: 2008-03-19 | B7: 0 | C7: 0 | D7: 0 | E7: 0 | F7: 0 | G7: 0 | H7: 0 | I7: 0 | J7: 0 | K7: -0.0004976791698 | L7: 0 | M7: 0 | N7: 0 | O7: 0 | P7: 0 | Q7: 0 | R7: 0 | S7: 0 | T7: 0 | U7: 0 | V7: 0 | W7: 0 | X7: -0.0004976791698
A8: 2008-03-20 | B8: 0 | C8: 0 | D8: 0 | E8: 0 | F8: 0 | G8: 0 | H8: 0 | I8: 0 | J8: 0 | K8: 0.01203083674 | L8: 0 | M8: 0 | N8: 0 | O8: 0 | P8: 0 | Q8: 0 | R8: 0 | S8: 0 | T8: 0 | U8: 0 | V8: 0 | W8: 0 | X8: 0.01203083674
A9: 2008-03-24 | B9: 0 | C9: 0 | D9: 0 | E9: 0 | F9: 0 | G9: 0 | H9: 0 | I9: 0 | J9: 0 | K9: 0.003347273258 | L9: 0 | M9: 0 | N9: 0 | O9: 0 | P9: 0 | Q9: 0 | R9: 0 | S9: 0 | T9: 0 | U9: 0 | V9: 0 | W9: 0 | X9: 0.003347273258
A10: 2008-03-25 | B10: 0 | C10: 0 | D10: 0 | E10: 0 | F10: 0 | G10: 0 | H10: 0 | I10: 0 | J10: 0 | K10: -0.01496424482 | L10: 0 | M10: 0 | N10: 0 | O10: 0 | P10: 0 | Q10: 0 | R10: 0 | S10: 0 | T10: 0 | U10: 0 | V10: 0 | W10: 0 | X10: -0.01496424482
A11: 2008-03-26 | B11: 0 | C11: 0 | D11: 0 | E11: 0 | F11: 0 | G11: 0 | H11: 0 | I11: 0 | J11: 0 | K11: 0.003534769932 | L11: 0 | M11: 0 | N11: 0 | O11: 0 | P11: 0 | Q11: 0 | R11: 0 | S11: 0 | T11: 0 | U11: 0 | V11: 0 | W11: 0 | X11: 0.003534769932
A12: 2008-03-27 | B12: 0 | C12: 0 | D12: 0 | E12: 0 | F12: 0 | G12: 0 | H12: 0 | I12: 0 | J12: 0 | K12: -0.004376877744 | L12: 0 | M12: 0 | N12: 0 | O12: 0 | P12: 0 | Q12: 0 | R12: 0 | S12: 0 | T12: 0 | U12: 0 | V12: 0 | W12: 0 | X12: -0.004376877744
A13: 2008-03-28 | B13: 0 | C13: 0 | D13: 0 | E13: 0 | F13: 0 | G13: 0 | H13: 0 | I13: 0 | J13: 0 | K13: -0.006199035915 | L13: 0 | M13: 0 | N13: 0 | O13: 0 | P13: 0 | Q13: 0 | R13: 0 | S13: 0 | T13: 0 | U13: 0 | V13: 0 | W13: 0 | X13: -0.006199035915
A14: 2008-03-31 | B14: 0 | C14: 0 | D14: 0 | E14: 0 | F14: 0 | G14: 0 | H14: 0 | I14: 0 | J14: 0 | K14: 0.007509635573 | L14: 0 | M14: 0 | N14: 0 | O14: 0 | P14: 0 | Q14: 0 | R14: 0 | S14: 0 | T14: 0 | U14: 0 | V14: 0 | W14: 0 | X14: 0.007509635573
A15: 2008-04-01 | B15: 0 | C15: 0 | D15: 0 | E15: 0 | F15: 0 | G15: 0 | H15: 0 | I15: 0 | J15: 0 | K15: 0.003179757722 | L15: 0 | M15: 0 | N15: 0 | O15: 0 | P15: 0 | Q15: 0 | R15: 0 | S15: 0 | T15: 0 | U15: 0 | V15: 0 | W15: 0 | X15: 0.003179757722
A16: 2008-04-02 | B16: 0 | C16: 0 | D16: 0 | E16: 0 | F16: 0 | G16: 0 | H16: 0 | I16: 0 | J16: 0 | K16: -0.01023160531 | L16: 0 | M16: 0 | N16: 0 | O16: 0 | P16: 0 | Q16: 0 | R16: 0 | S16: 0 | T16: 0 | U16: 0 | V16: 0 | W16: 0 | X16: -0.01023160531
A17: 2008-04-03 | B17: 0 | C17: 0 | D17: 0 | E17: 0 | F17: 0 | G17: 0 | H17: 0 | I17: 0 | J17: 0 | K17: 0.001645798053 | L17: 0 | M17: 0 | N17: 0 | O17: 0 | P17: 0 | Q17: 0 | R17: 0 | S17: 0 | T17: 0 | U17: 0 | V17: 0 | W17: 0 | X17: 0.001645798053
A18: 2008-04-04 | B18: 0 | C18: 0 | D18: 0 | E18: 0 | F18: 0 | G18: 0 | H18: 0 | I18: 0 | J18: 0 | K18: 0.002133868016 | L18: 0 | M18: 0 | N18: 0 | O18: 0 | P18: 0 | Q18: 0 | R18: 0 | S18: 0 | T18: 0 | U18: 0 | V18: 0 | W18: 0 | X18: 0.002133868016
A19: 2008-04-07 | B19: 0 | C19: 0 | D19: 0 | E19: 0 | F19: 0 | G19: 0 | H19: 0 | I19: 0 | J19: 0 | K19: 0.007346783127 | L19: 0 | M19: 0 | N19: 0 | O19: 0 | P19: 0 | Q19: 0 | R19: 0 | S19: 0 | T19: 0 | U19: 0 | V19: 0 | W19: 0 | X19: 0.007346783127
A20: 2008-04-08 | B20: 0 | C20: 0 | D20: 0 | E20: 0 | F20: 0 | G20: 0 | H20: 0 | I20: 0 | J20: 0 | K20: -0.004318588936 | L20: 0 | M20: 0 | N20: 0 | O20: 0 | P20: 0 | Q20: 0 | R20: 0 | S20: 0 | T20: 0 | U20: 0 | V20: 0 | W20: 0 | X20: -0.004318588936
A21: 2008-04-09 | B21: 0 | C21: 0 | D21: 0 | E21: 0 | F21: 0 | G21: 0 | H21: 0 | I21: 0 | J21: 0 | K21: -0.002907957591 | L21: 0 | M21: 0 | N21: 0 | O21: 0 | P21: 0 | Q21: 0 | R21: 0 | S21: 0 | T21: 0 | U21: 0 | V21: 0 | W21: 0 | X21: -0.002907957591
A22: 2008-04-10 | B22: 0 | C22: 0 | D22: 0 | E22: 0 | F22: 0 | G22: 0 | H22: 0 | I22: 0 | J22: 0 | K22: 0.007771120606 | L22: 0 | M22: 0 | N22: 0 | O22: 0 | P22: 0 | Q22: 0 | R22: 0 | S22: 0 | T22: 0 | U22: 0 | V22: 0 | W22: 0 | X22: 0.007771120606
A23: 2008-04-11 | B23: 0 | C23: 0 | D23: 0 | E23: 0 | F23: 0 | G23: 0 | H23: 0 | I23: 0 | J23: 0 | K23: -0.00269683882 | L23: 0 | M23: 0 | N23: 0 | O23: 0 | P23: 0 | Q23: 0 | R23: 0 | S23: 0 | T23: 0 | U23: 0 | V23: 0 | W23: 0 | X23: -0.00269683882
A24: 2008-04-14 | B24: 0 | C24: 0 | D24: 0 | E24: 0 | F24: 0 | G24: 0 | H24: 0 | I24: 0 | J24: 0 | K24: 0.003691252114 | L24: 0 | M24: 0 | N24: 0 | O24: 0 | P24: 0 | Q24: 0 | R24: 0 | S24: 0 | T24: 0 | U24: 0 | V24: 0 | W24: 0 | X24: 0.003691252114
A25: 2008-04-15 | B25: 0 | C25: 0 | D25: 0 | E25: 0 | F25: 0 | G25: 0 | H25: 0 | I25: 0 | J25: 0 | K25: -0.005089949996 | L25: 0 | M25: 0 | N25: 0 | O25: 0 | P25: 0 | Q25: 0 | R25: 0 | S25: 0 | T25: 0 | U25: 0 | V25: 0 | W25: 0 | X25: -0.005089949996
A26: 2008-04-16 | B26: 0 | C26: 0 | D26: 0 | E26: 0 | F26: 0 | G26: 0 | H26: 0 | I26: 0 | J26: 0 | K26: -0.01003296671 | L26: 0 | M26: 0 | N26: 0 | O26: 0 | P26: 0 | Q26: 0 | R26: 0 | S26: 0 | T26: 0 | U26: 0 | V26: 0 | W26: 0 | X26: -0.01003296671
A27: 2008-04-17 | B27: 0 | C27: 0 | D27: 0 | E27: 0 | F27: 0 | G27: 0 | H27: 0 | I27: 0 | J27: 0 | K27: -0.005518499492 | L27: 0 | M27: 0 | N27: 0 | O27: 0 | P27: 0 | Q27: 0 | R27: 0 | S27: 0 | T27: 0 | U27: 0 | V27: 0 | W27: 0 | X27: -0.005518499492
A28: 2008-04-18 | B28: 0 | C28: 0 | D28: 0 | E28: 0 | F28: 0 | G28: 0 | H28: 0 | I28: 0 | J28: 0 | K28: -0.001239193752 | L28: 0 | M28: 0 | N28: 0 | O28: 0 | P28: 0 | Q28: 0 | R28: 0 | S28: 0 | T28: 0 | U28: 0 | V28: 0 | W28: 0 | X28: -0.001239193752
A29: 2008-04-21 | B29: 0 | C29: 0 | D29: 0 | E29: 0 | F29: 0 | G29: 0 | H29: 0 | I29: 0 | J29: 0 | K29: 0.0003912780295 | L29: 0 | M29: 0 | N29: 0 | O29: 0 | P29: 0 | Q29: 0 | R29: 0 | S29: 0 | T29: 0 | U29: 0 | V29: 0 | W29: 0 | X29: 0.0003912780295
A30: 2008-04-22 | B30: 0 | C30: 0 | D30: 0 | E30: 0 | F30: 0 | G30: 0 | H30: 0 | I30: 0 | J30: 0 | K30: 0.00324770778 | L30: 0 | M30: 0 | N30: 0 | O30: 0 | P30: 0 | Q30: 0 | R30: 0 | S30: 0 | T30: 0 | U30: 0 | V30: 0 | W30: 0 | X30: 0.00324770778
A31: 2008-04-23 | B31: 0 | C31: 0 | D31: 0 | E31: 0 | F31: 0 | G31: 0 | H31: 0 | I31: 0 | J31: 0 | K31: 0.002376082262 | L31: 0 | M31: 0 | N31: 0 | O31: 0 | P31: 0 | Q31: 0 | R31: 0 | S31: 0 | T31: 0 | U31: 0 | V31: 0 | W31: 0 | X31: 0.002376082262
A32: 2008-04-24 | B32: 0 | C32: 0 | D32: 0 | E32: 0 | F32: 0 | G32: 0 | H32: 0 | I32: 0 | J32: 0 | K32: -0.002843625936 | L32: 0 | M32: 0 | N32: 0 | O32: 0 | P32: 0 | Q32: 0 | R32: 0 | S32: 0 | T32: 0 | U32: 0 | V32: 0 | W32: 0 | X32: -0.002843625936
A33: 2008-04-25 | B33: 0 | C33: 0 | D33: 0 | E33: 0 | F33: 0 | G33: 0 | H33: 0 | I33: 0 | J33: 0 | K33: -0.006407982389 | L33: 0 | M33: 0 | N33: 0 | O33: 0 | P33: 0 | Q33: 0 | R33: 0 | S33: 0 | T33: 0 | U33: 0 | V33: 0 | W33: 0 | X33: -0.006407982389
A34: 2008-04-28 | B34: 0 | C34: 0 | D34: 0 | E34: 0 | F34: 0 | G34: 0 | H34: 0 | I34: 0 | J34: 0 | K34: -0.003716482594 | L34: 0 | M34: 0 | N34: 0 | O34: 0 | P34: 0 | Q34: 0 | R34: 0 | S34: 0 | T34: 0 | U34: 0 | V34: 0 | W34: 0 | X34: -0.003716482594
A35: 2008-04-29 | B35: 0 | C35: 0 | D35: 0 | E35: 0 | F35: 0 | G35: 0 | H35: 0 | I35: 0 | J35: 0 | K35: 0.002413974814 | L35: 0 | M35: 0 | N35: 0 | O35: 0 | P35: 0 | Q35: 0 | R35: 0 | S35: 0 | T35: 0 | U35: 0 | V35: 0 | W35: 0 | X35: 0.002413974814
A36: 2008-04-30 | B36: 0 | C36: 0 | D36: 0 | E36: 0 | F36: 0 | G36: 0 | H36: 0 | I36: 0 | J36: 0 | K36: 0.002649557276 | L36: 0 | M36: 0 | N36: 0 | O36: 0 | P36: 0 | Q36: 0 | R36: 0 | S36: 0 | T36: 0 | U36: 0 | V36: 0 | W36: 0 | X36: 0.002649557276
A37: 2008-05-01 | B37: 0 | C37: 0 | D37: 0 | E37: 0 | F37: 0 | G37: 0 | H37: 0 | I37: 0 | J37: 0 | K37: -0.0005266426623 | L37: 0 | M37: 0 | N37: 0 | O37: 0 | P37: 0 | Q37: 0 | R37: 0 | S37: 0 | T37: 0 | U37: 0 | V37: 0 | W37: 0 | X37: -0.0005266426623
A38: 2008-05-02 | B38: 0 | C38: 0 | D38: 0 | E38: 0 | F38: 0 | G38: 0 | H38: 0 | I38: 0 | J38: 0 | K38: 0.0108363034 | L38: 0 | M38: 0 | N38: 0 | O38: 0 | P38: 0 | Q38: 0 | R38: 0 | S38: 0 | T38: 0 | U38: 0 | V38: 0 | W38: 0 | X38: 0.0108363034
A39: 2008-05-05 | B39: 0 | C39: 0 | D39: 0 | E39: 0 | F39: 0 | G39: 0 | H39: 0 | I39: 0 | J39: 0 | K39: -0.003092672301 | L39: 0 | M39: 0 | N39: 0 | O39: 0 | P39: 0 | Q39: 0 | R39: 0 | S39: 0 | T39: 0 | U39: 0 | V39: 0 | W39: 0 | X39: -0.003092672301
A40: 2008-05-06 | B40: 0 | C40: 0 | D40: 0 | E40: 0 | F40: 0 | G40: 0 | H40: 0 | I40: 0 | J40: 0 | K40: -0.002592561499 | L40: 0 | M40: 0 | N40: 0 | O40: 0 | P40: 0 | Q40: 0 | R40: 0 | S40: 0 | T40: 0 | U40: 0 | V40: 0 | W40: 0 | X40: -0.002592561499
A41: 2008-05-07 | B41: 0 | C41: 0 | D41: 0 | E41: 0 | F41: 0 | G41: 0 | H41: 0 | I41: 0 | J41: 0 | K41: 0.002109335255 | L41: 0 | M41: 0 | N41: 0 | O41: 0 | P41: 0 | Q41: 0 | R41: 0 | S41: 0 | T41: 0 | U41: 0 | V41: 0 | W41: 0 | X41: 0.002109335255
A42: 2008-05-08 | B42: 0 | C42: 0 | D42: 0 | E42: 0 | F42: 0 | G42: 0 | H42: 0 | I42: 0 | J42: 0 | K42: -0.008355943709 | L42: 0 | M42: 0 | N42: 0 | O42: 0 | P42: 0 | Q42: 0 | R42: 0 | S42: 0 | T42: 0 | U42: 0 | V42: 0 | W42: 0 | X42: -0.008355943709
A43: 2008-05-09 | B43: 0 | C43: 0 | D43: 0 | E43: 0 | F43: 0 | G43: 0 | H43: 0 | I43: 0 | J43: 0 | K43: 0.001862497872 | L43: 0 | M43: 0 | N43: 0 | O43: 0 | P43: 0 | Q43: 0 | R43: 0 | S43: 0 | T43: 0 | U43: 0 | V43: 0 | W43: 0 | X43: 0.001862497872
A44: 2008-05-12 | B44: 0 | C44: 0 | D44: 0 | E44: 0 | F44: 0 | G44: 0 | H44: 0 | I44: 0 | J44: 0 | K44: 0.000345826632 | L44: 0 | M44: 0 | N44: 0 | O44: 0 | P44: 0 | Q44: 0 | R44: 0 | S44: 0 | T44: 0 | U44: 0 | V44: 0 | W44: 0 | X44: 0.000345826632
A45: 2008-05-13 | B45: 0 | C45: 0 | D45: 0 | E45: 0 | F45: 0 | G45: 0 | H45: 0 | I45: 0 | J45: 0 | K45: 0.005372493744 | L45: 0 | M45: 0 | N45: 0 | O45: 0 | P45: 0 | Q45: 0 | R45: 0 | S45: 0 | T45: 0 | U45: 0 | V45: 0 | W45: 0 | X45: 0.005372493744
A46: 2008-05-14 | B46: 0 | C46: 0 | D46: 0 | E46: 0 | F46: 0 | G46: 0 | H46: 0 | I46: 0 | J46: 0 | K46: -0.003935901104 | L46: 0 | M46: 0 | N46: 0 | O46: 0 | P46: 0 | Q46: 0 | R46: 0 | S46: 0 | T46: 0 | U46: 0 | V46: 0 | W46: 0 | X46: -0.003935901104
A47: 2008-05-15 | B47: 0 | C47: 0 | D47: 0 | E47: 0 | F47: 0 | G47: 0 | H47: 0 | I47: 0 | J47: 0 | K47: 0.001343151243 | L47: 0 | M47: 0 | N47: 0 | O47: 0 | P47: 0 | Q47: 0 | R47: 0 | S47: 0 | T47: 0 | U47: 0 | V47: 0 | W47: 0 | X47: 0.001343151243
A48: 2008-05-16 | B48: 0 | C48: 0 | D48: 0 | E48: 0 | F48: 0 | G48: 0 | H48: 0 | I48: 0 | J48: 0 | K48: 0.009995361424 | L48: 0 | M48: 0 | N48: 0 | O48: 0 | P48: 0 | Q48: 0 | R48: 0 | S48: 0 | T48: 0 | U48: 0 | V48: 0 | W48: 0 | X48: 0.009995361424
A49: 2008-05-19 | B49: 0 | C49: 0 | D49: 0 | E49: 0 | F49: 0 | G49: 0 | H49: 0 | I49: 0 | J49: 0 | K49: -0.0009463143392 | L49: 0 | M49: 0 | N49: 0 | O49: 0 | P49: 0 | Q49: 0 | R49: 0 | S49: 0 | T49: 0 | U49: 0 | V49: 0 | W49: 0 | X49: -0.0009463143392
A50: 2008-05-20 | B50: 0 | C50: 0 | D50: 0 | E50: 0 | F50: 0 | G50: 0 | H50: 0 | I50: 0 | J50: 0 | K50: 0.001920318147 | L50: 0 | M50: 0 | N50: 0 | O50: 0 | P50: 0 | Q50: 0 | R50: 0 | S50: 0 | T50: 0 | U50: 0 | V50: 0 | W50: 0 | X50: 0.001920318147
A51: 2008-05-21 | B51: 0 | C51: 0 | D51: 0 | E51: 0 | F51: 0 | G51: 0 | H51: 0 | I51: 0 | J51: 0 | K51: -0.002637843354 | L51: 0 | M51: 0 | N51: 0 | O51: 0 | P51: 0 | Q51: 0 | R51: 0 | S51: 0 | T51: 0 | U51: 0 | V51: 0 | W51: 0 | X51: -0.002637843354
A52: 2008-05-22 | B52: 0 | C52: 0 | D52: 0 | E52: 0 | F52: 0 | G52: 0 | H52: 0 | I52: 0 | J52: 0 | K52: -0.0090521394 | L52: 0 | M52: 0 | N52: 0 | O52: 0 | P52: 0 | Q52: 0 | R52: 0 | S52: 0 | T52: 0 | U52: 0 | V52: 0 | W52: 0 | X52: -0.0090521394
A53: 2008-05-23 | B53: 0 | C53: 0 | D53: 0 | E53: 0 | F53: 0 | G53: 0 | H53: 0 | I53: 0 | J53: 0 | K53: -0.00422563365 | L53: 0 | M53: 0 | N53: 0 | O53: 0 | P53: 0 | Q53: 0 | R53: 0 | S53: 0 | T53: 0 | U53: 0 | V53: 0 | W53: 0 | X53: -0.00422563365
A54: 2008-05-27 | B54: 0 | C54: 0 | D54: 0 | E54: 0 | F54: 0 | G54: 0 | H54: 0 | I54: 0 | J54: 0 | K54: -0.005726321773 | L54: 0 | M54: 0 | N54: 0 | O54: 0 | P54: 0 | Q54: 0 | R54: 0 | S54: 0 | T54: 0 | U54: 0 | V54: 0 | W54: 0 | X54: -0.005726321773
A55: 2008-05-28 | B55: 0 | C55: 0 | D55: 0 | E55: 0 | F55: 0 | G55: 0 | H55: 0 | I55: 0 | J55: 0 | K55: 0.001399707917 | L55: 0 | M55: 0 | N55: 0 | O55: 0 | P55: 0 | Q55: 0 | R55: 0 | S55: 0 | T55: 0 | U55: 0 | V55: 0 | W55: 0 | X55: 0.001399707917
A56: 2008-05-29 | B56: 0 | C56: 0 | D56: 0 | E56: 0 | F56: 0 | G56: 0 | H56: 0 | I56: 0 | J56: 0 | K56: -0.0006823697948 | L56: 0 | M56: 0 | N56: 0 | O56: 0 | P56: 0 | Q56: 0 | R56: 0 | S56: 0 | T56: 0 | U56: 0 | V56: 0 | W56: 0 | X56: -0.0006823697948
A57: 2008-05-30 | B57: 0 | C57: 0 | D57: 0 | E57: 0 | F57: 0 | G57: 0 | H57: 0 | I57: 0 | J57: 0 | K57: 0.0001817877899 | L57: 0 | M57: 0 | N57: 0 | O57: 0 | P57: 0 | Q57: 0 | R57: 0 | S57: 0 | T57: 0 | U57: 0 | V57: 0 | W57: 0 | X57: 0.0001817877899
A58: 2008-06-02 | B58: 0 | C58: 0 | D58: 0 | E58: 0 | F58: 0 | G58: 0 | H58: 0 | I58: 0 | J58: 0 | K58: 0.004075063217 | L58: 0 | M58: 0 | N58: 0 | O58: 0 | P58: 0 | Q58: 0 | R58: 0 | S58: 0 | T58: 0 | U58: 0 | V58: 0 | W58: 0 | X58: 0.004075063217
A59: 2008-06-03 | B59: 0 | C59: 0 | D59: 0 | E59: 0 | F59: 0 | G59: 0 | H59: 0 | I59: 0 | J59: 0 | K59: -0.002765186779 | L59: 0 | M59: 0 | N59: 0 | O59: 0 | P59: 0 | Q59: 0 | R59: 0 | S59: 0 | T59: 0 | U59: 0 | V59: 0 | W59: 0 | X59: -0.002765186779
A60: 2008-06-04 | B60: 0 | C60: 0 | D60: 0 | E60: 0 | F60: 0 | G60: 0 | H60: 0 | I60: 0 | J60: 0 | K60: 0.0009306003521 | L60: 0 | M60: 0 | N60: 0 | O60: 0 | P60: 0 | Q60: 0 | R60: 0 | S60: 0 | T60: 0 | U60: 0 | V60: 0 | W60: 0 | X60: 0.0009306003521
A61: 2008-06-05 | B61: 0 | C61: 0 | D61: 0 | E61: 0 | F61: 0 | G61: 0 | H61: 0 | I61: 0 | J61: 0 | K61: -0.004521347787 | L61: 0 | M61: 0 | N61: 0 | O61: 0 | P61: 0 | Q61: 0 | R61: 0 | S61: 0 | T61: 0 | U61: 0 | V61: 0 | W61: 0 | X61: -0.004521347787
A62: 2008-06-06 | B62: 0 | C62: 0 | D62: 0 | E62: 0 | F62: 0 | G62: 0 | H62: 0 | I62: 0 | J62: 0 | K62: 0.005704802471 | L62: 0 | M62: 0 | N62: 0 | O62: 0 | P62: 0 | Q62: 0 | R62: 0 | S62: 0 | T62: 0 | U62: 0 | V62: 0 | W62: 0 | X62: 0.005704802471
A63: 2008-06-09 | B63: 0 | C63: 0 | D63: 0 | E63: 0 | F63: 0 | G63: 0 | H63: 0 | I63: 0 | J63: 0 | K63: -0.008237165388 | L63: 0 | M63: 0 | N63: 0 | O63: 0 | P63: 0 | Q63: 0 | R63: 0 | S63: 0 | T63: 0 | U63: 0 | V63: 0 | W63: 0 | X63: -0.008237165388
A64: 2008-06-10 | B64: 0 | C64: 0 | D64: 0 | E64: 0 | F64: 0 | G64: 0 | H64: 0 | I64: 0 | J64: 0 | K64: 0.0009869914029 | L64: 0 | M64: 0 | N64: 0 | O64: 0 | P64: 0 | Q64: 0 | R64: 0 | S64: 0 | T64: 0 | U64: 0 | V64: 0 | W64: 0 | X64: 0.0009869914029
A65: 2008-06-11 | B65: 0 | C65: 0 | D65: 0 | E65: 0 | F65: 0 | G65: 0 | H65: 0 | I65: 0 | J65: 0 | K65: -0.005210484016 | L65: 0 | M65: 0 | N65: 0 | O65: 0 | P65: 0 | Q65: 0 | R65: 0 | S65: 0 | T65: 0 | U65: 0 | V65: 0 | W65: 0 | X65: -0.005210484016
A66: 2008-06-12 | B66: 0 | C66: 0 | D66: 0 | E66: 0 | F66: 0 | G66: 0 | H66: 0 | I66: 0 | J66: 0 | K66: -0.00731072969 | L66: 0 | M66: 0 | N66: 0 | O66: 0 | P66: 0 | Q66: 0 | R66: 0 | S66: 0 | T66: 0 | U66: 0 | V66: 0 | W66: 0 | X66: -0.00731072969
A67: 2008-06-13 | B67: 0 | C67: 0 | D67: 0 | E67: 0 | F67: 0 | G67: 0 | H67: 0 | I67: 0 | J67: 0 | K67: -0.003390202371 | L67: 0 | M67: 0 | N67: 0 | O67: 0 | P67: 0 | Q67: 0 | R67: 0 | S67: 0 | T67: 0 | U67: 0 | V67: 0 | W67: 0 | X67: =SUM(B67:W67) -> -0.003390202371
A68: 2008-06-16 | B68: 0 | C68: 0 | D68: 0 | E68: 0 | F68: 0 | G68: 0 | H68: 0 | I68: 0 | J68: 0 | K68: 0.004258868601 | L68: 0 | M68: 0 | N68: 0 | O68: 0 | P68: 0 | Q68: 0 | R68: 0 | S68: 0 | T68: 0 | U68: 0 | V68: 0 | W68: 0 | X68: 0.004258868601
A69: 2008-06-17 | B69: 0 | C69: 0 | D69: 0 | E69: 0 | F69: 0 | G69: 0 | H69: 0 | I69: 0 | J69: 0 | K69: 0.0004091500401 | L69: 0 | M69: 0 | N69: 0 | O69: 0 | P69: 0 | Q69: 0 | R69: 0 | S69: 0 | T69: 0 | U69: 0 | V69: 0 | W69: 0 | X69: 0.0004091500401
A70: 2008-06-18 | B70: 0 | C70: 0 | D70: 0 | E70: 0 | F70: 0 | G70: 0 | H70: 0 | I70: 0 | J70: 0 | K70: -0.001151666005 | L70: 0 | M70: 0 | N70: 0 | O70: 0 | P70: 0 | Q70: 0 | R70: 0 | S70: 0 | T70: 0 | U70: 0 | V70: 0 | W70: 0 | X70: -0.001151666005
A71: 2008-06-19 | B71: 0 | C71: 0 | D71: 0 | E71: 0 | F71: 0 | G71: 0 | H71: 0 | I71: 0 | J71: 0 | K71: -5.729393195e-05 | L71: 0 | M71: 0 | N71: 0 | O71: 0 | P71: 0 | Q71: 0 | R71: 0 | S71: 0 | T71: 0 | U71: 0 | V71: 0 | W71: 0 | X71: -5.729393195e-05
A72: 2008-06-20 | B72: 0 | C72: 0 | D72: 0 | E72: 0 | F72: 0 | G72: 0 | H72: 0 | I72: 0 | J72: 0 | K72: -0.002353131011 | L72: 0 | M72: 0 | N72: 0 | O72: 0 | P72: 0 | Q72: 0 | R72: 0 | S72: 0 | T72: 0 | U72: 0 | V72: 0 | W72: 0 | X72: -0.002353131011
A73: 2008-06-23 | B73: 0 | C73: 0 | D73: 0 | E73: 0 | F73: 0 | G73: 0 | H73: 0 | I73: 0 | J73: 0 | K73: -0.00397963777 | L73: 0 | M73: 0 | N73: 0 | O73: 0 | P73: 0 | Q73: 0 | R73: 0 | S73: 0 | T73: 0 | U73: 0 | V73: 0 | W73: 0 | X73: -0.00397963777
A74: 2008-06-24 | B74: 0 | C74: 0 | D74: 0 | E74: 0 | F74: 0 | G74: 0 | H74: 0 | I74: 0 | J74: 0 | K74: 0.0006653398682 | L74: 0 | M74: 0 | N74: 0 | O74: 0 | P74: 0 | Q74: 0 | R74: 0 | S74: 0 | T74: 0 | U74: 0 | V74: 0 | W74: 0 | X74: 0.0006653398682
A75: 2008-06-25 | B75: 0 | C75: 0 | D75: 0 | E75: 0 | F75: 0 | G75: 0 | H75: 0 | I75: 0 | J75: 0 | K75: 0.002589630299 | L75: 0 | M75: 0 | N75: 0 | O75: 0 | P75: 0 | Q75: 0 | R75: 0 | S75: 0 | T75: 0 | U75: 0 | V75: 0 | W75: 0 | X75: 0.002589630299
A76: 2008-06-26 | B76: 0 | C76: 0 | D76: 0 | E76: 0 | F76: 0 | G76: 0 | H76: 0 | I76: 0 | J76: 0 | K76: 0.002044289099 | L76: 0 | M76: 0 | N76: 0 | O76: 0 | P76: 0 | Q76: 0 | R76: 0 | S76: 0 | T76: 0 | U76: 0 | V76: 0 | W76: 0 | X76: 0.002044289099
A77: 2008-06-27 | B77: 0 | C77: 0 | D77: 0 | E77: 0 | F77: 0 | G77: 0 | H77: 0 | I77: 0 | J77: 0 | K77: -0.007348585827 | L77: 0 | M77: 0 | N77: 0 | O77: 0 | P77: 0 | Q77: 0 | R77: 0 | S77: 0 | T77: 0 | U77: 0 | V77: 0 | W77: 0 | X77: -0.007348585827
A78: 2008-06-30 | B78: 0 | C78: 0 | D78: 0 | E78: 0 | F78: 0 | G78: 0 | H78: 0 | I78: 0 | J78: 0 | K78: 0.004201615632 | L78: 0 | M78: 0 | N78: 0 | O78: 0 | P78: 0 | Q78: 0 | R78: 0 | S78: 0 | T78: 0 | U78: 0 | V78: 0 | W78: 0 | X78: 0.004201615632
A79: 2008-07-01 | B79: 0 | C79: 0 | D79: 0 | E79: 0 | F79: 0 | G79: 0 | H79: 0 | I79: 0 | J79: 0 | K79: 0.003125133966 | L79: 0 | M79: 0 | N79: 0 | O79: 0 | P79: 0 | Q79: 0 | R79: 0 | S79: 0 | T79: 0 | U79: 0 | V79: 0 | W79: 0 | X79: 0.003125133966
A80: 2008-07-02 | B80: 0 | C80: 0 | D80: 0 | E80: 0 | F80: 0 | G80: 0 | H80: 0 | I80: 0 | J80: 0 | K80: 0.002794737206 | L80: 0 | M80: 0 | N80: 0 | O80: 0 | P80: 0 | Q80: 0 | R80: 0 | S80: 0 | T80: 0 | U80: 0 | V80: 0 | W80: 0 | X80: 0.002794737206
A81: 2008-07-03 | B81: 0 | C81: 0 | D81: 0 | E81: 0 | F81: 0 | G81: 0 | H81: 0 | I81: 0 | J81: 0 | K81: -0.01520335809 | L81: 0 | M81: 0 | N81: 0 | O81: 0 | P81: 0 | Q81: 0 | R81: 0 | S81: 0 | T81: 0 | U81: 0 | V81: 0 | W81: 0 | X81: -0.01520335809
A82: 2008-07-07 | B82: 0 | C82: 0 | D82: 0 | E82: 0 | F82: 0 | G82: 0 | H82: 0 | I82: 0 | J82: 0 | K82: 0.0009718553094 | L82: 0 | M82: 0 | N82: 0 | O82: 0 | P82: 0 | Q82: 0 | R82: 0 | S82: 0 | T82: 0 | U82: 0 | V82: 0 | W82: 0 | X82: 0.0009718553094
A83: 2008-07-08 | B83: 0 | C83: 0 | D83: 0 | E83: 0 | F83: 0 | G83: 0 | H83: 0 | I83: 0 | J83: 0 | K83: -0.00906076317 | L83: 0 | M83: 0 | N83: 0 | O83: 0 | P83: 0 | Q83: 0 | R83: 0 | S83: 0 | T83: 0 | U83: 0 | V83: 0 | W83: 0 | X83: -0.00906076317
A84: 2008-07-09 | B84: 0 | C84: 0 | D84: 0 | E84: 0 | F84: 0 | G84: 0 | H84: 0 | I84: 0 | J84: 0 | K84: 0.01569322506 | L84: 0 | M84: 0 | N84: 0 | O84: 0 | P84: 0 | Q84: 0 | R84: 0 | S84: 0 | T84: 0 | U84: 0 | V84: 0 | W84: 0 | X84: 0.01569322506
A85: 2008-07-10 | B85: 0 | C85: 0 | D85: 0 | E85: 0 | F85: 0 | G85: 0 | H85: 0 | I85: 0 | J85: 0 | K85: -0.01702636974 | L85: 0 | M85: 0 | N85: 0 | O85: 0 | P85: 0 | Q85: 0 | R85: 0 | S85: 0 | T85: 0 | U85: 0 | V85: 0 | W85: 0 | X85: -0.01702636974
A86: 2008-07-11 | B86: 0 | C86: 0 | D86: 0 | E86: 0 | F86: 0 | G86: 0 | H86: 0 | I86: 0 | J86: 0 | K86: 0.003603021087 | L86: 0 | M86: 0 | N86: 0 | O86: 0 | P86: 0 | Q86: 0 | R86: 0 | S86: 0 | T86: 0 | U86: 0 | V86: 0 | W86: 0 | X86: 0.003603021087
A87: 2008-07-14 | B87: 0 | C87: 0 | D87: 0 | E87: 0 | F87: 0 | G87: 0 | H87: 0 | I87: 0 | J87: 0 | K87: -0.01035748933 | L87: 0 | M87: 0 | N87: 0 | O87: 0 | P87: 0 | Q87: 0 | R87: 0 | S87: 0 | T87: 0 | U87: 0 | V87: 0 | W87: 0 | X87: -0.01035748933
A88: 2008-07-15 | B88: 0 | C88: 0 | D88: 0 | E88: 0 | F88: 0 | G88: 0 | H88: 0 | I88: 0 | J88: 0 | K88: -0.008004407441 | L88: 0 | M88: 0 | N88: 0 | O88: 0 | P88: 0 | Q88: 0 | R88: 0 | S88: 0 | T88: 0 | U88: 0 | V88: 0 | W88: 0 | X88: -0.008004407441
A89: 2008-07-16 | B89: 0 | C89: 0 | D89: 0 | E89: 0 | F89: 0 | G89: 0 | H89: 0 | I89: 0 | J89: 0 | K89: -0.01249079088 | L89: 0 | M89: 0 | N89: 0 | O89: 0 | P89: 0 | Q89: 0 | R89: 0 | S89: 0 | T89: 0 | U89: 0 | V89: 0 | W89: 0 | X89: -0.01249079088
A90: 2008-07-17 | B90: 0 | C90: 0 | D90: 0 | E90: 0 | F90: 0 | G90: 0 | H90: 0 | I90: 0 | J90: 0 | K90: 0.0217913749 | L90: 0 | M90: 0 | N90: 0 | O90: 0 | P90: 0 | Q90: 0 | R90: 0 | S90: 0 | T90: 0 | U90: 0 | V90: 0 | W90: 0 | X90: 0.0217913749
A91: 2008-07-18 | B91: 0 | C91: 0 | D91: 0 | E91: 0 | F91: 0 | G91: 0 | H91: 0 | I91: 0 | J91: 0 | K91: 0.008820565807 | L91: 0 | M91: 0 | N91: 0 | O91: 0 | P91: 0 | Q91: 0 | R91: 0 | S91: 0 | T91: 0 | U91: 0 | V91: 0 | W91: 0 | X91: 0.008820565807
A92: 2008-07-21 | B92: 0 | C92: 0 | D92: 0 | E92: 0 | F92: 0 | G92: 0 | H92: 0 | I92: 0 | J92: 0 | K92: 0.005550337871 | L92: 0 | M92: 0 | N92: 0 | O92: 0 | P92: 0 | Q92: 0 | R92: 0 | S92: 0 | T92: 0 | U92: 0 | V92: 0 | W92: 0 | X92: 0.005550337871
A93: 2008-07-22 | B93: 0 | C93: 0 | D93: 0 | E93: 0 | F93: 0 | G93: 0 | H93: 0 | I93: 0 | J93: 0 | K93: 0.0004866884152 | L93: 0 | M93: 0 | N93: 0 | O93: 0 | P93: 0 | Q93: 0 | R93: 0 | S93: 0 | T93: 0 | U93: 0 | V93: 0 | W93: 0 | X93: 0.0004866884152
A94: 2008-07-23 | B94: 0 | C94: 0 | D94: 0 | E94: 0 | F94: 0 | G94: 0 | H94: 0 | I94: 0 | J94: 0 | K94: 0.01005267389 | L94: 0 | M94: 0 | N94: 0 | O94: 0 | P94: 0 | Q94: 0 | R94: 0 | S94: 0 | T94: 0 | U94: 0 | V94: 0 | W94: 0 | X94: 0.01005267389
A95: 2008-07-24 | B95: 0 | C95: 0 | D95: 0 | E95: 0 | F95: 0 | G95: 0 | H95: 0 | I95: 0 | J95: 0 | K95: 0.004809634538 | L95: 0 | M95: 0 | N95: 0 | O95: 0 | P95: 0 | Q95: 0 | R95: 0 | S95: 0 | T95: 0 | U95: 0 | V95: 0 | W95: 0 | X95: 0.004809634538
A96: 2008-07-25 | B96: 0 | C96: 0 | D96: 0 | E96: 0 | F96: 0 | G96: 0 | H96: 0 | I96: 0 | J96: 0 | K96: -0.01841709856 | L96: 0 | M96: 0 | N96: 0 | O96: 0 | P96: 0 | Q96: 0 | R96: 0 | S96: 0 | T96: 0 | U96: 0 | V96: 0 | W96: 0 | X96: -0.01841709856
A97: 2008-07-28 | B97: 0 | C97: 0 | D97: 0 | E97: 0 | F97: 0 | G97: 0 | H97: 0 | I97: 0 | J97: 0 | K97: -0.0001628363603 | L97: 0 | M97: 0 | N97: 0 | O97: 0 | P97: 0 | Q97: 0 | R97: 0 | S97: 0 | T97: 0 | U97: 0 | V97: 0 | W97: 0 | X97: -0.0001628363603
A98: 2008-07-29 | B98: 0 | C98: 0 | D98: 0 | E98: 0 | F98: 0 | G98: 0 | H98: 0 | I98: 0 | J98: 0 | K98: -0.01302961294 | L98: 0 | M98: 0 | N98: 0 | O98: 0 | P98: 0 | Q98: 0 | R98: 0 | S98: 0 | T98: 0 | U98: 0 | V98: 0 | W98: 0 | X98: -0.01302961294
A99: 2008-07-30 | B99: 0 | C99: 0 | D99: 0 | E99: 0 | F99: 0 | G99: 0 | H99: 0 | I99: 0 | J99: 0 | K99: 0.01892696148 | L99: 0 | M99: 0 | N99: 0 | O99: 0 | P99: 0 | Q99: 0 | R99: 0 | S99: 0 | T99: 0 | U99: 0 | V99: 0 | W99: 0 | X99: 0.01892696148
A100: 2008-07-31 | B100: 0 | C100: 0 | D100: 0 | E100: 0 | F100: 0 | G100: 0 | H100: 0 | I100: 0 | J100: 0 | K100: 0.01577977533 | L100: 0 | M100: 0 | N100: 0 | O100: 0 | P100: 0 | Q100: 0 | R100: 0 | S100: 0 | T100: 0 | U100: 0 | V100: 0 | W100: 0 | X100: 0.01577977533
A101: 2008-08-01 | B101: 0 | C101: 0 | D101: 0 | E101: 0 | F101: 0 | G101: 0 | H101: 0 | I101: 0 | J101: 0 | K101: 0.009170446869 | L101: 0 | M101: 0 | N101: 0 | O101: 0 | P101: 0 | Q101: 0 | R101: 0 | S101: 0 | T101: 0 | U101: 0 | V101: 0 | W101: 0 | X101: 0.009170446869
A102: 2008-08-04 | B102: 0 | C102: 0 | D102: 0 | E102: 0 | F102: 0 | G102: 0 | H102: 0 | I102: 0 | J102: 0 | K102: 0.001977887299 | L102: 0 | M102: 0 | N102: 0 | O102: 0 | P102: 0 | Q102: 0 | R102: 0 | S102: 0 | T102: 0 | U102: 0 | V102: 0 | W102: 0 | X102: 0.001977887299
A103: 2008-08-05 | B103: 0 | C103: 0 | D103: 0 | E103: 0 | F103: 0 | G103: 0 | H103: 0 | I103: 0 | J103: 0 | K103: -0.002143675832 | L103: 0 | M103: 0 | N103: 0 | O103: 0 | P103: 0 | Q103: 0 | R103: 0 | S103: 0 | T103: 0 | U103: 0 | V103: 0 | W103: 0 | X103: -0.002143675832
A104: 2008-08-06 | B104: 0 | C104: 0 | D104: 0 | E104: 0 | F104: 0 | G104: 0 | H104: 0 | I104: 0 | J104: 0 | K104: -0.006746800439 | L104: 0 | M104: 0 | N104: 0 | O104: 0 | P104: 0 | Q104: 0 | R104: 0 | S104: 0 | T104: 0 | U104: 0 | V104: 0 | W104: 0 | X104: -0.006746800439
A105: 2008-08-07 | B105: 0 | C105: 0 | D105: 0 | E105: 0 | F105: 0 | G105: 0 | H105: 0 | I105: 0 | J105: 0 | K105: -0.003772436716 | L105: 0 | M105: 0 | N105: 0 | O105: 0 | P105: 0 | Q105: 0 | R105: 0 | S105: 0 | T105: 0 | U105: 0 | V105: 0 | W105: 0 | X105: -0.003772436716
A106: 2008-08-08 | B106: 0 | C106: 0 | D106: 0 | E106: 0 | F106: 0 | G106: 0 | H106: 0 | I106: 0 | J106: 0 | K106: 0.01490770199 | L106: 0 | M106: 0 | N106: 0 | O106: 0 | P106: 0 | Q106: 0 | R106: 0 | S106: 0 | T106: 0 | U106: 0 | V106: 0 | W106: 0 | X106: 0.01490770199
A107: 2008-08-11 | B107: 0 | C107: 0 | D107: 0 | E107: 0 | F107: 0 | G107: 0 | H107: 0 | I107: 0 | J107: 0 | K107: 0.002486261592 | L107: 0 | M107: 0 | N107: 0 | O107: 0 | P107: 0 | Q107: 0 | R107: 0 | S107: 0 | T107: 0 | U107: 0 | V107: 0 | W107: 0 | X107: 0.002486261592
A108: 2008-08-12 | B108: 0 | C108: 0 | D108: 0 | E108: 0 | F108: 0 | G108: 0 | H108: 0 | I108: 0 | J108: 0 | K108: -0.008719003396 | L108: 0 | M108: 0 | N108: 0 | O108: 0 | P108: 0 | Q108: 0 | R108: 0 | S108: 0 | T108: 0 | U108: 0 | V108: 0 | W108: 0 | X108: -0.008719003396
A109: 2008-08-13 | B109: 0 | C109: 0 | D109: 0 | E109: 0 | F109: 0 | G109: 0 | H109: 0 | I109: 0 | J109: 0 | K109: 0.008615165152 | L109: 0 | M109: 0 | N109: 0 | O109: 0 | P109: 0 | Q109: 0 | R109: 0 | S109: 0 | T109: 0 | U109: 0 | V109: 0 | W109: 0 | X109: 0.008615165152
A110: 2008-08-14 | B110: 0 | C110: 0 | D110: 0 | E110: 0 | F110: 0 | G110: 0 | H110: 0 | I110: 0 | J110: 0 | K110: -0.003262423176 | L110: 0 | M110: 0 | N110: 0 | O110: 0 | P110: 0 | Q110: 0 | R110: 0 | S110: 0 | T110: 0 | U110: 0 | V110: 0 | W110: 0 | X110: -0.003262423176
A111: 2008-08-15 | B111: 0 | C111: 0 | D111: 0 | E111: 0 | F111: 0 | G111: 0 | H111: 0 | I111: 0 | J111: 0 | K111: 0.005882931908 | L111: 0 | M111: 0 | N111: 0 | O111: 0 | P111: 0 | Q111: 0 | R111: 0 | S111: 0 | T111: 0 | U111: 0 | V111: 0 | W111: 0 | X111: 0.005882931908
A112: 2008-08-18 | B112: 0 | C112: 0 | D112: 0 | E112: 0 | F112: 0 | G112: 0 | H112: 0 | I112: 0 | J112: 0 | K112: 0.007956490776 | L112: 0 | M112: 0 | N112: 0 | O112: 0 | P112: 0 | Q112: 0 | R112: 0 | S112: 0 | T112: 0 | U112: 0 | V112: 0 | W112: 0 | X112: 0.007956490776
A113: 2008-08-19 | B113: 0 | C113: 0 | D113: 0 | E113: 0 | F113: 0 | G113: 0 | H113: 0 | I113: 0 | J113: 0 | K113: 0.00366326713 | L113: 0 | M113: 0 | N113: 0 | O113: 0 | P113: 0 | Q113: 0 | R113: 0 | S113: 0 | T113: 0 | U113: 0 | V113: 0 | W113: 0 | X113: 0.00366326713
A114: 2008-08-20 | B114: 0 | C114: 0 | D114: 0 | E114: 0 | F114: 0 | G114: 0 | H114: 0 | I114: 0 | J114: 0 | K114: -0.003535234465 | L114: 0 | M114: 0 | N114: 0 | O114: 0 | P114: 0 | Q114: 0 | R114: 0 | S114: 0 | T114: 0 | U114: 0 | V114: 0 | W114: 0 | X114: -0.003535234465
A115: 2008-08-21 | B115: 0 | C115: 0 | D115: 0 | E115: 0 | F115: 0 | G115: 0 | H115: 0 | I115: 0 | J115: 0 | K115: 0.00255503966 | L115: 0 | M115: 0 | N115: 0 | O115: 0 | P115: 0 | Q115: 0 | R115: 0 | S115: 0 | T115: 0 | U115: 0 | V115: 0 | W115: 0 | X115: 0.00255503966
A116: 2008-08-22 | B116: 0 | C116: 0 | D116: 0 | E116: 0 | F116: 0 | G116: 0 | H116: 0 | I116: 0 | J116: 0 | K116: -0.001689085834 | L116: 0 | M116: 0 | N116: 0 | O116: 0 | P116: 0 | Q116: 0 | R116: 0 | S116: 0 | T116: 0 | U116: 0 | V116: 0 | W116: 0 | X116: -0.001689085834
A117: 2008-08-25 | B117: 0 | C117: 0 | D117: 0 | E117: 0 | F117: 0 | G117: 0 | H117: 0 | I117: 0 | J117: 0 | K117: -0.0005095746264 | L117: 0 | M117: 0 | N117: 0 | O117: 0 | P117: 0 | Q117: 0 | R117: 0 | S117: 0 | T117: 0 | U117: 0 | V117: 0 | W117: 0 | X117: -0.0005095746264
A118: 2008-08-26 | B118: 0 | C118: 0 | D118: 0 | E118: 0 | F118: 0 | G118: 0 | H118: 0 | I118: 0 | J118: 0 | K118: 0.00910273834 | L118: 0 | M118: 0 | N118: 0 | O118: 0 | P118: 0 | Q118: 0 | R118: 0 | S118: 0 | T118: 0 | U118: 0 | V118: 0 | W118: 0 | X118: 0.00910273834
A119: 2008-08-27 | B119: 0 | C119: 0 | D119: 0 | E119: 0 | F119: 0 | G119: 0 | H119: 0 | I119: 0 | J119: 0 | K119: 0.0007432644 | L119: 0 | M119: 0 | N119: 0 | O119: 0 | P119: 0 | Q119: 0 | R119: 0 | S119: 0 | T119: 0 | U119: 0 | V119: 0 | W119: 0 | X119: 0.0007432644
A120: 2008-08-28 | B120: 0 | C120: 0 | D120: 0 | E120: 0 | F120: 0 | G120: 0 | H120: 0 | I120: 0 | J120: 0 | K120: 0.001565283985 | L120: 0 | M120: 0 | N120: 0 | O120: 0 | P120: 0 | Q120: 0 | R120: 0 | S120: 0 | T120: 0 | U120: 0 | V120: 0 | W120: 0 | X120: 0.001565283985
A121: 2008-08-29 | B121: 0 | C121: 0 | D121: 0 | E121: 0 | F121: 0 | G121: 0 | H121: 0 | I121: 0 | J121: 0 | K121: 0.0001639218588 | L121: 0 | M121: 0 | N121: 0 | O121: 0 | P121: 0 | Q121: 0 | R121: 0 | S121: 0 | T121: 0 | U121: 0 | V121: 0 | W121: 0 | X121: 0.0001639218588
A122: 2008-09-02 | B122: 0 | C122: 0 | D122: 0 | E122: 0 | F122: 0 | G122: 0 | H122: 0 | I122: 0 | J122: 0 | K122: -0.004709633165 | L122: 0 | M122: 0 | N122: 0 | O122: 0 | P122: 0 | Q122: 0 | R122: 0 | S122: 0 | T122: 0 | U122: 0 | V122: 0 | W122: 0 | X122: -0.004709633165
A123: 2008-09-03 | B123: 0 | C123: 0 | D123: 0 | E123: 0 | F123: 0 | G123: 0 | H123: 0 | I123: 0 | J123: 0 | K123: 0.007167184795 | L123: 0 | M123: 0 | N123: 0 | O123: 0 | P123: 0 | Q123: 0 | R123: 0 | S123: 0 | T123: 0 | U123: 0 | V123: 0 | W123: 0 | X123: 0.007167184795
A124: 2008-09-04 | B124: 0 | C124: 0 | D124: 0 | E124: 0 | F124: 0 | G124: 0 | H124: 0 | I124: 0 | J124: 0 | K124: 0.00358997836 | L124: 0 | M124: 0 | N124: 0 | O124: 0 | P124: 0 | Q124: 0 | R124: 0 | S124: 0 | T124: 0 | U124: 0 | V124: 0 | W124: 0 | X124: 0.00358997836
A125: 2008-09-05 | B125: 0 | C125: 0 | D125: 0 | E125: 0 | F125: 0 | G125: 0 | H125: 0 | I125: 0 | J125: 0 | K125: 0.004168752 | L125: 0 | M125: 0 | N125: 0 | O125: 0 | P125: 0 | Q125: 0 | R125: 0 | S125: 0 | T125: 0 | U125: 0 | V125: 0 | W125: 0 | X125: 0.004168752
A126: 2008-09-08 | B126: 0 | C126: 0 | D126: 0 | E126: 0 | F126: 0 | G126: 0 | H126: 0 | I126: 0 | J126: 0 | K126: -0.0001935543889 | L126: 0 | M126: 0 | N126: 0 | O126: 0 | P126: 0 | Q126: 0 | R126: 0 | S126: 0 | T126: 0 | U126: 0 | V126: 0 | W126: 0 | X126: -0.0001935543889
A127: 2008-09-09 | B127: 0 | C127: 0 | D127: 0 | E127: 0 | F127: 0 | G127: 0 | H127: 0 | I127: 0 | J127: 0 | K127: 0.005036985445 | L127: 0 | M127: 0 | N127: 0 | O127: 0 | P127: 0 | Q127: 0 | R127: 0 | S127: 0 | T127: 0 | U127: 0 | V127: 0 | W127: 0 | X127: 0.005036985445
A128: 2008-09-10 | B128: 0 | C128: 0 | D128: 0 | E128: 0 | F128: 0 | G128: 0 | H128: 0 | I128: 0 | J128: 0 | K128: 0.005970925743 | L128: 0 | M128: 0 | N128: 0 | O128: 0 | P128: 0 | Q128: 0 | R128: 0 | S128: 0 | T128: 0 | U128: 0 | V128: 0 | W128: 0 | X128: 0.005970925743
A129: 2008-09-11 | B129: 0 | C129: 0 | D129: 0 | E129: 0 | F129: 0 | G129: 0 | H129: 0 | I129: 0 | J129: 0 | K129: -0.004949765775 | L129: 0 | M129: 0 | N129: 0 | O129: 0 | P129: 0 | Q129: 0 | R129: 0 | S129: 0 | T129: 0 | U129: 0 | V129: 0 | W129: 0 | X129: -0.004949765775
A130: 2008-09-12 | B130: 0 | C130: 0 | D130: 0 | E130: 0 | F130: 0 | G130: 0 | H130: 0 | I130: 0 | J130: 0 | K130: 0.0006192685517 | L130: 0 | M130: 0 | N130: 0 | O130: 0 | P130: 0 | Q130: 0 | R130: 0 | S130: 0 | T130: 0 | U130: 0 | V130: 0 | W130: 0 | X130: 0.0006192685517
A131: 2008-09-15 | B131: 0 | C131: 0 | D131: 0 | E131: 0 | F131: 0 | G131: 0 | H131: 0 | I131: 0 | J131: 0 | K131: -0.01055029991 | L131: 0 | M131: 0 | N131: 0 | O131: 0 | P131: 0 | Q131: 0 | R131: 0 | S131: 0 | T131: 0 | U131: 0 | V131: 0 | W131: 0 | X131: =SUM(B131:W131) -> -0.01055029991
A132: 2008-09-16 | B132: 0 | C132: 0 | D132: 0 | E132: 0 | F132: 0 | G132: 0 | H132: 0 | I132: 0 | J132: 0 | K132: 0.02347015451 | L132: 0 | M132: 0 | N132: 0 | O132: 0 | P132: 0 | Q132: 0 | R132: 0 | S132: 0 | T132: 0 | U132: 0 | V132: 0 | W132: 0 | X132: 0.02347015451
A133: 2008-09-17 | B133: 0 | C133: 0 | D133: 0 | E133: 0 | F133: 0 | G133: 0 | H133: 0 | I133: 0 | J133: 0 | K133: 0.0007858297867 | L133: 0 | M133: 0 | N133: 0 | O133: 0 | P133: 0 | Q133: 0 | R133: 0 | S133: 0 | T133: 0 | U133: 0 | V133: 0 | W133: 0 | X133: 0.0007858297867
A134: 2008-09-18 | B134: 0 | C134: 0 | D134: 0 | E134: 0 | F134: 0 | G134: 0 | H134: 0 | I134: 0 | J134: 0 | K134: 0.001261173203 | L134: 0 | M134: 0 | N134: 0 | O134: 0 | P134: 0 | Q134: 0 | R134: 0 | S134: 0 | T134: 0 | U134: 0 | V134: 0 | W134: 0 | X134: 0.001261173203
A135: 2008-09-19 | B135: 0 | C135: 0 | D135: 0 | E135: 0 | F135: 0 | G135: 0 | H135: 0 | I135: 0 | J135: 0 | K135: -0.01078778912 | L135: 0 | M135: 0 | N135: 0 | O135: 0 | P135: 0 | Q135: 0 | R135: 0 | S135: 0 | T135: 0 | U135: 0 | V135: 0 | W135: 0 | X135: -0.01078778912
A136: 2008-09-22 | B136: 0 | C136: 0 | D136: 0 | E136: 0 | F136: 0 | G136: 0 | H136: 0 | I136: 0 | J136: 0 | K136: -0.02449825009 | L136: 0 | M136: 0 | N136: 0 | O136: 0 | P136: 0 | Q136: 0 | R136: 0 | S136: 0 | T136: 0 | U136: 0 | V136: 0 | W136: 0 | X136: -0.02449825009
A137: 2008-09-23 | B137: 0 | C137: 0 | D137: 0 | E137: 0 | F137: 0 | G137: 0 | H137: 0 | I137: 0 | J137: 0 | K137: -0.001909653931 | L137: 0 | M137: 0 | N137: 0 | O137: 0 | P137: 0 | Q137: 0 | R137: 0 | S137: 0 | T137: 0 | U137: 0 | V137: 0 | W137: 0 | X137: -0.001909653931
A138: 2008-09-24 | B138: 0 | C138: 0 | D138: 0 | E138: 0 | F138: 0 | G138: 0 | H138: 0 | I138: 0 | J138: 0 | K138: -0.004920285747 | L138: 0 | M138: 0 | N138: 0 | O138: 0 | P138: 0 | Q138: 0 | R138: 0 | S138: 0 | T138: 0 | U138: 0 | V138: 0 | W138: 0 | X138: -0.004920285747
A139: 2008-09-25 | B139: 0 | C139: 0 | D139: 0 | E139: 0 | F139: 0 | G139: 0 | H139: 0 | I139: 0 | J139: 0 | K139: 0.003993686614 | L139: 0 | M139: 0 | N139: 0 | O139: 0 | P139: 0 | Q139: 0 | R139: 0 | S139: 0 | T139: 0 | U139: 0 | V139: 0 | W139: 0 | X139: 0.003993686614
A140: 2008-09-26 | B140: 0 | C140: 0 | D140: 0 | E140: 0 | F140: 0 | G140: 0 | H140: 0 | I140: 0 | J140: 0 | K140: -0.0005870491796 | L140: 0 | M140: 0 | N140: 0 | O140: 0 | P140: 0 | Q140: 0 | R140: 0 | S140: 0 | T140: 0 | U140: 0 | V140: 0 | W140: 0 | X140: -0.0005870491796
A141: 2008-09-29 | B141: 0 | C141: 0 | D141: 0 | E141: 0 | F141: 0 | G141: 0 | H141: 0 | I141: 0 | J141: 0 | K141: 0.006125127399 | L141: 0 | M141: 0 | N141: 0 | O141: 0 | P141: 0 | Q141: 0 | R141: 0 | S141: 0 | T141: 0 | U141: 0 | V141: 0 | W141: 0 | X141: 0.006125127399
A142: 2008-09-30 | B142: 0 | C142: 0 | D142: 0 | E142: 0 | F142: 0 | G142: 0 | H142: 0 | I142: 0 | J142: 0 | K142: 0.01906142125 | L142: 0 | M142: 0 | N142: 0 | O142: 0 | P142: 0 | Q142: 0 | R142: 0 | S142: 0 | T142: 0 | U142: 0 | V142: 0 | W142: 0 | X142: 0.01906142125
A143: 2008-10-01 | B143: 0 | C143: 0 | D143: 0 | E143: 0 | F143: 0 | G143: 0 | H143: 0 | I143: 0 | J143: 0 | K143: -0.01061151482 | L143: 0 | M143: 0 | N143: 0 | O143: 0 | P143: 0 | Q143: 0 | R143: 0 | S143: 0 | T143: 0 | U143: 0 | V143: 0 | W143: 0 | X143: -0.01061151482
A144: 2008-10-02 | B144: 0 | C144: 0 | D144: 0 | E144: 0 | F144: 0 | G144: 0 | H144: 0 | I144: 0 | J144: 0 | K144: 0.008957881794 | L144: 0 | M144: 0 | N144: 0 | O144: 0 | P144: 0 | Q144: 0 | R144: 0 | S144: 0 | T144: 0 | U144: 0 | V144: 0 | W144: 0 | X144: 0.008957881794
A145: 2008-10-03 | B145: 0 | C145: 0 | D145: 0 | E145: 0 | F145: 0 | G145: 0 | H145: 0 | I145: 0 | J145: 0 | K145: -0.001563735115 | L145: 0 | M145: 0 | N145: 0 | O145: 0 | P145: 0 | Q145: 0 | R145: 0 | S145: 0 | T145: 0 | U145: 0 | V145: 0 | W145: 0 | X145: -0.001563735115
A146: 2008-10-06 | B146: 0 | C146: 0 | D146: 0 | E146: 0 | F146: 0 | G146: 0 | H146: 0 | I146: 0 | J146: 0 | K146: 0.004079078505 | L146: 0 | M146: 0 | N146: 0 | O146: 0 | P146: 0 | Q146: 0 | R146: 0 | S146: 0 | T146: 0 | U146: 0 | V146: 0 | W146: 0 | X146: 0.004079078505
A147: 2008-10-07 | B147: 0 | C147: 0 | D147: 0 | E147: 0 | F147: 0 | G147: 0 | H147: 0 | I147: 0 | J147: 0 | K147: 0.004766263559 | L147: 0 | M147: 0 | N147: 0 | O147: 0 | P147: 0 | Q147: 0 | R147: 0 | S147: 0 | T147: 0 | U147: 0 | V147: 0 | W147: 0 | X147: 0.004766263559
A148: 2008-10-08 | B148: 0 | C148: 0 | D148: 0 | E148: 0 | F148: 0 | G148: 0 | H148: 0 | I148: 0 | J148: 0 | K148: -0.008800071929 | L148: 0 | M148: 0 | N148: 0 | O148: 0 | P148: 0 | Q148: 0 | R148: 0 | S148: 0 | T148: 0 | U148: 0 | V148: 0 | W148: 0 | X148: -0.008800071929
A149: 2008-10-09 | B149: 0 | C149: 0 | D149: 0 | E149: 0 | F149: 0 | G149: 0 | H149: 0 | I149: 0 | J149: 0 | K149: -0.0144491403 | L149: 0 | M149: 0 | N149: 0 | O149: 0 | P149: 0 | Q149: 0 | R149: 0 | S149: 0 | T149: 0 | U149: 0 | V149: 0 | W149: 0 | X149: -0.0144491403
A150: 2008-10-10 | B150: 0 | C150: 0 | D150: 0 | E150: 0 | F150: 0 | G150: 0 | H150: 0 | I150: 0 | J150: 0 | K150: -0.01526109289 | L150: 0 | M150: 0 | N150: 0 | O150: 0 | P150: 0 | Q150: 0 | R150: 0 | S150: 0 | T150: 0 | U150: 0 | V150: 0 | W150: 0 | X150: -0.01526109289
A151: 2008-10-13 | B151: 0 | C151: 0 | D151: 0 | E151: 0 | F151: 0 | G151: 0 | H151: 0 | I151: 0 | J151: 0 | K151: -0.008268891939 | L151: 0 | M151: 0 | N151: 0 | O151: 0 | P151: 0 | Q151: 0 | R151: 0 | S151: 0 | T151: 0 | U151: 0 | V151: 0 | W151: 0 | X151: -0.008268891939
A152: 2008-10-14 | B152: 0 | C152: 0 | D152: 0 | E152: 0 | F152: 0 | G152: 0 | H152: 0 | I152: 0 | J152: 0 | K152: 0.004003853489 | L152: 0 | M152: 0 | N152: 0 | O152: 0 | P152: 0 | Q152: 0 | R152: 0 | S152: 0 | T152: 0 | U152: 0 | V152: 0 | W152: 0 | X152: 0.004003853489
A153: 2008-10-15 | B153: 0 | C153: 0 | D153: 0 | E153: 0 | F153: 0 | G153: 0 | H153: 0 | I153: 0 | J153: 0 | K153: -0.007018311969 | L153: 0 | M153: 0 | N153: 0 | O153: 0 | P153: 0 | Q153: 0 | R153: 0 | S153: 0 | T153: 0 | U153: 0 | V153: 0 | W153: 0 | X153: -0.007018311969
A154: 2008-10-16 | B154: 0 | C154: 0 | D154: 0 | E154: 0 | F154: 0 | G154: 0 | H154: 0 | I154: 0 | J154: 0 | K154: -0.006136955446 | L154: 0 | M154: 0 | N154: 0 | O154: 0 | P154: 0 | Q154: 0 | R154: 0 | S154: 0 | T154: 0 | U154: 0 | V154: 0 | W154: 0 | X154: -0.006136955446
A155: 2008-10-17 | B155: 0 | C155: 0 | D155: 0 | E155: 0 | F155: 0 | G155: 0 | H155: 0 | I155: 0 | J155: 0 | K155: -3.008588831e-05 | L155: 0 | M155: 0 | N155: 0 | O155: 0 | P155: 0 | Q155: 0 | R155: 0 | S155: 0 | T155: 0 | U155: 0 | V155: 0 | W155: 0 | X155: -3.008588831e-05
A156: 2008-10-20 | B156: 0 | C156: 0 | D156: 0 | E156: 0 | F156: 0 | G156: 0 | H156: 0 | I156: 0 | J156: 0 | K156: -0.006190382574 | L156: 0 | M156: 0 | N156: 0 | O156: 0 | P156: 0 | Q156: 0 | R156: 0 | S156: 0 | T156: 0 | U156: 0 | V156: 0 | W156: 0 | X156: -0.006190382574
A157: 2008-10-21 | B157: 0 | C157: 0 | D157: 0 | E157: 0 | F157: 0 | G157: 0 | H157: 0 | I157: 0 | J157: 0 | K157: 0.01317054059 | L157: 0 | M157: 0 | N157: 0 | O157: 0 | P157: 0 | Q157: 0 | R157: 0 | S157: 0 | T157: 0 | U157: 0 | V157: 0 | W157: 0 | X157: 0.01317054059
A158: 2008-10-22 | B158: 0 | C158: 0 | D158: 0 | E158: 0 | F158: 0 | G158: 0 | H158: 0 | I158: 0 | J158: 0 | K158: 0.0003890238035 | L158: 0 | M158: 0 | N158: 0 | O158: 0 | P158: 0 | Q158: 0 | R158: 0 | S158: 0 | T158: 0 | U158: 0 | V158: 0 | W158: 0 | X158: 0.0003890238035
A159: 2008-10-23 | B159: 0 | C159: 0 | D159: 0 | E159: 0 | F159: 0 | G159: 0 | H159: 0 | I159: 0 | J159: 0 | K159: 0.009905827199 | L159: 0 | M159: 0 | N159: 0 | O159: 0 | P159: 0 | Q159: 0 | R159: 0 | S159: 0 | T159: 0 | U159: 0 | V159: 0 | W159: 0 | X159: 0.009905827199
A160: 2008-10-24 | B160: 0 | C160: 0 | D160: 0 | E160: 0 | F160: 0 | G160: 0 | H160: 0 | I160: 0 | J160: 0 | K160: 0.007183398396 | L160: 0 | M160: 0 | N160: 0 | O160: 0 | P160: 0 | Q160: 0 | R160: 0 | S160: 0 | T160: 0 | U160: 0 | V160: 0 | W160: 0 | X160: 0.007183398396
A161: 2008-10-27 | B161: 0 | C161: 0 | D161: 0 | E161: 0 | F161: 0 | G161: 0 | H161: 0 | I161: 0 | J161: 0 | K161: -0.01350107076 | L161: 0 | M161: 0 | N161: 0 | O161: 0 | P161: 0 | Q161: 0 | R161: 0 | S161: 0 | T161: 0 | U161: 0 | V161: 0 | W161: 0 | X161: -0.01350107076
A162: 2008-10-28 | B162: 0 | C162: 0 | D162: 0 | E162: 0 | F162: 0 | G162: 0 | H162: 0 | I162: 0 | J162: 0 | K162: -0.002506891517 | L162: 0 | M162: 0 | N162: 0 | O162: 0 | P162: 0 | Q162: 0 | R162: 0 | S162: 0 | T162: 0 | U162: 0 | V162: 0 | W162: 0 | X162: -0.002506891517
A163: 2008-10-29 | B163: 0 | C163: 0 | D163: 0 | E163: 0 | F163: 0 | G163: 0 | H163: 0 | I163: 0 | J163: 0 | K163: -0.003190113776 | L163: 0 | M163: 0 | N163: 0 | O163: 0 | P163: 0 | Q163: 0 | R163: 0 | S163: 0 | T163: 0 | U163: 0 | V163: 0 | W163: 0 | X163: -0.003190113776
A164: 2008-10-30 | B164: 0 | C164: 0 | D164: 0 | E164: 0 | F164: 0 | G164: 0 | H164: 0 | I164: 0 | J164: 0 | K164: -0.004862093066 | L164: 0 | M164: 0 | N164: 0 | O164: 0 | P164: 0 | Q164: 0 | R164: 0 | S164: 0 | T164: 0 | U164: 0 | V164: 0 | W164: 0 | X164: -0.004862093066
A165: 2008-10-31 | B165: 0 | C165: 0 | D165: 0 | E165: 0 | F165: 0 | G165: 0 | H165: 0 | I165: 0 | J165: 0 | K165: -0.003818152093 | L165: 0 | M165: 0 | N165: 0 | O165: 0 | P165: 0 | Q165: 0 | R165: 0 | S165: 0 | T165: 0 | U165: 0 | V165: 0 | W165: 0 | X165: -0.003818152093
A166: 2008-11-03 | B166: 0 | C166: 0 | D166: 0 | E166: 0 | F166: 0 | G166: 0 | H166: 0 | I166: 0 | J166: 0 | K166: -0.01196188282 | L166: 0 | M166: 0 | N166: 0 | O166: 0 | P166: 0 | Q166: 0 | R166: 0 | S166: 0 | T166: 0 | U166: 0 | V166: 0 | W166: 0 | X166: -0.01196188282
A167: 2008-11-04 | B167: 0 | C167: 0 | D167: 0 | E167: 0 | F167: 0 | G167: 0 | H167: 0 | I167: 0 | J167: 0 | K167: 0.002576828966 | L167: 0 | M167: 0 | N167: 0 | O167: 0 | P167: 0 | Q167: 0 | R167: 0 | S167: 0 | T167: 0 | U167: 0 | V167: 0 | W167: 0 | X167: 0.002576828966
A168: 2008-11-05 | B168: 0 | C168: 0 | D168: 0 | E168: 0 | F168: 0 | G168: 0 | H168: 0 | I168: 0 | J168: 0 | K168: 0.01728912972 | L168: 0 | M168: 0 | N168: 0 | O168: 0 | P168: 0 | Q168: 0 | R168: 0 | S168: 0 | T168: 0 | U168: 0 | V168: 0 | W168: 0 | X168: 0.01728912972
A169: 2008-11-06 | B169: 0 | C169: 0 | D169: 0 | E169: 0 | F169: 0 | G169: 0 | H169: 0 | I169: 0 | J169: 0 | K169: 0.01079521972 | L169: 0 | M169: 0 | N169: 0 | O169: 0 | P169: 0 | Q169: 0 | R169: 0 | S169: 0 | T169: 0 | U169: 0 | V169: 0 | W169: 0 | X169: 0.01079521972
A170: 2008-11-07 | B170: 0 | C170: 0 | D170: 0 | E170: 0 | F170: 0 | G170: 0 | H170: 0 | I170: 0 | J170: 0 | K170: -0.00668943352 | L170: 0 | M170: 0 | N170: 0 | O170: 0 | P170: 0 | Q170: 0 | R170: 0 | S170: 0 | T170: 0 | U170: 0 | V170: 0 | W170: 0 | X170: -0.00668943352
A171: 2008-11-10 | B171: 0 | C171: 0 | D171: 0 | E171: 0 | F171: 0 | G171: 0 | H171: 0 | I171: 0 | J171: 0 | K171: -0.005965795303 | L171: 0 | M171: 0 | N171: 0 | O171: 0 | P171: 0 | Q171: 0 | R171: 0 | S171: 0 | T171: 0 | U171: 0 | V171: 0 | W171: 0 | X171: -0.005965795303
A172: 2008-11-11 | B172: 0 | C172: 0 | D172: 0 | E172: 0 | F172: 0 | G172: 0 | H172: 0 | I172: 0 | J172: 0 | K172: 0.004462982192 | L172: 0 | M172: 0 | N172: 0 | O172: 0 | P172: 0 | Q172: 0 | R172: 0 | S172: 0 | T172: 0 | U172: 0 | V172: 0 | W172: 0 | X172: 0.004462982192
A173: 2008-11-12 | B173: 0 | C173: 0 | D173: 0 | E173: 0 | F173: 0 | G173: 0 | H173: 0 | I173: 0 | J173: 0 | K173: 0.002718803292 | L173: 0 | M173: 0 | N173: 0 | O173: 0 | P173: 0 | Q173: 0 | R173: 0 | S173: 0 | T173: 0 | U173: 0 | V173: 0 | W173: 0 | X173: 0.002718803292
A174: 2008-11-13 | B174: 0 | C174: 0 | D174: 0 | E174: 0 | F174: 0 | G174: 0 | H174: 0 | I174: 0 | J174: 0 | K174: 0.005864657792 | L174: 0 | M174: 0 | N174: 0 | O174: 0 | P174: 0 | Q174: 0 | R174: 0 | S174: 0 | T174: 0 | U174: 0 | V174: 0 | W174: 0 | X174: 0.005864657792
A175: 2008-11-14 | B175: 0 | C175: 0 | D175: 0 | E175: 0 | F175: 0 | G175: 0 | H175: 0 | I175: 0 | J175: 0 | K175: -0.02192384705 | L175: 0 | M175: 0 | N175: 0 | O175: 0 | P175: 0 | Q175: 0 | R175: 0 | S175: 0 | T175: 0 | U175: 0 | V175: 0 | W175: 0 | X175: -0.02192384705
A176: 2008-11-17 | B176: 0 | C176: 0 | D176: 0 | E176: 0 | F176: 0 | G176: 0 | H176: 0 | I176: 0 | J176: 0 | K176: 0.01818943479 | L176: 0 | M176: 0 | N176: 0 | O176: 0 | P176: 0 | Q176: 0 | R176: 0 | S176: 0 | T176: 0 | U176: 0 | V176: 0 | W176: 0 | X176: 0.01818943479
A177: 2008-11-18 | B177: 0 | C177: 0 | D177: 0 | E177: 0 | F177: 0 | G177: 0 | H177: 0 | I177: 0 | J177: 0 | K177: 0.004111410116 | L177: 0 | M177: 0 | N177: 0 | O177: 0 | P177: 0 | Q177: 0 | R177: 0 | S177: 0 | T177: 0 | U177: 0 | V177: 0 | W177: 0 | X177: 0.004111410116
A178: 2008-11-19 | B178: 0 | C178: 0 | D178: 0 | E178: 0 | F178: 0 | G178: 0 | H178: 0 | I178: 0 | J178: 0 | K178: 0.01170072706 | L178: 0 | M178: 0 | N178: 0 | O178: 0 | P178: 0 | Q178: 0 | R178: 0 | S178: 0 | T178: 0 | U178: 0 | V178: 0 | W178: 0 | X178: 0.01170072706
A179: 2008-11-20 | B179: 0 | C179: 0 | D179: 0 | E179: 0 | F179: 0 | G179: 0 | H179: 0 | I179: 0 | J179: 0 | K179: 0.02358096363 | L179: 0 | M179: 0 | N179: 0 | O179: 0 | P179: 0 | Q179: 0 | R179: 0 | S179: 0 | T179: 0 | U179: 0 | V179: 0 | W179: 0 | X179: 0.02358096363
A180: 2008-11-21 | B180: 0 | C180: 0 | D180: 0 | E180: 0 | F180: 0 | G180: 0 | H180: 0 | I180: 0 | J180: 0 | K180: 0.04737231809 | L180: 0 | M180: 0 | N180: 0 | O180: 0 | P180: 0 | Q180: 0 | R180: 0 | S180: 0 | T180: 0 | U180: 0 | V180: 0 | W180: 0 | X180: 0.04737231809
A181: 2008-11-24 | B181: 0 | C181: 0 | D181: 0 | E181: 0 | F181: 0 | G181: 0 | H181: 0 | I181: 0 | J181: 0 | K181: -0.01325026498 | L181: 0 | M181: 0 | N181: 0 | O181: 0 | P181: 0 | Q181: 0 | R181: 0 | S181: 0 | T181: 0 | U181: 0 | V181: 0 | W181: 0 | X181: -0.01325026498
A182: 2008-11-25 | B182: 0 | C182: 0 | D182: 0 | E182: 0 | F182: 0 | G182: 0 | H182: 0 | I182: 0 | J182: 0 | K182: -0.01429848499 | L182: 0 | M182: 0 | N182: 0 | O182: 0 | P182: 0 | Q182: 0 | R182: 0 | S182: 0 | T182: 0 | U182: 0 | V182: 0 | W182: 0 | X182: -0.01429848499
A183: 2008-11-26 | B183: 0 | C183: 0 | D183: 0 | E183: 0 | F183: 0 | G183: 0 | H183: 0 | I183: 0 | J183: 0 | K183: 0.02697518996 | L183: 0 | M183: 0 | N183: 0 | O183: 0 | P183: 0 | Q183: 0 | R183: 0 | S183: 0 | T183: 0 | U183: 0 | V183: 0 | W183: 0 | X183: 0.02697518996
A184: 2008-11-28 | B184: 0 | C184: 0 | D184: 0 | E184: 0 | F184: 0 | G184: 0 | H184: 0 | I184: 0 | J184: 0 | K184: 0.001153302094 | L184: 0 | M184: 0 | N184: 0 | O184: 0 | P184: 0 | Q184: 0 | R184: 0 | S184: 0 | T184: 0 | U184: 0 | V184: 0 | W184: 0 | X184: 0.001153302094
A185: 2008-12-01 | B185: 0 | C185: 0 | D185: 0 | E185: 0 | F185: 0 | G185: 0 | H185: 0 | I185: 0 | J185: 0 | K185: 0.002432250114 | L185: 0 | M185: 0 | N185: 0 | O185: 0 | P185: 0 | Q185: 0 | R185: 0 | S185: 0 | T185: 0 | U185: 0 | V185: 0 | W185: 0 | X185: 0.002432250114
A186: 2008-12-02 | B186: 0 | C186: 0 | D186: 0 | E186: 0 | F186: 0 | G186: 0 | H186: 0 | I186: 0 | J186: 0 | K186: 0.03484935567 | L186: 0 | M186: 0 | N186: 0 | O186: 0 | P186: 0 | Q186: 0 | R186: 0 | S186: 0 | T186: 0 | U186: 0 | V186: 0 | W186: 0 | X186: 0.03484935567
A187: 2008-12-03 | B187: 0 | C187: 0 | D187: 0 | E187: 0 | F187: 0 | G187: 0 | H187: 0 | I187: 0 | J187: 0 | K187: 0.004896375086 | L187: 0 | M187: 0 | N187: 0 | O187: 0 | P187: 0 | Q187: 0 | R187: 0 | S187: 0 | T187: 0 | U187: 0 | V187: 0 | W187: 0 | X187: 0.004896375086
A188: 2008-12-04 | B188: 0 | C188: 0 | D188: 0 | E188: 0 | F188: 0 | G188: 0 | H188: 0 | I188: 0 | J188: 0 | K188: 0.0005217996065 | L188: 0 | M188: 0 | N188: 0 | O188: 0 | P188: 0 | Q188: 0 | R188: 0 | S188: 0 | T188: 0 | U188: 0 | V188: 0 | W188: 0 | X188: 0.0005217996065
A189: 2008-12-05 | B189: 0 | C189: 0 | D189: 0 | E189: 0 | F189: 0 | G189: 0 | H189: 0 | I189: 0 | J189: 0 | K189: 0.01905654484 | L189: 0 | M189: 0 | N189: 0 | O189: 0 | P189: 0 | Q189: 0 | R189: 0 | S189: 0 | T189: 0 | U189: 0 | V189: 0 | W189: 0 | X189: 0.01905654484
A190: 2008-12-08 | B190: 0 | C190: 0 | D190: 0 | E190: 0 | F190: 0 | G190: 0 | H190: 0 | I190: 0 | J190: 0 | K190: -0.01135252338 | L190: 0 | M190: 0 | N190: 0 | O190: 0 | P190: 0 | Q190: 0 | R190: 0 | S190: 0 | T190: 0 | U190: 0 | V190: 0 | W190: 0 | X190: -0.01135252338
A191: 2008-12-09 | B191: 0 | C191: 0 | D191: 0 | E191: 0 | F191: 0 | G191: 0 | H191: 0 | I191: 0 | J191: 0 | K191: -0.003301479261 | L191: 0 | M191: 0 | N191: 0 | O191: 0 | P191: 0 | Q191: 0 | R191: 0 | S191: 0 | T191: 0 | U191: 0 | V191: 0 | W191: 0 | X191: -0.003301479261
A192: 2008-12-10 | B192: 0 | C192: 0 | D192: 0 | E192: 0 | F192: 0 | G192: 0 | H192: 0 | I192: 0 | J192: 0 | K192: 0.01745022896 | L192: 0 | M192: 0 | N192: 0 | O192: 0 | P192: 0 | Q192: 0 | R192: 0 | S192: 0 | T192: 0 | U192: 0 | V192: 0 | W192: 0 | X192: 0.01745022896
A193: 2008-12-11 | B193: 0 | C193: 0 | D193: 0 | E193: 0 | F193: 0 | G193: 0 | H193: 0 | I193: 0 | J193: 0 | K193: -0.003716083917 | L193: 0 | M193: 0 | N193: 0 | O193: 0 | P193: 0 | Q193: 0 | R193: 0 | S193: 0 | T193: 0 | U193: 0 | V193: 0 | W193: 0 | X193: -0.003716083917
A194: 2008-12-12 | B194: 0 | C194: 0 | D194: 0 | E194: 0 | F194: 0 | G194: 0 | H194: 0 | I194: 0 | J194: 0 | K194: 0.002168737694 | L194: 0 | M194: 0 | N194: 0 | O194: 0 | P194: 0 | Q194: 0 | R194: 0 | S194: 0 | T194: 0 | U194: 0 | V194: 0 | W194: 0 | X194: 0.002168737694
A195: 2008-12-15 | B195: 0 | C195: 0 | D195: 0 | E195: 0 | F195: 0 | G195: 0 | H195: 0 | I195: 0 | J195: 0 | K195: -0.0009747210818 | L195: 0 | M195: 0 | N195: 0 | O195: 0 | P195: 0 | Q195: 0 | R195: 0 | S195: 0 | T195: 0 | U195: 0 | V195: 0 | W195: 0 | X195: =SUM(B195:W195) -> -0.0009747210818
A196: 2008-12-16 | B196: 0 | C196: 0 | D196: 0 | E196: 0 | F196: 0 | G196: 0 | H196: 0 | I196: 0 | J196: 0 | K196: 0.0130557241 | L196: 0 | M196: 0 | N196: 0 | O196: 0 | P196: 0 | Q196: 0 | R196: 0 | S196: 0 | T196: 0 | U196: 0 | V196: 0 | W196: 0 | X196: 0.0130557241
A197: 2008-12-17 | B197: 0 | C197: 0 | D197: 0 | E197: 0 | F197: 0 | G197: 0 | H197: 0 | I197: 0 | J197: 0 | K197: 0.02029704383 | L197: 0 | M197: 0 | N197: 0 | O197: 0 | P197: 0 | Q197: 0 | R197: 0 | S197: 0 | T197: 0 | U197: 0 | V197: 0 | W197: 0 | X197: 0.02029704383
A198: 2008-12-18 | B198: 0 | C198: 0 | D198: 0 | E198: 0 | F198: 0 | G198: 0 | H198: 0 | I198: 0 | J198: 0 | K198: 0.02188212296 | L198: 0 | M198: 0 | N198: 0 | O198: 0 | P198: 0 | Q198: 0 | R198: 0 | S198: 0 | T198: 0 | U198: 0 | V198: 0 | W198: 0 | X198: 0.02188212296
A199: 2008-12-19 | B199: 0 | C199: 0 | D199: 0 | E199: 0 | F199: 0 | G199: 0 | H199: 0 | I199: 0 | J199: 0 | K199: 0.01797687044 | L199: 0 | M199: 0 | N199: 0 | O199: 0 | P199: 0 | Q199: 0 | R199: 0 | S199: 0 | T199: 0 | U199: 0 | V199: 0 | W199: 0 | X199: 0.01797687044
A200: 2008-12-22 | B200: 0 | C200: 0 | D200: 0 | E200: 0 | F200: 0 | G200: 0 | H200: 0 | I200: 0 | J200: 0 | K200: 4.792540732e-05 | L200: 0 | M200: 0 | N200: 0 | O200: 0 | P200: 0 | Q200: 0 | R200: 0 | S200: 0 | T200: 0 | U200: 0 | V200: 0 | W200: 0 | X200: 4.792540732e-05
... 1906 more rows

Sheet Equitylines
A1: =+Dates -> Date | B1: =+StratNames -> BRS | C1: BUGST | D1: BUGLEV | E1: WTOP4 | F1: GSRlv | G1: GMRS | H1: GMRSE | I1: MYRS | J1: UIS | K1: UIS-SPXL-TMF | L1: SPY | M1: TLT | N1: AGG | O1: SHY | P1: GLD | Q1: NASDAQ100 | R1: GLD-USD | S1: empty | T1: empty | U1: empty | V1: empty | W1: empty | X1: Custom
A2: 2008-03-12 | B2: =100*(1+ReturnData!B2) -> 100.954426 | C2: =100*(1+ReturnData!C2) -> 100.8309284 | D2: =100*(1+ReturnData!D2) -> 101.2440184 | E2: =100*(1+ReturnData!E2) -> 100 | F2: =100*(1+ReturnData!F2) -> 101.7601927 | G2: =100*(1+ReturnData!G2) -> 99.39480841 | H2: =100*(1+ReturnData!H2) -> 100.1563877 | I2: =100*(1+ReturnData!I2) -> 100 | J2: =100*(1+ReturnData!J2) -> 101.6420084 | K2: =100*(1+ReturnData!K2) -> 98.50090114 | L2: =100*(1+ReturnData!L2) -> 99.06485255 | M2: =100*(1+ReturnData!M2) -> 101.9290883 | N2: =100*(1+ReturnData!N2) -> 101.0244289 | O2: =100*(1+ReturnData!O2) -> 100.3220472 | P2: =100*(1+ReturnData!P2) -> 101.0626149 | Q2: =100*(1+ReturnData!Q2) -> 100 | R2: =100*(1+ReturnData!R2) -> 100 | S2: =100*(1+ReturnData!S2) -> 100 | T2: =100*(1+ReturnData!T2) -> 100 | U2: =100*(1+ReturnData!U2) -> 100 | V2: =100*(1+ReturnData!V2) -> 100 | W2: =100*(1+ReturnData!W2) -> 100 | X2: =100*(1+ReturnWeighted!X2) -> 99.54675212
A3: 2008-03-13 | B3: =B2*(1+ReturnData!B3) -> 100.5574005 | C3: =C2*(1+ReturnData!C3) -> 100.8826392 | D3: =D2*(1+ReturnData!D3) -> 101.1242912 | E3: =E2*(1+ReturnData!E3) -> 100 | F3: =F2*(1+ReturnData!F3) -> 100.9869646 | G3: =G2*(1+ReturnData!G3) -> 100.4343172 | H3: =H2*(1+ReturnData!H3) -> 100.6138122 | I3: =I2*(1+ReturnData!I3) -> 100 | J3: =J2*(1+ReturnData!J3) -> 100.9463559 | K3: =K2*(1+ReturnData!K3) -> 103.4856982 | L3: =L2*(1+ReturnData!L3) -> 99.28354964 | M3: =M2*(1+ReturnData!M3) -> 101.1315827 | N3: =N2*(1+ReturnData!N3) -> 100.5910219 | O3: =O2*(1+ReturnData!O3) -> 100.2743357 | P3: =P2*(1+ReturnData!P3) -> 102.4481697 | Q3: =Q2*(1+ReturnData!Q3) -> 100 | R3: =R2*(1+ReturnData!R3) -> 100 | S3: =S2*(1+ReturnData!S3) -> 100 | T3: =T2*(1+ReturnData!T3) -> 100 | U3: =U2*(1+ReturnData!U3) -> 100 | V3: =V2*(1+ReturnData!V3) -> 100 | W3: =W2*(1+ReturnData!W3) -> 100 | X3: =+X2*(1+ReturnWeighted!X3) -> 101.0698923
A4: 2008-03-14 | B4: =B3*(1+ReturnData!B4) -> 101.2340298 | C4: =C3*(1+ReturnData!C4) -> 101.2327685 | D4: =D3*(1+ReturnData!D4) -> 101.7414307 | E4: =E3*(1+ReturnData!E4) -> 100 | F4: =F3*(1+ReturnData!F4) -> 102.1409196 | G4: =G3*(1+ReturnData!G4) -> 98.96760505 | H4: =H3*(1+ReturnData!H4) -> 98.50261989 | I4: =I3*(1+ReturnData!I4) -> 100 | J4: =J3*(1+ReturnData!J4) -> 101.9169974 | K4: =K3*(1+ReturnData!K4) -> 101.2975751 | L4: =L3*(1+ReturnData!L4) -> 97.74509327 | M4: =M3*(1+ReturnData!M4) -> 102.3817223 | N4: =N3*(1+ReturnData!N4) -> 101.0145842 | O4: =O3*(1+ReturnData!O4) -> 100.5725226 | P4: =P3*(1+ReturnData!P4) -> 102.8336296 | Q4: =Q3*(1+ReturnData!Q4) -> 100 | R4: =R3*(1+ReturnData!R4) -> 100 | S4: =S3*(1+ReturnData!S4) -> 100 | T4: =T3*(1+ReturnData!T4) -> 100 | U4: =U3*(1+ReturnData!U4) -> 100 | V4: =V3*(1+ReturnData!V4) -> 100 | W4: =W3*(1+ReturnData!W4) -> 100 | X4: =+X3*(1+ReturnWeighted!X4) -> 100.4237641
A5: 2008-03-17 | B5: =B4*(1+ReturnData!B5) -> 101.5249858 | C5: =C4*(1+ReturnData!C5) -> 101.1719004 | D5: =D4*(1+ReturnData!D5) -> 101.80748 | E5: =E4*(1+ReturnData!E5) -> 100 | F5: =F4*(1+ReturnData!F5) -> 102.7119656 | G5: =G4*(1+ReturnData!G5) -> 96.53257651 | H5: =H4*(1+ReturnData!H5) -> 94.98397318 | I5: =I4*(1+ReturnData!I5) -> 100 | J5: =J4*(1+ReturnData!J5) -> 102.5258508 | K5: =K4*(1+ReturnData!K5) -> 104.3601207 | L5: =L4*(1+ReturnData!L5) -> 96.7571617 | M5: =M4*(1+ReturnData!M5) -> 103.1684474 | N5: =N4*(1+ReturnData!N5) -> 101.4479913 | O5: =O4*(1+ReturnData!O5) -> 100.7991481 | P5: =P4*(1+ReturnData!P5) -> 103.3128452 | Q5: =Q4*(1+ReturnData!Q5) -> 100 | R5: =R4*(1+ReturnData!R5) -> 100 | S5: =S4*(1+ReturnData!S5) -> 100 | T5: =T4*(1+ReturnData!T5) -> 100 | U5: =U4*(1+ReturnData!U5) -> 100 | V5: =V4*(1+ReturnData!V5) -> 100 | W5: =W4*(1+ReturnData!W5) -> 100 | X5: =+X4*(1+ReturnWeighted!X5) -> 101.3417278
A6: 2008-03-18 | B6: =B5*(1+ReturnData!B6) -> 101.0842404 | C6: =C5*(1+ReturnData!C6) -> 100.3700914 | D6: =D5*(1+ReturnData!D6) -> 100.8846514 | E6: =E5*(1+ReturnData!E6) -> 100 | F6: =F5*(1+ReturnData!F6) -> 102.2503838 | G6: =G5*(1+ReturnData!G6) -> 100.5624841 | H6: =H5*(1+ReturnData!H6) -> 99.9296264 | I6: =I5*(1+ReturnData!I6) -> 100 | J6: =J5*(1+ReturnData!J6) -> 102.5699456 | K6: =K5*(1+ReturnData!K6) -> 106.382699 | L6: =L5*(1+ReturnData!L6) -> 100.7767707 | M6: =M5*(1+ReturnData!M6) -> 102.7696946 | N6: =N5*(1+ReturnData!N6) -> 101.2115868 | O6: =O5*(1+ReturnData!O6) -> 100.4413202 | P6: =P5*(1+ReturnData!P6) -> 100.5313074 | Q6: =Q5*(1+ReturnData!Q6) -> 100 | R6: =R5*(1+ReturnData!R6) -> 100 | S6: =S5*(1+ReturnData!S6) -> 100 | T6: =T5*(1+ReturnData!T6) -> 100 | U6: =U5*(1+ReturnData!U6) -> 100 | V6: =V5*(1+ReturnData!V6) -> 100 | W6: =W5*(1+ReturnData!W6) -> 100 | X6: =+X5*(1+ReturnWeighted!X6) -> 101.9355611
A7: 2008-03-19 | B7: =B6*(1+ReturnData!B7) -> 101.6604254 | C7: =C6*(1+ReturnData!C7) -> 99.82118108 | D7: =D6*(1+ReturnData!D7) -> 100.6668126 | E7: =E6*(1+ReturnData!E7) -> 100 | F7: =F6*(1+ReturnData!F7) -> 103.6257542 | G7: =G6*(1+ReturnData!G7) -> 97.61481498 | H7: =H6*(1+ReturnData!H7) -> 93.25983565 | I7: =I6*(1+ReturnData!I7) -> 100 | J7: =J6*(1+ReturnData!J7) -> 103.8518564 | K7: =K6*(1+ReturnData!K7) -> 106.2075874 | L7: =L6*(1+ReturnData!L7) -> 98.28054384 | M7: =M6*(1+ReturnData!M7) -> 104.4724667 | N7: =N6*(1+ReturnData!N7) -> 101.5169425 | O7: =O6*(1+ReturnData!O7) -> 100.5486714 | P7: =P6*(1+ReturnData!P7) -> 96.92676627 | Q7: =Q6*(1+ReturnData!Q7) -> 100 | R7: =R6*(1+ReturnData!R7) -> 100 | S7: =S6*(1+ReturnData!S7) -> 100 | T7: =T6*(1+ReturnData!T7) -> 100 | U7: =U6*(1+ReturnData!U7) -> 100 | V7: =V6*(1+ReturnData!V7) -> 100 | W7: =W6*(1+ReturnData!W7) -> 100 | X7: =+X6*(1+ReturnWeighted!X7) -> 101.8848299
A8: 2008-03-20 | B8: =B7*(1+ReturnData!B8) -> 101.637867 | C8: =C7*(1+ReturnData!C8) -> 99.08705736 | D8: =D7*(1+ReturnData!D8) -> 99.97404295 | E8: =E7*(1+ReturnData!E8) -> 100 | F8: =F7*(1+ReturnData!F8) -> 103.7924409 | G8: =G7*(1+ReturnData!G8) -> 99.23069184 | H8: =H7*(1+ReturnData!H8) -> 93.36148057 | I8: =I7*(1+ReturnData!I8) -> 100 | J8: =J7*(1+ReturnData!J8) -> 104.2670383 | K8: =K7*(1+ReturnData!K8) -> 110.4337468 | L8: =L7*(1+ReturnData!L8) -> 100.1009713 | M8: =M7*(1+ReturnData!M8) -> 104.7311131 | N8: =N7*(1+ReturnData!N8) -> 101.8715536 | O8: =O7*(1+ReturnData!O8) -> 100.4293893 | P8: =P7*(1+ReturnData!P8) -> 93.66601299 | Q8: =Q7*(1+ReturnData!Q8) -> 100 | R8: =R7*(1+ReturnData!R8) -> 100 | S8: =S7*(1+ReturnData!S8) -> 100 | T8: =T7*(1+ReturnData!T8) -> 100 | U8: =U7*(1+ReturnData!U8) -> 100 | V8: =V7*(1+ReturnData!V8) -> 100 | W8: =W7*(1+ReturnData!W8) -> 100 | X8: =+X7*(1+ReturnWeighted!X8) -> 103.1105897
A9: 2008-03-24 | B9: =B8*(1+ReturnData!B9) -> 100.5516157 | C9: =C8*(1+ReturnData!C9) -> 98.33817603 | D9: =D8*(1+ReturnData!D9) -> 98.74730378 | E9: =E8*(1+ReturnData!E9) -> 100 | F9: =F8*(1+ReturnData!F9) -> 101.8994623 | G9: =G8*(1+ReturnData!G9) -> 102.2368088 | H9: =H8*(1+ReturnData!H9) -> 95.37493565 | I9: =I8*(1+ReturnData!I9) -> 100 | J9: =J8*(1+ReturnData!J9) -> 102.6445718 | K9: =K8*(1+ReturnData!K9) -> 111.6563555 | L9: =L8*(1+ReturnData!L9) -> 102.1017772 | M9: =M8*(1+ReturnData!M9) -> 102.7050359 | N9: =N8*(1+ReturnData!N9) -> 101.1229385 | O9: =O8*(1+ReturnData!O9) -> 100.0119295 | P9: =P8*(1+ReturnData!P9) -> 93.86394403 | Q9: =Q8*(1+ReturnData!Q9) -> 100 | R9: =R8*(1+ReturnData!R9) -> 100 | S9: =S8*(1+ReturnData!S9) -> 100 | T9: =T8*(1+ReturnData!T9) -> 100 | U9: =U8*(1+ReturnData!U9) -> 100 | V9: =V8*(1+ReturnData!V9) -> 100 | W9: =W8*(1+ReturnData!W9) -> 100 | X9: =+X8*(1+ReturnWeighted!X9) -> 103.455729
A10: 2008-03-25 | B10: =B9*(1+ReturnData!B10) -> 100.7274389 | C10: =C9*(1+ReturnData!C10) -> 99.05810596 | D10: =D9*(1+ReturnData!D10) -> 99.53953103 | E10: =E9*(1+ReturnData!E10) -> 100 | F10: =F9*(1+ReturnData!F10) -> 102.2553627 | G10: =G9*(1+ReturnData!G10) -> 102.8437504 | H10: =H9*(1+ReturnData!H10) -> 98.22112745 | I10: =I9*(1+ReturnData!I10) -> 100 | J10: =J9*(1+ReturnData!J10) -> 103.0423152 | K10: =K9*(1+ReturnData!K10) -> 106.1300772 | L10: =L9*(1+ReturnData!L10) -> 102.2003053 | M10: =M9*(1+ReturnData!M10) -> 103.1361103 | N10: =N9*(1+ReturnData!N10) -> 101.3100888 | O10: =O9*(1+ReturnData!O10) -> 100.0835014 | P10: =P9*(1+ReturnData!P10) -> 96.60381804 | Q10: =Q9*(1+ReturnData!Q10) -> 100 | R10: =R9*(1+ReturnData!R10) -> 100 | S10: =S9*(1+ReturnData!S10) -> 100 | T10: =T9*(1+ReturnData!T10) -> 100 | U10: =U9*(1+ReturnData!U10) -> 100 | V10: =V9*(1+ReturnData!V10) -> 100 | W10: =W9*(1+ReturnData!W10) -> 100 | X10: =+X9*(1+ReturnWeighted!X10) -> 101.9075921
A11: 2008-03-26 | B11: =B10*(1+ReturnData!B11) -> 100.8445179 | C11: =C10*(1+ReturnData!C11) -> 99.35947195 | D11: =D10*(1+ReturnData!D11) -> 99.80886691 | E11: =E10*(1+ReturnData!E11) -> 100 | F11: =F10*(1+ReturnData!F11) -> 102.0494018 | G11: =G10*(1+ReturnData!G11) -> 101.608459 | H11: =H10*(1+ReturnData!H11) -> 99.24935415 | I11: =I10*(1+ReturnData!I11) -> 100 | J11: =J10*(1+ReturnData!J11) -> 102.5291098 | K11: =K10*(1+ReturnData!K11) -> 107.3708554 | L11: =L10*(1+ReturnData!L11) -> 100.9497942 | M11: =M10*(1+ReturnData!M11) -> 102.7050359 | N11: =N10*(1+ReturnData!N11) -> 101.0145842 | O11: =O10*(1+ReturnData!O11) -> 100.2981869 | P11: =P10*(1+ReturnData!P11) -> 97.71851751 | Q11: =Q10*(1+ReturnData!Q11) -> 100 | R11: =R10*(1+ReturnData!R11) -> 100 | S11: =S10*(1+ReturnData!S11) -> 100 | T11: =T10*(1+ReturnData!T11) -> 100 | U11: =U10*(1+ReturnData!U11) -> 100 | V11: =V10*(1+ReturnData!V11) -> 100 | W11: =W10*(1+ReturnData!W11) -> 100 | X11: =+X10*(1+ReturnWeighted!X11) -> 102.267812
A12: 2008-03-27 | B12: =B11*(1+ReturnData!B12) -> 100.6419052 | C12: =C11*(1+ReturnData!C12) -> 99.21601567 | D12: =D11*(1+ReturnData!D12) -> 99.56701296 | E12: =E11*(1+ReturnData!E12) -> 100 | F12: =F11*(1+ReturnData!F12) -> 101.4309994 | G12: =G11*(1+ReturnData!G12) -> 100.944392 | H12: =H11*(1+ReturnData!H12) -> 98.22112745 | I12: =I11*(1+ReturnData!I12) -> 100 | J12: =J11*(1+ReturnData!J12) -> 101.8475116 | K12: =K11*(1+ReturnData!K12) -> 105.8165179 | L12: =L11*(1+ReturnData!L12) -> 100.6314858 | M12: =M11*(1+ReturnData!M12) -> 101.9829695 | N12: =N11*(1+ReturnData!N12) -> 101.0539784 | O12: =O11*(1+ReturnData!O12) -> 100.4055382 | P12: =P11*(1+ReturnData!P12) -> 97.36430977 | Q12: =Q11*(1+ReturnData!Q12) -> 100 | R12: =R11*(1+ReturnData!R12) -> 100 | S12: =S11*(1+ReturnData!S12) -> 100 | T12: =T11*(1+ReturnData!T12) -> 100 | U12: =U11*(1+ReturnData!U12) -> 100 | V12: =V11*(1+ReturnData!V12) -> 100 | W12: =W11*(1+ReturnData!W12) -> 100 | X12: =+X11*(1+ReturnWeighted!X12) -> 101.8201983
A13: 2008-03-28 | B13: =B12*(1+ReturnData!B13) -> 100.9969564 | C13: =C12*(1+ReturnData!C13) -> 99.14971608 | D13: =D12*(1+ReturnData!D13) -> 99.70895658 | E13: =E12*(1+ReturnData!E13) -> 100 | F13: =F12*(1+ReturnData!F13) -> 102.2589561 | G13: =G12*(1+ReturnData!G13) -> 100.4945521 | H13: =H12*(1+ReturnData!H13) -> 97.74806828 | I13: =I12*(1+ReturnData!I13) -> 100 | J13: =J12*(1+ReturnData!J13) -> 102.6431555 | K13: =K12*(1+ReturnData!K13) -> 103.6469556 | L13: =L12*(1+ReturnData!L13) -> 99.66897317 | M13: =M12*(1+ReturnData!M13) -> 102.9744613 | N13: =N12*(1+ReturnData!N13) -> 101.3002364 | O13: =O12*(1+ReturnData!O13) -> 100.4532497 | P13: =P12*(1+ReturnData!P13) -> 95.71830286 | Q13: =Q12*(1+ReturnData!Q13) -> 100 | R13: =R12*(1+ReturnData!R13) -> 100 | S13: =S12*(1+ReturnData!S13) -> 100 | T13: =T12*(1+ReturnData!T13) -> 100 | U13: =U12*(1+ReturnData!U13) -> 100 | V13: =V12*(1+ReturnData!V13) -> 100 | W13: =W12*(1+ReturnData!W13) -> 100 | X13: =+X12*(1+ReturnWeighted!X13) -> 101.1890113
A14: 2008-03-31 | B14: =B13*(1+ReturnData!B14) -> 101.0788806 | C14: =C13*(1+ReturnData!C14) -> 98.87915763 | D14: =D13*(1+ReturnData!D14) -> 99.51699521 | E14: =E13*(1+ReturnData!E14) -> 100 | F14: =F13*(1+ReturnData!F14) -> 102.5122754 | G14: =G13*(1+ReturnData!G14) -> 100.7944487 | H14: =H13*(1+ReturnData!H14) -> 98.71765032 | I14: =I13*(1+ReturnData!I14) -> 100 | J14: =J13*(1+ReturnData!J14) -> 103.0077883 | K14: =K13*(1+ReturnData!K14) -> 106.2213193 | L14: =L13*(1+ReturnData!L14) -> 100.017604 | M14: =M13*(1+ReturnData!M14) -> 103.3408769 | N14: =N13*(1+ReturnData!N14) -> 101.1426356 | O14: =O13*(1+ReturnData!O14) -> 100.4771009 | P14: =P13*(1+ReturnData!P14) -> 94.1869006 | Q14: =Q13*(1+ReturnData!Q14) -> 100 | R14: =R13*(1+ReturnData!R14) -> 100 | S14: =S13*(1+ReturnData!S14) -> 100 | T14: =T13*(1+ReturnData!T14) -> 100 | U14: =U13*(1+ReturnData!U14) -> 100 | V14: =V13*(1+ReturnData!V14) -> 100 | W14: =W13*(1+ReturnData!W14) -> 100 | X14: =+X13*(1+ReturnWeighted!X14) -> 101.9489039
A15: 2008-04-01 | B15: =B14*(1+ReturnData!B15) -> 100.3150788 | C15: =C14*(1+ReturnData!C15) -> 97.43838525 | D15: =D14*(1+ReturnData!D15) -> 97.70851545 | E15: =E14*(1+ReturnData!E15) -> 100 | F15: =F14*(1+ReturnData!F15) -> 101.0888051 | G15: =G14*(1+ReturnData!G15) -> 104.0003648 | H15: =H14*(1+ReturnData!H15) -> 102.4513275 | I15: =I14*(1+ReturnData!I15) -> 100 | J15: =J14*(1+ReturnData!J15) -> 101.8611589 | K15: =K14*(1+ReturnData!K15) -> 107.3384403 | L15: =L14*(1+ReturnData!L15) -> 103.5341729 | M15: =M14*(1+ReturnData!M15) -> 101.6590121 | N15: =N14*(1+ReturnData!N15) -> 100.4552661 | O15: =O14*(1+ReturnData!O15) -> 100.1137559 | P15: =P14*(1+ReturnData!P15) -> 90.48859549 | Q15: =Q14*(1+ReturnData!Q15) -> 100 | R15: =R14*(1+ReturnData!R15) -> 100 | S15: =S14*(1+ReturnData!S15) -> 100 | T15: =T14*(1+ReturnData!T15) -> 100 | U15: =U14*(1+ReturnData!U15) -> 100 | V15: =V14*(1+ReturnData!V15) -> 100 | W15: =W14*(1+ReturnData!W15) -> 100 | X15: =+X14*(1+ReturnWeighted!X15) -> 102.2730767
A16: 2008-04-02 | B16: =B15*(1+ReturnData!B16) -> 100.2870058 | C16: =C15*(1+ReturnData!C16) -> 98.11305251 | D16: =D15*(1+ReturnData!D16) -> 98.40172893 | E16: =E15*(1+ReturnData!E16) -> 100 | F16: =F15*(1+ReturnData!F16) -> 101.2103749 | G16: =G15*(1+ReturnData!G16) -> 104.0387591 | H16: =H15*(1+ReturnData!H16) -> 103.2918932 | I16: =I15*(1+ReturnData!I16) -> 100 | J16: =J15*(1+ReturnData!J16) -> 102.0623646 | K16: =K15*(1+ReturnData!K16) -> 103.7060413 | L16: =L15*(1+ReturnData!L16) -> 103.6023793 | M16: =M15*(1+ReturnData!M16) -> 101.8754662 | N16: =N15*(1+ReturnData!N16) -> 100.5047204 | O16: =O15*(1+ReturnData!O16) -> 100.0300887 | P16: =P15*(1+ReturnData!P16) -> 92.99926957 | Q16: =Q15*(1+ReturnData!Q16) -> 100 | R16: =R15*(1+ReturnData!R16) -> 100 | S16: =S15*(1+ReturnData!S16) -> 100 | T16: =T15*(1+ReturnData!T16) -> 100 | U16: =U15*(1+ReturnData!U16) -> 100 | V16: =V15*(1+ReturnData!V16) -> 100 | W16: =W15*(1+ReturnData!W16) -> 100 | X16: =+X15*(1+ReturnWeighted!X16) -> 101.2266589
A17: 2008-04-03 | B17: =B16*(1+ReturnData!B17) -> 100.2976384 | C17: =C16*(1+ReturnData!C17) -> 98.3172517 | D17: =D16*(1+ReturnData!D17) -> 98.64621646 | E17: =E16*(1+ReturnData!E17) -> 100 | F17: =F16*(1+ReturnData!F17) -> 101.3704724 | G17: =G16*(1+ReturnData!G17) -> 104.2115343 | H17: =H16*(1+ReturnData!H17) -> 104.1871939 | I17: =I16*(1+ReturnData!I17) -> 100 | J17: =J16*(1+ReturnData!J17) -> 102.2927936 | K17: =K16*(1+ReturnData!K17) -> 104.2705558 | L17: =L16*(1+ReturnData!L17) -> 103.8600562 | M17: =M16*(1+ReturnData!M17) -> 102.1027446 | N17: =N16*(1+ReturnData!N17) -> 100.8212082 | O17: =O16*(1+ReturnData!O17) -> 99.95836809 | P17: =P16*(1+ReturnData!P17) -> 93.15553689 | Q17: =Q16*(1+ReturnData!Q17) -> 100 | R17: =R16*(1+ReturnData!R17) -> 100 | S17: =S16*(1+ReturnData!S17) -> 100 | T17: =T16*(1+ReturnData!T17) -> 100 | U17: =U16*(1+ReturnData!U17) -> 100 | V17: =V16*(1+ReturnData!V17) -> 100 | W17: =W16*(1+ReturnData!W17) -> 100 | X17: =+X16*(1+ReturnWeighted!X17) -> 101.3932576
